Workbook

Sheet Settings & Instructions
B1: Welcome to the Yards Per Fantasy Projections Template! Instructions are below - have fun and hit us up with any questions or issues (admin@yardsperfantasy.com) | Z1: 1 | AA1: Week 1
B2: Not sure where to start? Check out our article on how to go about your projections | Z2: 2 | AA2: Week 2
B3: When you've finished, export your rankings and don't forget to tag us on Twitter | Z3: 3 | AA3: Week 3
Z4: 4 | AA4: Week 4
A5: League Settings | C5: {Manual Entry - update to match your individual settings} | Z5: 5 | AA5: Week 5
C6: Value | D6: SFB 12 Settings | Z6: 6 | AA6: Week 6
B7: QB Passing TDs | C7: 4 | D7: 6 | Z7: 7 | AA7: Week 7
B8: QB Passing Yards | C8: =1/25 -> 0.04 | D8: 0.04 | Z8: 8 | AA8: Week 8
B9: Interceptions | C9: -2 | D9: -4 | Z9: 9 | AA9: Week 9
B10: QB Completions | C10: 0 | D10: 0.5
B11: QB Incompletions | C11: 0 | D11: -1
B12: Rushing TD | C12: 6 | D12: 6 | Z12: 10 | AA12: Week 10
B13: Receptions | C13: 1 | D13: 0.5 | Z13: 11 | AA13: Week 11
B14: Premium - Tight End | C14: 1 | D14: 0.5 | Z14: 12 | AA14: Week 12
B15: Premium - Wide Receiver | C15: 0 | D15: 0 | Z15: 13 | AA15: Week 13
B16: Premium - Running Back | C16: 0 | D16: 0 | Z16: 14 | AA16: Week 14
B17: Rushing Yards | C17: 0.1 | D17: 0.1 | Z17: 15 | AA17: Week 15
B18: Receiving Yards | C18: 0.1 | D18: 0.1 | Z18: 16 | AA18: Week 16
B19: Receiving TDs | C19: 6 | D19: 6 | Z19: 17 | AA19: Week 17
B20: First Downs - Rushing | C20: 0 | D20: 0.5
B21: First Downs - Receiving | C21: 0 | D21: 0.5
B22: First Downs - Receiving (Tight End Premium) | C22: 0 | D22: 0.5
Z23: 18 | AA23: Week 18
A24: Instructions | C24: *If this file runs slow, go to the Formulas menu / Calculation Options and set to 'Manual'. When you've finished updating, put it back to 'Automatic' and 'Calculate Now' or Press F9
A26: 1 | B26: Update the above league settings with the settings that you want to project. Note: Receptions is used for PPR scoring and should be 0 if non-PPR
A27: 2 | B27: For the "Premium" settings, add the additional reception premium for that position. For example, if it's 1 point PPR scoring and 2 point PPR for Tight Ends, add an additional 1 to the Tight End position above
A28: 3 | B28: For each team, populate the Manual Entry cells. Refer to the 'Steps' guidance for help on how to get going
A29: 4 | B29: Start with the Team Projection box to project total play volume and passing %. Note: If you want to do weekly projections, just overwrite the Full Season plays with the weekly numbers you want
A30: 5 | B30: Insert the players and their positions (excl Quarterbacks) and all other Manual Entry Cells (target share, catch %, yards per reception, etc)
A31: 6 | B31: Note: 2022 Data is shown underneath to help with the process and there's a quick reference player selection right underneath each position group
A32: 7 | B32: Note: Target Share % and Rush Share % should each add up to 100%. If they don't, you will see an Error comment at the top
A33: 8 | B33: Once the skill position players have been completed, most of the Quarterback stats will auto-populate. Now update the Manual Entry elements for the Quarterbacks
A34: 9 | B34: If Calculations are turned to Manual (recommended), press F9 at any time to calculate
A35: 10 | B35: When each team is completed, you will see the players and their projections listed under Total Projections and QB Projections
A36: 11 | B36: On these tabs, you can sort by position, fantasy points or whatever other stat you want to sort by
A37: 12 | B37: The Total Rankings (excl QB), QB Rankings and Positional Rankings tabs will automatically rank each player
A38: 13 | B38: Manually add your Tiers to each position if you want to use it for drafting
A39: 14 | B39: Go to the Top 12 Export page, select the rankings you want to see and click 'run' to see your top 12 projected players - take the image and post it wherever you want to plant your flag!
B40: Note: You'll to Enable Content for the top 12 export to work

Sheet Total Projections (excl QB)
A1: Total Projections (Excl QB)
A2: Rank | B2: Team | C2: Position | D2: Player | E2: Targets | F2: Catch % | G2: Receptions | H2: Premium | I2: 1st Downs Rush (Calculated) | J2: 1st Downs Rec (Calculated) | K2: Yards per Reception | L2: Receiving Yards | M2: Receiving TDs | N2: Rush Att | O2: Yards per Carry | P2: Rushing Yards | Q2: Rushing TDs | R2: Fantasy Points (Excl 1st downs) | S2: Fantasy Points (incl 1st downs)
A3: =RANK(S3,$S:$S,0)+COUNTIF($S$3:S3,S3)-1 -> 1 | B3: Arizona Cardinals | C3: Running Back | D3: ='Arizona Cardinals'!$B$127 -> James Conner | E3: ='Arizona Cardinals'!$D$127 -> 50.592 | F3: ='Arizona Cardinals'!$E$127 -> 0.75 | G3: ='Arizona Cardinals'!$F$127 -> 37.944 | H3: ='Arizona Cardinals'!$O$127 -> 0 | I3: =IF(((0.0572*P3)-2.646)<0,0,(0.0572*P3)-2.646) -> 40.761936 | J3: =IF(G3=0,0,(0.0461*L3)+2.0516) -> 13.4215196 | K3: ='Arizona Cardinals'!$G$127 -> 6.5 | L3: ='Arizona Cardinals'!$H$127 -> 246.636 | M3: ='Arizona Cardinals'!$I$127 -> 1 | N3: ='Arizona Cardinals'!$K$127 -> 189.72 | O3: ='Arizona Cardinals'!$L$127 -> 4 | P3: ='Arizona Cardinals'!$M$127 -> 758.88 | Q3: ='Arizona Cardinals'!$N$127 -> 6 | R3: ='Arizona Cardinals'!$P$127 -> 180.4956 | S3: =IF(R3=0,0,(R3+(I3*'Settings & Instructions'!$C$20)+(J3*'Settings & Instructions'!$C$21)+IF(C3="Tight End",J3*'Settings & Instructions'!$C$22,0))) -> 180.4956
A4: =RANK(S4,$S:$S,0)+COUNTIF($S$3:S4,S4)-1 -> 8 | B4: Arizona Cardinals | C4: Running Back | D4: ='Arizona Cardinals'!$B$128 -> Corey Clement | E4: ='Arizona Cardinals'!$D$128 -> 18.972 | F4: ='Arizona Cardinals'!$E$128 -> 0.7 | G4: ='Arizona Cardinals'!$F$128 -> 13.2804 | H4: ='Arizona Cardinals'!$O$128 -> 0 | I4: =IF(((0.0572*P4)-2.646)<0,0,(0.0572*P4)-2.646) -> 11.823312 | J4: =IF(G4=0,0,(0.0461*L4)+2.0516) -> 5.72495864 | K4: ='Arizona Cardinals'!$G$128 -> 6 | L4: ='Arizona Cardinals'!$H$128 -> 79.6824 | M4: ='Arizona Cardinals'!$I$128 -> 0 | N4: ='Arizona Cardinals'!$K$128 -> 63.24 | O4: ='Arizona Cardinals'!$L$128 -> 4 | P4: ='Arizona Cardinals'!$M$128 -> 252.96 | Q4: ='Arizona Cardinals'!$N$128 -> 2 | R4: ='Arizona Cardinals'!$P$128 -> 58.54464 | S4: =IF(R4=0,0,(R4+(I4*'Settings & Instructions'!$C$20)+(J4*'Settings & Instructions'!$C$21)+IF(C4="Tight End",J4*'Settings & Instructions'!$C$22,0))) -> 58.54464
A5: =RANK(S5,$S:$S,0)+COUNTIF($S$3:S5,S5)-1 -> 7 | B5: Arizona Cardinals | C5: Running Back | D5: ='Arizona Cardinals'!$B$129 -> Keaontay Ingram | E5: ='Arizona Cardinals'!$D$129 -> 18.972 | F5: ='Arizona Cardinals'!$E$129 -> 0.75 | G5: ='Arizona Cardinals'!$F$129 -> 14.229 | H5: ='Arizona Cardinals'!$O$129 -> 0 | I5: =IF(((0.0572*P5)-2.646)<0,0,(0.0572*P5)-2.646) -> 11.823312 | J5: 6.31531985 | K5: ='Arizona Cardinals'!$G$129 -> 6.5 | L5: ='Arizona Cardinals'!$H$129 -> 92.4885 | M5: ='Arizona Cardinals'!$I$129 -> 0 | N5: ='Arizona Cardinals'!$K$129 -> 63.24 | O5: ='Arizona Cardinals'!$L$129 -> 4 | P5: ='Arizona Cardinals'!$M$129 -> 252.96 | Q5: ='Arizona Cardinals'!$N$129 -> 2 | R5: ='Arizona Cardinals'!$P$129 -> 60.77385 | S5: =IF(R5=0,0,(R5+(I5*'Settings & Instructions'!$C$20)+(J5*'Settings & Instructions'!$C$21)+IF(C5="Tight End",J5*'Settings & Instructions'!$C$22,0))) -> 60.77385
A6: =RANK(S6,$S:$S,0)+COUNTIF($S$3:S6,S6)-1 -> 12 | B6: Arizona Cardinals | C6: Running Back | D6: ='Arizona Cardinals'!$B$130 -> 0 | E6: ='Arizona Cardinals'!$D$130 -> 0 | F6: ='Arizona Cardinals'!$E$130 -> 0 | G6: ='Arizona Cardinals'!$F$130 -> 0 | H6: ='Arizona Cardinals'!$O$130 -> 0 | I6: =IF(((0.0572*P6)-2.646)<0,0,(0.0572*P6)-2.646) -> 0 | J6: 0 | K6: ='Arizona Cardinals'!$G$130 -> 0 | L6: ='Arizona Cardinals'!$H$130 -> 0 | M6: ='Arizona Cardinals'!$I$130 -> 0 | N6: ='Arizona Cardinals'!$K$130 -> 0 | O6: ='Arizona Cardinals'!$L$130 -> 0 | P6: ='Arizona Cardinals'!$M$130 -> 0 | Q6: ='Arizona Cardinals'!$N$130 -> 0 | R6: ='Arizona Cardinals'!$P$130 -> 0 | S6: =IF(R6=0,0,(R6+(I6*'Settings & Instructions'!$C$20)+(J6*'Settings & Instructions'!$C$21)+IF(C6="Tight End",J6*'Settings & Instructions'!$C$22,0))) -> 0
A7: =RANK(S7,$S:$S,0)+COUNTIF($S$3:S7,S7)-1 -> 3 | B7: Arizona Cardinals | C7: Wide Receiver | D7: ='Arizona Cardinals'!$B$108 -> Marquise Brown | E7: ='Arizona Cardinals'!$D$108 -> 113.832 | F7: ='Arizona Cardinals'!$E$108 -> 0.63 | G7: ='Arizona Cardinals'!$F$108 -> 71.71416 | H7: ='Arizona Cardinals'!$O$108 -> 0 | I7: =IF(((0.0572*P7)-2.646)<0,0,(0.0572*P7)-2.646) -> 0 | J7: =IF(G7=0,0,(0.0461*L7)+2.0516) -> 35.11182776 | K7: ='Arizona Cardinals'!$G$108 -> 10 | L7: ='Arizona Cardinals'!$H$108 -> 717.1416 | M7: ='Arizona Cardinals'!$I$108 -> 3 | N7: ='Arizona Cardinals'!$K$108 -> 0 | O7: ='Arizona Cardinals'!$L$108 -> 0 | P7: ='Arizona Cardinals'!$M$108 -> 0 | Q7: ='Arizona Cardinals'!$N$108 -> 0 | R7: ='Arizona Cardinals'!$P$108 -> 161.42832 | S7: =IF(R7=0,0,(R7+(I7*'Settings & Instructions'!$C$20)+(J7*'Settings & Instructions'!$C$21)+IF(C7="Tight End",J7*'Settings & Instructions'!$C$22,0))) -> 161.42832
A8: =RANK(S8,$S:$S,0)+COUNTIF($S$3:S8,S8)-1 -> 4 | B8: Arizona Cardinals | C8: Wide Receiver | D8: ='Arizona Cardinals'!$B$109 -> DeAndre Hopkins | E8: ='Arizona Cardinals'!$D$109 -> 113.832 | F8: ='Arizona Cardinals'!$E$109 -> 0.6 | G8: ='Arizona Cardinals'!$F$109 -> 68.2992 | H8: ='Arizona Cardinals'!$O$109 -> 0 | I8: =IF(((0.0572*P8)-2.646)<0,0,(0.0572*P8)-2.646) -> 0 | J8: =IF(G8=0,0,(0.0461*L8)+2.0516) -> 31.96323464 | K8: ='Arizona Cardinals'!$G$109 -> 9.5 | L8: ='Arizona Cardinals'!$H$109 -> 648.8424 | M8: ='Arizona Cardinals'!$I$109 -> 4 | N8: ='Arizona Cardinals'!$K$109 -> 0 | O8: ='Arizona Cardinals'!$L$109 -> 0 | P8: ='Arizona Cardinals'!$M$109 -> 0 | Q8: ='Arizona Cardinals'!$N$109 -> 0 | R8: ='Arizona Cardinals'!$P$109 -> 157.18344 | S8: =IF(R8=0,0,(R8+(I8*'Settings & Instructions'!$C$20)+(J8*'Settings & Instructions'!$C$21)+IF(C8="Tight End",J8*'Settings & Instructions'!$C$22,0))) -> 157.18344
A9: =RANK(S9,$S:$S,0)+COUNTIF($S$3:S9,S9)-1 -> 9 | B9: Arizona Cardinals | C9: Wide Receiver | D9: ='Arizona Cardinals'!$B$110 -> Greg Dortch | E9: ='Arizona Cardinals'!$D$110 -> 44.268 | F9: ='Arizona Cardinals'!$E$110 -> 0.65 | G9: ='Arizona Cardinals'!$F$110 -> 28.7742 | H9: ='Arizona Cardinals'!$O$110 -> 0 | I9: 0 | J9: 12.66352496 | K9: ='Arizona Cardinals'!$G$110 -> 8 | L9: ='Arizona Cardinals'!$H$110 -> 230.1936 | M9: ='Arizona Cardinals'!$I$110 -> 1 | N9: ='Arizona Cardinals'!$K$110 -> 0 | O9: ='Arizona Cardinals'!$L$110 -> 0 | P9: ='Arizona Cardinals'!$M$110 -> 0 | Q9: ='Arizona Cardinals'!$N$110 -> 0 | R9: ='Arizona Cardinals'!$P$110 -> 57.79356 | S9: =IF(R9=0,0,(R9+(I9*'Settings & Instructions'!$C$20)+(J9*'Settings & Instructions'!$C$21)+IF(C9="Tight End",J9*'Settings & Instructions'!$C$22,0))) -> 57.79356
A10: =RANK(S10,$S:$S,0)+COUNTIF($S$3:S10,S10)-1 -> 6 | B10: Arizona Cardinals | C10: Wide Receiver | D10: ='Arizona Cardinals'!$B$111 -> Rondale Moore | E10: ='Arizona Cardinals'!$D$111 -> 44.268 | F10: ='Arizona Cardinals'!$E$111 -> 0.7 | G10: ='Arizona Cardinals'!$F$111 -> 30.9876 | H10: ='Arizona Cardinals'!$O$111 -> 0 | I10: 0 | J10: 16.3368836 | K10: ='Arizona Cardinals'!$G$111 -> 10 | L10: ='Arizona Cardinals'!$H$111 -> 309.876 | M10: ='Arizona Cardinals'!$I$111 -> 1 | N10: ='Arizona Cardinals'!$K$111 -> 0 | O10: ='Arizona Cardinals'!$L$111 -> 0 | P10: ='Arizona Cardinals'!$M$111 -> 0 | Q10: ='Arizona Cardinals'!$N$111 -> 0 | R10: ='Arizona Cardinals'!$P$111 -> 67.9752 | S10: =IF(R10=0,0,(R10+(I10*'Settings & Instructions'!$C$20)+(J10*'Settings & Instructions'!$C$21)+IF(C10="Tight End",J10*'Settings & Instructions'!$C$22,0))) -> 67.9752
A11: =RANK(S11,$S:$S,0)+COUNTIF($S$3:S11,S11)-1 -> 10 | B11: Arizona Cardinals | C11: Wide Receiver | D11: ='Arizona Cardinals'!$B$112 -> Zach Pascal | E11: ='Arizona Cardinals'!$D$112 -> 18.972 | F11: ='Arizona Cardinals'!$E$112 -> 0.6 | G11: ='Arizona Cardinals'!$F$112 -> 11.3832 | H11: ='Arizona Cardinals'!$O$112 -> 0 | I11: 0 | J11: 6.77448968 | K11: ='Arizona Cardinals'!$G$112 -> 9 | L11: ='Arizona Cardinals'!$H$112 -> 102.4488 | M11: ='Arizona Cardinals'!$I$112 -> 1 | N11: ='Arizona Cardinals'!$K$112 -> 0 | O11: ='Arizona Cardinals'!$L$112 -> 0 | P11: ='Arizona Cardinals'!$M$112 -> 0 | Q11: ='Arizona Cardinals'!$N$112 -> 0 | R11: ='Arizona Cardinals'!$P$112 -> 27.62808 | S11: =IF(R11=0,0,(R11+(I11*'Settings & Instructions'!$C$20)+(J11*'Settings & Instructions'!$C$21)+IF(C11="Tight End",J11*'Settings & Instructions'!$C$22,0))) -> 27.62808
A12: =RANK(S12,$S:$S,0)+COUNTIF($S$3:S12,S12)-1 -> 11 | B12: Arizona Cardinals | C12: Wide Receiver | D12: ='Arizona Cardinals'!$B$113 -> Michael Wilson | E12: ='Arizona Cardinals'!$D$113 -> 12.648 | F12: ='Arizona Cardinals'!$E$113 -> 0.62 | G12: ='Arizona Cardinals'!$F$113 -> 7.84176 | H12: ='Arizona Cardinals'!$O$113 -> 0 | I12: 0 | J12: 5.66665136 | K12: ='Arizona Cardinals'!$G$113 -> 10 | L12: ='Arizona Cardinals'!$H$113 -> 78.4176 | M12: ='Arizona Cardinals'!$I$113 -> 1 | N12: ='Arizona Cardinals'!$K$113 -> 0 | O12: ='Arizona Cardinals'!$L$113 -> 0 | P12: ='Arizona Cardinals'!$M$113 -> 0 | Q12: ='Arizona Cardinals'!$N$113 -> 0 | R12: ='Arizona Cardinals'!$P$113 -> 21.68352 | S12: =IF(R12=0,0,(R12+(I12*'Settings & Instructions'!$C$20)+(J12*'Settings & Instructions'!$C$21)+IF(C12="Tight End",J12*'Settings & Instructions'!$C$22,0))) -> 21.68352
A13: =RANK(S13,$S:$S,0)+COUNTIF($S$3:S13,S13)-1 -> 13 | B13: Arizona Cardinals | C13: Wide Receiver | D13: ='Arizona Cardinals'!$B$114 -> 0 | E13: ='Arizona Cardinals'!$D$114 -> 0 | F13: ='Arizona Cardinals'!$E$114 -> 0 | G13: ='Arizona Cardinals'!$F$114 -> 0 | H13: ='Arizona Cardinals'!$O$114 -> 0 | I13: 0 | J13: 0 | K13: ='Arizona Cardinals'!$G$114 -> 0 | L13: ='Arizona Cardinals'!$H$114 -> 0 | M13: ='Arizona Cardinals'!$I$114 -> 0 | N13: ='Arizona Cardinals'!$K$114 -> 0 | O13: ='Arizona Cardinals'!$L$114 -> 0 | P13: ='Arizona Cardinals'!$M$114 -> 0 | Q13: ='Arizona Cardinals'!$N$114 -> 0 | R13: ='Arizona Cardinals'!$P$114 -> 0 | S13: =IF(R13=0,0,(R13+(I13*'Settings & Instructions'!$C$20)+(J13*'Settings & Instructions'!$C$21)+IF(C13="Tight End",J13*'Settings & Instructions'!$C$22,0))) -> 0
A14: =RANK(S14,$S:$S,0)+COUNTIF($S$3:S14,S14)-1 -> 14 | B14: Arizona Cardinals | C14: Wide Receiver | D14: ='Arizona Cardinals'!$B$115 -> 0 | E14: ='Arizona Cardinals'!$D$115 -> 0 | F14: ='Arizona Cardinals'!$E$115 -> 0 | G14: ='Arizona Cardinals'!$F$115 -> 0 | H14: ='Arizona Cardinals'!$O$115 -> 0 | I14: 0 | J14: 0 | K14: ='Arizona Cardinals'!$G$115 -> 0 | L14: ='Arizona Cardinals'!$H$115 -> 0 | M14: ='Arizona Cardinals'!$I$115 -> 0 | N14: ='Arizona Cardinals'!$K$115 -> 0 | O14: ='Arizona Cardinals'!$L$115 -> 0 | P14: ='Arizona Cardinals'!$M$115 -> 0 | Q14: ='Arizona Cardinals'!$N$115 -> 0 | R14: ='Arizona Cardinals'!$P$115 -> 0 | S14: =IF(R14=0,0,(R14+(I14*'Settings & Instructions'!$C$20)+(J14*'Settings & Instructions'!$C$21)+IF(C14="Tight End",J14*'Settings & Instructions'!$C$22,0))) -> 0
A15: =RANK(S15,$S:$S,0)+COUNTIF($S$3:S15,S15)-1 -> 2 | B15: Arizona Cardinals | C15: Tight End | D15: ='Arizona Cardinals'!$B$142 -> Zach Ertz | E15: ='Arizona Cardinals'!$D$142 -> 75.888 | F15: ='Arizona Cardinals'!$E$142 -> 0.67 | G15: ='Arizona Cardinals'!$F$142 -> 50.84496 | H15: ='Arizona Cardinals'!$O$142 -> 1 | I15: 0 | J15: 23.1471739 | K15: ='Arizona Cardinals'!$G$142 -> 9 | L15: ='Arizona Cardinals'!$H$142 -> 457.60464 | M15: ='Arizona Cardinals'!$I$142 -> 3 | N15: ='Arizona Cardinals'!$K$142 -> 0 | O15: ='Arizona Cardinals'!$L$142 -> 0 | P15: ='Arizona Cardinals'!$M$142 -> 0 | Q15: ='Arizona Cardinals'!$N$142 -> 0 | R15: ='Arizona Cardinals'!$P$142 -> 165.450384 | S15: =IF(R15=0,0,(R15+(I15*'Settings & Instructions'!$C$20)+(J15*'Settings & Instructions'!$C$21)+IF(C15="Tight End",J15*'Settings & Instructions'!$C$22,0))) -> 165.450384
A16: =RANK(S16,$S:$S,0)+COUNTIF($S$3:S16,S16)-1 -> 5 | B16: Arizona Cardinals | C16: Tight End | D16: ='Arizona Cardinals'!$B$143 -> Trey McBride | E16: ='Arizona Cardinals'!$D$143 -> 56.916 | F16: ='Arizona Cardinals'!$E$143 -> 0.65 | G16: ='Arizona Cardinals'!$F$143 -> 36.9954 | H16: ='Arizona Cardinals'!$O$143 -> 1 | I16: 0 | J16: =IF(G16=0,0,(0.0461*L16)+2.0516) -> 17.40099146 | K16: ='Arizona Cardinals'!$G$143 -> 9 | L16: ='Arizona Cardinals'!$H$143 -> 332.9586 | M16: ='Arizona Cardinals'!$I$143 -> 3 | N16: ='Arizona Cardinals'!$K$143 -> 0 | O16: ='Arizona Cardinals'!$L$143 -> 0 | P16: ='Arizona Cardinals'!$M$143 -> 0 | Q16: ='Arizona Cardinals'!$N$143 -> 0 | R16: ='Arizona Cardinals'!$P$143 -> 125.28666 | S16: =IF(R16=0,0,(R16+(I16*'Settings & Instructions'!$C$20)+(J16*'Settings & Instructions'!$C$21)+IF(C16="Tight End",J16*'Settings & Instructions'!$C$22,0))) -> 125.28666
A17: =RANK(S17,$S:$S,0)+COUNTIF($S$3:S17,S17)-1 -> 15 | B17: Arizona Cardinals | C17: Tight End | D17: ='Arizona Cardinals'!$B$144 -> 0 | E17: ='Arizona Cardinals'!$D$144 -> 0 | F17: ='Arizona Cardinals'!$E$144 -> 0 | G17: ='Arizona Cardinals'!$F$144 -> 0 | H17: ='Arizona Cardinals'!$O$144 -> 1 | I17: 0 | J17: 0 | K17: ='Arizona Cardinals'!$G$144 -> 0 | L17: ='Arizona Cardinals'!$H$144 -> 0 | M17: ='Arizona Cardinals'!$I$144 -> 0 | N17: ='Arizona Cardinals'!$K$144 -> 0 | O17: ='Arizona Cardinals'!$L$144 -> 0 | P17: ='Arizona Cardinals'!$M$144 -> 0 | Q17: ='Arizona Cardinals'!$N$144 -> 0 | R17: ='Arizona Cardinals'!$P$144 -> 0 | S17: =IF(R17=0,0,(R17+(I17*'Settings & Instructions'!$C$20)+(J17*'Settings & Instructions'!$C$21)+IF(C17="Tight End",J17*'Settings & Instructions'!$C$22,0))) -> 0
A18: =RANK(S18,$S:$S,0)+COUNTIF($S$3:S18,S18)-1 -> 16 | B18: Arizona Cardinals | C18: Tight End | D18: ='Arizona Cardinals'!$B$145 -> 0 | E18: ='Arizona Cardinals'!$D$145 -> 0 | F18: ='Arizona Cardinals'!$E$145 -> 0 | G18: ='Arizona Cardinals'!$F$145 -> 0 | H18: ='Arizona Cardinals'!$O$145 -> 1 | I18: 0 | J18: 0 | K18: ='Arizona Cardinals'!$G$145 -> 0 | L18: ='Arizona Cardinals'!$H$145 -> 0 | M18: ='Arizona Cardinals'!$I$145 -> 0 | N18: ='Arizona Cardinals'!$K$145 -> 0 | O18: ='Arizona Cardinals'!$L$145 -> 0 | P18: ='Arizona Cardinals'!$M$145 -> 0 | Q18: ='Arizona Cardinals'!$N$145 -> 0 | R18: ='Arizona Cardinals'!$P$145 -> 0 | S18: =IF(R18=0,0,(R18+(I18*'Settings & Instructions'!$C$20)+(J18*'Settings & Instructions'!$C$21)+IF(C18="Tight End",J18*'Settings & Instructions'!$C$22,0))) -> 0
A19: =RANK(S19,$S:$S,0)+COUNTIF($S$3:S19,S19)-1 -> 16 | B19: Atlanta Falcons | C19: Running Back
A20: =RANK(S20,$S:$S,0)+COUNTIF($S$3:S20,S20)-1 -> 16 | B20: Atlanta Falcons | C20: Running Back
A21: =RANK(S21,$S:$S,0)+COUNTIF($S$3:S21,S21)-1 -> 16 | B21: Atlanta Falcons | C21: Running Back
A22: =RANK(S22,$S:$S,0)+COUNTIF($S$3:S22,S22)-1 -> 16 | B22: Atlanta Falcons | C22: Running Back
A23: =RANK(S23,$S:$S,0)+COUNTIF($S$3:S23,S23)-1 -> 16 | B23: Atlanta Falcons | C23: Wide Receiver
A24: =RANK(S24,$S:$S,0)+COUNTIF($S$3:S24,S24)-1 -> 16 | B24: Atlanta Falcons | C24: Wide Receiver
A25: =RANK(S25,$S:$S,0)+COUNTIF($S$3:S25,S25)-1 -> 16 | B25: Atlanta Falcons | C25: Wide Receiver
A26: =RANK(S26,$S:$S,0)+COUNTIF($S$3:S26,S26)-1 -> 16 | B26: Atlanta Falcons | C26: Wide Receiver
A27: =RANK(S27,$S:$S,0)+COUNTIF($S$3:S27,S27)-1 -> 16 | B27: Atlanta Falcons | C27: Wide Receiver
A28: =RANK(S28,$S:$S,0)+COUNTIF($S$3:S28,S28)-1 -> 16 | B28: Atlanta Falcons | C28: Wide Receiver
A29: =RANK(S29,$S:$S,0)+COUNTIF($S$3:S29,S29)-1 -> 16 | B29: Atlanta Falcons | C29: Wide Receiver
A30: =RANK(S30,$S:$S,0)+COUNTIF($S$3:S30,S30)-1 -> 16 | B30: Atlanta Falcons | C30: Wide Receiver
A31: =RANK(S31,$S:$S,0)+COUNTIF($S$3:S31,S31)-1 -> 16 | B31: Atlanta Falcons | C31: Tight End
A32: =RANK(S32,$S:$S,0)+COUNTIF($S$3:S32,S32)-1 -> 16 | B32: Atlanta Falcons | C32: Tight End
A33: =RANK(S33,$S:$S,0)+COUNTIF($S$3:S33,S33)-1 -> 16 | B33: Atlanta Falcons | C33: Tight End
A34: =RANK(S34,$S:$S,0)+COUNTIF($S$3:S34,S34)-1 -> 16 | B34: Atlanta Falcons | C34: Tight End
A35: =RANK(S35,$S:$S,0)+COUNTIF($S$3:S35,S35)-1 -> 16 | B35: Baltimore Ravens | C35: Running Back
A36: =RANK(S36,$S:$S,0)+COUNTIF($S$3:S36,S36)-1 -> 16 | B36: Baltimore Ravens | C36: Running Back
A37: =RANK(S37,$S:$S,0)+COUNTIF($S$3:S37,S37)-1 -> 16 | B37: Baltimore Ravens | C37: Running Back
A38: =RANK(S38,$S:$S,0)+COUNTIF($S$3:S38,S38)-1 -> 16 | B38: Baltimore Ravens | C38: Running Back
A39: =RANK(S39,$S:$S,0)+COUNTIF($S$3:S39,S39)-1 -> 16 | B39: Baltimore Ravens | C39: Wide Receiver
A40: =RANK(S40,$S:$S,0)+COUNTIF($S$3:S40,S40)-1 -> 16 | B40: Baltimore Ravens | C40: Wide Receiver
A41: =RANK(S41,$S:$S,0)+COUNTIF($S$3:S41,S41)-1 -> 16 | B41: Baltimore Ravens | C41: Wide Receiver
A42: =RANK(S42,$S:$S,0)+COUNTIF($S$3:S42,S42)-1 -> 16 | B42: Baltimore Ravens | C42: Wide Receiver
A43: =RANK(S43,$S:$S,0)+COUNTIF($S$3:S43,S43)-1 -> 16 | B43: Baltimore Ravens | C43: Wide Receiver
A44: =RANK(S44,$S:$S,0)+COUNTIF($S$3:S44,S44)-1 -> 16 | B44: Baltimore Ravens | C44: Wide Receiver
A45: =RANK(S45,$S:$S,0)+COUNTIF($S$3:S45,S45)-1 -> 16 | B45: Baltimore Ravens | C45: Wide Receiver
A46: =RANK(S46,$S:$S,0)+COUNTIF($S$3:S46,S46)-1 -> 16 | B46: Baltimore Ravens | C46: Wide Receiver
A47: =RANK(S47,$S:$S,0)+COUNTIF($S$3:S47,S47)-1 -> 16 | B47: Baltimore Ravens | C47: Tight End
A48: =RANK(S48,$S:$S,0)+COUNTIF($S$3:S48,S48)-1 -> 16 | B48: Baltimore Ravens | C48: Tight End
A49: =RANK(S49,$S:$S,0)+COUNTIF($S$3:S49,S49)-1 -> 16 | B49: Baltimore Ravens | C49: Tight End
A50: =RANK(S50,$S:$S,0)+COUNTIF($S$3:S50,S50)-1 -> 16 | B50: Baltimore Ravens | C50: Tight End
A51: =RANK(S51,$S:$S,0)+COUNTIF($S$3:S51,S51)-1 -> 16 | B51: Buffalo Bills | C51: Running Back
A52: =RANK(S52,$S:$S,0)+COUNTIF($S$3:S52,S52)-1 -> 16 | B52: Buffalo Bills | C52: Running Back
A53: =RANK(S53,$S:$S,0)+COUNTIF($S$3:S53,S53)-1 -> 16 | B53: Buffalo Bills | C53: Running Back
A54: =RANK(S54,$S:$S,0)+COUNTIF($S$3:S54,S54)-1 -> 16 | B54: Buffalo Bills | C54: Running Back
A55: =RANK(S55,$S:$S,0)+COUNTIF($S$3:S55,S55)-1 -> 16 | B55: Buffalo Bills | C55: Wide Receiver
A56: =RANK(S56,$S:$S,0)+COUNTIF($S$3:S56,S56)-1 -> 16 | B56: Buffalo Bills | C56: Wide Receiver
A57: =RANK(S57,$S:$S,0)+COUNTIF($S$3:S57,S57)-1 -> 16 | B57: Buffalo Bills | C57: Wide Receiver
A58: =RANK(S58,$S:$S,0)+COUNTIF($S$3:S58,S58)-1 -> 16 | B58: Buffalo Bills | C58: Wide Receiver
A59: =RANK(S59,$S:$S,0)+COUNTIF($S$3:S59,S59)-1 -> 16 | B59: Buffalo Bills | C59: Wide Receiver
A60: =RANK(S60,$S:$S,0)+COUNTIF($S$3:S60,S60)-1 -> 16 | B60: Buffalo Bills | C60: Wide Receiver
A61: =RANK(S61,$S:$S,0)+COUNTIF($S$3:S61,S61)-1 -> 16 | B61: Buffalo Bills | C61: Wide Receiver
A62: =RANK(S62,$S:$S,0)+COUNTIF($S$3:S62,S62)-1 -> 16 | B62: Buffalo Bills | C62: Wide Receiver
A63: =RANK(S63,$S:$S,0)+COUNTIF($S$3:S63,S63)-1 -> 16 | B63: Buffalo Bills | C63: Tight End
A64: =RANK(S64,$S:$S,0)+COUNTIF($S$3:S64,S64)-1 -> 16 | B64: Buffalo Bills | C64: Tight End
A65: =RANK(S65,$S:$S,0)+COUNTIF($S$3:S65,S65)-1 -> 16 | B65: Buffalo Bills | C65: Tight End
A66: =RANK(S66,$S:$S,0)+COUNTIF($S$3:S66,S66)-1 -> 16 | B66: Buffalo Bills | C66: Tight End
A67: =RANK(S67,$S:$S,0)+COUNTIF($S$3:S67,S67)-1 -> 16 | B67: Carolina Panthers | C67: Running Back
A68: =RANK(S68,$S:$S,0)+COUNTIF($S$3:S68,S68)-1 -> 16 | B68: Carolina Panthers | C68: Running Back
A69: =RANK(S69,$S:$S,0)+COUNTIF($S$3:S69,S69)-1 -> 16 | B69: Carolina Panthers | C69: Running Back
A70: =RANK(S70,$S:$S,0)+COUNTIF($S$3:S70,S70)-1 -> 16 | B70: Carolina Panthers | C70: Running Back
A71: =RANK(S71,$S:$S,0)+COUNTIF($S$3:S71,S71)-1 -> 16 | B71: Carolina Panthers | C71: Wide Receiver
A72: =RANK(S72,$S:$S,0)+COUNTIF($S$3:S72,S72)-1 -> 16 | B72: Carolina Panthers | C72: Wide Receiver
A73: =RANK(S73,$S:$S,0)+COUNTIF($S$3:S73,S73)-1 -> 16 | B73: Carolina Panthers | C73: Wide Receiver
A74: =RANK(S74,$S:$S,0)+COUNTIF($S$3:S74,S74)-1 -> 16 | B74: Carolina Panthers | C74: Wide Receiver
A75: =RANK(S75,$S:$S,0)+COUNTIF($S$3:S75,S75)-1 -> 16 | B75: Carolina Panthers | C75: Wide Receiver
A76: =RANK(S76,$S:$S,0)+COUNTIF($S$3:S76,S76)-1 -> 16 | B76: Carolina Panthers | C76: Wide Receiver
A77: =RANK(S77,$S:$S,0)+COUNTIF($S$3:S77,S77)-1 -> 16 | B77: Carolina Panthers | C77: Wide Receiver
A78: =RANK(S78,$S:$S,0)+COUNTIF($S$3:S78,S78)-1 -> 16 | B78: Carolina Panthers | C78: Wide Receiver
A79: =RANK(S79,$S:$S,0)+COUNTIF($S$3:S79,S79)-1 -> 16 | B79: Carolina Panthers | C79: Tight End
A80: =RANK(S80,$S:$S,0)+COUNTIF($S$3:S80,S80)-1 -> 16 | B80: Carolina Panthers | C80: Tight End
A81: =RANK(S81,$S:$S,0)+COUNTIF($S$3:S81,S81)-1 -> 16 | B81: Carolina Panthers | C81: Tight End
A82: =RANK(S82,$S:$S,0)+COUNTIF($S$3:S82,S82)-1 -> 16 | B82: Carolina Panthers | C82: Tight End
A83: =RANK(S83,$S:$S,0)+COUNTIF($S$3:S83,S83)-1 -> 16 | B83: Chicago Bears | C83: Running Back
A84: =RANK(S84,$S:$S,0)+COUNTIF($S$3:S84,S84)-1 -> 16 | B84: Chicago Bears | C84: Running Back
A85: =RANK(S85,$S:$S,0)+COUNTIF($S$3:S85,S85)-1 -> 16 | B85: Chicago Bears | C85: Running Back
A86: =RANK(S86,$S:$S,0)+COUNTIF($S$3:S86,S86)-1 -> 16 | B86: Chicago Bears | C86: Running Back
A87: =RANK(S87,$S:$S,0)+COUNTIF($S$3:S87,S87)-1 -> 16 | B87: Chicago Bears | C87: Wide Receiver
A88: =RANK(S88,$S:$S,0)+COUNTIF($S$3:S88,S88)-1 -> 16 | B88: Chicago Bears | C88: Wide Receiver
A89: =RANK(S89,$S:$S,0)+COUNTIF($S$3:S89,S89)-1 -> 16 | B89: Chicago Bears | C89: Wide Receiver
A90: =RANK(S90,$S:$S,0)+COUNTIF($S$3:S90,S90)-1 -> 16 | B90: Chicago Bears | C90: Wide Receiver
A91: =RANK(S91,$S:$S,0)+COUNTIF($S$3:S91,S91)-1 -> 16 | B91: Chicago Bears | C91: Wide Receiver
A92: =RANK(S92,$S:$S,0)+COUNTIF($S$3:S92,S92)-1 -> 16 | B92: Chicago Bears | C92: Wide Receiver
A93: =RANK(S93,$S:$S,0)+COUNTIF($S$3:S93,S93)-1 -> 16 | B93: Chicago Bears | C93: Wide Receiver
A94: =RANK(S94,$S:$S,0)+COUNTIF($S$3:S94,S94)-1 -> 16 | B94: Chicago Bears | C94: Wide Receiver
A95: =RANK(S95,$S:$S,0)+COUNTIF($S$3:S95,S95)-1 -> 16 | B95: Chicago Bears | C95: Tight End
A96: =RANK(S96,$S:$S,0)+COUNTIF($S$3:S96,S96)-1 -> 16 | B96: Chicago Bears | C96: Tight End
A97: =RANK(S97,$S:$S,0)+COUNTIF($S$3:S97,S97)-1 -> 16 | B97: Chicago Bears | C97: Tight End
A98: =RANK(S98,$S:$S,0)+COUNTIF($S$3:S98,S98)-1 -> 16 | B98: Chicago Bears | C98: Tight End
A99: =RANK(S99,$S:$S,0)+COUNTIF($S$3:S99,S99)-1 -> 16 | B99: Cincinnati Bengals | C99: Running Back
A100: =RANK(S100,$S:$S,0)+COUNTIF($S$3:S100,S100)-1 -> 16 | B100: Cincinnati Bengals | C100: Running Back
A101: =RANK(S101,$S:$S,0)+COUNTIF($S$3:S101,S101)-1 -> 16 | B101: Cincinnati Bengals | C101: Running Back
A102: =RANK(S102,$S:$S,0)+COUNTIF($S$3:S102,S102)-1 -> 16 | B102: Cincinnati Bengals | C102: Running Back
A103: =RANK(S103,$S:$S,0)+COUNTIF($S$3:S103,S103)-1 -> 16 | B103: Cincinnati Bengals | C103: Wide Receiver
A104: =RANK(S104,$S:$S,0)+COUNTIF($S$3:S104,S104)-1 -> 16 | B104: Cincinnati Bengals | C104: Wide Receiver
A105: =RANK(S105,$S:$S,0)+COUNTIF($S$3:S105,S105)-1 -> 16 | B105: Cincinnati Bengals | C105: Wide Receiver
A106: =RANK(S106,$S:$S,0)+COUNTIF($S$3:S106,S106)-1 -> 16 | B106: Cincinnati Bengals | C106: Wide Receiver
A107: =RANK(S107,$S:$S,0)+COUNTIF($S$3:S107,S107)-1 -> 16 | B107: Cincinnati Bengals | C107: Wide Receiver
A108: =RANK(S108,$S:$S,0)+COUNTIF($S$3:S108,S108)-1 -> 16 | B108: Cincinnati Bengals | C108: Wide Receiver
A109: =RANK(S109,$S:$S,0)+COUNTIF($S$3:S109,S109)-1 -> 16 | B109: Cincinnati Bengals | C109: Wide Receiver
A110: =RANK(S110,$S:$S,0)+COUNTIF($S$3:S110,S110)-1 -> 16 | B110: Cincinnati Bengals | C110: Wide Receiver
A111: =RANK(S111,$S:$S,0)+COUNTIF($S$3:S111,S111)-1 -> 16 | B111: Cincinnati Bengals | C111: Tight End
A112: =RANK(S112,$S:$S,0)+COUNTIF($S$3:S112,S112)-1 -> 16 | B112: Cincinnati Bengals | C112: Tight End
A113: =RANK(S113,$S:$S,0)+COUNTIF($S$3:S113,S113)-1 -> 16 | B113: Cincinnati Bengals | C113: Tight End
A114: =RANK(S114,$S:$S,0)+COUNTIF($S$3:S114,S114)-1 -> 16 | B114: Cincinnati Bengals | C114: Tight End
A115: =RANK(S115,$S:$S,0)+COUNTIF($S$3:S115,S115)-1 -> 16 | B115: Cleveland Browns | C115: Running Back
A116: =RANK(S116,$S:$S,0)+COUNTIF($S$3:S116,S116)-1 -> 16 | B116: Cleveland Browns | C116: Running Back
A117: =RANK(S117,$S:$S,0)+COUNTIF($S$3:S117,S117)-1 -> 16 | B117: Cleveland Browns | C117: Running Back
A118: =RANK(S118,$S:$S,0)+COUNTIF($S$3:S118,S118)-1 -> 16 | B118: Cleveland Browns | C118: Running Back
A119: =RANK(S119,$S:$S,0)+COUNTIF($S$3:S119,S119)-1 -> 16 | B119: Cleveland Browns | C119: Wide Receiver
A120: =RANK(S120,$S:$S,0)+COUNTIF($S$3:S120,S120)-1 -> 16 | B120: Cleveland Browns | C120: Wide Receiver
A121: =RANK(S121,$S:$S,0)+COUNTIF($S$3:S121,S121)-1 -> 16 | B121: Cleveland Browns | C121: Wide Receiver
A122: =RANK(S122,$S:$S,0)+COUNTIF($S$3:S122,S122)-1 -> 16 | B122: Cleveland Browns | C122: Wide Receiver
A123: =RANK(S123,$S:$S,0)+COUNTIF($S$3:S123,S123)-1 -> 16 | B123: Cleveland Browns | C123: Wide Receiver
A124: =RANK(S124,$S:$S,0)+COUNTIF($S$3:S124,S124)-1 -> 16 | B124: Cleveland Browns | C124: Wide Receiver
A125: =RANK(S125,$S:$S,0)+COUNTIF($S$3:S125,S125)-1 -> 16 | B125: Cleveland Browns | C125: Wide Receiver
A126: =RANK(S126,$S:$S,0)+COUNTIF($S$3:S126,S126)-1 -> 16 | B126: Cleveland Browns | C126: Wide Receiver
A127: =RANK(S127,$S:$S,0)+COUNTIF($S$3:S127,S127)-1 -> 16 | B127: Cleveland Browns | C127: Tight End
A128: =RANK(S128,$S:$S,0)+COUNTIF($S$3:S128,S128)-1 -> 16 | B128: Cleveland Browns | C128: Tight End
A129: =RANK(S129,$S:$S,0)+COUNTIF($S$3:S129,S129)-1 -> 16 | B129: Cleveland Browns | C129: Tight End
A130: =RANK(S130,$S:$S,0)+COUNTIF($S$3:S130,S130)-1 -> 16 | B130: Cleveland Browns | C130: Tight End
A131: =RANK(S131,$S:$S,0)+COUNTIF($S$3:S131,S131)-1 -> 16 | B131: Dallas Cowboys | C131: Running Back
A132: =RANK(S132,$S:$S,0)+COUNTIF($S$3:S132,S132)-1 -> 16 | B132: Dallas Cowboys | C132: Running Back
A133: =RANK(S133,$S:$S,0)+COUNTIF($S$3:S133,S133)-1 -> 16 | B133: Dallas Cowboys | C133: Running Back
A134: =RANK(S134,$S:$S,0)+COUNTIF($S$3:S134,S134)-1 -> 16 | B134: Dallas Cowboys | C134: Running Back
A135: =RANK(S135,$S:$S,0)+COUNTIF($S$3:S135,S135)-1 -> 16 | B135: Dallas Cowboys | C135: Wide Receiver
A136: =RANK(S136,$S:$S,0)+COUNTIF($S$3:S136,S136)-1 -> 16 | B136: Dallas Cowboys | C136: Wide Receiver
A137: =RANK(S137,$S:$S,0)+COUNTIF($S$3:S137,S137)-1 -> 16 | B137: Dallas Cowboys | C137: Wide Receiver
A138: =RANK(S138,$S:$S,0)+COUNTIF($S$3:S138,S138)-1 -> 16 | B138: Dallas Cowboys | C138: Wide Receiver
A139: =RANK(S139,$S:$S,0)+COUNTIF($S$3:S139,S139)-1 -> 16 | B139: Dallas Cowboys | C139: Wide Receiver
A140: =RANK(S140,$S:$S,0)+COUNTIF($S$3:S140,S140)-1 -> 16 | B140: Dallas Cowboys | C140: Wide Receiver
A141: =RANK(S141,$S:$S,0)+COUNTIF($S$3:S141,S141)-1 -> 16 | B141: Dallas Cowboys | C141: Wide Receiver
A142: =RANK(S142,$S:$S,0)+COUNTIF($S$3:S142,S142)-1 -> 16 | B142: Dallas Cowboys | C142: Wide Receiver
A143: =RANK(S143,$S:$S,0)+COUNTIF($S$3:S143,S143)-1 -> 16 | B143: Dallas Cowboys | C143: Tight End
A144: =RANK(S144,$S:$S,0)+COUNTIF($S$3:S144,S144)-1 -> 16 | B144: Dallas Cowboys | C144: Tight End
A145: =RANK(S145,$S:$S,0)+COUNTIF($S$3:S145,S145)-1 -> 16 | B145: Dallas Cowboys | C145: Tight End
A146: =RANK(S146,$S:$S,0)+COUNTIF($S$3:S146,S146)-1 -> 16 | B146: Dallas Cowboys | C146: Tight End
A147: =RANK(S147,$S:$S,0)+COUNTIF($S$3:S147,S147)-1 -> 16 | B147: Denver Broncos | C147: Running Back
A148: =RANK(S148,$S:$S,0)+COUNTIF($S$3:S148,S148)-1 -> 16 | B148: Denver Broncos | C148: Running Back
A149: =RANK(S149,$S:$S,0)+COUNTIF($S$3:S149,S149)-1 -> 16 | B149: Denver Broncos | C149: Running Back
A150: =RANK(S150,$S:$S,0)+COUNTIF($S$3:S150,S150)-1 -> 16 | B150: Denver Broncos | C150: Running Back
A151: =RANK(S151,$S:$S,0)+COUNTIF($S$3:S151,S151)-1 -> 16 | B151: Denver Broncos | C151: Wide Receiver
A152: =RANK(S152,$S:$S,0)+COUNTIF($S$3:S152,S152)-1 -> 16 | B152: Denver Broncos | C152: Wide Receiver
A153: =RANK(S153,$S:$S,0)+COUNTIF($S$3:S153,S153)-1 -> 16 | B153: Denver Broncos | C153: Wide Receiver
A154: =RANK(S154,$S:$S,0)+COUNTIF($S$3:S154,S154)-1 -> 16 | B154: Denver Broncos | C154: Wide Receiver
A155: =RANK(S155,$S:$S,0)+COUNTIF($S$3:S155,S155)-1 -> 16 | B155: Denver Broncos | C155: Wide Receiver
A156: =RANK(S156,$S:$S,0)+COUNTIF($S$3:S156,S156)-1 -> 16 | B156: Denver Broncos | C156: Wide Receiver
A157: =RANK(S157,$S:$S,0)+COUNTIF($S$3:S157,S157)-1 -> 16 | B157: Denver Broncos | C157: Wide Receiver
A158: =RANK(S158,$S:$S,0)+COUNTIF($S$3:S158,S158)-1 -> 16 | B158: Denver Broncos | C158: Wide Receiver
A159: =RANK(S159,$S:$S,0)+COUNTIF($S$3:S159,S159)-1 -> 16 | B159: Denver Broncos | C159: Tight End
A160: =RANK(S160,$S:$S,0)+COUNTIF($S$3:S160,S160)-1 -> 16 | B160: Denver Broncos | C160: Tight End
A161: =RANK(S161,$S:$S,0)+COUNTIF($S$3:S161,S161)-1 -> 16 | B161: Denver Broncos | C161: Tight End
A162: =RANK(S162,$S:$S,0)+COUNTIF($S$3:S162,S162)-1 -> 16 | B162: Denver Broncos | C162: Tight End
A163: =RANK(S163,$S:$S,0)+COUNTIF($S$3:S163,S163)-1 -> 16 | B163: Detroit Lions | C163: Running Back
A164: =RANK(S164,$S:$S,0)+COUNTIF($S$3:S164,S164)-1 -> 16 | B164: Detroit Lions | C164: Running Back
A165: =RANK(S165,$S:$S,0)+COUNTIF($S$3:S165,S165)-1 -> 16 | B165: Detroit Lions | C165: Running Back
A166: =RANK(S166,$S:$S,0)+COUNTIF($S$3:S166,S166)-1 -> 16 | B166: Detroit Lions | C166: Running Back
A167: =RANK(S167,$S:$S,0)+COUNTIF($S$3:S167,S167)-1 -> 16 | B167: Detroit Lions | C167: Wide Receiver
A168: =RANK(S168,$S:$S,0)+COUNTIF($S$3:S168,S168)-1 -> 16 | B168: Detroit Lions | C168: Wide Receiver
A169: =RANK(S169,$S:$S,0)+COUNTIF($S$3:S169,S169)-1 -> 16 | B169: Detroit Lions | C169: Wide Receiver
A170: =RANK(S170,$S:$S,0)+COUNTIF($S$3:S170,S170)-1 -> 16 | B170: Detroit Lions | C170: Wide Receiver
A171: =RANK(S171,$S:$S,0)+COUNTIF($S$3:S171,S171)-1 -> 16 | B171: Detroit Lions | C171: Wide Receiver
A172: =RANK(S172,$S:$S,0)+COUNTIF($S$3:S172,S172)-1 -> 16 | B172: Detroit Lions | C172: Wide Receiver
A173: =RANK(S173,$S:$S,0)+COUNTIF($S$3:S173,S173)-1 -> 16 | B173: Detroit Lions | C173: Wide Receiver
A174: =RANK(S174,$S:$S,0)+COUNTIF($S$3:S174,S174)-1 -> 16 | B174: Detroit Lions | C174: Wide Receiver
A175: =RANK(S175,$S:$S,0)+COUNTIF($S$3:S175,S175)-1 -> 16 | B175: Detroit Lions | C175: Tight End
A176: =RANK(S176,$S:$S,0)+COUNTIF($S$3:S176,S176)-1 -> 16 | B176: Detroit Lions | C176: Tight End
A177: =RANK(S177,$S:$S,0)+COUNTIF($S$3:S177,S177)-1 -> 16 | B177: Detroit Lions | C177: Tight End
A178: =RANK(S178,$S:$S,0)+COUNTIF($S$3:S178,S178)-1 -> 16 | B178: Detroit Lions | C178: Tight End
A179: =RANK(S179,$S:$S,0)+COUNTIF($S$3:S179,S179)-1 -> 16 | B179: Green Bay Packers | C179: Running Back
A180: =RANK(S180,$S:$S,0)+COUNTIF($S$3:S180,S180)-1 -> 16 | B180: Green Bay Packers | C180: Running Back
A181: =RANK(S181,$S:$S,0)+COUNTIF($S$3:S181,S181)-1 -> 16 | B181: Green Bay Packers | C181: Running Back
A182: =RANK(S182,$S:$S,0)+COUNTIF($S$3:S182,S182)-1 -> 16 | B182: Green Bay Packers | C182: Running Back
A183: =RANK(S183,$S:$S,0)+COUNTIF($S$3:S183,S183)-1 -> 16 | B183: Green Bay Packers | C183: Wide Receiver
A184: =RANK(S184,$S:$S,0)+COUNTIF($S$3:S184,S184)-1 -> 16 | B184: Green Bay Packers | C184: Wide Receiver
A185: =RANK(S185,$S:$S,0)+COUNTIF($S$3:S185,S185)-1 -> 16 | B185: Green Bay Packers | C185: Wide Receiver
A186: =RANK(S186,$S:$S,0)+COUNTIF($S$3:S186,S186)-1 -> 16 | B186: Green Bay Packers | C186: Wide Receiver
A187: =RANK(S187,$S:$S,0)+COUNTIF($S$3:S187,S187)-1 -> 16 | B187: Green Bay Packers | C187: Wide Receiver
A188: =RANK(S188,$S:$S,0)+COUNTIF($S$3:S188,S188)-1 -> 16 | B188: Green Bay Packers | C188: Wide Receiver
A189: =RANK(S189,$S:$S,0)+COUNTIF($S$3:S189,S189)-1 -> 16 | B189: Green Bay Packers | C189: Wide Receiver
A190: =RANK(S190,$S:$S,0)+COUNTIF($S$3:S190,S190)-1 -> 16 | B190: Green Bay Packers | C190: Wide Receiver
A191: =RANK(S191,$S:$S,0)+COUNTIF($S$3:S191,S191)-1 -> 16 | B191: Green Bay Packers | C191: Tight End
A192: =RANK(S192,$S:$S,0)+COUNTIF($S$3:S192,S192)-1 -> 16 | B192: Green Bay Packers | C192: Tight End
A193: =RANK(S193,$S:$S,0)+COUNTIF($S$3:S193,S193)-1 -> 16 | B193: Green Bay Packers | C193: Tight End
A194: =RANK(S194,$S:$S,0)+COUNTIF($S$3:S194,S194)-1 -> 16 | B194: Green Bay Packers | C194: Tight End
A195: =RANK(S195,$S:$S,0)+COUNTIF($S$3:S195,S195)-1 -> 16 | B195: Houston Texans | C195: Running Back
A196: =RANK(S196,$S:$S,0)+COUNTIF($S$3:S196,S196)-1 -> 16 | B196: Houston Texans | C196: Running Back
A197: =RANK(S197,$S:$S,0)+COUNTIF($S$3:S197,S197)-1 -> 16 | B197: Houston Texans | C197: Running Back
A198: =RANK(S198,$S:$S,0)+COUNTIF($S$3:S198,S198)-1 -> 16 | B198: Houston Texans | C198: Running Back
A199: =RANK(S199,$S:$S,0)+COUNTIF($S$3:S199,S199)-1 -> 16 | B199: Houston Texans | C199: Wide Receiver
A200: =RANK(S200,$S:$S,0)+COUNTIF($S$3:S200,S200)-1 -> 16 | B200: Houston Texans | C200: Wide Receiver
... 314 more rows

Sheet QB Projections
A1: Quarterback Projections
A2: Rank | B2: Team | C2: Player | D2: Pass Att. | E2: Completions | F2: Pass Yds. | G2: Pass TD | H2: Int | I2: Rush Att. | J2: Rushing Yds | K2: Rushing TDs | L2: Fantasy Points (excl 1st down) | M2: Fantasy Points (incl 1st down) | N2: QB Completion % | O2: QB TD % | P2: YPA
A3: =RANK(M3,$M:$M,0)+COUNTIF($M$3:M3,M3)-1 -> 1 | B3: Arizona Cardinals | C3: ='Arizona Cardinals'!$B$97 -> Kyler Murray | D3: ='Arizona Cardinals'!$C$97 -> 538.428 | E3: ='Arizona Cardinals'!$D$97 -> 355.26372 | F3: ='Arizona Cardinals'!$E$97 -> 3069.0279 | G3: ='Arizona Cardinals'!$F$97 -> 18 | H3: ='Arizona Cardinals'!$G$97 -> 7 | I3: ='Arizona Cardinals'!$I$97 -> 63.24 | J3: ='Arizona Cardinals'!$K$97 -> 392.088 | K3: ='Arizona Cardinals'!$L$97 -> 2 | L3: ='Arizona Cardinals'!$P$97 -> 231.969916 | M3: =L3+(((0.0572*J3)-2.646)*'Settings & Instructions'!$C$20) -> 231.969916 | N3: ='Arizona Cardinals'!$M$97 -> 0.6598165771 | O3: ='Arizona Cardinals'!$N$97 -> 0.03343065368 | P3: ='Arizona Cardinals'!$O$97 -> 5.69997827
A4: =RANK(M4,$M:$M,0)+COUNTIF($M$3:M4,M4)-1 -> 2 | B4: Arizona Cardinals | C4: ='Arizona Cardinals'!$B$98 -> Colt McCoy | D4: ='Arizona Cardinals'!$C$98 -> 75 | E4: ='Arizona Cardinals'!$D$98 -> 46.5 | F4: ='Arizona Cardinals'!$E$98 -> 418.5 | G4: ='Arizona Cardinals'!$F$98 -> 4 | H4: ='Arizona Cardinals'!$G$98 -> 3 | I4: ='Arizona Cardinals'!$I$98 -> 21.08 | J4: ='Arizona Cardinals'!$K$98 -> 94.86 | K4: ='Arizona Cardinals'!$L$98 -> 0 | L4: ='Arizona Cardinals'!$P$98 -> 36.226 | M4: =L4+(((0.0572*J4)-2.646)*'Settings & Instructions'!$C$20) -> 36.226 | N4: ='Arizona Cardinals'!$M$98 -> 0.62 | O4: ='Arizona Cardinals'!$N$98 -> 0.05333333333 | P4: ='Arizona Cardinals'!$O$98 -> 5.58
B5: Atlanta Falcons
B6: Atlanta Falcons
B7: Baltimore Ravens
B8: Baltimore Ravens
B9: Buffalo Bills
B10: Buffalo Bills
B11: Carolina Panthers
B12: Carolina Panthers
B13: Chicago Bears
B14: Chicago Bears
B15: Cincinnati Bengals
B16: Cincinnati Bengals
B17: Cleveland Browns
B18: Cleveland Browns
B19: Dallas Cowboys
B20: Dallas Cowboys
B21: Denver Broncos
B22: Denver Broncos
B23: Detroit Lions
B24: Detroit Lions
B25: Green Bay Packers
B26: Green Bay Packers
B27: Houston Texans
B28: Houston Texans
B29: Indianapolis Colts
B30: Indianapolis Colts
B31: Jacksonville Jaguars
B32: Jacksonville Jaguars
B33: Kansas City Chiefs
B34: Kansas City Chiefs
B35: Las Vegas Raiders
B36: Las Vegas Raiders
B37: Los Angeles Chargers
B38: Los Angeles Chargers
B39: Los Angeles Rams
B40: Los Angeles Rams
B41: Miami Dolphins
B42: Miami Dolphins
B43: Minnesota Vikings
B44: Minnesota Vikings
B45: New England Patriots
B46: New England Patriots
B47: New Orleans Saints
B48: New Orleans Saints
B49: New York Giants
B50: New York Giants
B51: New York Jets
B52: New York Jets
B53: Philadelphia Eagles
B54: Philadelphia Eagles
B55: Pittsburgh Steelers
B56: Pittsburgh Steelers
B57: San Francisco 49ers
B58: San Francisco 49ers
B59: Seattle Seahawks
B60: Seattle Seahawks
B61: Tampa Bay Buccaneers
B62: Tampa Bay Buccaneers
B63: Tennessee Titans
B64: Tennessee Titans
B65: Washington Commanders
B66: Washington Commanders

Sheet Total Rankings (excl QB)
A1: Total Rankings (Excl QB)
A2: Rank | B2: Team | C2: Position | D2: Player | E2: Fantasy Points | F2: Pos Rank | H2: PPR & Premium Settings
A3: 1 | B3: =VLOOKUP($A3,'Total Projections (excl QB)'!$A:$T,2,0) -> Arizona Cardinals | C3: =VLOOKUP($A3,'Total Projections (excl QB)'!$A:$T,3,0) -> Running Back | D3: =VLOOKUP($A3,'Total Projections (excl QB)'!$A:$T,4,0) -> James Conner | E3: =VLOOKUP($A3,'Total Projections (excl QB)'!$A:$T,19,0) -> 180.4956 | F3: =COUNTIFS(C:C,C3,E:E,">"&E3)+1 -> 1
A4: 2 | B4: =VLOOKUP($A4,'Total Projections (excl QB)'!$A:$T,2,0) -> Arizona Cardinals | C4: =VLOOKUP($A4,'Total Projections (excl QB)'!$A:$T,3,0) -> Tight End | D4: =VLOOKUP($A4,'Total Projections (excl QB)'!$A:$T,4,0) -> Zach Ertz | E4: =VLOOKUP($A4,'Total Projections (excl QB)'!$A:$T,19,0) -> 165.450384 | F4: 1 | H4: Receptions | I4: ='Settings & Instructions'!C13 -> 1
A5: 3 | B5: =VLOOKUP($A5,'Total Projections (excl QB)'!$A:$T,2,0) -> Arizona Cardinals | C5: =VLOOKUP($A5,'Total Projections (excl QB)'!$A:$T,3,0) -> Wide Receiver | D5: =VLOOKUP($A5,'Total Projections (excl QB)'!$A:$T,4,0) -> Marquise Brown | E5: =VLOOKUP($A5,'Total Projections (excl QB)'!$A:$T,19,0) -> 161.42832 | F5: 1 | H5: Premium - Tight End | I5: ='Settings & Instructions'!C14 -> 1
A6: 4 | B6: =VLOOKUP($A6,'Total Projections (excl QB)'!$A:$T,2,0) -> Arizona Cardinals | C6: =VLOOKUP($A6,'Total Projections (excl QB)'!$A:$T,3,0) -> Wide Receiver | D6: =VLOOKUP($A6,'Total Projections (excl QB)'!$A:$T,4,0) -> DeAndre Hopkins | E6: =VLOOKUP($A6,'Total Projections (excl QB)'!$A:$T,19,0) -> 157.18344 | F6: 2 | H6: Premium - Wide Receiver | I6: ='Settings & Instructions'!C15 -> 0
A7: 5 | B7: =VLOOKUP($A7,'Total Projections (excl QB)'!$A:$T,2,0) -> Arizona Cardinals | C7: =VLOOKUP($A7,'Total Projections (excl QB)'!$A:$T,3,0) -> Tight End | D7: =VLOOKUP($A7,'Total Projections (excl QB)'!$A:$T,4,0) -> Trey McBride | E7: =VLOOKUP($A7,'Total Projections (excl QB)'!$A:$T,19,0) -> 125.28666 | F7: 2 | H7: Premium - Running Back | I7: ='Settings & Instructions'!C16 -> 0
A8: 6 | B8: =VLOOKUP($A8,'Total Projections (excl QB)'!$A:$T,2,0) -> Arizona Cardinals | C8: =VLOOKUP($A8,'Total Projections (excl QB)'!$A:$T,3,0) -> Wide Receiver | D8: =VLOOKUP($A8,'Total Projections (excl QB)'!$A:$T,4,0) -> Rondale Moore | E8: =VLOOKUP($A8,'Total Projections (excl QB)'!$A:$T,19,0) -> 67.9752 | F8: 3
A9: 7 | B9: =VLOOKUP($A9,'Total Projections (excl QB)'!$A:$T,2,0) -> Arizona Cardinals | C9: =VLOOKUP($A9,'Total Projections (excl QB)'!$A:$T,3,0) -> Running Back | D9: =VLOOKUP($A9,'Total Projections (excl QB)'!$A:$T,4,0) -> Keaontay Ingram | E9: =VLOOKUP($A9,'Total Projections (excl QB)'!$A:$T,19,0) -> 60.77385 | F9: 2
A10: 8 | B10: =VLOOKUP($A10,'Total Projections (excl QB)'!$A:$T,2,0) -> Arizona Cardinals | C10: =VLOOKUP($A10,'Total Projections (excl QB)'!$A:$T,3,0) -> Running Back | D10: =VLOOKUP($A10,'Total Projections (excl QB)'!$A:$T,4,0) -> Corey Clement | E10: =VLOOKUP($A10,'Total Projections (excl QB)'!$A:$T,19,0) -> 58.54464 | F10: 3
A11: 9 | B11: =VLOOKUP($A11,'Total Projections (excl QB)'!$A:$T,2,0) -> Arizona Cardinals | C11: =VLOOKUP($A11,'Total Projections (excl QB)'!$A:$T,3,0) -> Wide Receiver | D11: =VLOOKUP($A11,'Total Projections (excl QB)'!$A:$T,4,0) -> Greg Dortch | E11: =VLOOKUP($A11,'Total Projections (excl QB)'!$A:$T,19,0) -> 57.79356 | F11: 4
A12: 10 | B12: =VLOOKUP($A12,'Total Projections (excl QB)'!$A:$T,2,0) -> Arizona Cardinals | C12: =VLOOKUP($A12,'Total Projections (excl QB)'!$A:$T,3,0) -> Wide Receiver | D12: =VLOOKUP($A12,'Total Projections (excl QB)'!$A:$T,4,0) -> Zach Pascal | E12: =VLOOKUP($A12,'Total Projections (excl QB)'!$A:$T,19,0) -> 27.62808 | F12: 5
A13: 11 | B13: =VLOOKUP($A13,'Total Projections (excl QB)'!$A:$T,2,0) -> Arizona Cardinals | C13: =VLOOKUP($A13,'Total Projections (excl QB)'!$A:$T,3,0) -> Wide Receiver | D13: =VLOOKUP($A13,'Total Projections (excl QB)'!$A:$T,4,0) -> Michael Wilson | E13: =VLOOKUP($A13,'Total Projections (excl QB)'!$A:$T,19,0) -> 21.68352 | F13: 6
A14: 12 | B14: =VLOOKUP($A14,'Total Projections (excl QB)'!$A:$T,2,0) -> Arizona Cardinals | C14: =VLOOKUP($A14,'Total Projections (excl QB)'!$A:$T,3,0) -> Running Back | D14: =VLOOKUP($A14,'Total Projections (excl QB)'!$A:$T,4,0) -> 0 | E14: =VLOOKUP($A14,'Total Projections (excl QB)'!$A:$T,19,0) -> 0 | F14: 4
A15: 13 | B15: =VLOOKUP($A15,'Total Projections (excl QB)'!$A:$T,2,0) -> Arizona Cardinals | C15: =VLOOKUP($A15,'Total Projections (excl QB)'!$A:$T,3,0) -> Wide Receiver | D15: =VLOOKUP($A15,'Total Projections (excl QB)'!$A:$T,4,0) -> 0 | E15: =VLOOKUP($A15,'Total Projections (excl QB)'!$A:$T,19,0) -> 0 | F15: 7
A16: 14 | B16: =VLOOKUP($A16,'Total Projections (excl QB)'!$A:$T,2,0) -> Arizona Cardinals | C16: =VLOOKUP($A16,'Total Projections (excl QB)'!$A:$T,3,0) -> Wide Receiver | D16: =VLOOKUP($A16,'Total Projections (excl QB)'!$A:$T,4,0) -> 0 | E16: =VLOOKUP($A16,'Total Projections (excl QB)'!$A:$T,19,0) -> 0 | F16: 7
A17: 15 | B17: =VLOOKUP($A17,'Total Projections (excl QB)'!$A:$T,2,0) -> Arizona Cardinals | C17: =VLOOKUP($A17,'Total Projections (excl QB)'!$A:$T,3,0) -> Tight End | D17: =VLOOKUP($A17,'Total Projections (excl QB)'!$A:$T,4,0) -> 0 | E17: =VLOOKUP($A17,'Total Projections (excl QB)'!$A:$T,19,0) -> 0 | F17: 3
A18: 16 | B18: =VLOOKUP($A18,'Total Projections (excl QB)'!$A:$T,2,0) -> Arizona Cardinals | C18: =VLOOKUP($A18,'Total Projections (excl QB)'!$A:$T,3,0) -> Tight End | D18: =VLOOKUP($A18,'Total Projections (excl QB)'!$A:$T,4,0) -> 0 | E18: =VLOOKUP($A18,'Total Projections (excl QB)'!$A:$T,19,0) -> 0 | F18: 3
A19: 17
A20: 18
A21: 19
A22: 20
A23: 21
A24: 22
A25: 23
A26: 24
A27: 25
A28: 26
A29: 27
A30: 28
A31: 29
A32: 30
A33: 31
A34: 32
A35: 33
A36: 34
A37: 35
A38: 36
A39: 37
A40: 38
A41: 39
A42: 40
A43: 41
A44: 42
A45: 43
A46: 44
A47: 45
A48: 46
A49: 47
A50: 48
A51: 49
A52: 50
A53: 51
A54: 52
A55: 53
A56: 54
A57: 55
A58: 56
A59: 57
A60: 58
A61: 59
A62: 60
A63: 61
A64: 62
A65: 63
A66: 64
A67: 65
A68: 66
A69: 67
A70: 68
A71: 69
A72: 70
A73: 71
A74: 72
A75: 73
A76: 74
A77: 75
A78: 76
A79: 77
A80: 78
A81: 79
A82: 80
A83: 81
A84: 82
A85: 83
A86: 84
A87: 85
A88: 86
A89: 87
A90: 88
A91: 89
A92: 90
A93: 91
A94: 92
A95: 93
A96: 94
A97: 95
A98: 96
A99: 97
A100: 98
A101: 99
A102: 100
A103: 101
A104: 102
A105: 103
A106: 104
A107: 105
A108: 106
A109: 107
A110: 108
A111: 109
A112: 110
A113: 111
A114: 112
A115: 113
A116: 114
A117: 115
A118: 116
A119: 117
A120: 118
A121: 119
A122: 120
A123: 121
A124: 122
A125: 123
A126: 124
A127: 125
A128: 126
A129: 127
A130: 128
A131: 129
A132: 130
A133: 131
A134: 132
A135: 133
A136: 134
A137: 135
A138: 136
A139: 137
A140: 138
A141: 139
A142: 140
A143: 141
A144: 142
A145: 143
A146: 144
A147: 145
A148: 146
A149: 147
A150: 148
A151: 149
A152: 150
A153: 151
A154: 152
A155: 153
A156: 154
A157: 155
A158: 156
A159: 157
A160: 158
A161: 159
A162: 160
A163: 161
A164: 162
A165: 163
A166: 164
A167: 165
A168: 166
A169: 167
A170: 168
A171: 169
A172: 170
A173: 171
A174: 172
A175: 173
A176: 174
A177: 175
A178: 176
A179: 177
A180: 178
A181: 179
A182: 180
A183: 181
A184: 182
A185: 183
A186: 184
A187: 185
A188: 186
A189: 187
A190: 188
A191: 189
A192: 190
A193: 191
A194: 192
A195: 193
A196: 194
A197: 195
A198: 196
A199: 197
A200: 198
... 314 more rows

Sheet QB Rankings
A1: Quarterback Projections
A2: Rank | B2: Team | C2: Player | D2: Fantasy Points
A3: 1 | B3: =VLOOKUP($A3,'QB Projections'!$A:$M,2,0) -> Arizona Cardinals | C3: =VLOOKUP($A3,'QB Projections'!$A:$M,3,0) -> Kyler Murray | D3: =VLOOKUP($A3,'QB Projections'!$A:$M,13,0) -> 231.969916
A4: 2 | B4: =VLOOKUP($A4,'QB Projections'!$A:$M,2,0) -> Arizona Cardinals | C4: =VLOOKUP($A4,'QB Projections'!$A:$M,3,0) -> Colt McCoy | D4: =VLOOKUP($A4,'QB Projections'!$A:$M,13,0) -> 36.226
A5: 3
A6: 4
A7: 5
A8: 6
A9: 7
A10: 8
A11: 9
A12: 10
A13: 11
A14: 12
A15: 13
A16: 14
A17: 15
A18: 16
A19: 17
A20: 18
A21: 19
A22: 20
A23: 21
A24: 22
A25: 23
A26: 24
A27: 25
A28: 26
A29: 27
A30: 28
A31: 29
A32: 30
A33: 31
A34: 32
A35: 33
A36: 34
A37: 35
A38: 36
A39: 37
A40: 38
A41: 39
A42: 40
A43: 41
A44: 42
A45: 43
A46: 44
A47: 45
A48: 46
A49: 47
A50: 48
A51: 49
A52: 50
A53: 51
A54: 52
A55: 53
A56: 54
A57: 55
A58: 56
A59: 57
A60: 58
A61: 59
A62: 60
A63: 61
A64: 62
A65: 63
A66: 64

Sheet Positional Ranks
A1: Wide Receiver | G1: Running Back | M1: Tight End | S1: Quarterback
A2: Rank | B2: Player | C2: Fantasy Points | D2: Points per Game | E2: Tier | G2: Rank | H2: Player | I2: Fantasy Points | J2: Points per Game | K2: Tier | M2: Rank | N2: Player | O2: Fantasy Points | P2: Points per Game | Q2: Tier | S2: Rank | T2: Player | U2: Fantasy Points | V2: Points per Game | W2: Tier
A3: 1 | B3: =INDEX('Total Rankings (excl QB)'!$D:$D,MATCH(1,("Wide Receiver"='Total Rankings (excl QB)'!$C:$C)*(A3='Total Rankings (excl QB)'!$F:$F),0),1) -> Marquise Brown | C3: =VLOOKUP($B3,'Total Rankings (excl QB)'!$D:$E,2,0) -> 161.42832 | D3: =C3/17 -> 9.495783529 | G3: 1 | H3: =INDEX('Total Rankings (excl QB)'!$D:$D,MATCH(1,("Running Back"='Total Rankings (excl QB)'!$C:$C)*(G3='Total Rankings (excl QB)'!$F:$F),0),1) -> James Conner | I3: =VLOOKUP($H3,'Total Rankings (excl QB)'!$D:$E,2,0) -> 180.4956 | J3: =I3/17 -> 10.61738824 | M3: 1 | N3: =INDEX('Total Rankings (excl QB)'!$D:$D,MATCH(1,("Tight End"='Total Rankings (excl QB)'!$C:$C)*(M3='Total Rankings (excl QB)'!$F:$F),0),1) -> Zach Ertz | O3: =VLOOKUP($N3,'Total Rankings (excl QB)'!$D:$E,2,0) -> 165.450384 | P3: =O3/17 -> 9.732375529 | S3: 1 | T3: ='QB Rankings'!C3 -> Kyler Murray | U3: ='QB Rankings'!D3 -> 231.969916 | V3: =U3/17 -> 13.64528918
A4: 2 | B4: =INDEX('Total Rankings (excl QB)'!$D:$D,MATCH(1,("Wide Receiver"='Total Rankings (excl QB)'!$C:$C)*(A4='Total Rankings (excl QB)'!$F:$F),0),1) -> DeAndre Hopkins | C4: =VLOOKUP($B4,'Total Rankings (excl QB)'!$D:$E,2,0) -> 157.18344 | D4: =C4/17 -> 9.246084706 | G4: 2 | H4: =INDEX('Total Rankings (excl QB)'!$D:$D,MATCH(1,("Running Back"='Total Rankings (excl QB)'!$C:$C)*(G4='Total Rankings (excl QB)'!$F:$F),0),1) -> Keaontay Ingram | I4: =VLOOKUP($H4,'Total Rankings (excl QB)'!$D:$E,2,0) -> 60.77385 | J4: =I4/17 -> 3.574932353 | M4: 2 | N4: =INDEX('Total Rankings (excl QB)'!$D:$D,MATCH(1,("Tight End"='Total Rankings (excl QB)'!$C:$C)*(M4='Total Rankings (excl QB)'!$F:$F),0),1) -> Trey McBride | O4: =VLOOKUP($N4,'Total Rankings (excl QB)'!$D:$E,2,0) -> 125.28666 | P4: =O4/17 -> 7.369803529 | S4: 2 | T4: ='QB Rankings'!C4 -> Colt McCoy | U4: ='QB Rankings'!D4 -> 36.226 | V4: =U4/17 -> 2.130941176
A5: 3 | B5: =INDEX('Total Rankings (excl QB)'!$D:$D,MATCH(1,("Wide Receiver"='Total Rankings (excl QB)'!$C:$C)*(A5='Total Rankings (excl QB)'!$F:$F),0),1) -> Rondale Moore | C5: =VLOOKUP($B5,'Total Rankings (excl QB)'!$D:$E,2,0) -> 67.9752 | D5: 3.998541176 | G5: 3 | H5: =INDEX('Total Rankings (excl QB)'!$D:$D,MATCH(1,("Running Back"='Total Rankings (excl QB)'!$C:$C)*(G5='Total Rankings (excl QB)'!$F:$F),0),1) -> Corey Clement | I5: =VLOOKUP($H5,'Total Rankings (excl QB)'!$D:$E,2,0) -> 58.54464 | J5: 3.443802353 | M5: 3 | S5: 3
A6: 4 | B6: =INDEX('Total Rankings (excl QB)'!$D:$D,MATCH(1,("Wide Receiver"='Total Rankings (excl QB)'!$C:$C)*(A6='Total Rankings (excl QB)'!$F:$F),0),1) -> Greg Dortch | C6: =VLOOKUP($B6,'Total Rankings (excl QB)'!$D:$E,2,0) -> 57.79356 | D6: 3.399621176 | G6: 4 | M6: 4 | S6: 4
A7: 5 | B7: =INDEX('Total Rankings (excl QB)'!$D:$D,MATCH(1,("Wide Receiver"='Total Rankings (excl QB)'!$C:$C)*(A7='Total Rankings (excl QB)'!$F:$F),0),1) -> Zach Pascal | C7: =VLOOKUP($B7,'Total Rankings (excl QB)'!$D:$E,2,0) -> 27.62808 | D7: 1.625181176 | G7: 5 | M7: 5 | S7: 5
A8: 6 | B8: =INDEX('Total Rankings (excl QB)'!$D:$D,MATCH(1,("Wide Receiver"='Total Rankings (excl QB)'!$C:$C)*(A8='Total Rankings (excl QB)'!$F:$F),0),1) -> Michael Wilson | C8: =VLOOKUP($B8,'Total Rankings (excl QB)'!$D:$E,2,0) -> 21.68352 | D8: 1.275501176 | G8: 6 | M8: 6 | S8: 6
A9: 7 | G9: 7 | M9: 7 | S9: 7
A10: 8 | G10: 8 | M10: 8 | S10: 8
A11: 9 | G11: 9 | M11: 9 | S11: 9
A12: 10 | G12: 10 | M12: 10 | S12: 10
A13: 11 | G13: 11 | M13: 11 | S13: 11
A14: 12 | G14: 12 | M14: 12 | S14: 12
A15: 13 | G15: 13 | M15: 13 | S15: 13
A16: 14 | G16: 14 | M16: 14 | S16: 14
A17: 15 | G17: 15 | M17: 15 | S17: 15
A18: 16 | G18: 16 | M18: 16 | S18: 16
A19: 17 | G19: 17 | M19: 17 | S19: 17
A20: 18 | G20: 18 | M20: 18 | S20: 18
A21: 19 | G21: 19 | M21: 19 | S21: 19
A22: 20 | G22: 20 | M22: 20 | S22: 20
A23: 21 | G23: 21 | M23: 21 | S23: 21
A24: 22 | G24: 22 | M24: 22 | S24: 22
A25: 23 | G25: 23 | M25: 23 | S25: 23
A26: 24 | G26: 24 | M26: 24 | S26: 24
A27: 25 | G27: 25 | M27: 25 | S27: 25
A28: 26 | G28: 26 | M28: 26 | S28: 26
A29: 27 | G29: 27 | M29: 27 | S29: 27
A30: 28 | G30: 28 | M30: 28 | S30: 28
A31: 29 | G31: 29 | M31: 29 | S31: 29
A32: 30 | G32: 30 | M32: 30 | S32: 30
A33: 31 | G33: 31 | M33: 31 | S33: 31
A34: 32 | G34: 32 | M34: 32 | S34: 32
A35: 33 | G35: 33 | M35: 33 | S35: 33
A36: 34 | G36: 34 | M36: 34 | S36: 34
A37: 35 | G37: 35 | M37: 35 | S37: 35
A38: 36 | G38: 36 | M38: 36 | S38: 36
A39: 37 | G39: 37 | M39: 37 | S39: 37
A40: 38 | G40: 38 | M40: 38 | S40: 38
A41: 39 | G41: 39 | M41: 39 | S41: 39
A42: 40 | G42: 40 | M42: 40 | S42: 40
A43: 41 | G43: 41 | M43: 41 | S43: 41
A44: 42 | G44: 42 | M44: 42 | S44: 42
A45: 43 | G45: 43 | M45: 43 | S45: 43
A46: 44 | G46: 44 | M46: 44 | S46: 44
A47: 45 | G47: 45 | M47: 45 | S47: 45
A48: 46 | G48: 46 | M48: 46 | S48: 46
A49: 47 | G49: 47 | M49: 47 | S49: 47
A50: 48 | G50: 48 | M50: 48 | S50: 48
A51: 49 | G51: 49 | M51: 49 | S51: 49
A52: 50 | G52: 50 | M52: 50 | S52: 50
A53: 51 | G53: 51 | M53: 51 | S53: 51
A54: 52 | G54: 52 | M54: 52 | S54: 52
A55: 53 | G55: 53 | M55: 53 | S55: 53
A56: 54 | G56: 54 | M56: 54 | S56: 54
A57: 55 | G57: 55 | M57: 55 | S57: 55
A58: 56 | G58: 56 | M58: 56 | S58: 56
A59: 57 | G59: 57 | M59: 57 | S59: 57
A60: 58 | G60: 58 | M60: 58 | S60: 58
A61: 59 | G61: 59 | M61: 59 | S61: 59
A62: 60 | G62: 60 | M62: 60 | S62: 60
A63: 61 | G63: 61 | M63: 61 | S63: 61
A64: 62 | G64: 62 | M64: 62 | S64: 62
A65: 63 | G65: 63 | M65: 63 | S65: 63
A66: 64 | G66: 64 | M66: 64 | S66: 64
A67: 65 | G67: 65 | M67: 65
A68: 66 | G68: 66 | M68: 66
A69: 67 | G69: 67 | M69: 67
A70: 68 | G70: 68 | M70: 68
A71: 69 | G71: 69 | M71: 69
A72: 70 | G72: 70 | M72: 70
A73: 71 | G73: 71 | M73: 71
A74: 72 | G74: 72 | M74: 72
A75: 73 | G75: 73 | M75: 73
A76: 74 | G76: 74 | M76: 74
A77: 75 | G77: 75 | M77: 75
A78: 76 | G78: 76 | M78: 76
A79: 77 | G79: 77 | M79: 77
A80: 78 | G80: 78 | M80: 78
A81: 79 | G81: 79 | M81: 79
A82: 80 | G82: 80 | M82: 80
A83: 81 | G83: 81 | M83: 81
A84: 82 | G84: 82 | M84: 82
A85: 83 | G85: 83 | M85: 83
A86: 84 | G86: 84 | M86: 84
A87: 85 | G87: 85 | M87: 85
A88: 86 | G88: 86 | M88: 86
A89: 87 | G89: 87 | M89: 87
A90: 88 | G90: 88 | M90: 88
A91: 89 | G91: 89 | M91: 89
A92: 90 | G92: 90 | M92: 90
A93: 91 | G93: 91 | M93: 91
A94: 92 | G94: 92 | M94: 92
A95: 93 | G95: 93 | M95: 93
A96: 94 | G96: 94 | M96: 94
A97: 95 | G97: 95 | M97: 95
A98: 96 | G98: 96 | M98: 96
A99: 97 | G99: 97 | M99: 97
A100: 98 | G100: 98 | M100: 98
A101: 99 | G101: 99 | M101: 99
A102: 100 | G102: 100 | M102: 100
A103: 101 | G103: 101 | M103: 101
A104: 102 | G104: 102 | M104: 102
A105: 103 | G105: 103 | M105: 103
A106: 104 | G106: 104 | M106: 104
A107: 105 | G107: 105 | M107: 105
A108: 106 | G108: 106 | M108: 106
A109: 107 | G109: 107 | M109: 107
A110: 108 | G110: 108 | M110: 108
A111: 109 | G111: 109 | M111: 109
A112: 110 | G112: 110 | M112: 110
A113: 111 | G113: 111 | M113: 111
A114: 112 | G114: 112 | M114: 112
A115: 113 | G115: 113 | M115: 113
A116: 114 | G116: 114 | M116: 114
A117: 115 | G117: 115 | M117: 115
A118: 116 | G118: 116 | M118: 116
A119: 117 | G119: 117 | M119: 117
A120: 118 | G120: 118 | M120: 118
A121: 119 | G121: 119 | M121: 119
A122: 120 | G122: 120 | M122: 120
A123: 121 | G123: 121 | M123: 121
A124: 122 | G124: 122 | M124: 122
A125: 123 | G125: 123 | M125: 123
A126: 124 | G126: 124 | M126: 124
A127: 125 | G127: 125 | M127: 125
A128: 126 | G128: 126 | M128: 126
A129: 127 | G129: 127 | M129: 127
A130: 128 | G130: 128 | M130: 128
A131: 129
A132: 130
A133: 131
A134: 132
A135: 133
A136: 134
A137: 135
A138: 136
A139: 137
A140: 138
A141: 139
A142: 140
A143: 141
A144: 142
A145: 143
A146: 144
A147: 145
A148: 146
A149: 147
A150: 148
A151: 149
A152: 150
A153: 151
A154: 152
A155: 153
A156: 154
A157: 155
A158: 156
A159: 157
A160: 158
A161: 159
A162: 160
A163: 161
A164: 162
A165: 163
A166: 164
A167: 165
A168: 166
A169: 167
A170: 168
A171: 169
A172: 170
A173: 171
A174: 172
A175: 173
A176: 174
A177: 175
A178: 176
A179: 177
A180: 178
A181: 179
A182: 180
A183: 181
A184: 182
A185: 183
A186: 184
A187: 185
A188: 186
A189: 187
A190: 188
A191: 189
A192: 190
A193: 191
A194: 192

Sheet To Hide (hidden)
A1: Wide Receivers | D1: Select Rankings | E1: =#REF! -> 
A2: Running Backs
A3: Tight Ends
A4: Quarterbacks
H8: =E1 -> 
G9: 1 | H9: =IFERROR(IF($E$1=$A$1,VLOOKUP(G9,'Positional Ranks'!A:B,2,0),IF($E$1=$A$2,VLOOKUP(G9,'Positional Ranks'!G:H,2,0),IF($E$1=$A$3,VLOOKUP(G9,'Positional Ranks'!M:N,2,0),IF($E$1=$A$4,VLOOKUP(G9,'Positional Ranks'!S:T,2,0),"PROJECTIONS INCOMPLETE")))),"PROJECTIONS INCOMPLETE") -> PROJECTIONS INCOMPLETE
G10: 2 | H10: =IFERROR(IF($E$1=$A$1,VLOOKUP(G10,'Positional Ranks'!A:B,2,0),IF($E$1=$A$2,VLOOKUP(G10,'Positional Ranks'!G:H,2,0),IF($E$1=$A$3,VLOOKUP(G10,'Positional Ranks'!M:N,2,0),IF($E$1=$A$4,VLOOKUP(G10,'Positional Ranks'!S:T,2,0),"PROJECTIONS INCOMPLETE")))),"PROJECTIONS INCOMPLETE") -> PROJECTIONS INCOMPLETE
G11: 3 | H11: =IFERROR(IF($E$1=$A$1,VLOOKUP(G11,'Positional Ranks'!A:B,2,0),IF($E$1=$A$2,VLOOKUP(G11,'Positional Ranks'!G:H,2,0),IF($E$1=$A$3,VLOOKUP(G11,'Positional Ranks'!M:N,2,0),IF($E$1=$A$4,VLOOKUP(G11,'Positional Ranks'!S:T,2,0),"PROJECTIONS INCOMPLETE")))),"PROJECTIONS INCOMPLETE") -> PROJECTIONS INCOMPLETE
G12: 4 | H12: =IFERROR(IF($E$1=$A$1,VLOOKUP(G12,'Positional Ranks'!A:B,2,0),IF($E$1=$A$2,VLOOKUP(G12,'Positional Ranks'!G:H,2,0),IF($E$1=$A$3,VLOOKUP(G12,'Positional Ranks'!M:N,2,0),IF($E$1=$A$4,VLOOKUP(G12,'Positional Ranks'!S:T,2,0),"PROJECTIONS INCOMPLETE")))),"PROJECTIONS INCOMPLETE") -> PROJECTIONS INCOMPLETE
G13: 5 | H13: =IFERROR(IF($E$1=$A$1,VLOOKUP(G13,'Positional Ranks'!A:B,2,0),IF($E$1=$A$2,VLOOKUP(G13,'Positional Ranks'!G:H,2,0),IF($E$1=$A$3,VLOOKUP(G13,'Positional Ranks'!M:N,2,0),IF($E$1=$A$4,VLOOKUP(G13,'Positional Ranks'!S:T,2,0),"PROJECTIONS INCOMPLETE")))),"PROJECTIONS INCOMPLETE") -> PROJECTIONS INCOMPLETE
G14: 6 | H14: =IFERROR(IF($E$1=$A$1,VLOOKUP(G14,'Positional Ranks'!A:B,2,0),IF($E$1=$A$2,VLOOKUP(G14,'Positional Ranks'!G:H,2,0),IF($E$1=$A$3,VLOOKUP(G14,'Positional Ranks'!M:N,2,0),IF($E$1=$A$4,VLOOKUP(G14,'Positional Ranks'!S:T,2,0),"PROJECTIONS INCOMPLETE")))),"PROJECTIONS INCOMPLETE") -> PROJECTIONS INCOMPLETE
G15: 7 | H15: =IFERROR(IF($E$1=$A$1,VLOOKUP(G15,'Positional Ranks'!A:B,2,0),IF($E$1=$A$2,VLOOKUP(G15,'Positional Ranks'!G:H,2,0),IF($E$1=$A$3,VLOOKUP(G15,'Positional Ranks'!M:N,2,0),IF($E$1=$A$4,VLOOKUP(G15,'Positional Ranks'!S:T,2,0),"PROJECTIONS INCOMPLETE")))),"PROJECTIONS INCOMPLETE") -> PROJECTIONS INCOMPLETE
G16: 8 | H16: =IFERROR(IF($E$1=$A$1,VLOOKUP(G16,'Positional Ranks'!A:B,2,0),IF($E$1=$A$2,VLOOKUP(G16,'Positional Ranks'!G:H,2,0),IF($E$1=$A$3,VLOOKUP(G16,'Positional Ranks'!M:N,2,0),IF($E$1=$A$4,VLOOKUP(G16,'Positional Ranks'!S:T,2,0),"PROJECTIONS INCOMPLETE")))),"PROJECTIONS INCOMPLETE") -> PROJECTIONS INCOMPLETE
G17: 9 | H17: =IFERROR(IF($E$1=$A$1,VLOOKUP(G17,'Positional Ranks'!A:B,2,0),IF($E$1=$A$2,VLOOKUP(G17,'Positional Ranks'!G:H,2,0),IF($E$1=$A$3,VLOOKUP(G17,'Positional Ranks'!M:N,2,0),IF($E$1=$A$4,VLOOKUP(G17,'Positional Ranks'!S:T,2,0),"PROJECTIONS INCOMPLETE")))),"PROJECTIONS INCOMPLETE") -> PROJECTIONS INCOMPLETE
G18: 10 | H18: =IFERROR(IF($E$1=$A$1,VLOOKUP(G18,'Positional Ranks'!A:B,2,0),IF($E$1=$A$2,VLOOKUP(G18,'Positional Ranks'!G:H,2,0),IF($E$1=$A$3,VLOOKUP(G18,'Positional Ranks'!M:N,2,0),IF($E$1=$A$4,VLOOKUP(G18,'Positional Ranks'!S:T,2,0),"PROJECTIONS INCOMPLETE")))),"PROJECTIONS INCOMPLETE") -> PROJECTIONS INCOMPLETE
G19: 11 | H19: =IFERROR(IF($E$1=$A$1,VLOOKUP(G19,'Positional Ranks'!A:B,2,0),IF($E$1=$A$2,VLOOKUP(G19,'Positional Ranks'!G:H,2,0),IF($E$1=$A$3,VLOOKUP(G19,'Positional Ranks'!M:N,2,0),IF($E$1=$A$4,VLOOKUP(G19,'Positional Ranks'!S:T,2,0),"PROJECTIONS INCOMPLETE")))),"PROJECTIONS INCOMPLETE") -> PROJECTIONS INCOMPLETE
G20: 12 | H20: =IFERROR(IF($E$1=$A$1,VLOOKUP(G20,'Positional Ranks'!A:B,2,0),IF($E$1=$A$2,VLOOKUP(G20,'Positional Ranks'!G:H,2,0),IF($E$1=$A$3,VLOOKUP(G20,'Positional Ranks'!M:N,2,0),IF($E$1=$A$4,VLOOKUP(G20,'Positional Ranks'!S:T,2,0),"PROJECTIONS INCOMPLETE")))),"PROJECTIONS INCOMPLETE") -> PROJECTIONS INCOMPLETE
H22: =IF('Settings & Instructions'!C13=1,"PPR",IF('Settings & Instructions'!C13=0.5,"Half-PPR",IF('Settings & Instructions'!C13=0,"Non-PPR",""))) -> PPR
H23: =IF(H8="Tight Ends",IF('Settings & Instructions'!C14=0,"",'Settings & Instructions'!C14&" x Tight End Premium"),"") -> 

Sheet Arizona Cardinals
D1: *If the file is running slow, ensure Calculation Options (under the Formulas menu) is set to 'Manual'. Then Press F9 to Calculate at any time*
C3: ARI
F4: 2023 Schedule | J4: 2022 Results
C5: Arizona Cardinals | F5: Week | G5: @ | H5: Opponent | J5: Team Totals | K5: Opponent | L5: Off Plays | M5: Pass Att | N5: Rush Att | O5: Pass % | Q5: Total TDs | R5: Pass TDs | S5: Rush TDs | T5: Pass TD %
F6: Week 1 | G6: @ | H6: Washington Commanders | J6: Week 1 | K6: Kansas City Chiefs | L6: 60 | M6: 38 | N6: 22 | O6: 0.6333333333 | Q6: 3 | R6: 2 | S6: 1 | T6: 0.6666666667
F7: Week 2 | H7: New York Giants | J7: Week 2 | K7: @ Las Vegas Raiders | L7: 77 | M7: 49 | N7: 28 | O7: 0.6363636364 | Q7: 3 | R7: 1 | S7: 2 | T7: 0.3333333333
B8: Head Coach | D8: Jonathan Gannon | F8: Week 3 | H8: Dallas Cowboys | J8: Week 3 | K8: Los Angeles Rams | L8: 79 | M8: 58 | N8: 21 | O8: 0.7341772152 | Q8: 0 | R8: 0 | S8: 0
B9: Offensive Coordinator | D9: Drew Petzing | F9: Week 4 | G9: @ | H9: San Francisco 49ers | J9: Week 4 | K9: @ Carolina Panthers | L9: 69 | M9: 32 | N9: 37 | O9: 0.4637681159 | Q9: 3 | R9: 2 | S9: 1 | T9: 0.6666666667
F10: Week 5 | H10: Cincinnati Bengals | J10: Week 5 | K10: Philadelphia Eagles | L10: 68 | M10: 42 | N10: 26 | O10: 0.6176470588 | Q10: 2 | R10: 1 | S10: 1 | T10: 0.5
B11: Division | D11: NFC West | F11: Week 6 | G11: @ | H11: Los Angeles Rams | J11: Week 6 | K11: @ Seattle Seahawks | L11: 65 | M11: 37 | N11: 28 | O11: 0.5692307692 | Q11: 0 | R11: 0 | S11: 0
B12: Last Season Finish | D12: 4-13 | F12: Week 7 | G12: @ | H12: Seattle Seahawks | J12: Week 7 | K12: New Orleans Saints | L12: 58 | M12: 29 | N12: 29 | O12: 0.5 | Q12: 3 | R12: 1 | S12: 2 | T12: 0.3333333333
F13: Week 8 | H13: Baltimore Ravens | J13: Week 8 | K13: @ Minnesota Vikings | L13: 66 | M13: 44 | N13: 22 | O13: 0.6666666667 | Q13: 3 | R13: 3 | S13: 0 | T13: 1
F14: Week 9 | G14: @ | H14: Cleveland Browns | J14: Week 9 | K14: Seattle Seahawks | L14: 56 | M14: 35 | N14: 21 | O14: 0.625 | Q14: 2 | R14: 2 | S14: 0 | T14: 1
B15: Top Projected Players | F15: Week 10 | H15: Atlanta Falcons | J15: Week 10 | K15: @ Los Angeles Rams | L15: 63 | M15: 37 | N15: 26 | O15: 0.5873015873 | Q15: 3 | R15: 1 | S15: 2 | T15: 0.3333333333
F16: Week 11 | G16: @ | H16: Houston Texans | J16: Week 11 | K16: San Francisco 49ers | L16: 68 | M16: 44 | N16: 24 | O16: 0.6470588235 | Q16: 1 | R16: 0 | S16: 1 | T16: 0
B17: =INDEX($B$97:$S$145,MATCH(1,$S$97:$S$145,0),1) -> Kyler Murray | C17: =INDEX($B$97:$Q$145,MATCH(B17,$B$97:$B$145,0),16) -> QB1 | D17: =INDEX($B$97:$R$145,MATCH(B17,$B$97:$B$145,0),17) -> Top QB | F17: Week 12 | H17: Los Angeles Rams | J17: Week 12 | K17: Los Angeles Chargers | L17: 63 | M17: 29 | N17: 34 | O17: 0.4603174603 | Q17: 3 | R17: 2 | S17: 1 | T17: 0.6666666667
B18: =INDEX($B$97:$S$145,MATCH(2,$S$97:$S$145,0),1) -> James Conner | C18: =INDEX($B$97:$Q$145,MATCH(B18,$B$97:$B$145,0),16) -> RB1 | D18: =INDEX($B$97:$R$145,MATCH(B18,$B$97:$B$145,0),17) -> Consistent RB2 | F18: Week 13 | G18: @ | H18: Pittsburgh Steelers | J18: Week 13 | K18: BYE
B19: =INDEX($B$97:$S$145,MATCH(3,$S$97:$S$145,0),1) -> Zach Ertz | C19: =INDEX($B$97:$Q$145,MATCH(B19,$B$97:$B$145,0),16) -> TE1 | D19: Not a top TE | F19: Week 14 | H19: Bye Week | J19: Week 14 | K19: New England Patriots | L19: 63 | M19: 41 | N19: 22 | O19: 0.6507936508 | Q19: 1 | R19: 0 | S19: 1 | T19: 0
B20: =INDEX($B$97:$S$145,MATCH(4,$S$97:$S$145,0),1) -> Marquise Brown | C20: =INDEX($B$97:$Q$145,MATCH(B20,$B$97:$B$145,0),16) -> WR1 | D20: Consistent WR2 | F20: Week 15 | H20: San Francisco 49ers | J20: Week 15 | K20: @ Denver Broncos | L20: 56 | M20: 36 | N20: 20 | O20: 0.6428571429 | Q20: 1 | R20: 0 | S20: 1 | T20: 0
B21: =INDEX($B$97:$S$145,MATCH(5,$S$97:$S$145,0),1) -> DeAndre Hopkins | C21: =INDEX($B$97:$Q$145,MATCH(B21,$B$97:$B$145,0),16) -> WR2 | D21: Consistent WR2 | F21: Week 16 | G21: @ | H21: Chicago Bears | J21: Week 16 | K21: Tampa Bay Buccaneers | L21: 73 | M21: 46 | N21: 27 | O21: 0.6301369863 | Q21: 1 | R21: 0 | S21: 1 | T21: 0
F22: Week 17 | G22: @ | H22: Philadelphia Eagles | J22: Week 17 | K22: @ Atlanta Falcons | L22: 67 | M22: 40 | N22: 27 | O22: 0.5970149254 | Q22: 1 | R22: 1 | S22: 0 | T22: 1
F23: Week 18 | H23: Seattle Seahawks | J23: Week 18 | K23: @ San Francisco 49ers | L23: 47 | M23: 27 | N23: 20 | O23: 0.5744680851 | Q23: 2 | R23: 1 | S23: 1 | T23: 0.5
B25: Team Projection | D25: STEP 1: Project the total team plays and pass % expectation | J25: Total | L25: 1098 | M25: 664 | N25: 434 | O25: 0.6047358834 | Q25: 32 | R25: 17 | S25: 15 | T25: 0.53125
C27: Off Plays | D27: Pass % | F27: Pass Plays | G27: Run Plays | J27: 2022 League Averages | K27: Full Season | L27: =M27+N27 -> 1027 | M27: 565 | N27: 462 | O27: =M27/L27 -> 0.5501460565 | Q27: =R27+S27 -> 38 | R27: 23 | S27: 15 | T27: =R27/Q27 -> 0.6052631579
B28: Per Game | C28: 62 | D28: 0.6 | F28: =C28*D28 -> 37.2 | G28: =C28-F28 -> 24.8 | K28: Per Game | L28: =L27/17 -> 60.41176471 | M28: =M27/17 -> 33.23529412 | N28: 27.17647059 | O28: =O27 -> 0.5501460565 | Q28: =Q27/17 -> 2.235294118 | R28: 1.352941176 | S28: 0.8823529412 | T28: =T27 -> 0.6052631579
B29: Full Season | C29: =C28*17 -> 1054 | F29: =F28*17 -> 632.4 | G29: =G28*17 -> 421.6
J30: 2021 Total | L30: 1087 | M30: 591 | N30: 496 | O30: 0.5436982521 | Q30: 50 | R30: 27 | S30: 23 | T30: 0.54
B31: Throwaway % | C31: 0.03 | E31: Throwaway Relevant Data | J31: 2020 Total | L31: 1054 | M31: 575 | N31: 479 | O31: 0.545540797 | Q31: 49 | R31: 27 | S31: 22 | T31: 0.5510204082
E32: League Average | G32: 0.039 | J32: 2019 Total | L32: 950 | M32: 554 | N32: 396 | O32: 0.5831578947 | Q32: 38 | R32: 20 | S32: 18 | T32: 0.5263157895
E33: Last Season | G33: =SUMIFS(INPUTS!CF:CF,INPUTS!BW:BW,$C$3)/SUMIFS(INPUTS!CC:CC,INPUTS!BW:BW,$C$3) -> 0.03915662651
B37: Team Wins and Touchdown Expectation | G37: OPTIONAL STEP: Project the expected team wins and the Low/High range of team wins
I38: Low | J38: High
E39: Team Wins Projection | F39: 5.5 | H39: Range of Outcomes
E40: Expected Team Touchdowns | F40: =VLOOKUP(F39,INPUTS!$A$1:$B$34,2,0) -> 30 | H40: Expected Team Touchdowns
E42: Current Team Touchdown Projection | F42: =L97+L98+SUM(N108:N117)+SUM(I108:I117)+SUM(I127:I130)+SUM(N127:N130)+SUM(N142:N145)+SUM(I142:I145) -> 31 | G42: Note: This section is intended to give you a guide on the expected number of team touchdowns, based on the projected team win total - the more games a team wins, the more touchdowns they'll score
G43: In the range of outcomes, you can set the low & high ends of expected team wins to see the impact on players expected fantasy points. Remember, it's just a guide!
B44: (Expand if needed - click the + on the left)
B47: Supporting Info
B49: Last Season | C49: (Click the + to see Last Season details and Key Changes from this offseason) | J49: Key Changes & Need to Know
J51: New Head Coach - Jonathan Gannon, former Eagles Defensive Coordinator. Worked under Nick Siriani (Eagles), Frank Reich (Colts), and Mike Zimmer (Vikings)
J53: New Offensive Coordinator - Drew Petzing, former Cleveland Browns Quarterbacks Coach. Worked under Kevin Stefanski (Cleveland) and Mike Zimmer (Vikings)
J55: Kyler Murray Injury - suffered a torn ACL in December 2022, which is expected to impact his 2023 season
J57: Free Agency - Notable New Players | O57: Free Agency - Notable Players who have left
J59: Zach Pascal - Wide Receiver | O59: Maxx Williams - Tight End | S59: A.J. Green - Wide Receiver (Retired)
J60: Kelvin Beachum - Offensive Tackle | O60: Billy Price - Center | S60: J.J. Watt - Defensive End (Retired)
S61: Chosen Anderson - Wide Receiver
J62: Drafted Players
J64: 1.06 | K64: Paris Johnson Jr. | L64: OT | N64: 6.03 | O64: Kei'Trel Clark | Q64: CB
J65: 2.1 | K65: BJ Ojulari | L65: EDGE | N65: 6.36 | O65: Dante Stills | Q65: DT
J66: 3.03 | K66: Sydney Brown | L66: DB
J67: 3.09 | K67: Garrett Williams | L67: CB
J68: 3.31 | K68: Michael Wilson | L68: WR
J69: 4.2 | K69: Jon Gaines II | L69: G
J70: 5.04 | K70: Clayton Tune | L70: QB
J71: 5.33 | K71: Owen Pappoe | L71: LB
J73: Expectations
J75: Heading for the number one pick in 2024, 2023 is not going to be a good year for the Cardinals. This is going to mean lower scoring, less touchdowns and lower upsides for the players
J76: Petzing is a somewhat unknown commodity for play calling but with negative gamescripts likely, the Cardinals will need to continue passing the ball even without the air raid approach
J77: Strengthened the tackle position in the draft but Kyler is likely to miss games so it's going to be a hard slog
J79: Vegas Win-Total
J81: 5.5 Wins
B85: Player Projections | H85: *If the file is running slow, ensure Calculation Options (under the Formulas menu) is set to 'Manual'. Then Press F9 to Calculate at any time*
B87: Target Share And Rush Share Checks | G87: CHECK: For the Projections to work correctly, these %'s should be at 0% - if they're not then you need to reallocate the target / rush shares until they reach 0%
E89: Remaining Target Share to distribute: | F89: =1-C31-SUM(C108:C117)-SUM(C127:C132)-SUM(C142:C147) -> 0 | M89: Remaining Rush Share to distribute (remember QB Rush Share): | N89: =1-SUM(H97:H98)-SUM(J108:J117)-SUM(J127:J132)-SUM(J142:J147) -> 0
B93: Quarterbacks | D93: Note: White Cells will populate automatically | I93: STEP 2: Project the individual player stats in the light blue cells
B94: (Click the + on the left to expand) | D94: Quarterback Passing populates from receiving stats | I94: Ensure 100% of target share and rush share - see above checks | T94: Range of Outcomes
D95: Project Interceptions and Rushing Stats only for Quarterback | T95: Low | V95: High
B96: Player | C96: Pass Att. | D96: Completions | E96: Pass Yds. | F96: Pass TD | G96: Int | H96: Rush Att Share % | I96: Rush Att. | J96: Yards Per Carry | K96: Rushing Yds | L96: Rushing TDs | M96: QB Completion % | N96: QB TD % | O96: YPA | P96: Fantasy Points | Q96: Positional Rank | R96: Tier (Volume Based) | T96: Fantasy Points | U96: Tier | V96: Fantasy Points | W96: Tier
B97: Kyler Murray | C97: =SUM(D108:D117)+SUM(D127:D132)+SUM(D142:D147)-C98 -> 538.428 | D97: =SUM(F108:F117)+SUM(F127:F132)+SUM(F142:F147)-D98 -> 355.26372 | E97: =SUM(H108:H117)+SUM(H127:H132)+SUM(H142:H147)-E98 -> 3069.0279 | F97: =SUM(I108:I117)+SUM(I127:I132)+SUM(I142:I147)-F98 -> 18 | G97: 7 | H97: 0.15 | I97: =H97*$G$29 -> 63.24 | J97: 6.2 | K97: =I97*J97 -> 392.088 | L97: 2 | M97: =IFERROR(D97/C97,0) -> 0.6598165771 | N97: =IFERROR(F97/C97,0) -> 0.03343065368 | O97: =IFERROR(E97/C97,0) -> 5.69997827 | P97: =(E97*'Settings & Instructions'!$C$8)+(F97*'Settings & Instructions'!$C$7)+(G97*'Settings & Instructions'!$C$9)+(K97*'Settings & Instructions'!$C$17)+(L97*'Settings & Instructions'!$C$12)+(D97*'Settings & Instructions'!$C$10)+((C97-D97)*'Settings & Instructions'!$C$11) -> 231.969916 | Q97: =IFERROR("QB"&INDEX('Positional Ranks'!$S:$T,MATCH($B97,'Positional Ranks'!$T:$T,0),1),"") -> QB1 | R97: =IF(I97>(INPUTS!$CZ$5-1),"Top QB",IF(AND(C97>(INPUTS!$CZ$6-1),I97>(INPUTS!$DA$6-1)),"Top QB",IF(C97>(INPUTS!$CZ$7-1),"2nd Tier QB1","Not a top QB"))) -> Top QB | S97: =RANK(P97,($P$97:$P$98,$P$108:$P$115,$P$127:$P$130,$P$142:$P$145),0) -> 1
B98: Colt McCoy | C98: 75 | D98: =C98*0.62 -> 46.5 | E98: =D98*9 -> 418.5 | F98: 4 | G98: 3 | H98: 0.05 | I98: =H98*$G$29 -> 21.08 | J98: 4.5 | K98: =I98*J98 -> 94.86 | L98: 0 | M98: =IFERROR(D98/C98,0) -> 0.62 | N98: =IFERROR(F98/C98,0) -> 0.05333333333 | O98: =IFERROR(E98/C98,0) -> 5.58 | P98: =(E98*'Settings & Instructions'!$C$8)+(F98*'Settings & Instructions'!$C$7)+(G98*'Settings & Instructions'!$C$9)+(K98*'Settings & Instructions'!$C$17)+(L98*'Settings & Instructions'!$C$12)+(D98*'Settings & Instructions'!$C$10)+((C98-D98)*'Settings & Instructions'!$C$11) -> 36.226 | Q98: =IFERROR("QB"&INDEX('Positional Ranks'!$S:$T,MATCH($B98,'Positional Ranks'!$T:$T,0),1),"") -> QB2 | S98: =RANK(P98,($P$97:$P$98,$P$108:$P$115,$P$127:$P$130,$P$142:$P$145),0) -> 11
B100: Last Season Data Check | D100: Use this section to see last season's stats as a guide or comparison | Q100: Games Played
B101: =B97 -> Kyler Murray | C101: =IFERROR(VLOOKUP($B$101,INPUTS!$F:$AI,9,0),"N/A") -> 390 | D101: =IFERROR(VLOOKUP($B$101,INPUTS!$F:$AI,8,0),"N/A") -> 259 | E101: =IFERROR(VLOOKUP($B$101,INPUTS!$F:$AI,11,0),"N/A") -> 2368 | F101: =IFERROR(VLOOKUP($B$101,INPUTS!$F:$AI,12,0),"N/A") -> 14 | G101: =IFERROR(VLOOKUP($B$101,INPUTS!$F:$AI,14,0),"N/A") -> 7 | H101: =IFERROR(INDEX($E$487:$Z$507,21,MATCH($B101,$E$487:$Z$487,0)),"N/A") -> 0.1543778802 | I101: =IFERROR(VLOOKUP($B$101,INPUTS!$AL:$AY,7,0),"N/A") -> 67 | J101: =IFERROR(VLOOKUP($B$101,INPUTS!$AL:$AY,12,0),"N/A") -> 6.2 | K101: =IFERROR(VLOOKUP($B$101,INPUTS!$AL:$AY,8,0),"N/A") -> 418 | L101: =IFERROR(VLOOKUP($B$101,INPUTS!$AL:$AY,9,0),"N/A") -> 3 | M101: =IFERROR(VLOOKUP($B$101,INPUTS!$F:$AI,10,0)/100,"N/A") -> 0.664 | N101: =IFERROR(VLOOKUP($B$101,INPUTS!$F:$AI,13,0)/100,"N/A") -> 0.036 | O101: =IFERROR(VLOOKUP($B$101,INPUTS!$F:$AI,18,0),"N/A") -> 6.1 | P101: =IFERROR((E101*'Settings & Instructions'!$C$8),0)+IFERROR((F101*'Settings & Instructions'!$C$7),0)+IFERROR((G101*'Settings & Instructions'!$C$9),0)+IFERROR((K101*'Settings & Instructions'!$C$17),0)+IFERROR((L101*'Settings & Instructions'!$C$12),0)+IFERROR((D101*'Settings & Instructions'!$C$10),0)+IFERROR(((C101-D101)*'Settings & Instructions'!$C$11),0) -> 196.52 | Q101: =IFERROR(VLOOKUP($B$101,INPUTS!$F:$AI,5,0),"N/A") -> 11
B104: Wide Receivers | D104: Note: White Cells will populate automatically | I104: STEP 2: Project the individual player stats in the light blue cells
B105: (Click the + on the left to expand) | I105: Ensure 100% of target share and rush share - see above checks | T105: Range of Outcomes
T106: Low | V106: High
B107: Player | C107: Target Share % | D107: Targets | E107: Catch % | F107: Receptions | G107: Yards per Reception | H107: Receiving Yards | I107: Receiving TDs | J107: Rush Att Share % | K107: Rush Att | L107: Yards per Carry | M107: Rushing Yards | N107: Rushing TDs | O107: Premium | P107: Fantasy Points | Q107: Positional Rank | R107: Tier (Volume Based) | T107: Fantasy Points | U107: Tier | V107: Fantasy Points | W107: Tier
B108: Marquise Brown | C108: 0.18 | D108: =C108*$F$29 -> 113.832 | E108: 0.63 | F108: =D108*E108 -> 71.71416 | G108: 10 | H108: =G108*F108 -> 717.1416 | I108: 3 | K108: =J108*$G$29 -> 0 | M108: =L108*K108 -> 0 | O108: ='Settings & Instructions'!$C$15 -> 0 | P108: =(F108*'Settings & Instructions'!$C$13)+(H108*'Settings & Instructions'!$C$18)+(I108*'Settings & Instructions'!$C$19)+(M108*'Settings & Instructions'!$C$17)+(N108*'Settings & Instructions'!$C$12)+(O108*F108) -> 161.42832 | Q108: =IFERROR("WR"&INDEX('Positional Ranks'!$A:$B,MATCH($B108,'Positional Ranks'!$B:$B,0),1),"") -> WR1 | R108: =IF(D108>(INPUTS!$CP$5-1),"Elite WR",IF(D108>(INPUTS!$CP$6-1),"2nd Tier WR1",IF(D108>(INPUTS!$CP$7-1),"Consistent WR2","Not a top WR"))) -> Consistent WR2 | S108: =RANK(P108,($P$97:$P$98,$P$108:$P$115,$P$127:$P$130,$P$142:$P$145),0) -> 4
B109: DeAndre Hopkins | C109: 0.18 | D109: =C109*$F$29 -> 113.832 | E109: 0.6 | F109: =D109*E109 -> 68.2992 | G109: 9.5 | H109: 648.8424 | I109: 4 | K109: =J109*$G$29 -> 0 | M109: =L109*K109 -> 0 | O109: ='Settings & Instructions'!$C$15 -> 0 | P109: =(F109*'Settings & Instructions'!$C$13)+(H109*'Settings & Instructions'!$C$18)+(I109*'Settings & Instructions'!$C$19)+(M109*'Settings & Instructions'!$C$17)+(N109*'Settings & Instructions'!$C$12)+(O109*F109) -> 157.18344 | Q109: =IFERROR("WR"&INDEX('Positional Ranks'!$A:$B,MATCH($B109,'Positional Ranks'!$B:$B,0),1),"") -> WR2 | R109: =IF(D109>(INPUTS!$CP$5-1),"Elite WR",IF(D109>(INPUTS!$CP$6-1),"2nd Tier WR1",IF(D109>(INPUTS!$CP$7-1),"Consistent WR2","Not a top WR"))) -> Consistent WR2 | S109: =RANK(P109,($P$97:$P$98,$P$108:$P$115,$P$127:$P$130,$P$142:$P$145),0) -> 5
B110: Greg Dortch | C110: 0.07 | D110: 44.268 | E110: 0.65 | F110: 28.7742 | G110: 8 | H110: 230.1936 | I110: 1 | K110: 0 | M110: 0 | O110: ='Settings & Instructions'!$C$15 -> 0 | P110: =(F110*'Settings & Instructions'!$C$13)+(H110*'Settings & Instructions'!$C$18)+(I110*'Settings & Instructions'!$C$19)+(M110*'Settings & Instructions'!$C$17)+(N110*'Settings & Instructions'!$C$12)+(O110*F110) -> 57.79356 | Q110: =IFERROR("WR"&INDEX('Positional Ranks'!$A:$B,MATCH($B110,'Positional Ranks'!$B:$B,0),1),"") -> WR4 | R110: =IF(D110>(INPUTS!$CP$5-1),"Elite WR",IF(D110>(INPUTS!$CP$6-1),"2nd Tier WR1",IF(D110>(INPUTS!$CP$7-1),"Consistent WR2","Not a top WR"))) -> Not a top WR | S110: =RANK(P110,($P$97:$P$98,$P$108:$P$115,$P$127:$P$130,$P$142:$P$145),0) -> 10
B111: Rondale Moore | C111: 0.07 | D111: 44.268 | E111: 0.7 | F111: 30.9876 | G111: 10 | H111: 309.876 | I111: 1 | K111: 0 | M111: 0 | O111: ='Settings & Instructions'!$C$15 -> 0 | P111: =(F111*'Settings & Instructions'!$C$13)+(H111*'Settings & Instructions'!$C$18)+(I111*'Settings & Instructions'!$C$19)+(M111*'Settings & Instructions'!$C$17)+(N111*'Settings & Instructions'!$C$12)+(O111*F111) -> 67.9752 | Q111: =IFERROR("WR"&INDEX('Positional Ranks'!$A:$B,MATCH($B111,'Positional Ranks'!$B:$B,0),1),"") -> WR3 | R111: =IF(D111>(INPUTS!$CP$5-1),"Elite WR",IF(D111>(INPUTS!$CP$6-1),"2nd Tier WR1",IF(D111>(INPUTS!$CP$7-1),"Consistent WR2","Not a top WR"))) -> Not a top WR | S111: =RANK(P111,($P$97:$P$98,$P$108:$P$115,$P$127:$P$130,$P$142:$P$145),0) -> 7
B112: Zach Pascal | C112: 0.03 | D112: 18.972 | E112: 0.6 | F112: =D112*E112 -> 11.3832 | G112: 9 | H112: =G112*F112 -> 102.4488 | I112: 1 | K112: 0 | M112: =L112*K112 -> 0 | O112: ='Settings & Instructions'!$C$15 -> 0 | P112: =(F112*'Settings & Instructions'!$C$13)+(H112*'Settings & Instructions'!$C$18)+(I112*'Settings & Instructions'!$C$19)+(M112*'Settings & Instructions'!$C$17)+(N112*'Settings & Instructions'!$C$12)+(O112*F112) -> 27.62808 | Q112: =IFERROR("WR"&INDEX('Positional Ranks'!$A:$B,MATCH($B112,'Positional Ranks'!$B:$B,0),1),"") -> WR5 | R112: =IF(D112>(INPUTS!$CP$5-1),"Elite WR",IF(D112>(INPUTS!$CP$6-1),"2nd Tier WR1",IF(D112>(INPUTS!$CP$7-1),"Consistent WR2","Not a top WR"))) -> Not a top WR | S112: =RANK(P112,($P$97:$P$98,$P$108:$P$115,$P$127:$P$130,$P$142:$P$145),0) -> 12
B113: Michael Wilson | C113: 0.02 | D113: 12.648 | E113: 0.62 | F113: 7.84176 | G113: 10 | H113: 78.4176 | I113: 1 | K113: 0 | M113: 0 | O113: ='Settings & Instructions'!$C$15 -> 0 | P113: =(F113*'Settings & Instructions'!$C$13)+(H113*'Settings & Instructions'!$C$18)+(I113*'Settings & Instructions'!$C$19)+(M113*'Settings & Instructions'!$C$17)+(N113*'Settings & Instructions'!$C$12)+(O113*F113) -> 21.68352 | Q113: =IFERROR("WR"&INDEX('Positional Ranks'!$A:$B,MATCH($B113,'Positional Ranks'!$B:$B,0),1),"") -> WR6 | R113: =IF(D113>(INPUTS!$CP$5-1),"Elite WR",IF(D113>(INPUTS!$CP$6-1),"2nd Tier WR1",IF(D113>(INPUTS!$CP$7-1),"Consistent WR2","Not a top WR"))) -> Not a top WR | S113: =RANK(P113,($P$97:$P$98,$P$108:$P$115,$P$127:$P$130,$P$142:$P$145),0) -> 13
D114: 0 | F114: 0 | H114: 0 | K114: 0 | M114: 0 | O114: ='Settings & Instructions'!$C$15 -> 0 | P114: =(F114*'Settings & Instructions'!$C$13)+(H114*'Settings & Instructions'!$C$18)+(I114*'Settings & Instructions'!$C$19)+(M114*'Settings & Instructions'!$C$17)+(N114*'Settings & Instructions'!$C$12)+(O114*F114) -> 0 | Q114: =IFERROR("WR"&INDEX('Positional Ranks'!$A:$B,MATCH($B114,'Positional Ranks'!$B:$B,0),1),"") ->  | R114: =IF(D114>(INPUTS!$CP$5-1),"Elite WR",IF(D114>(INPUTS!$CP$6-1),"2nd Tier WR1",IF(D114>(INPUTS!$CP$7-1),"Consistent WR2","Not a top WR"))) -> Not a top WR | S114: =RANK(P114,($P$97:$P$98,$P$108:$P$115,$P$127:$P$130,$P$142:$P$145),0) -> 14
D115: 0 | F115: 0 | H115: 0 | K115: 0 | M115: 0 | O115: ='Settings & Instructions'!$C$15 -> 0 | P115: =(F115*'Settings & Instructions'!$C$13)+(H115*'Settings & Instructions'!$C$18)+(I115*'Settings & Instructions'!$C$19)+(M115*'Settings & Instructions'!$C$17)+(N115*'Settings & Instructions'!$C$12)+(O115*F115) -> 0 | Q115: =IFERROR("WR"&INDEX('Positional Ranks'!$A:$B,MATCH($B115,'Positional Ranks'!$B:$B,0),1),"") ->  | R115: =IF(D115>(INPUTS!$CP$5-1),"Elite WR",IF(D115>(INPUTS!$CP$6-1),"2nd Tier WR1",IF(D115>(INPUTS!$CP$7-1),"Consistent WR2","Not a top WR"))) -> Not a top WR | S115: =RANK(P115,($P$97:$P$98,$P$108:$P$115,$P$127:$P$130,$P$142:$P$145),0) -> 14
B117: Other | C117: 0.03 | D117: =C117*$F$29 -> 18.972 | E117: 0.6 | F117: 11.3832 | G117: 10 | H117: 113.832 | I117: 1 | K117: =J117*$G$29 -> 0 | M117: 0 | O117: ='Settings & Instructions'!$C$15 -> 0 | P117: =(F117*'Settings & Instructions'!$C$13)+(H117*'Settings & Instructions'!$C$18)+(I117*'Settings & Instructions'!$C$19)+(M117*'Settings & Instructions'!$C$17)+(N117*'Settings & Instructions'!$C$12)+(O117*F117) -> 28.7664
B119: Last Season Data Check | D119: Use this section to see last season's stats as a guide or comparison | Q119: Games Played
B120: Marquise Brown | C120: =IFERROR(INDEX($E$179:$Z$199,21,MATCH($B120,$E$179:$Z$179,0)),"N/A") -> 0.1611445783 | D120: =IFERROR(VLOOKUP($B120,INPUTS!$BB:$BS,7,0),"N/A") -> 107 | E120: =IFERROR(VLOOKUP($B120,INPUTS!$BB:$BS,9,0),"N/A") -> 0.626 | F120: =IFERROR(VLOOKUP($B120,INPUTS!$BB:$BS,8,0),"N/A") -> 67 | G120: =IFERROR(VLOOKUP($B120,INPUTS!$BB:$BS,11,0),"N/A") -> 10.6 | H120: =IFERROR(VLOOKUP($B120,INPUTS!$BB:$BS,10,0),"N/A") -> 709 | I120: =IFERROR(VLOOKUP($B120,INPUTS!$BB:$BS,12,0),"N/A") -> 3 | J120: =IFERROR(INDEX($E$487:$Z$507,21,MATCH($B120,$E$487:$Z$487,0)),"N/A") -> 0.002304147465 | K120: =IFERROR(VLOOKUP($B120,INPUTS!$AL:$AY,7,0),"N/A") -> 1 | L120: =IFERROR(VLOOKUP($B120,INPUTS!$AL:$AY,12,0),"N/A") -> 1 | M120: =IFERROR(VLOOKUP($B120,INPUTS!$AL:$AY,8,0),"N/A") -> 1 | N120: =IFERROR(VLOOKUP($B120,INPUTS!$AL:$AY,9,0),"N/A") -> 0 | O120: ='Settings & Instructions'!$C$15 -> 0 | P120: =IFERROR((F120*'Settings & Instructions'!$C$13),0)+IFERROR((H120*'Settings & Instructions'!$C$18),0)+IFERROR((I120*'Settings & Instructions'!$C$19),0)+IFERROR((M120*'Settings & Instructions'!$C$17),0)+IFERROR((N120*'Settings & Instructions'!$C$12),0)+IFERROR((O120*F120),0) -> 156 | Q120: =IFERROR(VLOOKUP($B120,INPUTS!$AL:$AP,5,0),IFERROR(VLOOKUP($B120,INPUTS!$BB:$BF,5,0),"N/A")) -> 12
B123: Running Backs | D123: Note: White Cells will populate automatically | I123: STEP 2: Project the individual player stats in the light blue cells
B124: (Click the + on the left to expand) | I124: Ensure 100% of target share and rush share - see above checks | T124: Range of Outcomes
T125: Low | V125: High
B126: Player | C126: Target Share % | D126: Targets | E126: Catch % | F126: Receptions | G126: Yards per Reception | H126: Receiving Yards | I126: Receiving TDs | J126: Rush Att Share % | K126: Rush Att | L126: Yards per Carry | M126: Rushing Yards | N126: Rushing TDs | O126: Premium | P126: Fantasy Points | Q126: Positional Rank | R126: Tier (Volume Based) | T126: Fantasy Points | U126: Tier | V126: Fantasy Points | W126: Tier
B127: James Conner | C127: 0.08 | D127: =C127*$F$29 -> 50.592 | E127: 0.75 | F127: =D127*E127 -> 37.944 | G127: 6.5 | H127: =G127*F127 -> 246.636 | I127: 1 | J127: 0.45 | K127: =J127*$G$29 -> 189.72 | L127: 4 | M127: =L127*K127 -> 758.88 | N127: 6 | O127: ='Settings & Instructions'!$C$16 -> 0 | P127: =(F127*'Settings & Instructions'!$C$13)+(H127*'Settings & Instructions'!$C$18)+(I127*'Settings & Instructions'!$C$19)+(M127*'Settings & Instructions'!$C$17)+(N127*'Settings & Instructions'!$C$12)+(O127*F127) -> 180.4956 | Q127: =IFERROR("RB"&INDEX('Positional Ranks'!$G:$H,MATCH($B127,'Positional Ranks'!$H:$H,0),1),"") -> RB1 | R127: =IF(K127>(INPUTS!$CS$5-1),"Elite RB",IF(AND(K127>(INPUTS!$CS$6-1),D127>(INPUTS!$CT$6-1)),"Elite RB",IF(AND(K127>(INPUTS!$CS$7-1),D127>(INPUTS!$CT$7-1)),"Elite RB",IF(AND(K127>(INPUTS!$CS$8-1),D127>(INPUTS!$CT$8-1)),"2nd Tier RB1",IF(K127>(INPUTS!$CS$9-1),"Consistent RB2",IF(D127>(INPUTS!$CT$10-1),"Consistent RB2","Not a top RB")))))) -> Consistent RB2 | S127: =RANK(P127,($P$97:$P$98,$P$108:$P$115,$P$127:$P$130,$P$142:$P$145),0) -> 2
B128: Corey Clement | C128: 0.03 | D128: 18.972 | E128: 0.7 | F128: =D128*E128 -> 13.2804 | G128: 6 | H128: 79.6824 | I128: 0 | J128: 0.15 | K128: 63.24 | L128: 4 | M128: =L128*K128 -> 252.96 | N128: 2 | O128: ='Settings & Instructions'!$C$16 -> 0 | P128: =(F128*'Settings & Instructions'!$C$13)+(H128*'Settings & Instructions'!$C$18)+(I128*'Settings & Instructions'!$C$19)+(M128*'Settings & Instructions'!$C$17)+(N128*'Settings & Instructions'!$C$12)+(O128*F128) -> 58.54464 | Q128: =IFERROR("RB"&INDEX('Positional Ranks'!$G:$H,MATCH($B128,'Positional Ranks'!$H:$H,0),1),"") -> RB3 | R128: =IF(K128>(INPUTS!$CS$5-1),"Elite RB",IF(AND(K128>(INPUTS!$CS$6-1),D128>(INPUTS!$CT$6-1)),"Elite RB",IF(AND(K128>(INPUTS!$CS$7-1),D128>(INPUTS!$CT$7-1)),"Elite RB",IF(AND(K128>(INPUTS!$CS$8-1),D128>(INPUTS!$CT$8-1)),"2nd Tier RB1",IF(K128>(INPUTS!$CS$9-1),"Consistent RB2",IF(D128>(INPUTS!$CT$10-1),"Consistent RB2","Not a top RB")))))) -> Not a top RB | S128: =RANK(P128,($P$97:$P$98,$P$108:$P$115,$P$127:$P$130,$P$142:$P$145),0) -> 9
B129: Keaontay Ingram | C129: 0.03 | D129: 18.972 | E129: 0.75 | F129: 14.229 | G129: 6.5 | H129: 92.4885 | I129: 0 | J129: 0.15 | K129: 63.24 | L129: 4 | M129: 252.96 | N129: 2 | O129: ='Settings & Instructions'!$C$16 -> 0 | P129: =(F129*'Settings & Instructions'!$C$13)+(H129*'Settings & Instructions'!$C$18)+(I129*'Settings & Instructions'!$C$19)+(M129*'Settings & Instructions'!$C$17)+(N129*'Settings & Instructions'!$C$12)+(O129*F129) -> 60.77385 | Q129: =IFERROR("RB"&INDEX('Positional Ranks'!$G:$H,MATCH($B129,'Positional Ranks'!$H:$H,0),1),"") -> RB2 | R129: =IF(K129>(INPUTS!$CS$5-1),"Elite RB",IF(AND(K129>(INPUTS!$CS$6-1),D129>(INPUTS!$CT$6-1)),"Elite RB",IF(AND(K129>(INPUTS!$CS$7-1),D129>(INPUTS!$CT$7-1)),"Elite RB",IF(AND(K129>(INPUTS!$CS$8-1),D129>(INPUTS!$CT$8-1)),"2nd Tier RB1",IF(K129>(INPUTS!$CS$9-1),"Consistent RB2",IF(D129>(INPUTS!$CT$10-1),"Consistent RB2","Not a top RB")))))) -> Not a top RB | S129: =RANK(P129,($P$97:$P$98,$P$108:$P$115,$P$127:$P$130,$P$142:$P$145),0) -> 8
D130: 0 | F130: 0 | H130: 0 | K130: 0 | M130: 0 | O130: ='Settings & Instructions'!$C$16 -> 0 | P130: =(F130*'Settings & Instructions'!$C$13)+(H130*'Settings & Instructions'!$C$18)+(I130*'Settings & Instructions'!$C$19)+(M130*'Settings & Instructions'!$C$17)+(N130*'Settings & Instructions'!$C$12)+(O130*F130) -> 0 | Q130: =IFERROR("RB"&INDEX('Positional Ranks'!$G:$H,MATCH($B130,'Positional Ranks'!$H:$H,0),1),"") ->  | R130: =IF(K130>(INPUTS!$CS$5-1),"Elite RB",IF(AND(K130>(INPUTS!$CS$6-1),D130>(INPUTS!$CT$6-1)),"Elite RB",IF(AND(K130>(INPUTS!$CS$7-1),D130>(INPUTS!$CT$7-1)),"Elite RB",IF(AND(K130>(INPUTS!$CS$8-1),D130>(INPUTS!$CT$8-1)),"2nd Tier RB1",IF(K130>(INPUTS!$CS$9-1),"Consistent RB2",IF(D130>(INPUTS!$CT$10-1),"Consistent RB2","Not a top RB")))))) -> Not a top RB | S130: =RANK(P130,($P$97:$P$98,$P$108:$P$115,$P$127:$P$130,$P$142:$P$145),0) -> 14
B132: Other | C132: 0.02 | D132: =C132*$F$29 -> 12.648 | E132: 0.75 | F132: =D132*E132 -> 9.486 | H132: =G132*F132 -> 0 | I132: 1 | J132: 0.05 | K132: =J132*$G$29 -> 21.08 | L132: 4 | M132: =L132*K132 -> 84.32 | N132: 2 | O132: ='Settings & Instructions'!$C$16 -> 0 | P132: =(F132*'Settings & Instructions'!$C$13)+(H132*'Settings & Instructions'!$C$18)+(I132*'Settings & Instructions'!$C$19)+(M132*'Settings & Instructions'!$C$17)+(N132*'Settings & Instructions'!$C$12)+(O132*F132) -> 35.918
B134: Last Season Data Check | D134: Use this section to see last season's stats as a guide or comparison | Q134: Games Played
B135: James Conner | C135: =IFERROR(INDEX($E$179:$Z$199,21,MATCH($B135,$E$179:$Z$179,0)),"N/A") -> 0.08734939759 | D135: =IFERROR(VLOOKUP($B135,INPUTS!$BB:$BS,7,0),"N/A") -> 58 | E135: =IFERROR(VLOOKUP($B135,INPUTS!$BB:$BS,9,0),"N/A") -> 0.793 | F135: =IFERROR(VLOOKUP($B135,INPUTS!$BB:$BS,8,0),"N/A") -> 46 | G135: =IFERROR(VLOOKUP($B135,INPUTS!$BB:$BS,11,0),"N/A") -> 6.5 | H135: =IFERROR(VLOOKUP($B135,INPUTS!$BB:$BS,10,0),"N/A") -> 300 | I135: =IFERROR(VLOOKUP($B135,INPUTS!$BB:$BS,12,0),"N/A") -> 1 | J135: =IFERROR(INDEX($E$487:$Z$507,21,MATCH($B135,$E$487:$Z$487,0)),"N/A") -> 0.4216589862 | K135: =IFERROR(VLOOKUP($B135,INPUTS!$AL:$AY,7,0),"N/A") -> 183 | L135: =IFERROR(VLOOKUP($B135,INPUTS!$AL:$AY,12,0),"N/A") -> 4.3 | M135: =IFERROR(VLOOKUP($B135,INPUTS!$AL:$AY,8,0),"N/A") -> 782 | N135: =IFERROR(VLOOKUP($B135,INPUTS!$AL:$AY,9,0),"N/A") -> 7 | O135: ='Settings & Instructions'!$C$16 -> 0 | P135: =IFERROR((F135*'Settings & Instructions'!$C$13),0)+IFERROR((H135*'Settings & Instructions'!$C$18),0)+IFERROR((I135*'Settings & Instructions'!$C$19),0)+IFERROR((M135*'Settings & Instructions'!$C$17),0)+IFERROR((N135*'Settings & Instructions'!$C$12),0)+IFERROR((O135*F135),0) -> 202.2 | Q135: =IFERROR(VLOOKUP($B135,INPUTS!$AL:$AP,5,0),IFERROR(VLOOKUP($B135,INPUTS!$BB:$BF,5,0),"N/A")) -> 13
B138: Tight Ends | D138: Note: White Cells will populate automatically | I138: STEP 2: Project the individual player stats in the light blue cells
B139: (Click the + on the left to expand) | I139: Ensure 100% of target share and rush share - see above checks | T139: Range of Outcomes
T140: Low | V140: High
B141: Player | C141: Target Share % | D141: Targets | E141: Catch % | F141: Receptions | G141: Yards per Reception | H141: Receiving Yards | I141: Receiving TDs | J141: Rush Att Share % | K141: Rush Att | L141: Yards per Carry | M141: Rushing Yards | N141: Rushing TDs | O141: Premium | P141: Fantasy Points | Q141: Positional Rank | R141: Tier (Volume Based) | T141: Fantasy Points | U141: Tier | V141: Fantasy Points | W141: Tier
B142: Zach Ertz | C142: 0.12 | D142: =C142*$F$29 -> 75.888 | E142: 0.67 | F142: =D142*E142 -> 50.84496 | G142: 9 | H142: =G142*F142 -> 457.60464 | I142: 3 | K142: =J142*$G$29 -> 0 | M142: =L142*K142 -> 0 | O142: ='Settings & Instructions'!$C$14 -> 1 | P142: =(F142*'Settings & Instructions'!$C$13)+(H142*'Settings & Instructions'!$C$18)+(I142*'Settings & Instructions'!$C$19)+(M142*'Settings & Instructions'!$C$17)+(N142*'Settings & Instructions'!$C$12)+(O142*F142) -> 165.450384 | Q142: =IFERROR("TE"&INDEX('Positional Ranks'!$M:$N,MATCH($B142,'Positional Ranks'!$N:$N,0),1),"") -> TE1 | R142: =IF(D142>(INPUTS!$CW$5-1),"Top TE",IF(D142>(INPUTS!$CW$6-1),"2nd Tier TE1","Not a top TE")) -> Not a top TE | S142: =RANK(P142,($P$97:$P$98,$P$108:$P$115,$P$127:$P$130,$P$142:$P$145),0) -> 3
B143: Trey McBride | C143: 0.09 | D143: 56.916 | E143: 0.65 | F143: =D143*E143 -> 36.9954 | G143: 9 | H143: 332.9586 | I143: 3 | K143: 0 | M143: =L143*K143 -> 0 | O143: ='Settings & Instructions'!$C$14 -> 1 | P143: =(F143*'Settings & Instructions'!$C$13)+(H143*'Settings & Instructions'!$C$18)+(I143*'Settings & Instructions'!$C$19)+(M143*'Settings & Instructions'!$C$17)+(N143*'Settings & Instructions'!$C$12)+(O143*F143) -> 125.28666 | Q143: =IFERROR("TE"&INDEX('Positional Ranks'!$M:$N,MATCH($B143,'Positional Ranks'!$N:$N,0),1),"") -> TE2 | R143: =IF(D143>(INPUTS!$CW$5-1),"Top TE",IF(D143>(INPUTS!$CW$6-1),"2nd Tier TE1","Not a top TE")) -> Not a top TE | S143: =RANK(P143,($P$97:$P$98,$P$108:$P$115,$P$127:$P$130,$P$142:$P$145),0) -> 6
D144: 0 | F144: 0 | H144: 0 | K144: 0 | M144: 0 | O144: ='Settings & Instructions'!$C$14 -> 1 | P144: =(F144*'Settings & Instructions'!$C$13)+(H144*'Settings & Instructions'!$C$18)+(I144*'Settings & Instructions'!$C$19)+(M144*'Settings & Instructions'!$C$17)+(N144*'Settings & Instructions'!$C$12)+(O144*F144) -> 0 | Q144: =IFERROR("TE"&INDEX('Positional Ranks'!$M:$N,MATCH($B144,'Positional Ranks'!$N:$N,0),1),"") ->  | R144: =IF(D144>(INPUTS!$CW$5-1),"Top TE",IF(D144>(INPUTS!$CW$6-1),"2nd Tier TE1","Not a top TE")) -> Not a top TE | S144: =RANK(P144,($P$97:$P$98,$P$108:$P$115,$P$127:$P$130,$P$142:$P$145),0) -> 14
D145: 0 | F145: 0 | H145: 0 | K145: 0 | M145: 0 | O145: ='Settings & Instructions'!$C$14 -> 1 | P145: =(F145*'Settings & Instructions'!$C$13)+(H145*'Settings & Instructions'!$C$18)+(I145*'Settings & Instructions'!$C$19)+(M145*'Settings & Instructions'!$C$17)+(N145*'Settings & Instructions'!$C$12)+(O145*F145) -> 0 | Q145: =IFERROR("TE"&INDEX('Positional Ranks'!$M:$N,MATCH($B145,'Positional Ranks'!$N:$N,0),1),"") ->  | R145: =IF(D145>(INPUTS!$CW$5-1),"Top TE",IF(D145>(INPUTS!$CW$6-1),"2nd Tier TE1","Not a top TE")) -> Not a top TE | S145: =RANK(P145,($P$97:$P$98,$P$108:$P$115,$P$127:$P$130,$P$142:$P$145),0) -> 14
B147: Other | C147: 0.02 | D147: =C147*$F$29 -> 12.648 | E147: 0.68 | F147: =D147*E147 -> 8.60064 | G147: 9 | H147: =G147*F147 -> 77.40576 | I147: 2 | K147: =J147*$G$29 -> 0 | M147: =L147*K147 -> 0 | O147: ='Settings & Instructions'!$C$14 -> 1 | P147: =(F147*'Settings & Instructions'!$C$13)+(H147*'Settings & Instructions'!$C$18)+(I147*'Settings & Instructions'!$C$19)+(M147*'Settings & Instructions'!$C$17)+(N147*'Settings & Instructions'!$C$12)+(O147*F147) -> 36.941856
B149: Last Season Data Check | D149: Use this section to see last season's stats as a guide or comparison | Q149: Games Played
B150: Zach Ertz | C150: =IFERROR(INDEX($E$179:$Z$199,21,MATCH($B150,$E$179:$Z$179,0)),"N/A") -> 0.1039156627 | D150: =IFERROR(VLOOKUP($B150,INPUTS!$BB:$BS,7,0),"N/A") -> 69 | E150: =IFERROR(VLOOKUP($B150,INPUTS!$BB:$BS,9,0),"N/A") -> 0.681 | F150: =IFERROR(VLOOKUP($B150,INPUTS!$BB:$BS,8,0),"N/A") -> 47 | G150: =IFERROR(VLOOKUP($B150,INPUTS!$BB:$BS,11,0),"N/A") -> 8.6 | H150: =IFERROR(VLOOKUP($B150,INPUTS!$BB:$BS,10,0),"N/A") -> 406 | I150: =IFERROR(VLOOKUP($B150,INPUTS!$BB:$BS,12,0),"N/A") -> 4 | J150: =IFERROR(INDEX($E$487:$Z$507,21,MATCH($B150,$E$487:$Z$487,0)),"N/A") -> N/A | K150: =IFERROR(VLOOKUP($B150,INPUTS!$AL:$AY,7,0),"N/A") -> N/A | L150: =IFERROR(VLOOKUP($B150,INPUTS!$AL:$AY,12,0),"N/A") -> N/A | M150: =IFERROR(VLOOKUP($B150,INPUTS!$AL:$AY,8,0),"N/A") -> N/A | N150: =IFERROR(VLOOKUP($B150,INPUTS!$AL:$AY,9,0),"N/A") -> N/A | O150: ='Settings & Instructions'!$C$14 -> 1 | P150: =IFERROR((F150*'Settings & Instructions'!$C$13),0)+IFERROR((H150*'Settings & Instructions'!$C$18),0)+IFERROR((I150*'Settings & Instructions'!$C$19),0)+IFERROR((M150*'Settings & Instructions'!$C$17),0)+IFERROR((N150*'Settings & Instructions'!$C$12),0)+IFERROR((O150*F150),0) -> 158.6 | Q150: =IFERROR(VLOOKUP($B150,INPUTS!$AL:$AP,5,0),IFERROR(VLOOKUP($B150,INPUTS!$BB:$BF,5,0),"N/A")) -> 10
B153: 2022 Data For Reference
B155: Receiving | C155: (Click the + on the left to expand)
B157: Targets | C157: Opponent | D157: QB | E157: Marquise Brown | F157: DeAndre Hopkins | G157: Zach Ertz | H157: Greg Dortch | I157: James Conner | J157: Rondale Moore | K157: A.J. Green | L157: Chosen Anderson | M157: Trey McBride | N157: Eno Benjamin | O157: Andre Baccellia | P157: Darrel Williams | Q157: Corey Clement | R157: Stephen Anderson | S157: Keaontay Ingram | T157: Andy Isabella | U157: Maxx Williams | V157: Jonathan Ward | W157: Pharoh Cooper | X157: Ty'Son Williams | Y157: Kamu Grugier-Hill
B158: Week 1 | C158: Kansas City Chiefs | D158: Kyler Murray | E158: 6 | F158: 0 | G158: 4 | H158: 9 | I158: 6 | J158: 0 | K158: 4 | L158: 0 | M158: 0 | N158: 4 | O158: 0 | P158: 0 | Q158: 0 | R158: 0 | S158: 0 | T158: 3 | U158: 0 | V158: 0 | W158: 0 | X158: 0 | Y158: 0 | Z158: 0
B159: Week 2 | C159: @ Las Vegas Raiders | D159: Kyler Murray | E159: 11 | F159: 0 | G159: 11 | H159: 4 | I159: 4 | J159: 0 | K159: 7 | L159: 0 | M159: 0 | N159: 4 | O159: 2 | P159: 3 | Q159: 0 | R159: 1 | S159: 0 | T159: 0 | U159: 0 | V159: 0 | W159: 0 | X159: 0 | Y159: 0 | Z159: 0
B160: Week 3 | C160: Los Angeles Rams | D160: Kyler Murray | E160: 17 | F160: 0 | G160: 10 | H160: 10 | I160: 5 | J160: 0 | K160: 2 | L160: 0 | M160: 0 | N160: 4 | O160: 4 | P160: 1 | Q160: 0 | R160: 0 | S160: 0 | T160: 2 | U160: 0 | V160: 0 | W160: 0 | X160: 0 | Y160: 0 | Z160: 0
B161: Week 4 | C161: @ Carolina Panthers | D161: Kyler Murray | E161: 11 | F161: 0 | G161: 6 | H161: 1 | I161: 3 | J161: 5 | K161: 0 | L161: 0 | M161: 3 | N161: 1 | O161: 0 | P161: 1 | Q161: 0 | R161: 0 | S161: 0 | T161: 0 | U161: 0 | V161: 0 | W161: 0 | X161: 0 | Y161: 0 | Z161: 0
B162: Week 5 | C162: Philadelphia Eagles | D162: Kyler Murray | E162: 10 | F162: 0 | G162: 10 | H162: 0 | I162: 1 | J162: 8 | K162: 5 | L162: 0 | M162: 0 | N162: 4 | O162: 0 | P162: 0 | Q162: 0 | R162: 0 | S162: 0 | T162: 0 | U162: 0 | V162: 0 | W162: 0 | X162: 0 | Y162: 0 | Z162: 0
B163: Week 6 | C163: @ Seattle Seahawks | D163: Kyler Murray | E163: 9 | F163: 0 | G163: 10 | H163: 0 | I163: 0 | J163: 10 | K163: 4 | L163: 0 | M163: 0 | N163: 3 | O163: 0 | P163: 0 | Q163: 0 | R163: 0 | S163: 0 | T163: 0 | U163: 0 | V163: 0 | W163: 0 | X163: 0 | Y163: 0 | Z163: 0
B164: Week 7 | C164: New Orleans Saints | D164: Kyler Murray | E164: 0 | F164: 14 | G164: 4 | H164: 1 | I164: 0 | J164: 2 | K164: 0 | L164: 1 | M164: 0 | N164: 5 | O164: 0 | P164: 0 | Q164: 0 | R164: 0 | S164: 2 | T164: 0 | U164: 0 | V164: 0 | W164: 0 | X164: 0 | Y164: 0 | Z164: 0
B165: Week 8 | C165: @ Minnesota Vikings | D165: Kyler Murray | E165: 0 | F165: 13 | G165: 5 | H165: 3 | I165: 0 | J165: 8 | K165: 1 | L165: 3 | M165: 0 | N165: 7 | O165: 0 | P165: 3 | Q165: 0 | R165: 0 | S165: 0 | T165: 0 | U165: 0 | V165: 0 | W165: 0 | X165: 0 | Y165: 0 | Z165: 0
B166: Week 9 | C166: Seattle Seahawks | D166: Kyler Murray | E166: 0 | F166: 5 | G166: 8 | H166: 1 | I166: 5 | J166: 10 | K166: 0 | L166: 3 | M166: 0 | N166: 1 | O166: 0 | P166: 0 | Q166: 0 | R166: 0 | S166: 0 | T166: 0 | U166: 0 | V166: 0 | W166: 0 | X166: 0 | Y166: 0 | Z166: 0
B167: Week 10 | C167: @ Los Angeles Rams | D167: Colt McCoy | E167: 0 | F167: 14 | G167: 1 | H167: 0 | I167: 3 | J167: 13 | K167: 2 | L167: 0 | M167: 1 | N167: 0 | O167: 0 | P167: 0 | Q167: 0 | R167: 1 | S167: 0 | T167: 0 | U167: 0 | V167: 0 | W167: 0 | X167: 0 | Y167: 0 | Z167: 0
B168: Week 11 | C168: San Francisco 49ers | D168: Colt McCoy | E168: 0 | F168: 12 | G168: 0 | H168: 10 | I168: 5 | J168: 0 | K168: 9 | L168: 0 | M168: 4 | N168: 0 | O168: 0 | P168: 0 | Q168: 0 | R168: 1 | S168: 0 | T168: 0 | U168: 1 | V168: 0 | W168: 0 | X168: 0 | Y168: 0 | Z168: 0
B169: Week 12 | C169: Los Angeles Chargers | D169: Kyler Murray | E169: 8 | F169: 6 | G169: 0 | H169: 0 | I169: 3 | J169: 0 | K169: 2 | L169: 3 | M169: 3 | N169: 0 | O169: 1 | P169: 0 | Q169: 1 | R169: 0 | S169: 0 | T169: 0 | U169: 0 | V169: 0 | W169: 0 | X169: 0 | Y169: 0 | Z169: 0
B170: Week 13 | C170: BYE
B171: Week 14 | C171: New England Patriots | D171: Colt McCoy | E171: 8 | F171: 11 | G171: 0 | H171: 0 | I171: 7 | J171: 0 | K171: 2 | L171: 4 | M171: 6 | N171: 0 | O171: 0 | P171: 0 | Q171: 1 | R171: 2 | S171: 0 | T171: 0 | U171: 0 | V171: 0 | W171: 0 | X171: 0 | Y171: 0 | Z171: 0
B172: Week 15 | C172: @ Denver Broncos | D172: Colt McCoy | E172: 8 | F172: 11 | G172: 0 | H172: 0 | I172: 5 | J172: 0 | K172: 2 | L172: 2 | M172: 5 | N172: 0 | O172: 0 | P172: 0 | Q172: 0 | R172: 0 | S172: 0 | T172: 0 | U172: 2 | V172: 0 | W172: 0 | X172: 0 | Y172: 0 | Z172: 0
B173: Week 16 | C173: Tampa Bay Buccaneers | D173: Trace McSorley | E173: 6 | F173: 10 | G173: 0 | H173: 11 | I173: 8 | J173: 0 | K173: 0 | L173: 0 | M173: 4 | N173: 0 | O173: 0 | P173: 0 | Q173: 0 | R173: 2 | S173: 0 | T173: 0 | U173: 0 | V173: 0 | W173: 0 | X173: 0 | Y173: 1 | Z173: 0
B174: Week 17 | C174: @ Atlanta Falcons | D174: David Blough | E174: 9 | F174: 0 | G174: 0 | H174: 10 | I174: 3 | J174: 0 | K174: 2 | L174: 1 | M174: 10 | N174: 0 | O174: 2 | P174: 0 | Q174: 1 | R174: 0 | S174: 0 | T174: 0 | U174: 0 | V174: 0 | W174: 0 | X174: 0 | Y174: 0 | Z174: 0
B175: Week 18 | C175: @ San Francisco 49ers | D175: David Blough | E175: 4 | F175: 0 | G175: 0 | H175: 4 | I175: 0 | J175: 0 | K175: 5 | L175: 0 | M175: 3 | N175: 0 | O175: 1 | P175: 0 | Q175: 4 | R175: 0 | S175: 3 | T175: 0 | U175: 0 | V175: 0 | W175: 2 | X175: 1 | Y175: 0 | Z175: 0
B177: Total | E177: 107 | F177: 96 | G177: 69 | H177: 64 | I177: 58 | J177: 56 | K177: 47 | L177: 17 | M177: 39 | N177: 33 | O177: 10 | P177: 8 | Q177: 7 | R177: 7 | S177: 5 | T177: 5 | U177: 3 | V177: 0 | W177: 2 | X177: 1 | Y177: 1 | Z177: 0
B179: Target Share (%) | C179: Opponent | D179: QB | E179: Marquise Brown | F179: DeAndre Hopkins | G179: Zach Ertz | H179: Greg Dortch | I179: James Conner | J179: Rondale Moore | K179: A.J. Green | L179: Chosen Anderson | M179: Trey McBride | N179: Eno Benjamin | O179: Andre Baccellia | P179: Darrel Williams | Q179: Corey Clement | R179: Stephen Anderson | S179: Keaontay Ingram | T179: Andy Isabella | U179: Maxx Williams | V179: Jonathan Ward | W179: Pharoh Cooper | X179: Ty'Son Williams | Y179: Kamu Grugier-Hill
B180: Week 1 | C180: Kansas City Chiefs | D180: Kyler Murray | E180: 0.1578947368 | F180: 0 | G180: 0.1052631579 | H180: 0.2368421053 | I180: 0.1578947368 | J180: 0 | K180: 0.1052631579 | L180: 0 | M180: 0 | N180: 0.1052631579 | O180: 0 | P180: 0 | Q180: 0 | R180: 0 | S180: 0 | T180: 0.07894736842 | U180: 0 | V180: 0 | W180: 0 | X180: 0 | Y180: 0 | Z180: 0
B181: Week 2 | C181: @ Las Vegas Raiders | D181: Kyler Murray | E181: 0.2244897959 | F181: 0 | G181: 0.2244897959 | H181: 0.08163265306 | I181: 0.08163265306 | J181: 0 | K181: 0.1428571429 | L181: 0 | M181: 0 | N181: 0.08163265306 | O181: 0.04081632653 | P181: 0.0612244898 | Q181: 0 | R181: 0.02040816327 | S181: 0 | T181: 0 | U181: 0 | V181: 0 | W181: 0 | X181: 0 | Y181: 0 | Z181: 0
B182: Week 3 | C182: Los Angeles Rams | D182: Kyler Murray | E182: 0.2931034483 | F182: 0 | G182: 0.1724137931 | H182: 0.1724137931 | I182: 0.08620689655 | J182: 0 | K182: 0.03448275862 | L182: 0 | M182: 0 | N182: 0.06896551724 | O182: 0.06896551724 | P182: 0.01724137931 | Q182: 0 | R182: 0 | S182: 0 | T182: 0.03448275862 | U182: 0 | V182: 0 | W182: 0 | X182: 0 | Y182: 0 | Z182: 0
B183: Week 4 | C183: @ Carolina Panthers | D183: Kyler Murray | E183: 0.34375 | F183: 0 | G183: 0.1875 | H183: 0.03125 | I183: 0.09375 | J183: 0.15625 | K183: 0 | L183: 0 | M183: 0.09375 | N183: 0.03125 | O183: 0 | P183: 0.03125 | Q183: 0 | R183: 0 | S183: 0 | T183: 0 | U183: 0 | V183: 0 | W183: 0 | X183: 0 | Y183: 0 | Z183: 0
B184: Week 5 | C184: Philadelphia Eagles | D184: Kyler Murray | E184: 0.2380952381 | F184: 0 | G184: 0.2380952381 | H184: 0 | I184: 0.02380952381 | J184: 0.1904761905 | K184: 0.119047619 | L184: 0 | M184: 0 | N184: 0.09523809524 | O184: 0 | P184: 0 | Q184: 0 | R184: 0 | S184: 0 | T184: 0 | U184: 0 | V184: 0 | W184: 0 | X184: 0 | Y184: 0 | Z184: 0
B185: Week 6 | C185: @ Seattle Seahawks | D185: Kyler Murray | E185: 0.2432432432 | F185: 0 | G185: 0.2702702703 | H185: 0 | I185: 0 | J185: 0.2702702703 | K185: 0.1081081081 | L185: 0 | M185: 0 | N185: 0.08108108108 | O185: 0 | P185: 0 | Q185: 0 | R185: 0 | S185: 0 | T185: 0 | U185: 0 | V185: 0 | W185: 0 | X185: 0 | Y185: 0 | Z185: 0
B186: Week 7 | C186: New Orleans Saints | D186: Kyler Murray | E186: 0 | F186: 0.4827586207 | G186: 0.1379310345 | H186: 0.03448275862 | I186: 0 | J186: 0.06896551724 | K186: 0 | L186: 0.03448275862 | M186: 0 | N186: 0.1724137931 | O186: 0 | P186: 0 | Q186: 0 | R186: 0 | S186: 0.06896551724 | T186: 0 | U186: 0 | V186: 0 | W186: 0 | X186: 0 | Y186: 0 | Z186: 0
B187: Week 8 | C187: @ Minnesota Vikings | D187: Kyler Murray | E187: 0 | F187: 0.2954545455 | G187: 0.1136363636 | H187: 0.06818181818 | I187: 0 | J187: 0.1818181818 | K187: 0.02272727273 | L187: 0.06818181818 | M187: 0 | N187: 0.1590909091 | O187: 0 | P187: 0.06818181818 | Q187: 0 | R187: 0 | S187: 0 | T187: 0 | U187: 0 | V187: 0 | W187: 0 | X187: 0 | Y187: 0 | Z187: 0
B188: Week 9 | C188: Seattle Seahawks | D188: Kyler Murray | E188: 0 | F188: 0.1428571429 | G188: 0.2285714286 | H188: 0.02857142857 | I188: 0.1428571429 | J188: 0.2857142857 | K188: 0 | L188: 0.08571428571 | M188: 0 | N188: 0.02857142857 | O188: 0 | P188: 0 | Q188: 0 | R188: 0 | S188: 0 | T188: 0 | U188: 0 | V188: 0 | W188: 0 | X188: 0 | Y188: 0 | Z188: 0
B189: Week 10 | C189: @ Los Angeles Rams | D189: Colt McCoy | E189: 0 | F189: 0.3783783784 | G189: 0.02702702703 | H189: 0 | I189: 0.08108108108 | J189: 0.3513513514 | K189: 0.05405405405 | L189: 0 | M189: 0.02702702703 | N189: 0 | O189: 0 | P189: 0 | Q189: 0 | R189: 0.02702702703 | S189: 0 | T189: 0 | U189: 0 | V189: 0 | W189: 0 | X189: 0 | Y189: 0 | Z189: 0
B190: Week 11 | C190: San Francisco 49ers | D190: Colt McCoy | E190: 0 | F190: 0.2727272727 | G190: 0 | H190: 0.2272727273 | I190: 0.1136363636 | J190: 0 | K190: 0.2045454545 | L190: 0 | M190: 0.09090909091 | N190: 0 | O190: 0 | P190: 0 | Q190: 0 | R190: 0.02272727273 | S190: 0 | T190: 0 | U190: 0.02272727273 | V190: 0 | W190: 0 | X190: 0 | Y190: 0 | Z190: 0
B191: Week 12 | C191: Los Angeles Chargers | D191: Kyler Murray | E191: 0.275862069 | F191: 0.2068965517 | G191: 0 | H191: 0 | I191: 0.1034482759 | J191: 0 | K191: 0.06896551724 | L191: 0.1034482759 | M191: 0.1034482759 | N191: 0 | O191: 0.03448275862 | P191: 0 | Q191: 0.03448275862 | R191: 0 | S191: 0 | T191: 0 | U191: 0 | V191: 0 | W191: 0 | X191: 0 | Y191: 0 | Z191: 0
B192: Week 13 | C192: BYE
B193: Week 14 | C193: New England Patriots | D193: Colt McCoy | E193: 0.1951219512 | F193: 0.2682926829 | G193: 0 | H193: 0 | I193: 0.1707317073 | J193: 0 | K193: 0.0487804878 | L193: 0.09756097561 | M193: 0.1463414634 | N193: 0 | O193: 0 | P193: 0 | Q193: 0.0243902439 | R193: 0.0487804878 | S193: 0 | T193: 0 | U193: 0 | V193: 0 | W193: 0 | X193: 0 | Y193: 0 | Z193: 0
B194: Week 15 | C194: @ Denver Broncos | D194: Colt McCoy | E194: 0.2222222222 | F194: 0.3055555556 | G194: 0 | H194: 0 | I194: 0.1388888889 | J194: 0 | K194: 0.05555555556 | L194: 0.05555555556 | M194: 0.1388888889 | N194: 0 | O194: 0 | P194: 0 | Q194: 0 | R194: 0 | S194: 0 | T194: 0 | U194: 0.05555555556 | V194: 0 | W194: 0 | X194: 0 | Y194: 0 | Z194: 0
B195: Week 16 | C195: Tampa Bay Buccaneers | D195: Trace McSorley | E195: 0.1304347826 | F195: 0.2173913043 | G195: 0 | H195: 0.2391304348 | I195: 0.1739130435 | J195: 0 | K195: 0 | L195: 0 | M195: 0.08695652174 | N195: 0 | O195: 0 | P195: 0 | Q195: 0 | R195: 0.04347826087 | S195: 0 | T195: 0 | U195: 0 | V195: 0 | W195: 0 | X195: 0 | Y195: 0.02173913043 | Z195: 0
B196: Week 17 | C196: @ Atlanta Falcons | D196: David Blough | E196: 0.225 | F196: 0 | G196: 0 | H196: 0.25 | I196: 0.075 | J196: 0 | K196: 0.05 | L196: 0.025 | M196: 0.25 | N196: 0 | O196: 0.05 | P196: 0 | Q196: 0.025 | R196: 0 | S196: 0 | T196: 0 | U196: 0 | V196: 0 | W196: 0 | X196: 0 | Y196: 0 | Z196: 0
B197: Week 18 | C197: @ San Francisco 49ers | D197: David Blough | E197: 0.1481481481 | F197: 0 | G197: 0 | H197: 0.1481481481 | I197: 0 | J197: 0 | K197: 0.1851851852 | L197: 0 | M197: 0.1111111111 | N197: 0 | O197: 0.03703703704 | P197: 0 | Q197: 0.1481481481 | R197: 0 | S197: 0.1111111111 | T197: 0 | U197: 0 | V197: 0 | W197: 0.07407407407 | X197: 0.03703703704 | Y197: 0 | Z197: 0
B199: Total | E199: 0.1611445783 | F199: 0.1445783133 | G199: 0.1039156627 | H199: 0.09638554217 | I199: 0.08734939759 | J199: 0.0843373494 | K199: 0.07078313253 | L199: 0.02560240964 | M199: 0.05873493976 | N199: 0.04969879518 | O199: 0.01506024096 | P199: 0.01204819277 | Q199: 0.01054216867 | R199: 0.01054216867 | S199: 0.007530120482 | T199: 0.007530120482 | U199: 0.004518072289 | V199: 0 | W199: 0.003012048193 | X199: 0.001506024096 | Y199: 0.001506024096 | Z199: 0
B201: aDOT (Cumulative) | C201: Opponent | D201: QB | E201: Marquise Brown | F201: DeAndre Hopkins | G201: Zach Ertz | H201: Greg Dortch | I201: James Conner | J201: Rondale Moore | K201: A.J. Green | L201: Chosen Anderson | M201: Trey McBride | N201: Eno Benjamin | O201: Andre Baccellia | P201: Darrel Williams | Q201: Corey Clement | R201: Stephen Anderson | S201: Keaontay Ingram | T201: Andy Isabella | U201: Maxx Williams | V201: Jonathan Ward | W201: Pharoh Cooper | X201: Ty'Son Williams | Y201: Kamu Grugier-Hill
B202: Week 1 | C202: Kansas City Chiefs | D202: Kyler Murray | E202: 16.8 | F202: 0 | G202: 5.5 | H202: 6.9 | I202: 1.2 | J202: 0 | K202: 10.5 | L202: 8.8 | M202: 0 | N202: 0.5 | O202: 0 | P202: 0 | Q202: 0 | R202: 0 | S202: 0 | T202: 10 | U202: 0 | V202: 0 | W202: 0 | X202: 0 | Y202: 0 | Z202: 0
B203: Week 2 | C203: @ Las Vegas Raiders | D203: Kyler Murray | E203: 11.5 | F203: 0 | G203: 5.3 | H203: 6.4 | I203: 2.6 | J203: 0 | K203: 8.3 | L203: 8.3 | M203: 0 | N203: -1 | O203: 3.5 | P203: -0.3 | Q203: 0 | R203: 2 | S203: 0 | T203: 10 | U203: 0 | V203: 0 | W203: 0 | X203: 0 | Y203: 0 | Z203: 0
B204: Week 3 | C204: Los Angeles Rams | D204: Kyler Murray | E204: 9.9 | F204: 0 | G204: 5.6 | H204: 5.3 | I204: 1.7 | J204: 0 | K204: 8.8 | L204: 10.4 | M204: 0 | N204: -1.8 | O204: 9.2 | P204: -1 | Q204: 0 | R204: 2 | S204: 0 | T204: 14 | U204: 0 | V204: 0 | W204: 0 | X204: 0 | Y204: 0 | Z204: 0
B205: Week 4 | C205: @ Carolina Panthers | D205: Kyler Murray | E205: 9.3 | F205: 0 | G205: 5.6 | H205: 5.3 | I205: 1.1 | J205: 11.6 | K205: 8.8 | L205: 10.9 | M205: 4 | N205: -1.6 | O205: 9.2 | P205: -2.8 | Q205: 0 | R205: 2 | S205: 0 | T205: 14 | U205: 0 | V205: 0 | W205: 0 | X205: 0 | Y205: 0 | Z205: 0
B206: Week 5 | C206: Philadelphia Eagles | D206: Kyler Murray | E206: 9.4 | F206: 0 | G206: 6.7 | H206: 5.3 | I206: 1.1 | J206: 5.8 | K206: 10.8 | L206: 11.9 | M206: 4 | N206: -1.3 | O206: 9.2 | P206: -2.8 | Q206: 0 | R206: 2 | S206: 0 | T206: 14 | U206: 0 | V206: 0 | W206: 0 | X206: 0 | Y206: 0 | Z206: 0
B207: Week 6 | C207: @ Seattle Seahawks | D207: Kyler Murray | E207: 10.5 | F207: 0 | G207: 7.6 | H207: 5.3 | I207: 1.1 | J207: 5.2 | K207: 10.5 | L207: 11.9 | M207: 4 | N207: -1.5 | O207: 9.2 | P207: -2.8 | Q207: 0 | R207: 2 | S207: 0 | T207: 14 | U207: 0 | V207: 0 | W207: 0 | X207: 0 | Y207: 0 | Z207: 0
B208: Week 7 | C208: New Orleans Saints | D208: Kyler Murray | E208: 10.5 | F208: 9.4 | G208: 7.6 | H208: 5.2 | I208: 1.1 | J208: 5.8 | K208: 10.5 | L208: 13 | M208: 4 | N208: -1.6 | O208: 9.2 | P208: -2.8 | Q208: 0 | R208: 2 | S208: -2 | T208: 14 | U208: 0 | V208: 0 | W208: 0 | X208: 0 | Y208: 0 | Z208: 0
B209: Week 8 | C209: @ Minnesota Vikings | D209: Kyler Murray | E209: 10.5 | F209: 10.9 | G209: 7.4 | H209: 4.8 | I209: 1.1 | J209: 4.7 | K209: 11.1 | L209: 14.1 | M209: 4 | N209: -1.4 | O209: 9.2 | P209: -3 | Q209: 0 | R209: 2 | S209: -2 | T209: 14 | U209: 0 | V209: 0 | W209: 0 | X209: 0 | Y209: 0 | Z209: 0
B210: Week 9 | C210: Seattle Seahawks | D210: Kyler Murray | E210: 10.5 | F210: 10.1 | G210: 7.9 | H210: 4.6 | I210: 0.4 | J210: 4.6 | K210: 11.1 | L210: 13.6 | M210: 4 | N210: -1.2 | O210: 9.2 | P210: -3 | Q210: 0 | R210: 2 | S210: -2 | T210: 14 | U210: 0 | V210: 0 | W210: 0 | X210: 0 | Y210: 0 | Z210: 0
B211: Week 10 | C211: @ Los Angeles Rams | D211: Colt McCoy | E211: 10.5 | F211: 9.1 | G211: 7.9 | H211: 4.6 | I211: 0.1 | J211: 5.5 | K211: 10.6 | L211: 13.6 | M211: 4.3 | N211: -1.2 | O211: 9.2 | P211: -3 | Q211: 0 | R211: 1 | S211: -2 | T211: 14 | U211: 0 | V211: 0 | W211: 0 | X211: 0 | Y211: 0 | Z211: 0
B212: Week 11 | C212: San Francisco 49ers | D212: Colt McCoy | E212: 10.5 | F212: 9.2 | G212: 7.9 | H212: 3.9 | I212: -0.3 | J212: 5.5 | K212: 10.4 | L212: 13.6 | M212: 2.6 | N212: -1.2 | O212: 9.2 | P212: -3 | Q212: 0 | R212: 8 | S212: -2 | T212: 14 | U212: 3 | V212: 0 | W212: 0 | X212: 0 | Y212: 0 | Z212: 0
B213: Week 12 | C213: Los Angeles Chargers | D213: Kyler Murray | E213: 10.5 | F213: 10 | G213: 7.9 | H213: 4 | I213: -0.6 | J213: 5.5 | K213: 10.8 | L213: 13.7 | M213: 2.8 | N213: -1.2 | O213: 8.6 | P213: -3 | Q213: 0 | R213: 8 | S213: -2 | T213: 14 | U213: 3 | V213: 0 | W213: 0 | X213: 0 | Y213: 0 | Z213: 0
B214: Week 13 | C214: BYE | E214: 10.5 | F214: 10 | G214: 7.9 | H214: 4 | I214: -0.6 | J214: 5.5 | K214: 10.8 | L214: 13.7 | M214: 2.8 | N214: -1.2 | O214: 8.6 | P214: -3 | Q214: 0 | R214: 8 | S214: -2 | T214: 14 | U214: 3 | V214: 0 | W214: 0 | X214: 0 | Y214: 0 | Z214: 0
B215: Week 14 | C215: New England Patriots | D215: Colt McCoy | E215: 10.5 | F215: 10.2 | G215: 7.9 | H215: 4 | I215: -0.6 | J215: 5.5 | K215: 10.7 | L215: 13.1 | M215: 4.8 | N215: -1.2 | O215: 8.6 | P215: -3 | Q215: 2 | R215: 5 | S215: -2 | T215: 14 | U215: 3 | V215: 0 | W215: 0 | X215: 0 | Y215: 0 | Z215: 0
B216: Week 15 | C216: @ Denver Broncos | D216: Colt McCoy | E216: 10.3 | F216: 9.7 | G216: 7.9 | H216: 4 | I216: -0.7 | J216: 5.5 | K216: 10.5 | L216: 14.2 | M216: 5 | N216: -1.2 | O216: 8.6 | P216: -3 | Q216: 2 | R216: 5 | S216: -2 | T216: 14 | U216: 4 | V216: 0 | W216: 0 | X216: 0 | Y216: 0 | Z216: 0
B217: Week 16 | C217: Tampa Bay Buccaneers | D217: Trace McSorley | E217: 10.5 | F217: 10.2 | G217: 7.9 | H217: 4.3 | I217: -0.9 | J217: 5.5 | K217: 10.5 | L217: 14.2 | M217: 4.9 | N217: -1.2 | O217: 8.6 | P217: -3 | Q217: 2 | R217: 5.1 | S217: -2 | T217: 14 | U217: 4 | V217: 0 | W217: 0 | X217: 0 | Y217: 0 | Z217: 0
B218: Week 17 | C218: @ Atlanta Falcons | D218: David Blough | E218: 10.8 | F218: 10.2 | G218: 7.9 | H218: 5.2 | I218: -0.8 | J218: 5.5 | K218: 10.3 | L218: 14.1 | M218: 6.2 | N218: -1.2 | O218: 9.4 | P218: -3 | Q218: 2.3 | R218: 5.1 | S218: -2 | T218: 14 | U218: 4 | V218: 3 | W218: 0 | X218: 0 | Y218: 0 | Z218: 0
B219: Week 18 | C219: @ San Francisco 49ers | D219: David Blough | E219: 11.3 | F219: 10.2 | G219: 7.9 | H219: 4.9 | I219: -0.8 | J219: 5.5 | K219: 11 | L219: 14.1 | M219: 6.1 | N219: -1.2 | O219: 9.1 | P219: -3 | Q219: -0.6 | R219: 5.1 | S219: -2.2 | T219: 14 | U219: 4 | V219: 1.3 | W219: -3 | X219: -1 | Y219: 0 | Z219: 0
B222: aDOT by week | C222: Opponent | D222: QB | E222: Marquise Brown | F222: DeAndre Hopkins | G222: Zach Ertz | H222: Greg Dortch | I222: James Conner | J222: Rondale Moore | K222: A.J. Green | L222: Chosen Anderson | M222: Trey McBride | N222: Eno Benjamin | O222: Andre Baccellia | P222: Darrel Williams | Q222: Corey Clement | R222: Stephen Anderson | S222: Keaontay Ingram | T222: Andy Isabella | U222: Maxx Williams | V222: Jonathan Ward | W222: Pharoh Cooper | X222: Ty'Son Williams | Y222: Kamu Grugier-Hill
B223: Week 1 | C223: Kansas City Chiefs | D223: Kyler Murray | E223: 16.8 | F223: 0 | G223: 5.5 | H223: 6.9 | I223: 1.2 | J223: 0 | K223: 10.5 | L223: 0 | M223: 0 | N223: 0.5 | O223: 0 | P223: 0 | Q223: 0 | R223: 0 | S223: 0 | T223: 10 | U223: 0 | V223: 0 | W223: 0 | X223: 0 | Y223: 0 | Z223: 0
B224: Week 2 | C224: @ Las Vegas Raiders | D224: Kyler Murray | E224: 8.609090909 | F224: 0 | G224: 5.227272727 | H224: 5.275 | I224: 4.7 | J224: 0 | K224: 7.042857143 | L224: 0 | M224: 0 | N224: -2.5 | O224: 3.5 | P224: -0.3 | Q224: 0 | R224: 2 | S224: 0 | T224: 0 | U224: 0 | V224: 0 | W224: 0 | X224: 0 | Y224: 0 | Z224: 0
B225: Week 3 | C225: Los Angeles Rams | D225: Kyler Murray | E225: 8.3 | F225: 0 | G225: 6.05 | H225: 3.87 | I225: -0.1 | J225: 0 | K225: 11.55 | L225: 0 | M225: 0 | N225: -3.4 | O225: 12.05 | P225: -3.1 | Q225: 0 | R225: 0 | S225: 0 | T225: 20 | U225: 0 | V225: 0 | W225: 0 | X225: 0 | Y225: 0 | Z225: 0
B226: Week 4 | C226: @ Carolina Panthers | D226: Kyler Murray | E226: 7.445454545 | F226: 0 | G226: 5.6 | H226: 5.3 | I226: -1.9 | J226: 11.6 | K226: 0 | L226: 0 | M226: 4 | N226: 0.8 | O226: 0 | P226: -10 | Q226: 0 | R226: 0 | S226: 0 | T226: 0 | U226: 0 | V226: 0 | W226: 0 | X226: 0 | Y226: 0 | Z226: 0
B227: Week 5 | C227: Philadelphia Eagles | D227: Kyler Murray | E227: 9.85 | F227: 0 | G227: 10.11 | H227: 0 | I227: 1.1 | J227: 2.175 | K227: 16 | L227: 0 | M227: 0 | N227: -0.325 | O227: 0 | P227: 0 | Q227: 0 | R227: 0 | S227: 0 | T227: 0 | U227: 0 | V227: 0 | W227: 0 | X227: 0 | Y227: 0 | Z227: 0
B228: Week 6 | C228: @ Seattle Seahawks | D228: Kyler Murray | E228: 17.22222222 | F228: 0 | G228: 11.29 | H228: 0 | I228: 0 | J228: 4.42 | K228: 9.15 | L228: 0 | M228: 0 | N228: -2.633333333 | O228: 0 | P228: 0 | Q228: 0 | R228: 0 | S228: 0 | T228: 0 | U228: 0 | V228: 0 | W228: 0 | X228: 0 | Y228: 0 | Z228: 0
B229: Week 7 | C229: New Orleans Saints | D229: Kyler Murray | E229: 0 | F229: 9.4 | G229: 7.6 | H229: 2.8 | I229: 0 | J229: 12.7 | K229: 0 | L229: 13 | M229: 0 | N229: -2 | O229: 0 | P229: 0 | Q229: 0 | R229: 0 | S229: -2 | T229: 0 | U229: 0 | V229: 0 | W229: 0 | X229: 0 | Y229: 0 | Z229: 0
B230: Week 8 | C230: @ Minnesota Vikings | D230: Kyler Murray | E230: 0 | F230: 12.51538462 | G230: 5.2 | H230: 1.466666667 | I230: 0 | J230: 1.2625 | K230: 24.3 | L230: 14.46666667 | M230: 0 | N230: -0.6857142857 | O230: 0 | P230: -3.333333333 | Q230: 0 | R230: 0 | S230: 0 | T230: 0 | U230: 0 | V230: 0 | W230: 0 | X230: 0 | Y230: 0 | Z230: 0
B231: Week 9 | C231: Seattle Seahawks | D231: Kyler Murray | E231: 0 | F231: 5.78 | G231: 11.65 | H231: -1 | I231: -2.26 | J231: 4.27 | K231: 0 | L231: 12.93333333 | M231: 0 | N231: 5.2 | O231: 0 | P231: 0 | Q231: 0 | R231: 0 | S231: 0 | T231: 0 | U231: 0 | V231: 0 | W231: 0 | X231: 0 | Y231: 0 | Z231: 0
B232: Week 10 | C232: @ Los Angeles Rams | D232: Colt McCoy | E232: 0 | F232: 6.814285714 | G232: 7.9 | H232: 0 | I232: -2.3 | J232: 8.476923077 | K232: 4.85 | L232: 0 | M232: 5.2 | N232: 0 | O232: 0 | P232: 0 | Q232: 0 | R232: 0 | S232: 0 | T232: 0 | U232: 0 | V232: 0 | W232: 0 | X232: 0 | Y232: 0 | Z232: 0
B233: Week 11 | C233: San Francisco 49ers | D233: Colt McCoy | E233: 0 | F233: 9.583333333 | G233: 0 | H233: 1.87 | I233: -2.46 | J233: 0 | K233: 9.844444444 | L233: 0 | M233: 0.9 | N233: 0 | O233: 0 | P233: 0 | Q233: 0 | R233: 22 | S233: 0 | T233: 0 | U233: 3 | V233: 0 | W233: 0 | X233: 0 | Y233: 0 | Z233: 0
B234: Week 12 | C234: Los Angeles Chargers | D234: Kyler Murray | E234: 10.5 | F234: 17.73333333 | G234: 0 | H234: 0 | I234: -3.8 | J234: 0 | K234: 17.6 | L234: 13.93333333 | M234: 3.333333333 | N234: 0 | O234: 5 | P234: 0 | Q234: 0 | R234: 0 | S234: 0 | T234: 0 | U234: 0 | V234: 0 | W234: 0 | X234: 0 | Y234: 0 | Z234: 0
B235: Week 13 | C235: BYE
B236: Week 14 | C236: New England Patriots | D236: Colt McCoy | E236: 10.5 | F236: 11.36363636 | G236: 0 | H236: 0 | I236: -0.6 | J236: 0 | K236: 8.9 | L236: 11.6 | M236: 8.466666667 | N236: 0 | O236: 0 | P236: 0 | Q236: 4 | R236: 0.5 | S236: 0 | T236: 0 | U236: 0 | V236: 0 | W236: 0 | X236: 0 | Y236: 0 | Z236: 0
B237: Week 15 | C237: @ Denver Broncos | D237: Colt McCoy | E237: 8.3 | F237: 6.290909091 | G237: 0 | H237: 0 | I237: -1.54 | J237: 0 | K237: 6.7 | L237: 21.9 | M237: 5.68 | N237: 0 | O237: 0 | P237: 0 | Q237: 0 | R237: 0 | S237: 0 | T237: 0 | U237: 4.5 | V237: 0 | W237: 0 | X237: 0 | Y237: 0 | Z237: 0
B238: Week 16 | C238: Tampa Bay Buccaneers | D238: Trace McSorley | E238: 13.43333333 | F238: 14.5 | G238: 0 | H238: 5.363636364 | I238: -2.075 | J238: 0 | K238: 0 | L238: 0 | M238: 4.35 | N238: 0 | O238: 0 | P238: 0 | Q238: 0 | R238: 5.35 | S238: 0 | T238: 0 | U238: 0 | V238: 0 | W238: 0 | X238: 0 | Y238: 0 | Z238: 0
B239: Week 17 | C239: @ Atlanta Falcons | D239: David Blough | E239: 13.93333333 | F239: 0 | G239: 0 | H239: 9.7 | I239: 1.033333333 | J239: 0 | K239: 6.3 | L239: 12.5 | M239: 9.58 | N239: 0 | O239: 12.2 | P239: 0 | Q239: 2.9 | R239: 0 | S239: 0 | T239: 0 | U239: 0 | V239: 0 | W239: 0 | X239: 0 | Y239: 0 | Z239: 0
B240: Week 18 | C240: @ San Francisco 49ers | D240: David Blough | E240: 24.175 | F240: 0 | G240: 0 | H240: 0.4 | I240: 0 | J240: 0 | K240: 16.88 | L240: 0 | M240: 4.9 | N240: 0 | O240: 6.4 | P240: 0 | Q240: -2.775 | R240: 0 | S240: -2.333333333 | T240: 0 | U240: 0 | V240: 0 | W240: -3 | X240: -1 | Y240: 0 | Z240: 0
B243: Air Yards | C243: Opponent | D243: QB | E243: Marquise Brown | F243: DeAndre Hopkins | G243: Zach Ertz | H243: Greg Dortch | I243: James Conner | J243: Rondale Moore | K243: A.J. Green | L243: Chosen Anderson | M243: Trey McBride | N243: Eno Benjamin | O243: Andre Baccellia | P243: Darrel Williams | Q243: Corey Clement | R243: Stephen Anderson | S243: Keaontay Ingram | T243: Andy Isabella | U243: Maxx Williams | V243: Jonathan Ward | W243: Pharoh Cooper | X243: Ty'Son Williams | Y243: Kamu Grugier-Hill
B244: Week 1 | C244: Kansas City Chiefs | D244: Kyler Murray | E244: 100.8 | F244: 0 | G244: 22 | H244: 62.1 | I244: 7.2 | J244: 0 | K244: 42 | L244: 0 | M244: 0 | N244: 2 | O244: 0 | P244: 0 | Q244: 0 | R244: 0 | S244: 0 | T244: 30 | U244: 0 | V244: 0 | W244: 0 | X244: 0 | Y244: 0 | Z244: 0
B245: Week 2 | C245: @ Las Vegas Raiders | D245: Kyler Murray | E245: 94.7 | F245: 0 | G245: 57.5 | H245: 21.1 | I245: 18.8 | J245: 0 | K245: 49.3 | L245: 0 | M245: 0 | N245: -10 | O245: 7 | P245: -0.9 | Q245: 0 | R245: 2 | S245: 0 | T245: 0 | U245: 0 | V245: 0 | W245: 0 | X245: 0 | Y245: 0 | Z245: 0
B246: Week 3 | C246: Los Angeles Rams | D246: Kyler Murray | E246: 141.1 | F246: 0 | G246: 60.5 | H246: 38.7 | I246: -0.5 | J246: 0 | K246: 23.1 | L246: 0 | M246: 0 | N246: -13.6 | O246: 48.2 | P246: -3.1 | Q246: 0 | R246: 0 | S246: 0 | T246: 40 | U246: 0 | V246: 0 | W246: 0 | X246: 0 | Y246: 0 | Z246: 0
B247: Week 4 | C247: @ Carolina Panthers | D247: Kyler Murray | E247: 81.9 | F247: 0 | G247: 33.6 | H247: 5.3 | I247: -5.7 | J247: 58 | K247: 0 | L247: 0 | M247: 12 | N247: 0.8 | O247: 0 | P247: -10 | Q247: 0 | R247: 0 | S247: 0 | T247: 0 | U247: 0 | V247: 0 | W247: 0 | X247: 0 | Y247: 0 | Z247: 0
B248: Week 5 | C248: Philadelphia Eagles | D248: Kyler Murray | E248: 98.5 | F248: 0 | G248: 101.1 | H248: 0 | I248: 1.1 | J248: 17.4 | K248: 80 | L248: 0 | M248: 0 | N248: -1.3 | O248: 0 | P248: 0 | Q248: 0 | R248: 0 | S248: 0 | T248: 0 | U248: 0 | V248: 0 | W248: 0 | X248: 0 | Y248: 0 | Z248: 0
B249: Week 6 | C249: @ Seattle Seahawks | D249: Kyler Murray | E249: 155 | F249: 0 | G249: 112.9 | H249: 0 | I249: 0 | J249: 44.2 | K249: 36.6 | L249: 0 | M249: 0 | N249: -7.9 | O249: 0 | P249: 0 | Q249: 0 | R249: 0 | S249: 0 | T249: 0 | U249: 0 | V249: 0 | W249: 0 | X249: 0 | Y249: 0 | Z249: 0
B250: Week 7 | C250: New Orleans Saints | D250: Kyler Murray | E250: 0 | F250: 131.6 | G250: 30.4 | H250: 2.8 | I250: 0 | J250: 25.4 | K250: 0 | L250: 13 | M250: 0 | N250: -10 | O250: 0 | P250: 0 | Q250: 0 | R250: 0 | S250: -4 | T250: 0 | U250: 0 | V250: 0 | W250: 0 | X250: 0 | Y250: 0 | Z250: 0
B251: Week 8 | C251: @ Minnesota Vikings | D251: Kyler Murray | E251: 0 | F251: 162.7 | G251: 26 | H251: 4.4 | I251: 0 | J251: 10.1 | K251: 24.3 | L251: 43.4 | M251: 0 | N251: -4.8 | O251: 0 | P251: -10 | Q251: 0 | R251: 0 | S251: 0 | T251: 0 | U251: 0 | V251: 0 | W251: 0 | X251: 0 | Y251: 0 | Z251: 0
B252: Week 9 | C252: Seattle Seahawks | D252: Kyler Murray | E252: 0 | F252: 28.9 | G252: 93.2 | H252: -1 | I252: -11.3 | J252: 42.7 | K252: 0 | L252: 38.8 | M252: 0 | N252: 5.2 | O252: 0 | P252: 0 | Q252: 0 | R252: 0 | S252: 0 | T252: 0 | U252: 0 | V252: 0 | W252: 0 | X252: 0 | Y252: 0 | Z252: 0
B253: Week 10 | C253: @ Los Angeles Rams | D253: Colt McCoy | E253: 0 | F253: 95.4 | G253: 7.9 | H253: 0 | I253: -6.9 | J253: 110.2 | K253: 9.7 | L253: 0 | M253: 5.2 | N253: 0 | O253: 0 | P253: 0 | Q253: 0 | R253: 0 | S253: 0 | T253: 0 | U253: 0 | V253: 0 | W253: 0 | X253: 0 | Y253: 0 | Z253: 0
... 410 more rows

Sheet INPUTS (hidden)
A1: Wins | B1: Touchdowns | E1: PASSING | AK1: RUSHING | BA1: RECEIVING | BU1: Advanced Passing | CP1: Tiers
A2: 1 | B2: 30 | AK2: Games | AM2: Rushing | BA2: Rk | BB2: Player | BC2: Tm | BD2: Age | BE2: Pos | BF2: G | BG2: GS | BH2: Tgt | BI2: Rec | BJ2: Ctch% | BK2: Yds | BL2: Y/R | BM2: TD | BN2: 1D | BO2: Lng | BP2: Y/Tgt | BQ2: R/G | BR2: Y/G | BS2: Fmb | BU2: Games | BW2: Passing
A3: 1.5 | B3: 30 | E3: Rk | F3: Player | G3: Tm | H3: Age | I3: Pos | J3: G | K3: GS | L3: QBrec | M3: Cmp | N3: Att | O3: Cmp% | P3: Yds | Q3: TD | R3: TD% | S3: Int | T3: Int% | U3: 1D | V3: Lng | W3: Y/A | X3: AY/A | Y3: Y/C | Z3: Y/G | AA3: Rate | AB3: QBR | AC3: Sk | AD3: Yds | AE3: Sk% | AF3: NY/A | AG3: ANY/A | AH3: 4QC | AI3: GWD | AK3: Rk | AL3: Player | AM3: Tm | AN3: Age | AO3: Pos | AP3: G | AQ3: GS | AR3: Att | AS3: Yds | AT3: TD | AU3: 1D | AV3: Lng | AW3: Y/A | AX3: Y/G | AY3: Fmb | BA3: 1 | BB3: Justin Jefferson | BC3: MIN | BD3: 23 | BE3: WR | BF3: 17 | BG3: 17 | BH3: 184 | BI3: 128 | BJ3: 0.696 | BK3: 1809 | BL3: 14.1 | BM3: 8 | BN3: 80 | BO3: 64 | BP3: 9.8 | BQ3: 7.5 | BR3: 106.4 | BS3: 0 | BU3: Rk | BV3: Player | BW3: Tm | BX3: Age | BY3: Pos | BZ3: G | CA3: GS | CB3: Cmp | CC3: Att | CD3: Yds | CE3: Bats | CF3: ThAwy | CG3: Spikes | CH3: Drops | CI3: Drop% | CJ3: BadTh | CK3: Bad% | CL3: OnTgt | CM3: OnTgt% | CP3: Wide Receiver | CS3: Running Back | CW3: Tight End | CZ3: Quarterback
A4: 2 | B4: 30 | E4: 1 | F4: Patrick Mahomes | G4: KAN | H4: 27 | I4: QB | J4: 17 | K4: 17 | L4: 2000-03-14 | M4: 435 | N4: 648 | O4: 67.1 | P4: 5250 | Q4: 41 | R4: 6.3 | S4: 12 | T4: 1.9 | U4: 272 | V4: 67 | W4: 8.1 | X4: 8.5 | Y4: 12.1 | Z4: 308.8 | AA4: 105.2 | AB4: 77.6 | AC4: 26 | AD4: 188 | AE4: 3.9 | AF4: 7.51 | AG4: 7.93 | AH4: 4 | AI4: 4 | AK4: 1 | AL4: Derrick Henry | AM4: TEN | AN4: 28 | AO4: RB | AP4: 16 | AQ4: 16 | AR4: 349 | AS4: 1538 | AT4: 13 | AU4: 65 | AV4: 56 | AW4: 4.4 | AX4: 96.1 | AY4: 6 | BA4: 2 | BB4: Tyreek Hill | BC4: MIA | BD4: 28 | BE4: WR | BF4: 17 | BG4: 17 | BH4: 170 | BI4: 119 | BJ4: 0.7 | BK4: 1710 | BL4: 14.4 | BM4: 7 | BN4: 77 | BO4: 64 | BP4: 10.1 | BQ4: 7 | BR4: 100.6 | BS4: 1 | BU4: 1 | BV4: Patrick Mahomes | BW4: KAN | BX4: 27 | BY4: QB | BZ4: 17 | CA4: 17 | CB4: 435 | CC4: 648 | CD4: 5250 | CE4: 8 | CF4: 33 | CG4: 0 | CH4: 33 | CI4: 0.054 | CJ4: 95 | CK4: 0.154 | CL4: 474 | CM4: 0.771 | CP4: Targets | CQ4: Tier | CS4: Carries | CT4: Targets | CU4: Tier | CW4: Targets | CX4: Tier | CZ4: Carries | DA4: Pass Att | DB4: Tier
A5: 2.5 | B5: 30 | E5: 2 | F5: Justin Herbert | G5: LAC | H5: 24 | I5: QB | J5: 17 | K5: 17 | L5: 2000-07-10 | M5: 477 | N5: 699 | O5: 68.2 | P5: 4739 | Q5: 25 | R5: 3.6 | S5: 10 | T5: 1.4 | U5: 228 | V5: 55 | W5: 6.8 | X5: 6.9 | Y5: 9.9 | Z5: 278.8 | AA5: 93.2 | AB5: 58.2 | AC5: 38 | AD5: 206 | AE5: 5.2 | AF5: 6.15 | AG5: 6.22 | AH5: 4 | AI5: 5 | AK5: 2 | AL5: Josh Jacobs | AM5: LVR | AN5: 24 | AO5: RB | AP5: 17 | AQ5: 17 | AR5: 340 | AS5: 1653 | AT5: 12 | AU5: 93 | AV5: 86 | AW5: 4.9 | AX5: 97.2 | AY5: 3 | BA5: 3 | BB5: Travis Kelce | BC5: KAN | BD5: 33 | BE5: TE | BF5: 17 | BG5: 17 | BH5: 152 | BI5: 110 | BJ5: 0.724 | BK5: 1338 | BL5: 12.2 | BM5: 12 | BN5: 78 | BO5: 52 | BP5: 8.8 | BQ5: 6.5 | BR5: 78.7 | BS5: 1 | BU5: 2 | BV5: Justin Herbert | BW5: LAC | BX5: 24 | BY5: QB | BZ5: 17 | CA5: 17 | CB5: 477 | CC5: 699 | CD5: 4739 | CE5: 23 | CF5: 25 | CG5: 2 | CH5: 39 | CI5: 0.058 | CJ5: 87 | CK5: 0.129 | CL5: 508 | CM5: 0.756 | CP5: 150 | CQ5: Elite WR | CS5: 300 | CT5: 0 | CU5: Elite RB | CW5: 100 | CX5: Top TE | CZ5: 100 | DA5: 0 | DB5: Top QB
A6: 3 | B6: 30 | E6: 3 | F6: Tom Brady | G6: TAM | H6: 45 | I6: QB | J6: 17 | K6: 17 | L6: 2000-09-08 | M6: 490 | N6: 733 | O6: 66.8 | P6: 4694 | Q6: 25 | R6: 3.4 | S6: 9 | T6: 1.2 | U6: 237 | V6: 63 | W6: 6.4 | X6: 6.5 | Y6: 9.6 | Z6: 276.1 | AA6: 90.7 | AB6: 52.5 | AC6: 22 | AD6: 160 | AE6: 2.9 | AF6: 6.01 | AG6: 6.13 | AH6: 4 | AI6: 5 | AK6: 3 | AL6: Nick Chubb | AM6: CLE | AN6: 27 | AO6: RB | AP6: 17 | AQ6: 17 | AR6: 302 | AS6: 1525 | AT6: 12 | AU6: 69 | AV6: 41 | AW6: 5 | AX6: 89.7 | AY6: 1 | BA6: 4 | BB6: Stefon Diggs | BC6: BUF | BD6: 29 | BE6: WR | BF6: 16 | BG6: 16 | BH6: 154 | BI6: 108 | BJ6: 0.701 | BK6: 1429 | BL6: 13.2 | BM6: 11 | BN6: 74 | BO6: 53 | BP6: 9.3 | BQ6: 6.8 | BR6: 89.3 | BS6: 1 | BU6: 3 | BV6: Tom Brady | BW6: TAM | BX6: 45 | BY6: QB | BZ6: 17 | CA6: 17 | CB6: 490 | CC6: 733 | CD6: 4694 | CE6: 11 | CF6: 22 | CG6: 4 | CH6: 32 | CI6: 0.045 | CJ6: 116 | CK6: 0.164 | CL6: 545 | CM6: 0.771 | CP6: 130 | CQ6: 2nd Tier WR1 | CS6: 200 | CT6: 100 | CU6: Elite RB | CW6: 80 | CX6: 2nd Tier TE1 | CZ6: 500 | DA6: 50 | DB6: Top QB
A7: 3.5 | B7: 30 | E7: 4 | F7: Kirk Cousins | G7: MIN | H7: 34 | I7: QB | J7: 17 | K7: 17 | L7: 2000-04-13 | M7: 424 | N7: 643 | O7: 65.9 | P7: 4547 | Q7: 29 | R7: 4.5 | S7: 14 | T7: 2.2 | U7: 230 | V7: 66 | W7: 7.1 | X7: 7 | Y7: 10.7 | Z7: 267.5 | AA7: 92.5 | AB7: 49.9 | AC7: 46 | AD7: 329 | AE7: 6.7 | AF7: 6.12 | AG7: 6.05 | AH7: 8 | AI7: 8 | AK7: 4 | AL7: Saquon Barkley | AM7: NYG | AN7: 25 | AO7: RB | AP7: 16 | AQ7: 16 | AR7: 295 | AS7: 1312 | AT7: 10 | AU7: 62 | AV7: 68 | AW7: 4.4 | AX7: 82 | AY7: 1 | BA7: 5 | BB7: Austin Ekeler | BC7: LAC | BD7: 27 | BE7: RB | BF7: 17 | BG7: 17 | BH7: 127 | BI7: 107 | BJ7: 0.843 | BK7: 722 | BL7: 6.7 | BM7: 5 | BN7: 36 | BO7: 23 | BP7: 5.7 | BQ7: 6.3 | BR7: 42.5 | BS7: 5 | BU7: 4 | BV7: Kirk Cousins | BW7: MIN | BX7: 34 | BY7: QB | BZ7: 17 | CA7: 17 | CB7: 424 | CC7: 643 | CD7: 4547 | CE7: 14 | CF7: 27 | CG7: 3 | CH7: 25 | CI7: 0.041 | CJ7: 93 | CK7: 0.152 | CL7: 469 | CM7: 0.765 | CP7: 110 | CQ7: Consistent WR2 | CS7: 250 | CT7: 60 | CU7: Elite RB | CZ7: 500 | DA7: 0 | DB7: 2nd Tier QB1
A8: 4 | B8: 30 | E8: 5 | F8: Joe Burrow | G8: CIN | H8: 26 | I8: QB | J8: 16 | K8: 16 | L8: 2000-04-12 | M8: 414 | N8: 606 | O8: 68.3 | P8: 4475 | Q8: 35 | R8: 5.8 | S8: 12 | T8: 2 | U8: 222 | V8: 60 | W8: 7.4 | X8: 7.6 | Y8: 10.8 | Z8: 279.7 | AA8: 100.8 | AB8: 58.7 | AC8: 41 | AD8: 259 | AE8: 6.3 | AF8: 6.52 | AG8: 6.76 | AH8: 3 | AI8: 4 | AK8: 5 | AL8: Najee Harris | AM8: PIT | AN8: 24 | AO8: RB | AP8: 17 | AQ8: 17 | AR8: 272 | AS8: 1034 | AT8: 7 | AU8: 45 | AV8: 36 | AW8: 3.8 | AX8: 60.8 | AY8: 3 | BA8: 6 | BB8: CeeDee Lamb | BC8: DAL | BD8: 23 | BE8: WR | BF8: 17 | BG8: 17 | BH8: 156 | BI8: 107 | BJ8: 0.686 | BK8: 1359 | BL8: 12.7 | BM8: 9 | BN8: 67 | BO8: 39 | BP8: 8.7 | BQ8: 6.3 | BR8: 79.9 | BS8: 0 | BU8: 5 | BV8: Joe Burrow | BW8: CIN | BX8: 26 | BY8: QB | BZ8: 16 | CA8: 16 | CB8: 414 | CC8: 606 | CD8: 4475 | CE8: 24 | CF8: 17 | CG8: 1 | CH8: 34 | CI8: 0.058 | CJ8: 76 | CK8: 0.129 | CL8: 465 | CM8: 0.791 | CS8: 200 | CT8: 60 | CU8: 2nd Tier RB1
A9: 4.5 | B9: 30 | E9: 6 | F9: Jared Goff | G9: DET | H9: 28 | I9: QB | J9: 17 | K9: 17 | L9: 2000-08-09 | M9: 382 | N9: 587 | O9: 65.1 | P9: 4438 | Q9: 29 | R9: 4.9 | S9: 7 | T9: 1.2 | U9: 227 | V9: 81 | W9: 7.6 | X9: 8 | Y9: 11.6 | Z9: 261.1 | AA9: 99.3 | AB9: 61.1 | AC9: 23 | AD9: 156 | AE9: 3.8 | AF9: 7.02 | AG9: 7.45 | AH9: 3 | AI9: 3 | AK9: 6 | AL9: Dalvin Cook | AM9: MIN | AN9: 27 | AO9: RB | AP9: 17 | AQ9: 17 | AR9: 264 | AS9: 1173 | AT9: 8 | AU9: 50 | AV9: 81 | AW9: 4.4 | AX9: 69 | AY9: 4 | BA9: 7 | BB9: Amon-Ra St. Brown | BC9: DET | BD9: 23 | BE9: WR | BF9: 16 | BG9: 16 | BH9: 146 | BI9: 106 | BJ9: 0.726 | BK9: 1161 | BL9: 11 | BM9: 6 | BN9: 68 | BO9: 49 | BP9: 8 | BQ9: 6.6 | BR9: 72.6 | BS9: 0 | BU9: 6 | BV9: Jared Goff | BW9: DET | BX9: 28 | BY9: QB | BZ9: 17 | CA9: 17 | CB9: 382 | CC9: 587 | CD9: 4438 | CE9: 11 | CF9: 27 | CG9: 1 | CH9: 34 | CI9: 0.061 | CJ9: 94 | CK9: 0.168 | CL9: 426 | CM9: 0.762 | CS9: 200 | CT9: 0 | CU9: Consistent RB2
A10: 5 | B10: 30 | E10: 7 | F10: Josh Allen | G10: BUF | H10: 26 | I10: QB | J10: 16 | K10: 16 | L10: 2000-03-13 | M10: 359 | N10: 567 | O10: 63.3 | P10: 4283 | Q10: 35 | R10: 6.2 | S10: 14 | T10: 2.5 | U10: 214 | V10: 98 | W10: 7.6 | X10: 7.7 | Y10: 11.9 | Z10: 267.7 | AA10: 96.6 | AB10: 71.4 | AC10: 33 | AD10: 162 | AE10: 5.5 | AF10: 6.87 | AG10: 6.99 | AH10: 3 | AI10: 4 | AK10: 7 | AL10: Jamaal Williams | AM10: DET | AN10: 27 | AO10: RB | AP10: 17 | AQ10: 9 | AR10: 262 | AS10: 1066 | AT10: 17 | AU10: 65 | AV10: 58 | AW10: 4.1 | AX10: 62.7 | AY10: 3 | BA10: 8 | BB10: Chris Godwin | BC10: TAM | BD10: 26 | BE10: WR | BF10: 15 | BG10: 13 | BH10: 142 | BI10: 104 | BJ10: 0.732 | BK10: 1023 | BL10: 9.8 | BM10: 3 | BN10: 53 | BO10: 44 | BP10: 7.2 | BQ10: 6.9 | BR10: 68.2 | BS10: 2 | BU10: 7 | BV10: Josh Allen | BW10: BUF | BX10: 26 | BY10: QB | BZ10: 16 | CA10: 16 | CB10: 359 | CC10: 567 | CD10: 4283 | CE10: 14 | CF10: 18 | CG10: 1 | CH10: 37 | CI10: 0.068 | CJ10: 91 | CK10: 0.166 | CL10: 404 | CM10: 0.737 | CS10: 0 | CT10: 50 | CU10: Consistent RB2
A11: 5.5 | B11: 30 | E11: 8 | F11: Geno Smith | G11: SEA | H11: 32 | I11: QB | J11: 17 | K11: 17 | L11: 2000-08-09 | M11: 399 | N11: 572 | O11: 69.8 | P11: 4282 | Q11: 30 | R11: 5.2 | S11: 11 | T11: 1.9 | U11: 206 | V11: 54 | W11: 7.5 | X11: 7.7 | Y11: 10.7 | Z11: 251.9 | AA11: 100.9 | AB11: 60.8 | AC11: 46 | AD11: 348 | AE11: 7.4 | AF11: 6.37 | AG11: 6.54 | AH11: 2 | AI11: 3 | AK11: 8 | AL11: Miles Sanders | AM11: PHI | AN11: 25 | AO11: RB | AP11: 17 | AQ11: 15 | AR11: 259 | AS11: 1269 | AT11: 11 | AU11: 62 | AV11: 40 | AW11: 4.9 | AX11: 74.6 | AY11: 2 | BA11: 9 | BB11: Davante Adams | BC11: LVR | BD11: 30 | BE11: WR | BF11: 17 | BG11: 17 | BH11: 180 | BI11: 100 | BJ11: 0.556 | BK11: 1516 | BL11: 15.2 | BM11: 14 | BN11: 65 | BO11: 60 | BP11: 8.4 | BQ11: 5.9 | BR11: 89.2 | BS11: 1 | BU11: 8 | BV11: Geno Smith | BW11: SEA | BX11: 32 | BY11: QB | BZ11: 17 | CA11: 17 | CB11: 399 | CC11: 572 | CD11: 4282 | CE11: 11 | CF11: 20 | CG11: 1 | CH11: 18 | CI11: 0.033 | CJ11: 65 | CK11: 0.118 | CL11: 434 | CM11: 0.788
A12: 6 | B12: 30 | E12: 9 | F12: Trevor Lawrence | G12: JAX | H12: 23 | I12: QB | J12: 17 | K12: 17 | L12: 2000-08-09 | M12: 387 | N12: 584 | O12: 66.3 | P12: 4113 | Q12: 25 | R12: 4.3 | S12: 8 | T12: 1.4 | U12: 206 | V12: 59 | W12: 7 | X12: 7.3 | Y12: 10.6 | Z12: 241.9 | AA12: 95.2 | AB12: 54.5 | AC12: 27 | AD12: 184 | AE12: 4.4 | AF12: 6.43 | AG12: 6.66 | AH12: 3 | AI12: 2 | AK12: 9 | AL12: Christian McCaffrey | AM12: 2TM | AN12: 26 | AO12: RB | AP12: 17 | AQ12: 16 | AR12: 244 | AS12: 1139 | AT12: 8 | AU12: 59 | AV12: 49 | AW12: 4.7 | AX12: 67 | AY12: 1 | BA12: 10 | BB12: Michael Pittman Jr. | BC12: IND | BD12: 25 | BE12: WR | BF12: 16 | BG12: 16 | BH12: 141 | BI12: 99 | BJ12: 0.702 | BK12: 925 | BL12: 9.3 | BM12: 4 | BN12: 51 | BO12: 28 | BP12: 6.6 | BQ12: 6.2 | BR12: 57.8 | BS12: 2 | BU12: 9 | BV12: Trevor Lawrence | BW12: JAX | BX12: 23 | BY12: QB | BZ12: 17 | CA12: 17 | CB12: 387 | CC12: 584 | CD12: 4113 | CE12: 17 | CF12: 16 | CG12: 2 | CH12: 40 | CI12: 0.071 | CJ12: 85 | CK12: 0.15 | CL12: 431 | CM12: 0.761
A13: 6.5 | B13: 30 | E13: 10 | F13: Jalen Hurts | G13: PHI | H13: 24 | I13: QB | J13: 15 | K13: 15 | L13: 2000-01-14 | M13: 306 | N13: 460 | O13: 66.5 | P13: 3701 | Q13: 22 | R13: 4.8 | S13: 6 | T13: 1.3 | U13: 165 | V13: 68 | W13: 8 | X13: 8.4 | Y13: 12.1 | Z13: 246.7 | AA13: 101.5 | AB13: 66.4 | AC13: 38 | AD13: 231 | AE13: 7.6 | AF13: 6.97 | AG13: 7.31 | AH13: 1 | AI13: 2 | AK13: 10 | AL13: Ezekiel Elliott | AM13: DAL | AN13: 27 | AO13: RB | AP13: 15 | AQ13: 14 | AR13: 231 | AS13: 876 | AT13: 12 | AU13: 52 | AV13: 27 | AW13: 3.8 | AX13: 58.4 | AY13: 0 | BA13: 11 | BB13: DeVonta Smith | BC13: PHI | BD13: 24 | BE13: WR | BF13: 17 | BG13: 17 | BH13: 136 | BI13: 95 | BJ13: 0.699 | BK13: 1196 | BL13: 12.6 | BM13: 7 | BN13: 57 | BO13: 45 | BP13: 8.8 | BQ13: 5.6 | BR13: 70.4 | BS13: 1 | BU13: 10 | BV13: Jalen Hurts | BW13: PHI | BX13: 24 | BY13: QB | BZ13: 15 | CA13: 15 | CB13: 306 | CC13: 460 | CD13: 3701 | CE13: 13 | CF13: 23 | CG13: 0 | CH13: 22 | CI13: 0.05 | CJ13: 62 | CK13: 0.142 | CL13: 340 | CM13: 0.778
A14: 7 | B14: 35 | E14: 11 | F14: Aaron Rodgers | G14: GNB | H14: 39 | I14: QB | J14: 17 | K14: 17 | L14: 2000-09-08 | M14: 350 | N14: 542 | O14: 64.6 | P14: 3695 | Q14: 26 | R14: 4.8 | S14: 12 | T14: 2.2 | U14: 177 | V14: 58 | W14: 6.8 | X14: 6.8 | Y14: 10.6 | Z14: 217.4 | AA14: 91.1 | AB14: 39.3 | AC14: 32 | AD14: 258 | AE14: 5.6 | AF14: 5.99 | AG14: 5.95 | AH14: 3 | AI14: 4 | AK14: 11 | AL14: Kenneth Walker III | AM14: SEA | AN14: 22 | AO14: RB | AP14: 15 | AQ14: 11 | AR14: 228 | AS14: 1050 | AT14: 9 | AU14: 51 | AV14: 74 | AW14: 4.6 | AX14: 70 | AY14: 0 | BA14: 12 | BB14: D.K. Metcalf | BC14: SEA | BD14: 25 | BE14: WR | BF14: 17 | BG14: 17 | BH14: 141 | BI14: 90 | BJ14: 0.638 | BK14: 1048 | BL14: 11.6 | BM14: 6 | BN14: 47 | BO14: 54 | BP14: 7.4 | BQ14: 5.3 | BR14: 61.6 | BS14: 2 | BU14: 11 | BV14: Aaron Rodgers | BW14: GNB | BX14: 39 | BY14: QB | BZ14: 17 | CA14: 17 | CB14: 350 | CC14: 542 | CD14: 3695 | CE14: 8 | CF14: 25 | CG14: 2 | CH14: 40 | CI14: 0.078 | CJ14: 76 | CK14: 0.148 | CL14: 415 | CM14: 0.806
A15: 7.5 | B15: 35 | E15: 12 | F15: Tua Tagovailoa | G15: MIA | H15: 24 | I15: QB | J15: 13 | K15: 13 | L15: 2000-05-08 | M15: 259 | N15: 400 | O15: 64.8 | P15: 3548 | Q15: 25 | R15: 6.3 | S15: 8 | T15: 2 | U15: 162 | V15: 84 | W15: 8.9 | X15: 9.2 | Y15: 13.7 | Z15: 272.9 | AA15: 105.5 | AB15: 68.8 | AC15: 21 | AD15: 163 | AE15: 5 | AF15: 8.04 | AG15: 8.37 | AH15: 2 | AI15: 2 | AK15: 12 | AL15: Alvin Kamara | AM15: NOR | AN15: 27 | AO15: RB | AP15: 15 | AQ15: 13 | AR15: 223 | AS15: 897 | AT15: 2 | AU15: 40 | AV15: 27 | AW15: 4 | AX15: 59.8 | AY15: 4 | BA15: 13 | BB15: A.J. Brown | BC15: PHI | BD15: 25 | BE15: WR | BF15: 17 | BG15: 16 | BH15: 145 | BI15: 88 | BJ15: 0.607 | BK15: 1496 | BL15: 17 | BM15: 11 | BN15: 59 | BO15: 78 | BP15: 10.3 | BQ15: 5.2 | BR15: 88 | BS15: 2 | BU15: 12 | BV15: Tua Tagovailoa | BW15: MIA | BX15: 24 | BY15: QB | BZ15: 13 | CA15: 13 | CB15: 259 | CC15: 400 | CD15: 3548 | CE15: 6 | CF15: 13 | CG15: 1 | CH15: 26 | CI15: 0.067 | CJ15: 61 | CK15: 0.158 | CL15: 296 | CM15: 0.767
A16: 8 | B16: 35 | E16: 13 | F16: Russell Wilson | G16: DEN | H16: 34 | I16: QB | J16: 15 | K16: 15 | L16: 2000-11-04 | M16: 292 | N16: 483 | O16: 60.5 | P16: 3524 | Q16: 16 | R16: 3.3 | S16: 11 | T16: 2.3 | U16: 142 | V16: 67 | W16: 7.3 | X16: 6.9 | Y16: 12.1 | Z16: 234.9 | AA16: 84.4 | AB16: 36.7 | AC16: 55 | AD16: 368 | AE16: 10.2 | AF16: 5.87 | AG16: 5.54 | AH16: 3 | AI16: 3 | AK16: 13 | AL16: Travis Etienne | AM16: JAX | AN16: 23 | AO16: RB | AP16: 17 | AQ16: 12 | AR16: 220 | AS16: 1125 | AT16: 5 | AU16: 52 | AV16: 62 | AW16: 5.1 | AX16: 66.2 | AY16: 5 | BA16: 14 | BB16: Ja'Marr Chase | BC16: CIN | BD16: 22 | BE16: WR | BF16: 12 | BG16: 12 | BH16: 134 | BI16: 87 | BJ16: 0.649 | BK16: 1046 | BL16: 12 | BM16: 9 | BN16: 58 | BO16: 60 | BP16: 7.8 | BQ16: 7.3 | BR16: 87.2 | BS16: 2 | BU16: 13 | BV16: Russell Wilson | BW16: DEN | BX16: 34 | BY16: QB | BZ16: 15 | CA16: 15 | CB16: 292 | CC16: 483 | CD16: 3524 | CE16: 19 | CF16: 32 | CG16: 1 | CH16: 30 | CI16: 0.067 | CJ16: 70 | CK16: 0.156 | CL16: 330 | CM16: 0.733
A17: 8.5 | B17: 35 | E17: 14 | F17: Derek Carr | G17: LVR | H17: 31 | I17: QB | J17: 15 | K17: 15 | L17: 2000-09-06 | M17: 305 | N17: 502 | O17: 60.8 | P17: 3522 | Q17: 24 | R17: 4.8 | S17: 14 | T17: 2.8 | U17: 161 | V17: 60 | W17: 7 | X17: 6.7 | Y17: 11.5 | Z17: 234.8 | AA17: 86.3 | AB17: 55.5 | AC17: 27 | AD17: 191 | AE17: 5.1 | AF17: 6.3 | AG17: 6.01 | AH17: 4 | AI17: 3 | AK17: 14 | AL17: Dameon Pierce | AM17: HOU | AN17: 22 | AO17: RB | AP17: 13 | AQ17: 13 | AR17: 220 | AS17: 939 | AT17: 4 | AU17: 54 | AV17: 75 | AW17: 4.3 | AX17: 72.2 | AY17: 4 | BA17: 15 | BB17: T.J. Hockenson | BC17: 2TM | BD17: 25 | BE17: TE | BF17: 17 | BG17: 14 | BH17: 129 | BI17: 86 | BJ17: 0.667 | BK17: 914 | BL17: 10.6 | BM17: 6 | BN17: 44 | BO17: 81 | BP17: 7.1 | BQ17: 5.1 | BR17: 53.8 | BS17: 1 | BU17: 14 | BV17: Derek Carr | BW17: LVR | BX17: 31 | BY17: QB | BZ17: 15 | CA17: 15 | CB17: 305 | CC17: 502 | CD17: 3522 | CE17: 11 | CF17: 27 | CG17: 0 | CH17: 25 | CI17: 0.053 | CJ17: 95 | CK17: 0.2 | CL17: 341 | CM17: 0.718
A18: 9 | B18: 40 | E18: 15 | F18: Daniel Jones | G18: NYG | H18: 25 | I18: QB | J18: 16 | K18: 16 | L18: 2001-06-09 | M18: 317 | N18: 472 | O18: 67.2 | P18: 3205 | Q18: 15 | R18: 3.2 | S18: 5 | T18: 1.1 | U18: 156 | V18: 65 | W18: 6.8 | X18: 6.9 | Y18: 10.1 | Z18: 200.3 | AA18: 92.5 | AB18: 60.8 | AC18: 44 | AD18: 243 | AE18: 8.5 | AF18: 5.74 | AG18: 5.89 | AH18: 4 | AI18: 5 | AK18: 15 | AL18: Aaron Jones | AM18: GNB | AN18: 28 | AO18: RB | AP18: 17 | AQ18: 17 | AR18: 213 | AS18: 1121 | AT18: 2 | AU18: 54 | AV18: 36 | AW18: 5.3 | AX18: 65.9 | AY18: 5 | BA18: 16 | BB18: Diontae Johnson | BC18: PIT | BD18: 26 | BE18: WR | BF18: 17 | BG18: 17 | BH18: 147 | BI18: 86 | BJ18: 0.585 | BK18: 882 | BL18: 10.3 | BM18: 0 | BN18: 45 | BO18: 37 | BP18: 6 | BQ18: 5.1 | BR18: 51.9 | BS18: 1 | BU18: 15 | BV18: Daniel Jones | BW18: NYG | BX18: 25 | BY18: QB | BZ18: 16 | CA18: 16 | CB18: 317 | CC18: 472 | CD18: 3205 | CE18: 11 | CF18: 24 | CG18: 5 | CH18: 29 | CI18: 0.065 | CJ18: 54 | CK18: 0.122 | CL18: 359 | CM18: 0.81
A19: 9.5 | B19: 40 | E19: 16 | F19: Davis Mills | G19: HOU | H19: 24 | I19: QB | J19: 15 | K19: 15 | L19: 2001-10-03 | M19: 292 | N19: 479 | O19: 61 | P19: 3118 | Q19: 17 | R19: 3.5 | S19: 15 | T19: 3.1 | U19: 135 | V19: 58 | W19: 6.5 | X19: 5.8 | Y19: 10.7 | Z19: 207.9 | AA19: 78.8 | AB19: 33.1 | AC19: 31 | AD19: 244 | AE19: 6.1 | AF19: 5.64 | AG19: 4.98 | AH19: 2 | AI19: 3 | AK19: 16 | AL19: Tyler Allgeier | AM19: ATL | AN19: 22 | AO19: RB | AP19: 16 | AQ19: 7 | AR19: 210 | AS19: 1035 | AT19: 3 | AU19: 53 | AV19: 44 | AW19: 4.9 | AX19: 64.7 | AY19: 0 | BA19: 17 | BB19: Christian McCaffrey | BC19: 2TM | BD19: 26 | BE19: RB | BF19: 17 | BG19: 16 | BH19: 108 | BI19: 85 | BJ19: 0.787 | BK19: 741 | BL19: 8.7 | BM19: 5 | BN19: 36 | BO19: 49 | BP19: 6.9 | BQ19: 5 | BR19: 43.6 | BS19: 1 | BU19: 16 | BV19: Davis Mills | BW19: HOU | BX19: 24 | BY19: QB | BZ19: 15 | CA19: 15 | CB19: 292 | CC19: 479 | CD19: 3118 | CE19: 13 | CF19: 12 | CG19: 1 | CH19: 18 | CI19: 0.039 | CJ19: 108 | CK19: 0.232 | CL19: 329 | CM19: 0.706
A20: 10 | B20: 40 | E20: 17 | F20: Matt Ryan | G20: IND | H20: 37 | I20: QB | J20: 12 | K20: 12 | L20: 2001-07-04 | M20: 309 | N20: 461 | O20: 67 | P20: 3057 | Q20: 14 | R20: 3 | S20: 13 | T20: 2.8 | U20: 156 | V20: 45 | W20: 6.6 | X20: 6 | Y20: 9.9 | Z20: 254.8 | AA20: 83.9 | AB20: 42.9 | AC20: 38 | AD20: 287 | AE20: 7.6 | AF20: 5.55 | AG20: 4.94 | AH20: 5 | AI20: 4 | AK20: 17 | AL20: Joe Mixon | AM20: CIN | AN20: 26 | AO20: RB | AP20: 14 | AQ20: 14 | AR20: 210 | AS20: 814 | AT20: 7 | AU20: 47 | AV20: 40 | AW20: 3.9 | AX20: 58.1 | AY20: 0 | BA20: 18 | BB20: Christian Kirk | BC20: JAX | BD20: 26 | BE20: WR | BF20: 17 | BG20: 17 | BH20: 133 | BI20: 84 | BJ20: 0.632 | BK20: 1108 | BL20: 13.2 | BM20: 8 | BN20: 55 | BO20: 49 | BP20: 8.3 | BQ20: 4.9 | BR20: 65.2 | BS20: 1 | BU20: 17 | BV20: Matt Ryan | BW20: IND | BX20: 37 | BY20: QB | BZ20: 12 | CA20: 12 | CB20: 309 | CC20: 461 | CD20: 3057 | CE20: 12 | CF20: 17 | CG20: 1 | CH20: 19 | CI20: 0.043 | CJ20: 60 | CK20: 0.135 | CL20: 340 | CM20: 0.767
A21: 10.5 | B21: 40 | E21: 18 | F21: Mac Jones | G21: NWE | H21: 24 | I21: QB | J21: 14 | K21: 14 | L21: 2000-08-06 | M21: 288 | N21: 442 | O21: 65.2 | P21: 2997 | Q21: 14 | R21: 3.2 | S21: 11 | T21: 2.5 | U21: 127 | V21: 48 | W21: 6.8 | X21: 6.3 | Y21: 10.4 | Z21: 214.1 | AA21: 84.8 | AB21: 36.2 | AC21: 34 | AD21: 231 | AE21: 7.1 | AF21: 5.81 | AG21: 5.36 | AH21: 0 | AI21: 0 | AK21: 18 | AL21: Rhamondre Stevenson | AM21: NWE | AN21: 24 | AO21: RB | AP21: 17 | AQ21: 7 | AR21: 210 | AS21: 1040 | AT21: 5 | AU21: 49 | AV21: 49 | AW21: 5 | AX21: 61.2 | AY21: 4 | BA21: 19 | BB21: Tyler Lockett | BC21: SEA | BD21: 30 | BE21: WR | BF21: 16 | BG21: 16 | BH21: 117 | BI21: 84 | BJ21: 0.718 | BK21: 1033 | BL21: 12.3 | BM21: 9 | BN21: 50 | BO21: 40 | BP21: 8.8 | BQ21: 5.3 | BR21: 64.6 | BS21: 2 | BU21: 18 | BV21: Mac Jones | BW21: NWE | BX21: 24 | BY21: QB | BZ21: 14 | CA21: 14 | CB21: 288 | CC21: 442 | CD21: 2997 | CE21: 8 | CF21: 16 | CG21: 2 | CH21: 28 | CI21: 0.066 | CJ21: 57 | CK21: 0.134 | CL21: 318 | CM21: 0.75
A22: 11 | B22: 50 | E22: 19 | F22: Andy Dalton | G22: NOR | H22: 35 | I22: QB | J22: 14 | K22: 14 | L22: 2000-08-06 | M22: 252 | N22: 378 | O22: 66.7 | P22: 2871 | Q22: 18 | R22: 4.8 | S22: 9 | T22: 2.4 | U22: 135 | V22: 64 | W22: 7.6 | X22: 7.5 | Y22: 11.4 | Z22: 205.1 | AA22: 95.2 | AB22: 50.7 | AC22: 25 | AD22: 189 | AE22: 6.2 | AF22: 6.66 | AG22: 6.54 | AH22: 1 | AI22: 1 | AK22: 19 | AL22: Brian Robinson Jr. | AM22: WAS | AN22: 23 | AO22: RB | AP22: 12 | AQ22: 9 | AR22: 205 | AS22: 797 | AT22: 2 | AU22: 49 | AV22: 24 | AW22: 3.9 | AX22: 66.4 | AY22: 2 | BA22: 20 | BB22: Garrett Wilson | BC22: NYJ | BD22: 22 | BE22: WR | BF22: 17 | BG22: 12 | BH22: 147 | BI22: 83 | BJ22: 0.565 | BK22: 1103 | BL22: 13.3 | BM22: 4 | BN22: 56 | BO22: 60 | BP22: 7.5 | BQ22: 4.9 | BR22: 64.9 | BS22: 2 | BU22: 19 | BV22: Andy Dalton | BW22: NOR | BX22: 35 | BY22: QB | BZ22: 14 | CA22: 14 | CB22: 252 | CC22: 378 | CD22: 2871 | CE22: 10 | CF22: 14 | CG22: 0 | CH22: 25 | CI22: 0.069 | CJ22: 45 | CK22: 0.124 | CL22: 284 | CM22: 0.78
A23: 11.5 | B23: 50 | E23: 20 | F23: Dak Prescott | G23: DAL | H23: 29 | I23: QB | J23: 12 | K23: 12 | L23: 2000-04-08 | M23: 261 | N23: 394 | O23: 66.2 | P23: 2860 | Q23: 23 | R23: 5.8 | S23: 15 | T23: 3.8 | U23: 142 | V23: 68 | W23: 7.3 | X23: 6.7 | Y23: 11 | Z23: 238.3 | AA23: 91.1 | AB23: 57.9 | AC23: 20 | AD23: 126 | AE23: 4.8 | AF23: 6.6 | AG23: 6.08 | AH23: 2 | AI23: 2 | AK23: 20 | AL23: Austin Ekeler | AM23: LAC | AN23: 27 | AO23: RB | AP23: 17 | AQ23: 17 | AR23: 204 | AS23: 915 | AT23: 13 | AU23: 46 | AV23: 72 | AW23: 4.5 | AX23: 53.8 | AY23: 5 | BA23: 21 | BB23: Zay Jones | BC23: JAX | BD23: 27 | BE23: WR | BF23: 16 | BG23: 15 | BH23: 121 | BI23: 82 | BJ23: 0.678 | BK23: 823 | BL23: 10 | BM23: 5 | BN23: 44 | BO23: 59 | BP23: 6.8 | BQ23: 5.1 | BR23: 51.4 | BS23: 0 | BU23: 20 | BV23: Dak Prescott | BW23: DAL | BX23: 29 | BY23: QB | BZ23: 12 | CA23: 12 | CB23: 261 | CC23: 394 | CD23: 2860 | CE23: 4 | CF23: 6 | CG23: 0 | CH23: 24 | CI23: 0.062 | CJ23: 67 | CK23: 0.173 | CL23: 296 | CM23: 0.763
A24: 12 | B24: 50 | E24: 21 | F24: Jacoby Brissett | G24: CLE | H24: 30 | I24: QB | J24: 16 | K24: 11 | L24: 2000-07-04 | M24: 236 | N24: 369 | O24: 64 | P24: 2608 | Q24: 12 | R24: 3.3 | S24: 6 | T24: 1.6 | U24: 129 | V24: 55 | W24: 7.1 | X24: 7 | Y24: 11.1 | Z24: 163 | AA24: 88.9 | AB24: 60 | AC24: 24 | AD24: 160 | AE24: 6.1 | AF24: 6.23 | AG24: 6.15 | AH24: 2 | AI24: 2 | AK24: 21 | AL24: D'Onta Foreman | AM24: CAR | AN24: 26 | AO24: RB | AP24: 17 | AQ24: 9 | AR24: 203 | AS24: 914 | AT24: 5 | AU24: 45 | AV24: 60 | AW24: 4.5 | AX24: 53.8 | AY24: 1 | BA24: 22 | BB24: Brandon Aiyuk | BC24: SFO | BD24: 24 | BE24: WR | BF24: 17 | BG24: 17 | BH24: 114 | BI24: 78 | BJ24: 0.684 | BK24: 1015 | BL24: 13 | BM24: 8 | BN24: 47 | BO24: 54 | BP24: 8.9 | BQ24: 4.6 | BR24: 59.7 | BS24: 1 | BU24: 21 | BV24: Jacoby Brissett | BW24: CLE | BX24: 30 | BY24: QB | BZ24: 16 | CA24: 11 | CB24: 236 | CC24: 369 | CD24: 2608 | CE24: 5 | CF24: 16 | CG24: 3 | CH24: 25 | CI24: 0.071 | CJ24: 48 | CK24: 0.137 | CL24: 265 | CM24: 0.757
A25: 12.5 | B25: 50 | E25: 22 | F25: Ryan Tannehill | G25: TEN | H25: 34 | I25: QB | J25: 12 | K25: 12 | L25: 2000-06-06 | M25: 212 | N25: 325 | O25: 65.2 | P25: 2536 | Q25: 13 | R25: 4 | S25: 6 | T25: 1.8 | U25: 116 | V25: 69 | W25: 7.8 | X25: 7.8 | Y25: 12 | Z25: 211.3 | AA25: 94.6 | AB25: 49.1 | AC25: 33 | AD25: 238 | AE25: 9.2 | AF25: 6.42 | AG25: 6.39 | AK25: 22 | AL25: David Montgomery | AM25: CHI | AN25: 25 | AO25: RB | AP25: 16 | AQ25: 16 | AR25: 201 | AS25: 801 | AT25: 5 | AU25: 41 | AV25: 28 | AW25: 4 | AX25: 50.1 | AY25: 2 | BA25: 23 | BB25: Amari Cooper | BC25: CLE | BD25: 28 | BE25: WR | BF25: 17 | BG25: 17 | BH25: 132 | BI25: 78 | BJ25: 0.591 | BK25: 1160 | BL25: 14.9 | BM25: 9 | BN25: 61 | BO25: 55 | BP25: 8.8 | BQ25: 4.6 | BR25: 68.2 | BS25: 0 | BU25: 22 | BV25: Ryan Tannehill | BW25: TEN | BX25: 34 | BY25: QB | BZ25: 12 | CA25: 12 | CB25: 212 | CC25: 325 | CD25: 2536 | CE25: 11 | CF25: 7 | CG25: 1 | CH25: 20 | CI25: 0.063 | CJ25: 38 | CK25: 0.12 | CL25: 235 | CM25: 0.741
A26: 13 | B26: 50 | E26: 23 | F26: Jimmy Garoppolo | G26: SFO | H26: 31 | I26: QB | J26: 11 | K26: 10 | L26: 2000-03-07 | M26: 207 | N26: 308 | O26: 67.2 | P26: 2437 | Q26: 16 | R26: 5.2 | S26: 4 | T26: 1.3 | U26: 114 | V26: 57 | W26: 7.9 | X26: 8.4 | Y26: 11.8 | Z26: 221.5 | AA26: 103 | AB26: 54.3 | AC26: 18 | AD26: 100 | AE26: 5.5 | AF26: 7.17 | AG26: 7.6 | AH26: 1 | AI26: 1 | AK26: 23 | AL26: Tony Pollard | AM26: DAL | AN26: 25 | AO26: RB | AP26: 16 | AQ26: 4 | AR26: 193 | AS26: 1007 | AT26: 9 | AU26: 46 | AV26: 57 | AW26: 5.2 | AX26: 62.9 | AY26: 0 | BA26: 24 | BB26: JuJu Smith-Schuster | BC26: KAN | BD26: 26 | BE26: WR | BF26: 16 | BG26: 14 | BH26: 101 | BI26: 78 | BJ26: 0.772 | BK26: 933 | BL26: 12 | BM26: 3 | BN26: 47 | BO26: 53 | BP26: 9.2 | BQ26: 4.9 | BR26: 58.3 | BS26: 3 | BU26: 23 | BV26: Jimmy Garoppolo | BW26: SFO | BX26: 31 | BY26: QB | BZ26: 11 | CA26: 10 | CB26: 207 | CC26: 308 | CD26: 2437 | CE26: 10 | CF26: 2 | CG26: 0 | CH26: 21 | CI26: 0.069 | CJ26: 39 | CK26: 0.127 | CL26: 228 | CM26: 0.745
A27: 13.5 | B27: 50 | E27: 24 | F27: Kenny Pickett | G27: PIT | H27: 24 | I27: QB | J27: 13 | K27: 12 | L27: 2000-05-07 | M27: 245 | N27: 389 | O27: 63 | P27: 2404 | Q27: 7 | R27: 1.8 | S27: 9 | T27: 2.3 | U27: 123 | V27: 57 | W27: 6.2 | X27: 5.5 | Y27: 9.8 | Z27: 184.9 | AA27: 76.7 | AB27: 51.5 | AC27: 27 | AD27: 182 | AE27: 6.5 | AF27: 5.34 | AG27: 4.7 | AH27: 3 | AI27: 4 | AK27: 24 | AL27: Jonathan Taylor | AM27: IND | AN27: 23 | AO27: RB | AP27: 11 | AQ27: 11 | AR27: 192 | AS27: 861 | AT27: 4 | AU27: 39 | AV27: 66 | AW27: 4.5 | AX27: 78.3 | AY27: 3 | BA27: 25 | BB27: Mike Evans | BC27: TAM | BD27: 29 | BE27: WR | BF27: 15 | BG27: 15 | BH27: 127 | BI27: 77 | BJ27: 0.606 | BK27: 1124 | BL27: 14.6 | BM27: 6 | BN27: 53 | BO27: 63 | BP27: 8.9 | BQ27: 5.1 | BR27: 74.9 | BS27: 0 | BU27: 24 | BV27: Kenny Pickett | BW27: PIT | BX27: 24 | BY27: QB | BZ27: 13 | CA27: 12 | CB27: 245 | CC27: 389 | CD27: 2404 | CE27: 8 | CF27: 19 | CG27: 1 | CH27: 16 | CI27: 0.043 | CJ27: 67 | CK27: 0.182 | CL27: 266 | CM27: 0.721
A28: 14 | B28: 50 | E28: 25 | F28: Kyler Murray | G28: ARI | H28: 25 | I28: QB | J28: 11 | K28: 11 | L28: 2000-08-03 | M28: 259 | N28: 390 | O28: 66.4 | P28: 2368 | Q28: 14 | R28: 3.6 | S28: 7 | T28: 1.8 | U28: 119 | V28: 38 | W28: 6.1 | X28: 6 | Y28: 9.1 | Z28: 215.3 | AA28: 87.2 | AB28: 51.5 | AC28: 25 | AD28: 192 | AE28: 6 | AF28: 5.24 | AG28: 5.16 | AH28: 1 | AI28: 1 | AK28: 25 | AL28: Leonard Fournette | AM28: TAM | AN28: 27 | AO28: RB | AP28: 16 | AQ28: 9 | AR28: 189 | AS28: 668 | AT28: 3 | AU28: 39 | AV28: 23 | AW28: 3.5 | AX28: 41.8 | AY28: 0 | BA28: 26 | BB28: Terry McLaurin | BC28: WAS | BD28: 27 | BE28: WR | BF28: 17 | BG28: 17 | BH28: 120 | BI28: 77 | BJ28: 0.642 | BK28: 1191 | BL28: 15.5 | BM28: 5 | BN28: 56 | BO28: 52 | BP28: 9.9 | BQ28: 4.5 | BR28: 70.1 | BS28: 1 | BU28: 25 | BV28: Kyler Murray | BW28: ARI | BX28: 25 | BY28: QB | BZ28: 11 | CA28: 11 | CB28: 259 | CC28: 390 | CD28: 2368 | CE28: 9 | CF28: 16 | CG28: 3 | CH28: 22 | CI28: 0.059 | CJ28: 44 | CK28: 0.119 | CL28: 289 | CM28: 0.779
A29: 14.5 | B29: 50 | E29: 26 | F29: Justin Fields | G29: CHI | H29: 23 | I29: QB | J29: 15 | K29: 15 | L29: 2000-12-03 | M29: 192 | N29: 318 | O29: 60.4 | P29: 2242 | Q29: 17 | R29: 5.3 | S29: 11 | T29: 3.5 | U29: 91 | V29: 56 | W29: 7.1 | X29: 6.6 | Y29: 11.7 | Z29: 149.5 | AA29: 85.2 | AB29: 54 | AC29: 55 | AD29: 359 | AE29: 14.7 | AF29: 5.05 | AG29: 4.63 | AH29: 1 | AI29: 2 | AK29: 26 | AL29: Cam Akers | AM29: LAR | AN29: 23 | AO29: RB | AP29: 15 | AQ29: 9 | AR29: 188 | AS29: 786 | AT29: 7 | AU29: 39 | AV29: 42 | AW29: 4.2 | AX29: 52.4 | AY29: 2 | BA29: 27 | BB29: Cooper Kupp | BC29: LAR | BD29: 29 | BE29: WR | BF29: 9 | BG29: 9 | BH29: 98 | BI29: 75 | BJ29: 0.765 | BK29: 812 | BL29: 10.8 | BM29: 6 | BN29: 42 | BO29: 75 | BP29: 8.3 | BQ29: 8.3 | BR29: 90.2 | BS29: 2 | BU29: 26 | BV29: Justin Fields | BW29: CHI | BX29: 23 | BY29: QB | BZ29: 15 | CA29: 15 | CB29: 192 | CC29: 318 | CD29: 2242 | CE29: 12 | CF29: 13 | CG29: 0 | CH29: 16 | CI29: 0.052 | CJ29: 59 | CK29: 0.193 | CL29: 217 | CM29: 0.711
A30: 15 | B30: 50 | E30: 27 | F30: Lamar Jackson | G30: BAL | H30: 25 | I30: QB | J30: 12 | K30: 12 | L30: 2000-04-08 | M30: 203 | N30: 326 | O30: 62.3 | P30: 2242 | Q30: 17 | R30: 5.2 | S30: 7 | T30: 2.1 | U30: 105 | V30: 75 | W30: 6.9 | X30: 7 | Y30: 11 | Z30: 186.8 | AA30: 91.1 | AB30: 59.1 | AC30: 26 | AD30: 114 | AE30: 7.4 | AF30: 6.05 | AG30: 6.12 | AH30: 1 | AI30: 2 | AK30: 27 | AL30: AJ Dillon | AM30: GNB | AN30: 24 | AO30: RB | AP30: 17 | AQ30: 3 | AR30: 186 | AS30: 770 | AT30: 7 | AU30: 47 | AV30: 27 | AW30: 4.1 | AX30: 45.3 | AY30: 1 | BA30: 28 | BB30: Jaylen Waddle | BC30: MIA | BD30: 24 | BE30: WR | BF30: 17 | BG30: 17 | BH30: 117 | BI30: 75 | BJ30: 0.641 | BK30: 1356 | BL30: 18.1 | BM30: 8 | BN30: 60 | BO30: 84 | BP30: 11.6 | BQ30: 4.4 | BR30: 79.8 | BS30: 1 | BU30: 27 | BV30: Lamar Jackson | BW30: BAL | BX30: 25 | BY30: QB | BZ30: 12 | CA30: 12 | CB30: 203 | CC30: 326 | CD30: 2242 | CE30: 8 | CF30: 16 | CG30: 1 | CH30: 26 | CI30: 0.084 | CJ30: 56 | CK30: 0.181 | CL30: 233 | CM30: 0.754
A31: 15.5 | B31: 50 | E31: 28 | F31: Marcus Mariota | G31: ATL | H31: 29 | I31: QB | J31: 13 | K31: 13 | L31: 2000-08-05 | M31: 184 | N31: 300 | O31: 61.3 | P31: 2219 | Q31: 15 | R31: 5 | S31: 9 | T31: 3 | U31: 111 | V31: 75 | W31: 7.4 | X31: 7 | Y31: 12.1 | Z31: 170.7 | AA31: 88.2 | AB31: 55.6 | AC31: 28 | AD31: 195 | AE31: 8.5 | AF31: 6.17 | AG31: 5.85 | AH31: 2 | AI31: 3 | AK31: 28 | AL31: James Conner | AM31: ARI | AN31: 27 | AO31: RB | AP31: 13 | AQ31: 13 | AR31: 183 | AS31: 782 | AT31: 7 | AU31: 48 | AV31: 23 | AW31: 4.3 | AX31: 60.2 | AY31: 3 | BA31: 29 | BB31: Tee Higgins | BC31: CIN | BD31: 23 | BE31: WR | BF31: 16 | BG31: 14 | BH31: 109 | BI31: 74 | BJ31: 0.679 | BK31: 1029 | BL31: 13.9 | BM31: 7 | BN31: 47 | BO31: 59 | BP31: 9.4 | BQ31: 4.6 | BR31: 64.3 | BS31: 0 | BU31: 28 | BV31: Marcus Mariota | BW31: ATL | BX31: 29 | BY31: QB | BZ31: 13 | CA31: 13 | CB31: 184 | CC31: 300 | CD31: 2219 | CE31: 3 | CF31: 7 | CG31: 4 | CH31: 8 | CI31: 0.028 | CJ31: 65 | CK31: 0.225 | CL31: 204 | CM31: 0.706
A32: 16 | B32: 50 | E32: 29 | F32: Baker Mayfield | G32: 2TM | H32: 27 | J32: 12 | K32: 10 | L32: 2000-08-02 | M32: 201 | N32: 335 | O32: 60 | P32: 2163 | Q32: 10 | R32: 3 | S32: 8 | T32: 2.4 | U32: 94 | V32: 75 | W32: 6.5 | X32: 6 | Y32: 10.8 | Z32: 180.3 | AA32: 79 | AB32: 24.5 | AC32: 36 | AD32: 217 | AE32: 9.7 | AF32: 5.25 | AG32: 4.81 | AH32: 1 | AI32: 1 | AK32: 29 | AL32: Raheem Mostert | AM32: MIA | AN32: 30 | AO32: RB | AP32: 16 | AQ32: 14 | AR32: 181 | AS32: 891 | AT32: 3 | AU32: 44 | AV32: 67 | AW32: 4.9 | AX32: 55.7 | AY32: 1 | BA32: Rk | BB32: Player | BC32: Tm | BD32: Age | BE32: Pos | BF32: G | BG32: GS | BH32: Tgt | BI32: Rec | BJ32: Ctch% | BK32: Yds | BL32: Y/R | BM32: TD | BN32: 1D | BO32: Lng | BP32: Y/Tgt | BQ32: R/G | BR32: Y/G | BS32: Fmb | BU32: 29 | BV32: Baker Mayfield | BW32: 2TM | BX32: 27 | BZ32: 12 | CA32: 10 | CB32: 201 | CC32: 335 | CD32: 2163 | CE32: 16 | CF32: 15 | CG32: 1 | CH32: 17 | CI32: 0.053 | CJ32: 60 | CK32: 0.188 | CL32: 226 | CM32: 0.708
A33: 16.5 | B33: 50 | E33: Rk | F33: Player | G33: Tm | H33: Age | I33: Pos | J33: G | K33: GS | L33: QBrec | M33: Cmp | N33: Att | O33: Cmp% | P33: Yds | Q33: TD | R33: TD% | S33: Int | T33: Int% | U33: 1D | V33: Lng | W33: Y/A | X33: AY/A | Y33: Y/C | Z33: Y/G | AA33: Rate | AB33: QBR | AC33: Sk | AD33: Yds | AE33: Sk% | AF33: NY/A | AG33: ANY/A | AH33: 4QC | AI33: GWD | AK33: Rk | AL33: Player | AM33: Tm | AN33: Age | AO33: Pos | AP33: G | AQ33: GS | AR33: Att | AS33: Yds | AT33: TD | AU33: 1D | AV33: Lng | AW33: Y/A | AX33: Y/G | AY33: Fmb | BA33: 30 | BB33: Mark Andrews | BC33: BAL | BD33: 27 | BE33: TE | BF33: 15 | BG33: 15 | BH33: 113 | BI33: 73 | BJ33: 0.646 | BK33: 847 | BL33: 11.6 | BM33: 5 | BN33: 48 | BO33: 36 | BP33: 7.5 | BQ33: 4.9 | BR33: 56.5 | BS33: 1 | BU33: 30 | BV33: Matthew Stafford | BW33: LAR | BX33: 34 | BY33: QB | BZ33: 9 | CA33: 9 | CB33: 206 | CC33: 303 | CD33: 2087 | CE33: 3 | CF33: 6 | CG33: 1 | CH33: 11 | CI33: 0.037 | CJ33: 54 | CK33: 0.182 | CL33: 224 | CM33: 0.757
A34: 17 | B34: 50 | E34: 30 | F34: Matthew Stafford | G34: LAR | H34: 34 | I34: QB | J34: 9 | K34: 9 | L34: 2000-06-03 | M34: 206 | N34: 303 | O34: 68 | P34: 2087 | Q34: 10 | R34: 3.3 | S34: 8 | T34: 2.6 | U34: 105 | V34: 75 | W34: 6.9 | X34: 6.4 | Y34: 10.1 | Z34: 231.9 | AA34: 87.4 | AB34: 50.3 | AC34: 29 | AD34: 208 | AE34: 8.7 | AF34: 5.66 | AG34: 5.18 | AK34: 30 | AL34: Devin Singletary | AM34: BUF | AN34: 25 | AO34: RB | AP34: 16 | AQ34: 16 | AR34: 177 | AS34: 819 | AT34: 5 | AU34: 43 | AV34: 33 | AW34: 4.6 | AX34: 51.2 | AY34: 3 | BA34: 31 | BB34: Evan Engram | BC34: JAX | BD34: 28 | BE34: TE | BF34: 17 | BG34: 14 | BH34: 98 | BI34: 73 | BJ34: 0.745 | BK34: 766 | BL34: 10.5 | BM34: 4 | BN34: 33 | BO34: 36 | BP34: 7.8 | BQ34: 4.3 | BR34: 45.1 | BS34: 0 | BU34: 31 | BV34: Taylor Heinicke | BW34: WAS | BX34: 29 | BY34: QB | BZ34: 9 | CA34: 9 | CB34: 161 | CC34: 259 | CD34: 1859 | CE34: 7 | CF34: 14 | CG34: 2 | CH34: 6 | CI34: 0.025 | CJ34: 44 | CK34: 0.181 | CL34: 177 | CM34: 0.728
E35: 31 | F35: Taylor Heinicke | G35: WAS | H35: 29 | I35: QB | J35: 9 | K35: 9 | L35: 2001-03-05 | M35: 161 | N35: 259 | O35: 62.2 | P35: 1859 | Q35: 12 | R35: 4.6 | S35: 6 | T35: 2.3 | U35: 93 | V35: 61 | W35: 7.2 | X35: 7.1 | Y35: 11.5 | Z35: 206.6 | AA35: 89.6 | AB35: 44.4 | AC35: 19 | AD35: 141 | AE35: 6.8 | AF35: 6.18 | AG35: 6.07 | AH35: 2 | AI35: 1 | AK35: 31 | AL35: Jeff Wilson | AM35: 2TM | AN35: 27 | AO35: RB | AP35: 16 | AQ35: 7 | AR35: 176 | AS35: 860 | AT35: 5 | AU35: 43 | AV35: 41 | AW35: 4.9 | AX35: 53.8 | AY35: 3 | BA35: 32 | BB35: Leonard Fournette | BC35: TAM | BD35: 27 | BE35: RB | BF35: 16 | BG35: 9 | BH35: 83 | BI35: 73 | BJ35: 0.88 | BK35: 523 | BL35: 7.2 | BM35: 3 | BN35: 26 | BO35: 44 | BP35: 6.3 | BQ35: 4.6 | BR35: 32.7 | BS35: 0 | BU35: 32 | BV35: Carson Wentz | BW35: WAS | BX35: 30 | BY35: QB | BZ35: 8 | CA35: 7 | CB35: 172 | CC35: 276 | CD35: 1755 | CE35: 8 | CF35: 6 | CG35: 0 | CH35: 16 | CI35: 0.059 | CJ35: 54 | CK35: 0.2 | CL35: 192 | CM35: 0.711
E36: 32 | F36: Carson Wentz | G36: WAS | H36: 30 | I36: QB | J36: 8 | K36: 7 | L36: 2000-05-02 | M36: 172 | N36: 276 | O36: 62.3 | P36: 1755 | Q36: 11 | R36: 4 | S36: 9 | T36: 3.3 | U36: 85 | V36: 75 | W36: 6.4 | X36: 5.7 | Y36: 10.2 | Z36: 219.4 | AA36: 80.2 | AB36: 32.9 | AC36: 26 | AD36: 159 | AE36: 8.6 | AF36: 5.28 | AG36: 4.67 | AH36: 2 | AI36: 2 | AK36: 32 | AL36: Latavius Murray | AM36: 2TM | AN36: 32 | AO36: RB | AP36: 13 | AQ36: 7 | AR36: 171 | AS36: 760 | AT36: 6 | AU36: 44 | AV36: 52 | AW36: 4.4 | AX36: 58.5 | AY36: 1 | BA36: 33 | BB36: Tyler Higbee | BC36: LAR | BD36: 29 | BE36: TE | BF36: 17 | BG36: 17 | BH36: 108 | BI36: 72 | BJ36: 0.667 | BK36: 620 | BL36: 8.6 | BM36: 3 | BN36: 32 | BO36: 26 | BP36: 5.7 | BQ36: 4.2 | BR36: 36.5 | BS36: 0 | BU36: 33 | BV36: Zach Wilson | BW36: NYJ | BX36: 23 | BY36: QB | BZ36: 9 | CA36: 9 | CB36: 132 | CC36: 242 | CD36: 1688 | CE36: 5 | CF36: 20 | CG36: 0 | CH36: 11 | CI36: 0.05 | CJ36: 56 | CK36: 0.252 | CL36: 149 | CM36: 0.671
E37: 33 | F37: Zach Wilson | G37: NYJ | H37: 23 | I37: QB | J37: 9 | K37: 9 | L37: 2000-04-05 | M37: 132 | N37: 242 | O37: 54.5 | P37: 1688 | Q37: 6 | R37: 2.5 | S37: 7 | T37: 2.9 | U37: 73 | V37: 79 | W37: 7 | X37: 6.2 | Y37: 12.8 | Z37: 187.6 | AA37: 72.8 | AB37: 36.5 | AC37: 23 | AD37: 175 | AE37: 8.7 | AF37: 5.71 | AG37: 4.97 | AH37: 1 | AI37: 2 | AK37: 33 | AL37: Isiah Pacheco | AM37: KAN | AN37: 23 | AO37: RB | AP37: 17 | AQ37: 11 | AR37: 170 | AS37: 830 | AT37: 5 | AU37: 37 | AV37: 31 | AW37: 4.9 | AX37: 48.8 | AY37: 4 | BA37: 34 | BB37: Drake London | BC37: ATL | BD37: 21 | BE37: WR | BF37: 17 | BG37: 15 | BH37: 117 | BI37: 72 | BJ37: 0.615 | BK37: 866 | BL37: 12 | BM37: 4 | BN37: 48 | BO37: 40 | BP37: 7.4 | BQ37: 4.2 | BR37: 50.9 | BS37: 3 | BU37: 34 | BV37: Brock Purdy | BW37: SFO | BX37: 23 | BY37: QB | BZ37: 9 | CA37: 5 | CB37: 114 | CC37: 170 | CD37: 1374 | CE37: 7 | CF37: 5 | CG37: 0 | CH37: 13 | CI37: 0.079 | CJ37: 20 | CK37: 0.121 | CL37: 127 | CM37: 0.77
E38: 34 | F38: Brock Purdy | G38: SFO | H38: 23 | I38: QB | J38: 9 | K38: 5 | L38: 5-0-0 | M38: 114 | N38: 170 | O38: 67.1 | P38: 1374 | Q38: 13 | R38: 7.6 | S38: 4 | T38: 2.4 | U38: 66 | V38: 54 | W38: 8.1 | X38: 8.6 | Y38: 12.1 | Z38: 152.7 | AA38: 107.3 | AB38: 65.6 | AC38: 11 | AD38: 84 | AE38: 6.1 | AF38: 7.13 | AG38: 7.57 | AH38: 1 | AI38: 1 | AK38: 34 | AL38: Jalen Hurts | AM38: PHI | AN38: 24 | AO38: QB | AP38: 15 | AQ38: 15 | AR38: 165 | AS38: 760 | AT38: 13 | AU38: 67 | AV38: 42 | AW38: 4.6 | AX38: 50.7 | AY38: 9 | BA38: 35 | BB38: Chris Olave | BC38: NOR | BD38: 22 | BE38: WR | BF38: 15 | BG38: 9 | BH38: 119 | BI38: 72 | BJ38: 0.605 | BK38: 1042 | BL38: 14.5 | BM38: 4 | BN38: 48 | BO38: 53 | BP38: 8.8 | BQ38: 4.8 | BR38: 69.5 | BS38: 2 | BU38: 35 | BV38: Mitchell Trubisky | BW38: PIT | BX38: 28 | BY38: QB | BZ38: 7 | CA38: 5 | CB38: 117 | CC38: 180 | CD38: 1252 | CE38: 4 | CF38: 2 | CG38: 1 | CH38: 7 | CI38: 0.04 | CJ38: 25 | CK38: 0.141 | CL38: 130 | CM38: 0.734
E39: 35 | F39: Mitchell Trubisky | G39: PIT | H39: 28 | I39: QB | J39: 7 | K39: 5 | L39: 2000-03-02 | M39: 117 | N39: 180 | O39: 65 | P39: 1252 | Q39: 4 | R39: 2.2 | S39: 5 | T39: 2.8 | U39: 65 | V39: 45 | W39: 7 | X39: 6.2 | Y39: 10.7 | Z39: 178.9 | AA39: 81.1 | AB39: 56.4 | AC39: 11 | AD39: 68 | AE39: 5.8 | AF39: 6.2 | AG39: 5.44 | AH39: 0 | AI39: 1 | AK39: 35 | AL39: Justin Fields | AM39: CHI | AN39: 23 | AO39: QB | AP39: 15 | AQ39: 15 | AR39: 160 | AS39: 1143 | AT39: 8 | AU39: 65 | AV39: 67 | AW39: 7.1 | AX39: 76.2 | AY39: 16 | BA39: 36 | BB39: Josh Palmer | BC39: LAC | BD39: 24 | BE39: WR | BF39: 16 | BG39: 11 | BH39: 107 | BI39: 72 | BJ39: 0.673 | BK39: 769 | BL39: 10.7 | BM39: 3 | BN39: 39 | BO39: 50 | BP39: 7.2 | BQ39: 4.5 | BR39: 48.1 | BS39: 1 | BU39: 36 | BV39: Mike White | BW39: NYJ | BX39: 27 | BY39: QB | BZ39: 4 | CA39: 4 | CB39: 103 | CC39: 175 | CD39: 1192 | CE39: 6 | CF39: 6 | CG39: 0 | CH39: 3 | CI39: 0.018 | CJ39: 38 | CK39: 0.225 | CL39: 113 | CM39: 0.669
E40: 36 | F40: Mike White | G40: NYJ | H40: 27 | I40: QB | J40: 4 | K40: 4 | L40: 2000-03-01 | M40: 103 | N40: 175 | O40: 58.9 | P40: 1192 | Q40: 3 | R40: 1.7 | S40: 4 | T40: 2.3 | U40: 56 | V40: 60 | W40: 6.8 | X40: 6.1 | Y40: 11.6 | Z40: 298 | AA40: 75.7 | AB40: 37 | AC40: 9 | AD40: 76 | AE40: 4.9 | AF40: 6.07 | AG40: 5.41 | AK40: 36 | AL40: Antonio Gibson | AM40: WAS | AN40: 24 | AO40: RB | AP40: 15 | AQ40: 6 | AR40: 149 | AS40: 546 | AT40: 3 | AU40: 32 | AV40: 20 | AW40: 3.7 | AX40: 36.4 | AY40: 1 | BA40: 37 | BB40: Adam Thielen | BC40: MIN | BD40: 32 | BE40: WR | BF40: 17 | BG40: 17 | BH40: 107 | BI40: 70 | BJ40: 0.654 | BK40: 716 | BL40: 10.2 | BM40: 6 | BN40: 45 | BO40: 36 | BP40: 6.7 | BQ40: 4.1 | BR40: 42.1 | BS40: 0 | BU40: 37 | BV40: Sam Darnold | BW40: CAR | BX40: 25 | BY40: QB | BZ40: 6 | CA40: 6 | CB40: 82 | CC40: 140 | CD40: 1143 | CE40: 3 | CF40: 19 | CG40: 3 | CH40: 7 | CI40: 0.059 | CJ40: 16 | CK40: 0.136 | CL40: 91 | CM40: 0.771
E41: 37 | F41: Sam Darnold | G41: CAR | H41: 25 | I41: QB | J41: 6 | K41: 6 | L41: 2000-02-04 | M41: 82 | N41: 140 | O41: 58.6 | P41: 1143 | Q41: 7 | R41: 5 | S41: 3 | T41: 2.1 | U41: 57 | V41: 52 | W41: 8.2 | X41: 8.2 | Y41: 13.9 | Z41: 190.5 | AA41: 92.6 | AB41: 48.5 | AC41: 10 | AD41: 78 | AE41: 6.7 | AF41: 7.1 | AG41: 7.13 | AH41: 0 | AI41: 1 | AK41: 37 | AL41: Cordarrelle Patterson | AM41: ATL | AN41: 31 | AO41: RB | AP41: 13 | AQ41: 11 | AR41: 144 | AS41: 695 | AT41: 8 | AU41: 39 | AV41: 40 | AW41: 4.8 | AX41: 53.5 | AY41: 1 | BA41: 38 | BB41: Rhamondre Stevenson | BC41: NWE | BD41: 24 | BE41: RB | BF41: 17 | BG41: 7 | BH41: 88 | BI41: 69 | BJ41: 0.784 | BK41: 421 | BL41: 6.1 | BM41: 1 | BN41: 13 | BO41: 40 | BP41: 4.8 | BQ41: 4.1 | BR41: 24.8 | BS41: 4 | BU41: 38 | BV41: Deshaun Watson | BW41: CLE | BX41: 27 | BY41: QB | BZ41: 6 | CA41: 6 | CB41: 99 | CC41: 170 | CD41: 1102 | CE41: 4 | CF41: 12 | CG41: 2 | CH41: 12 | CI41: 0.077 | CJ41: 22 | CK41: 0.141 | CL41: 116 | CM41: 0.744
E42: 38 | F42: Deshaun Watson | G42: CLE | H42: 27 | I42: QB | J42: 6 | K42: 6 | L42: 2000-03-03 | M42: 99 | N42: 170 | O42: 58.2 | P42: 1102 | Q42: 7 | R42: 4.1 | S42: 5 | T42: 2.9 | U42: 53 | V42: 46 | W42: 6.5 | X42: 6 | Y42: 11.1 | Z42: 183.7 | AA42: 79.1 | AB42: 38.3 | AC42: 20 | AD42: 106 | AE42: 10.5 | AF42: 5.24 | AG42: 4.79 | AK42: 38 | AL42: Khalil Herbert | AM42: CHI | AN42: 24 | AO42: RB | AP42: 13 | AQ42: 1 | AR42: 129 | AS42: 731 | AT42: 4 | AU42: 26 | AV42: 63 | AW42: 5.7 | AX42: 56.2 | AY42: 0 | BA42: 39 | BB42: Marquise Brown | BC42: ARI | BD42: 25 | BE42: WR | BF42: 12 | BG42: 10 | BH42: 107 | BI42: 67 | BJ42: 0.626 | BK42: 709 | BL42: 10.6 | BM42: 3 | BN42: 33 | BO42: 47 | BP42: 6.6 | BQ42: 5.6 | BR42: 59.1 | BS42: 1 | BU42: 39 | BV42: Joe Flacco | BW42: NYJ | BX42: 37 | BY42: QB | BZ42: 5 | CA42: 4 | CB42: 110 | CC42: 191 | CD42: 1051 | CE42: 5 | CF42: 6 | CG42: 0 | CH42: 13 | CI42: 0.07 | CJ42: 38 | CK42: 0.205 | CL42: 127 | CM42: 0.686
E43: 39 | F43: Joe Flacco | G43: NYJ | H43: 37 | I43: QB | J43: 5 | K43: 4 | L43: 2000-03-01 | M43: 110 | N43: 191 | O43: 57.6 | P43: 1051 | Q43: 5 | R43: 2.6 | S43: 3 | T43: 1.6 | U43: 55 | V43: 66 | W43: 5.5 | X43: 5.3 | Y43: 9.6 | Z43: 210.2 | AA43: 75.2 | AB43: 34.1 | AC43: 10 | AD43: 66 | AE43: 5 | AF43: 4.9 | AG43: 4.73 | AH43: 1 | AI43: 1 | AK43: 39 | AL43: Rachaad White | AM43: TAM | AN43: 23 | AO43: RB | AP43: 17 | AQ43: 8 | AR43: 129 | AS43: 481 | AT43: 1 | AU43: 27 | AV43: 35 | AW43: 3.7 | AX43: 28.3 | AY43: 3 | BA43: 40 | BB43: Jerry Jeudy | BC43: DEN | BD43: 23 | BE43: WR | BF43: 15 | BG43: 14 | BH43: 100 | BI43: 67 | BJ43: 0.67 | BK43: 972 | BL43: 14.5 | BM43: 6 | BN43: 41 | BO43: 67 | BP43: 9.7 | BQ43: 4.5 | BR43: 64.8 | BS43: 0 | BU43: 40 | BV43: Cooper Rush | BW43: DAL | BX43: 29 | BY43: QB | BZ43: 9 | CA43: 5 | CB43: 94 | CC43: 162 | CD43: 1051 | CE43: 8 | CF43: 2 | CG43: 1 | CH43: 9 | CI43: 0.057 | CJ43: 33 | CK43: 0.208 | CL43: 106 | CM43: 0.667
E44: 40 | F44: Cooper Rush | G44: DAL | H44: 29 | I44: QB | J44: 9 | K44: 5 | L44: 2000-01-04 | M44: 94 | N44: 162 | O44: 58 | P44: 1051 | Q44: 5 | R44: 3.1 | S44: 3 | T44: 1.9 | U44: 52 | V44: 46 | W44: 6.5 | X44: 6.3 | Y44: 11.2 | Z44: 116.8 | AA44: 80 | AB44: 58.7 | AC44: 7 | AD44: 49 | AE44: 4.1 | AF44: 5.93 | AG44: 5.72 | AH44: 0 | AI44: 2 | AK44: 40 | AL44: Josh Allen | AM44: BUF | AN44: 26 | AO44: QB | AP44: 16 | AQ44: 16 | AR44: 124 | AS44: 762 | AT44: 7 | AU44: 55 | AV44: 44 | AW44: 6.1 | AX44: 47.6 | AY44: 13 | BA44: 41 | BB44: Jakobi Meyers | BC44: NWE | BD44: 26 | BE44: WR | BF44: 14 | BG44: 13 | BH44: 96 | BI44: 67 | BJ44: 0.698 | BK44: 804 | BL44: 12 | BM44: 6 | BN44: 38 | BO44: 48 | BP44: 8.4 | BQ44: 4.8 | BR44: 57.4 | BS44: 2 | BU44: 41 | BV44: Jameis Winston | BW44: NOR | BX44: 28 | BY44: QB | BZ44: 3 | CA44: 3 | CB44: 73 | CC44: 115 | CD44: 858 | CE44: 2 | CF44: 2 | CG44: 2 | CH44: 3 | CI44: 0.027 | CJ44: 23 | CK44: 0.207 | CL44: 81 | CM44: 0.73
E45: 41 | F45: Jameis Winston | G45: NOR | H45: 28 | I45: QB | J45: 3 | K45: 3 | L45: 2000-02-01 | M45: 73 | N45: 115 | O45: 63.5 | P45: 858 | Q45: 4 | R45: 3.5 | S45: 5 | T45: 4.3 | U45: 35 | V45: 51 | W45: 7.5 | X45: 6.2 | Y45: 11.8 | Z45: 286 | AA45: 79.5 | AB45: 32.8 | AC45: 11 | AD45: 74 | AE45: 8.7 | AF45: 6.22 | AG45: 5.07 | AH45: 1 | AI45: 1 | AK45: 41 | AL45: Kareem Hunt | AM45: CLE | AN45: 27 | AO45: RB | AP45: 17 | AQ45: 0 | AR45: 123 | AS45: 468 | AT45: 3 | AU45: 30 | AV45: 24 | AW45: 3.8 | AX45: 27.5 | AY45: 1 | BA45: 42 | BB45: Keenan Allen | BC45: LAC | BD45: 30 | BE45: WR | BF45: 10 | BG45: 10 | BH45: 89 | BI45: 66 | BJ45: 0.742 | BK45: 752 | BL45: 11.4 | BM45: 4 | BN45: 39 | BO45: 46 | BP45: 8.4 | BQ45: 6.6 | BR45: 75.2 | BS45: 1 | BU45: 42 | BV45: Bailey Zappe | BW45: NWE | BX45: 23 | BY45: QB | BZ45: 4 | CA45: 2 | CB45: 65 | CC45: 92 | CD45: 781 | CE45: 5 | CF45: 4 | CG45: 0 | CH45: 3 | CI45: 0.034 | CJ45: 11 | CK45: 0.125 | CL45: 69 | CM45: 0.784
E46: 42 | F46: Bailey Zappe | G46: NWE | H46: 23 | I46: QB | J46: 4 | K46: 2 | L46: 2-0-0 | M46: 65 | N46: 92 | O46: 70.7 | P46: 781 | Q46: 5 | R46: 5.4 | S46: 3 | T46: 3.3 | U46: 37 | V46: 53 | W46: 8.5 | X46: 8.1 | Y46: 12 | Z46: 195.3 | AA46: 100.9 | AB46: 34.5 | AC46: 6 | AD46: 40 | AE46: 6.1 | AF46: 7.56 | AG46: 7.2 | AK46: 42 | AL46: Daniel Jones | AM46: NYG | AN46: 25 | AO46: QB | AP46: 16 | AQ46: 16 | AR46: 120 | AS46: 708 | AT46: 7 | AU46: 57 | AV46: 25 | AW46: 5.9 | AX46: 44.3 | AY46: 6 | BA46: 43 | BB46: DeAndre Hopkins | BC46: ARI | BD46: 30 | BE46: WR | BF46: 9 | BG46: 9 | BH46: 96 | BI46: 64 | BJ46: 0.667 | BK46: 717 | BL46: 11.2 | BM46: 3 | BN46: 35 | BO46: 33 | BP46: 7.5 | BQ46: 7.1 | BR46: 79.7 | BS46: 2 | BU46: 43 | BV46: Colt McCoy | BW46: ARI | BX46: 36 | BY46: QB | BZ46: 4 | CA46: 3 | CB46: 90 | CC46: 132 | CD46: 780 | CE46: 2 | CF46: 3 | CG46: 0 | CH46: 11 | CI46: 0.085 | CJ46: 22 | CK46: 0.171 | CL46: 102 | CM46: 0.791
E47: 43 | F47: Colt McCoy | G47: ARI | H47: 36 | I47: QB | J47: 4 | K47: 3 | L47: 2000-02-01 | M47: 90 | N47: 132 | O47: 68.2 | P47: 780 | Q47: 1 | R47: 0.8 | S47: 3 | T47: 2.3 | U47: 34 | V47: 47 | W47: 5.9 | X47: 5 | Y47: 8.7 | Z47: 195 | AA47: 76.6 | AB47: 37.4 | AC47: 13 | AD47: 97 | AE47: 9 | AF47: 4.71 | AG47: 3.92 | AK47: 43 | AL47: Michael Carter | AM47: NYJ | AN47: 23 | AO47: RB | AP47: 16 | AQ47: 10 | AR47: 114 | AS47: 402 | AT47: 3 | AU47: 14 | AV47: 25 | AW47: 3.5 | AX47: 25.1 | AY47: 2 | BA47: 44 | BB47: Curtis Samuel | BC47: WAS | BD47: 26 | BE47: WR | BF47: 17 | BG47: 12 | BH47: 92 | BI47: 64 | BJ47: 0.696 | BK47: 656 | BL47: 10.3 | BM47: 4 | BN47: 36 | BO47: 49 | BP47: 7.1 | BQ47: 3.8 | BR47: 38.6 | BS47: 1 | BU47: 44 | BV47: P.J. Walker | BW47: CAR | BX47: 27 | BY47: QB | BZ47: 6 | CA47: 5 | CB47: 63 | CC47: 106 | CD47: 731 | CE47: 1 | CF47: 1 | CG47: 0 | CH47: 7 | CI47: 0.067 | CJ47: 21 | CK47: 0.2 | CL47: 69 | CM47: 0.657
E48: 44 | F48: P.J. Walker | G48: CAR | H48: 27 | I48: QB | J48: 6 | K48: 5 | L48: 2000-03-02 | M48: 63 | N48: 106 | O48: 59.4 | P48: 731 | Q48: 3 | R48: 2.8 | S48: 3 | T48: 2.8 | U48: 30 | V48: 62 | W48: 6.9 | X48: 6.2 | Y48: 11.6 | Z48: 121.8 | AA48: 78 | AB48: 23.5 | AC48: 7 | AD48: 46 | AE48: 6.2 | AF48: 6.06 | AG48: 5.4 | AK48: 44 | AL48: Lamar Jackson | AM48: BAL | AN48: 25 | AO48: QB | AP48: 12 | AQ48: 12 | AR48: 112 | AS48: 764 | AT48: 3 | AU48: 47 | AV48: 79 | AW48: 6.8 | AX48: 63.7 | AY48: 5 | BA48: 45 | BB48: Courtland Sutton | BC48: DEN | BD48: 27 | BE48: WR | BF48: 15 | BG48: 15 | BH48: 109 | BI48: 64 | BJ48: 0.587 | BK48: 829 | BL48: 13 | BM48: 2 | BN48: 38 | BO48: 51 | BP48: 7.6 | BQ48: 4.3 | BR48: 55.3 | BS48: 0 | BU48: 45 | BV48: Desmond Ridder | BW48: ATL | BX48: 23 | BY48: QB | BZ48: 4 | CA48: 4 | CB48: 73 | CC48: 115 | CD48: 708 | CE48: 1 | CF48: 5 | CG48: 0 | CH48: 1 | CI48: 0.009 | CJ48: 20 | CK48: 0.182 | CL48: 83 | CM48: 0.755
E49: 45 | F49: Desmond Ridder | G49: ATL | H49: 23 | I49: QB | J49: 4 | K49: 4 | L49: 2000-02-02 | M49: 73 | N49: 115 | O49: 63.5 | P49: 708 | Q49: 2 | R49: 1.7 | S49: 0 | T49: 0 | U49: 37 | V49: 40 | W49: 6.2 | X49: 6.5 | Y49: 9.7 | Z49: 177 | AA49: 86.4 | AB49: 49.8 | AC49: 9 | AD49: 33 | AE49: 7.3 | AF49: 5.44 | AG49: 5.77 | AH49: 1 | AI49: 1 | AK49: 45 | AL49: James Robinson | AM49: 2TM | AN49: 24 | AO49: RB | AP49: 11 | AQ49: 5 | AR49: 110 | AS49: 425 | AT49: 3 | AU49: 22 | AV49: 50 | AW49: 3.9 | AX49: 38.6 | AY49: 1 | BA49: 46 | BB49: Parris Campbell | BC49: IND | BD49: 25 | BE49: WR | BF49: 17 | BG49: 16 | BH49: 91 | BI49: 63 | BJ49: 0.692 | BK49: 623 | BL49: 9.9 | BM49: 3 | BN49: 32 | BO49: 49 | BP49: 6.8 | BQ49: 3.7 | BR49: 36.6 | BS49: 1 | BU49: 46 | BV49: Teddy Bridgewater | BW49: MIA | BX49: 30 | BY49: QB | BZ49: 5 | CA49: 2 | CB49: 49 | CC49: 79 | CD49: 683 | CE49: 1 | CF49: 4 | CG49: 0 | CH49: 2 | CI49: 0.027 | CJ49: 16 | CK49: 0.213 | CL49: 56 | CM49: 0.747
E50: 46 | F50: Teddy Bridgewater | G50: MIA | H50: 30 | I50: QB | J50: 5 | K50: 2 | L50: 0-2-0 | M50: 49 | N50: 79 | O50: 62 | P50: 683 | Q50: 4 | R50: 5.1 | S50: 4 | T50: 5.1 | U50: 32 | V50: 64 | W50: 8.6 | X50: 7.4 | Y50: 13.9 | Z50: 136.6 | AA50: 85.6 | AB50: 47.4 | AC50: 7 | AD50: 45 | AE50: 8.1 | AF50: 7.42 | AG50: 6.26 | AK50: 46 | AL50: Kenyan Drake | AM50: BAL | AN50: 28 | AO50: RB | AP50: 12 | AQ50: 5 | AR50: 109 | AS50: 482 | AT50: 4 | AU50: 21 | AV50: 40 | AW50: 4.4 | AX50: 40.2 | AY50: 1 | BA50: 47 | BB50: Pat Freiermuth | BC50: PIT | BD50: 24 | BE50: TE | BF50: 16 | BG50: 8 | BH50: 98 | BI50: 63 | BJ50: 0.643 | BK50: 732 | BL50: 11.6 | BM50: 2 | BN50: 37 | BO50: 57 | BP50: 7.5 | BQ50: 3.9 | BR50: 45.8 | BS50: 0 | BU50: 47 | BV50: Gardner Minshew II | BW50: PHI | BX50: 26 | BY50: QB | BZ50: 5 | CA50: 2 | CB50: 44 | CC50: 76 | CD50: 663 | CE50: 2 | CF50: 5 | CG50: 1 | CH50: 2 | CI50: 0.029 | CJ50: 14 | CK50: 0.2 | CL50: 51 | CM50: 0.729
E51: 47 | F51: Gardner Minshew II | G51: PHI | H51: 26 | I51: QB | J51: 5 | K51: 2 | L51: 0-2-0 | M51: 44 | N51: 76 | O51: 57.9 | P51: 663 | Q51: 3 | R51: 3.9 | S51: 3 | T51: 3.9 | U51: 30 | V51: 78 | W51: 8.7 | X51: 7.7 | Y51: 15.1 | Z51: 132.6 | AA51: 83.4 | AB51: 39.7 | AC51: 6 | AD51: 28 | AE51: 7.3 | AF51: 7.74 | AG51: 6.83 | AK51: 47 | AL51: Damien Harris | AM51: NWE | AN51: 25 | AO51: RB | AP51: 11 | AQ51: 9 | AR51: 106 | AS51: 462 | AT51: 3 | AU51: 23 | AV51: 30 | AW51: 4.4 | AX51: 42 | AY51: 0 | BA51: 48 | BB51: D.J. Moore | BC51: CAR | BD51: 25 | BE51: WR | BF51: 17 | BG51: 17 | BH51: 118 | BI51: 63 | BJ51: 0.534 | BK51: 888 | BL51: 14.1 | BM51: 7 | BN51: 44 | BO51: 62 | BP51: 7.5 | BQ51: 3.7 | BR51: 52.2 | BS51: 0 | BU51: 48 | BV51: Tyler Huntley | BW51: BAL | BX51: 24 | BY51: QB | BZ51: 6 | CA51: 4 | CB51: 75 | CC51: 112 | CD51: 658 | CE51: 0 | CF51: 4 | CG51: 2 | CH51: 3 | CI51: 0.028 | CJ51: 15 | CK51: 0.142 | CL51: 83 | CM51: 0.783
E52: 48 | F52: Tyler Huntley | G52: BAL | H52: 24 | I52: QB | J52: 6 | K52: 4 | L52: 2000-02-02 | M52: 75 | N52: 112 | O52: 67 | P52: 658 | Q52: 2 | R52: 1.8 | S52: 3 | T52: 2.7 | U52: 31 | V52: 40 | W52: 5.9 | X52: 5 | Y52: 8.8 | Z52: 109.7 | AA52: 77.2 | AB52: 41.3 | AC52: 7 | AD52: 34 | AE52: 5.9 | AF52: 5.24 | AG52: 4.45 | AH52: 1 | AI52: 1 | AK52: 48 | AL52: D'Andre Swift | AM52: DET | AN52: 23 | AO52: RB | AP52: 14 | AQ52: 8 | AR52: 99 | AS52: 542 | AT52: 5 | AU52: 21 | AV52: 50 | AW52: 5.5 | AX52: 38.7 | AY52: 1 | BA52: 49 | BB52: Mike Williams | BC52: LAC | BD52: 28 | BE52: WR | BF52: 13 | BG52: 13 | BH52: 93 | BI52: 63 | BJ52: 0.677 | BK52: 895 | BL52: 14.2 | BM52: 4 | BN52: 39 | BO52: 55 | BP52: 9.6 | BQ52: 4.8 | BR52: 68.8 | BS52: 0 | BU52: 49 | BV52: Jarrett Stidham | BW52: LVR | BX52: 26 | BY52: QB | BZ52: 5 | CA52: 2 | CB52: 53 | CC52: 83 | CD52: 656 | CE52: 2 | CF52: 4 | CG52: 0 | CH52: 5 | CI52: 0.063 | CJ52: 13 | CK52: 0.165 | CL52: 59 | CM52: 0.747
E53: 49 | F53: Jarrett Stidham | G53: LVR | H53: 26 | I53: QB | J53: 5 | K53: 2 | L53: 0-2-0 | M53: 53 | N53: 83 | O53: 63.9 | P53: 656 | Q53: 4 | R53: 4.8 | S53: 3 | T53: 3.6 | U53: 32 | V53: 60 | W53: 7.9 | X53: 7.2 | Y53: 12.4 | Z53: 131.2 | AA53: 89.2 | AB53: 57.8 | AC53: 7 | AD53: 47 | AE53: 7.8 | AF53: 6.77 | AG53: 6.16 | AK53: 49 | AL53: Taysom Hill | AM53: NOR | AN53: 32 | AO53: TE | AP53: 16 | AQ53: 8 | AR53: 96 | AS53: 575 | AT53: 7 | AU53: 34 | AV53: 60 | AW53: 6 | AX53: 35.9 | AY53: 2 | BA53: 50 | BB53: Donovan Peoples-Jones | BC53: CLE | BD53: 23 | BE53: WR | BF53: 17 | BG53: 14 | BH53: 96 | BI53: 61 | BJ53: 0.635 | BK53: 839 | BL53: 13.8 | BM53: 3 | BN53: 33 | BO53: 42 | BP53: 8.7 | BQ53: 3.6 | BR53: 49.4 | BS53: 1 | BU53: 50 | BV53: Sam Ehlinger | BW53: IND | BX53: 24 | BY53: QB | BZ53: 4 | CA53: 3 | CB53: 64 | CC53: 101 | CD53: 573 | CE53: 2 | CF53: 1 | CG53: 0 | CH53: 6 | CI53: 0.06 | CJ53: 18 | CK53: 0.18 | CL53: 74 | CM53: 0.74
E54: 50 | F54: Sam Ehlinger | G54: IND | H54: 24 | I54: QB | J54: 4 | K54: 3 | L54: 0-3-0 | M54: 64 | N54: 101 | O54: 63.4 | P54: 573 | Q54: 3 | R54: 3 | S54: 3 | T54: 3 | U54: 28 | V54: 47 | W54: 5.7 | X54: 4.9 | Y54: 9 | Z54: 143.3 | AA54: 76.1 | AB54: 31.9 | AC54: 14 | AD54: 87 | AE54: 12.2 | AF54: 4.23 | AG54: 3.57 | AK54: 50 | AL54: Chuba Hubbard | AM54: CAR | AN54: 23 | AO54: RB | AP54: 15 | AQ54: 2 | AR54: 95 | AS54: 466 | AT54: 2 | AU54: 23 | AV54: 35 | AW54: 4.9 | AX54: 31.1 | AY54: 2 | BA54: 51 | BB54: George Kittle | BC54: SFO | BD54: 29 | BE54: TE | BF54: 15 | BG54: 15 | BH54: 86 | BI54: 60 | BJ54: 0.698 | BK54: 765 | BL54: 12.8 | BM54: 11 | BN54: 36 | BO54: 54 | BP54: 8.9 | BQ54: 4 | BR54: 51 | BS54: 1 | BU54: 51 | BV54: Skylar Thompson | BW54: MIA | BX54: 25 | BY54: QB | BZ54: 7 | CA54: 2 | CB54: 60 | CC54: 105 | CD54: 534 | CE54: 2 | CF54: 4 | CG54: 0 | CH54: 8 | CI54: 0.079 | CJ54: 22 | CK54: 0.218 | CL54: 70 | CM54: 0.693
E55: 51 | F55: Skylar Thompson | G55: MIA | H55: 25 | I55: QB | J55: 7 | K55: 2 | L55: 2000-01-01 | M55: 60 | N55: 105 | O55: 57.1 | P55: 534 | Q55: 1 | R55: 1 | S55: 3 | T55: 2.9 | U55: 26 | V55: 32 | W55: 5.1 | X55: 4 | Y55: 8.9 | Z55: 76.3 | AA55: 62.2 | AB55: 27.2 | AC55: 6 | AD55: 40 | AE55: 5.4 | AF55: 4.45 | AG55: 3.41 | AH55: 0 | AI55: 1 | AK55: 51 | AL55: Samaje Perine | AM55: CIN | AN55: 27 | AO55: RB | AP55: 16 | AQ55: 2 | AR55: 95 | AS55: 394 | AT55: 2 | AU55: 19 | AV55: 29 | AW55: 4.1 | AX55: 24.6 | AY55: 0 | BA55: 52 | BB55: Allen Lazard | BC55: GNB | BD55: 27 | BE55: WR | BF55: 15 | BG55: 15 | BH55: 100 | BI55: 60 | BJ55: 0.6 | BK55: 788 | BL55: 13.1 | BM55: 6 | BN55: 45 | BO55: 47 | BP55: 7.9 | BQ55: 4 | BR55: 52.5 | BS55: 0 | BU55: 52 | BV55: Brett Rypien | BW55: DEN | BX55: 26 | BY55: QB | BZ55: 4 | CA55: 2 | CB55: 53 | CC55: 88 | CD55: 483 | CE55: 2 | CF55: 1 | CG55: 0 | CH55: 2 | CI55: 0.023 | CJ55: 19 | CK55: 0.218 | CL55: 63 | CM55: 0.724
E56: 52 | F56: Brett Rypien | G56: DEN | H56: 26 | I56: QB | J56: 4 | K56: 2 | L56: 2000-01-01 | M56: 53 | N56: 88 | O56: 60.2 | P56: 483 | Q56: 2 | R56: 2.3 | S56: 4 | T56: 4.5 | U56: 24 | V56: 45 | W56: 5.5 | X56: 3.9 | Y56: 9.1 | Z56: 120.8 | AA56: 63.8 | AB56: 24.3 | AC56: 8 | AD56: 47 | AE56: 8.3 | AF56: 4.54 | AG56: 3.08 | AK56: 52 | AL56: Zack Moss | AM56: 2TM | AN56: 25 | AO56: RB | AP56: 13 | AQ56: 3 | AR56: 93 | AS56: 456 | AT56: 1 | AU56: 18 | AV56: 43 | AW56: 4.9 | AX56: 35.1 | AY56: 1 | BA56: 53 | BB56: Joe Mixon | BC56: CIN | BD56: 26 | BE56: RB | BF56: 14 | BG56: 14 | BH56: 75 | BI56: 60 | BJ56: 0.8 | BK56: 441 | BL56: 7.4 | BM56: 2 | BN56: 17 | BO56: 35 | BP56: 5.9 | BQ56: 4.3 | BR56: 31.5 | BS56: 0 | BU56: 53 | BV56: Kyle Allen | BW56: HOU | BX56: 26 | BY56: QB | BZ56: 2 | CA56: 2 | CB56: 46 | CC56: 78 | CD56: 416 | CE56: 4 | CF56: 3 | CG56: 0 | CH56: 4 | CI56: 0.053 | CJ56: 14 | CK56: 0.187 | CL56: 52 | CM56: 0.693
E57: 53 | F57: Kyle Allen | G57: HOU | H57: 26 | I57: QB | J57: 2 | K57: 2 | L57: 0-2-0 | M57: 46 | N57: 78 | O57: 59 | P57: 416 | Q57: 2 | R57: 2.6 | S57: 4 | T57: 5.1 | U57: 19 | V57: 39 | W57: 5.3 | X57: 3.5 | Y57: 9 | Z57: 208 | AA57: 60.6 | AB57: 3.4 | AC57: 5 | AD57: 41 | AE57: 6 | AF57: 4.52 | AG57: 2.83 | AK57: 53 | AL57: J.K. Dobbins | AM57: BAL | AN57: 24 | AO57: RB | AP57: 8 | AQ57: 8 | AR57: 92 | AS57: 520 | AT57: 2 | AU57: 26 | AV57: 44 | AW57: 5.7 | AX57: 65 | AY57: 0 | BA57: 54 | BB57: K.J. Osborn | BC57: MIN | BD57: 25 | BE57: WR | BF57: 17 | BG57: 9 | BH57: 90 | BI57: 60 | BJ57: 0.667 | BK57: 650 | BL57: 10.8 | BM57: 5 | BN57: 32 | BO57: 66 | BP57: 7.2 | BQ57: 3.5 | BR57: 38.2 | BS57: 1 | BU57: 54 | BV57: Trace McSorley | BW57: ARI | BX57: 27 | BY57: QB | BZ57: 6 | CA57: 1 | CB57: 45 | CC57: 83 | CD57: 412 | CE57: 1 | CF57: 5 | CG57: 1 | CH57: 2 | CI57: 0.026 | CJ57: 21 | CK57: 0.273 | CL57: 50 | CM57: 0.649
E58: 54 | F58: Trace McSorley | G58: ARI | H58: 27 | I58: QB | J58: 6 | K58: 1 | L58: 0-1-0 | M58: 45 | N58: 83 | O58: 54.2 | P58: 412 | Q58: 0 | R58: 0 | S58: 5 | T58: 6 | U58: 17 | V58: 47 | W58: 5 | X58: 2.3 | Y58: 9.2 | Z58: 68.7 | AA58: 42.8 | AB58: 10.8 | AC58: 3 | AD58: 27 | AE58: 3.5 | AF58: 4.48 | AG58: 1.86 | AK58: 54 | AL58: Melvin Gordon | AM58: DEN | AN58: 29 | AO58: RB | AP58: 10 | AQ58: 6 | AR58: 90 | AS58: 318 | AT58: 2 | AU58: 15 | AV58: 17 | AW58: 3.5 | AX58: 31.8 | AY58: 5 | BA58: 55 | BB58: Aaron Jones | BC58: GNB | BD58: 28 | BE58: RB | BF58: 17 | BG58: 17 | BH58: 72 | BI58: 59 | BJ58: 0.819 | BK58: 395 | BL58: 6.7 | BM58: 5 | BN58: 19 | BO58: 30 | BP58: 5.5 | BQ58: 3.5 | BR58: 23.2 | BS58: 5 | BU58: 55 | BV58: Joshua Dobbs | BW58: TEN | BX58: 27 | BY58: QB | BZ58: 2 | CA58: 2 | CB58: 40 | CC58: 68 | CD58: 411 | CE58: 2 | CF58: 3 | CG58: 0 | CH58: 3 | CI58: 0.046 | CJ58: 14 | CK58: 0.215 | CL58: 43 | CM58: 0.662
E59: 55 | F59: Joshua Dobbs | G59: TEN | H59: 27 | I59: QB | J59: 2 | K59: 2 | L59: 0-2-0 | M59: 40 | N59: 68 | O59: 58.8 | P59: 411 | Q59: 2 | R59: 2.9 | S59: 2 | T59: 2.9 | U59: 25 | V59: 39 | W59: 6 | X59: 5.3 | Y59: 10.3 | Z59: 205.5 | AA59: 73.8 | AB59: 50.8 | AC59: 6 | AD59: 26 | AE59: 8.1 | AF59: 5.2 | AG59: 4.53 | AK59: 55 | AL59: James Cook | AM59: BUF | AN59: 23 | AO59: RB | AP59: 16 | AQ59: 0 | AR59: 89 | AS59: 507 | AT59: 2 | AU59: 25 | AV59: 33 | AW59: 5.7 | AX59: 31.7 | AY59: 1 | BA59: 56 | BB59: Tyler Boyd | BC59: CIN | BD59: 28 | BE59: WR | BF59: 16 | BG59: 14 | BH59: 82 | BI59: 58 | BJ59: 0.707 | BK59: 762 | BL59: 13.1 | BM59: 5 | BN59: 42 | BO59: 60 | BP59: 9.3 | BQ59: 3.6 | BR59: 47.6 | BS59: 0 | BU59: 56 | BV59: David Blough | BW59: ARI | BX59: 27 | BY59: QB | BZ59: 2 | CA59: 2 | CB59: 38 | CC59: 58 | CD59: 402 | CE59: 0 | CF59: 2 | CG59: 0 | CH59: 2 | CI59: 0.036 | CJ59: 10 | CK59: 0.179 | CL59: 43 | CM59: 0.768
E60: 56 | F60: David Blough | G60: ARI | H60: 27 | I60: QB | J60: 2 | K60: 2 | L60: 0-2-0 | M60: 38 | N60: 58 | O60: 65.5 | P60: 402 | Q60: 2 | R60: 3.4 | S60: 2 | T60: 3.4 | U60: 18 | V60: 77 | W60: 6.9 | X60: 6.1 | Y60: 10.6 | Z60: 201 | AA60: 82.7 | AB60: 28.2 | AC60: 5 | AD60: 24 | AE60: 7.9 | AF60: 6 | AG60: 5.21 | AK60: 56 | AL60: Gus Edwards | AM60: BAL | AN60: 27 | AO60: RB | AP60: 9 | AQ60: 4 | AR60: 87 | AS60: 433 | AT60: 3 | AU60: 30 | AV60: 37 | AW60: 5 | AX60: 48.1 | AY60: 1 | BA60: 57 | BB60: Tyler Conklin | BC60: NYJ | BD60: 27 | BE60: TE | BF60: 17 | BG60: 16 | BH60: 87 | BI60: 58 | BJ60: 0.667 | BK60: 552 | BL60: 9.5 | BM60: 3 | BN60: 25 | BO60: 30 | BP60: 6.3 | BQ60: 3.4 | BR60: 32.5 | BS60: 2 | BU60: 57 | BV60: John Wolford | BW60: LAR | BX60: 27 | BY60: QB | BZ60: 3 | CA60: 3 | CB60: 38 | CC60: 62 | CD60: 390 | CE60: 2 | CF60: 1 | CG60: 0 | CH60: 1 | CI60: 0.016 | CJ60: 10 | CK60: 0.164 | CL60: 50 | CM60: 0.82
E61: 57 | F61: John Wolford | G61: LAR | H61: 27 | I61: QB | J61: 3 | K61: 3 | L61: 2000-02-01 | M61: 38 | N61: 62 | O61: 61.3 | P61: 390 | Q61: 1 | R61: 1.6 | S61: 3 | T61: 4.8 | U61: 19 | V61: 30 | W61: 6.3 | X61: 4.4 | Y61: 10.3 | Z61: 130 | AA61: 64.6 | AB61: 22.7 | AC61: 7 | AD61: 49 | AE61: 10.1 | AF61: 4.94 | AG61: 3.28 | AK61: 57 | AL61: Zonovan Knight | AM61: NYJ | AN61: 21 | AO61: RB | AP61: 7 | AQ61: 4 | AR61: 85 | AS61: 300 | AT61: 1 | AU61: 14 | AV61: 48 | AW61: 3.5 | AX61: 42.9 | AY61: 2 | BA61: 58 | BB61: Gerald Everett | BC61: LAC | BD61: 28 | BE61: TE | BF61: 16 | BG61: 11 | BH61: 87 | BI61: 58 | BJ61: 0.667 | BK61: 555 | BL61: 9.6 | BM61: 4 | BN61: 29 | BO61: 26 | BP61: 6.4 | BQ61: 3.6 | BR61: 34.7 | BS61: 0 | BU61: 58 | BV61: Anthony Brown | BW61: BAL | BX61: 24 | BY61: QB | BZ61: 2 | CA61: 1 | CB61: 22 | CC61: 49 | CD61: 302 | CE61: 2 | CF61: 1 | CG61: 2 | CH61: 3 | CI61: 0.065 | CJ61: 12 | CK61: 0.261 | CL61: 28 | CM61: 0.609
E62: 58 | F62: Anthony Brown | G62: BAL | H62: 24 | I62: QB | J62: 2 | K62: 1 | L62: 0-1-0 | M62: 22 | N62: 49 | O62: 44.9 | P62: 302 | Q62: 0 | R62: 0 | S62: 2 | T62: 4.1 | U62: 13 | V62: 47 | W62: 6.2 | X62: 4.3 | Y62: 13.7 | Z62: 151 | AA62: 48.2 | AC62: 5 | AD62: 14 | AE62: 9.3 | AF62: 5.33 | AG62: 3.67 | AK62: 58 | AL62: Marcus Mariota | AM62: ATL | AN62: 29 | AO62: QB | AP62: 13 | AQ62: 13 | AR62: 85 | AS62: 438 | AT62: 4 | AU62: 30 | AV62: 30 | AW62: 5.2 | AX62: 33.7 | AY62: 8 | BA62: 59 | BB62: David Njoku | BC62: CLE | BD62: 26 | BE62: TE | BF62: 14 | BG62: 14 | BH62: 80 | BI62: 58 | BJ62: 0.725 | BK62: 628 | BL62: 10.8 | BM62: 4 | BN62: 36 | BO62: 38 | BP62: 7.9 | BQ62: 4.1 | BR62: 44.9 | BS62: 1 | BU62: 59 | BV62: Malik Willis | BW62: TEN | BX62: 23 | BY62: QB | BZ62: 8 | CA62: 3 | CB62: 31 | CC62: 61 | CD62: 276 | CE62: 2 | CF62: 7 | CG62: 0 | CH62: 4 | CI62: 0.074 | CJ62: 12 | CK62: 0.222 | CL62: 36 | CM62: 0.667
E63: 59 | F63: Malik Willis | G63: TEN | H63: 23 | I63: QB | J63: 8 | K63: 3 | L63: 2000-02-01 | M63: 31 | N63: 61 | O63: 50.8 | P63: 276 | Q63: 0 | R63: 0 | S63: 3 | T63: 4.9 | U63: 11 | V63: 48 | W63: 4.5 | X63: 2.3 | Y63: 8.9 | Z63: 34.5 | AA63: 42.8 | AB63: 12.4 | AC63: 10 | AD63: 49 | AE63: 14.1 | AF63: 3.2 | AG63: 1.3 | AK63: 59 | AL63: Breece Hall | AM63: NYJ | AN63: 21 | AO63: RB | AP63: 7 | AQ63: 2 | AR63: 80 | AS63: 463 | AT63: 4 | AU63: 20 | AV63: 62 | AW63: 5.8 | AX63: 66.1 | AY63: 1 | BA63: Rk | BB63: Player | BC63: Tm | BD63: Age | BE63: Pos | BF63: G | BG63: GS | BH63: Tgt | BI63: Rec | BJ63: Ctch% | BK63: Yds | BL63: Y/R | BM63: TD | BN63: 1D | BO63: Lng | BP63: Y/Tgt | BQ63: R/G | BR63: Y/G | BS63: Fmb | BU63: 60 | BV63: Taysom Hill | BW63: NOR | BX63: 32 | BY63: TE | BZ63: 16 | CA63: 8 | CB63: 13 | CC63: 19 | CD63: 240 | CE63: 0 | CF63: 1 | CG63: 0 | CH63: 1 | CI63: 0.056 | CJ63: 2 | CK63: 0.111 | CL63: 14 | CM63: 0.778
E64: Rk | F64: Player | G64: Tm | H64: Age | I64: Pos | J64: G | K64: GS | L64: QBrec | M64: Cmp | N64: Att | O64: Cmp% | P64: Yds | Q64: TD | R64: TD% | S64: Int | T64: Int% | U64: 1D | V64: Lng | W64: Y/A | X64: AY/A | Y64: Y/C | Z64: Y/G | AA64: Rate | AB64: QBR | AC64: Sk | AD64: Yds | AE64: Sk% | AF64: NY/A | AG64: ANY/A | AH64: 4QC | AI64: GWD | AK64: Rk | AL64: Player | AM64: Tm | AN64: Age | AO64: Pos | AP64: G | AQ64: GS | AR64: Att | AS64: Yds | AT64: TD | AU64: 1D | AV64: Lng | AW64: Y/A | AX64: Y/G | AY64: Fmb | BA64: 60 | BB64: Saquon Barkley | BC64: NYG | BD64: 25 | BE64: RB | BF64: 16 | BG64: 16 | BH64: 76 | BI64: 57 | BJ64: 0.75 | BK64: 338 | BL64: 5.9 | BM64: 0 | BN64: 10 | BO64: 41 | BP64: 4.4 | BQ64: 3.6 | BR64: 21.1 | BS64: 1 | BU64: 61 | BV64: Nick Foles | BW64: IND | BX64: 33 | BY64: QB | BZ64: 3 | CA64: 2 | CB64: 25 | CC64: 42 | CD64: 224 | CE64: 0 | CF64: 1 | CG64: 0 | CH64: 2 | CI64: 0.049 | CJ64: 9 | CK64: 0.22 | CL64: 27 | CM64: 0.659
E65: 60 | F65: Taysom Hill | G65: NOR | H65: 32 | I65: TE | J65: 16 | K65: 8 | M65: 13 | N65: 19 | O65: 68.4 | P65: 240 | Q65: 2 | R65: 10.5 | S65: 0 | T65: 0 | U65: 11 | V65: 68 | W65: 12.6 | X65: 14.7 | Y65: 18.5 | Z65: 15 | AA65: 146.3 | AB65: 78.3 | AC65: 2 | AD65: 14 | AE65: 9.5 | AF65: 10.76 | AG65: 12.67 | AK65: 60 | AL65: Eno Benjamin | AM65: 3TM | AN65: 23 | AP65: 15 | AQ65: 3 | AR65: 77 | AS65: 313 | AT65: 2 | AU65: 14 | AV65: 45 | AW65: 4.1 | AX65: 20.9 | AY65: 0 | BA65: 61 | BB65: Brandin Cooks | BC65: HOU | BD65: 29 | BE65: WR | BF65: 13 | BG65: 13 | BH65: 93 | BI65: 57 | BJ65: 0.613 | BK65: 699 | BL65: 12.3 | BM65: 3 | BN65: 29 | BO65: 44 | BP65: 7.5 | BQ65: 4.4 | BR65: 53.8 | BS65: 0 | BU65: 62 | BV65: Nick Mullens | BW65: MIN | BX65: 27 | BY65: QB | BZ65: 4 | CA65: 0 | CB65: 21 | CC65: 25 | CD65: 224 | CE65: 0 | CF65: 0 | CG65: 0 | CH65: 0 | CI65: 0 | CJ65: 2 | CK65: 0.08 | CL65: 23 | CM65: 0.92
E66: 61 | F66: Nick Foles | G66: IND | H66: 33 | I66: QB | J66: 3 | K66: 2 | L66: 0-2-0 | M66: 25 | N66: 42 | O66: 59.5 | P66: 224 | Q66: 0 | R66: 0 | S66: 4 | T66: 9.5 | U66: 9 | V66: 49 | W66: 5.3 | X66: 1 | Y66: 9 | Z66: 74.7 | AA66: 34.3 | AB66: 7.4 | AC66: 8 | AD66: 48 | AE66: 16 | AF66: 3.52 | AG66: -0.08 | AK66: 61 | AL66: Jaylen Warren | AM66: PIT | AN66: 24 | AO66: RB | AP66: 16 | AQ66: 0 | AR66: 77 | AS66: 379 | AT66: 1 | AU66: 20 | AV66: 31 | AW66: 4.9 | AX66: 23.7 | AY66: 1 | BA66: 62 | BB66: Mack Hollins | BC66: LVR | BD66: 29 | BE66: WR | BF66: 17 | BG66: 16 | BH66: 94 | BI66: 57 | BJ66: 0.606 | BK66: 690 | BL66: 12.1 | BM66: 4 | BN66: 34 | BO66: 60 | BP66: 7.3 | BQ66: 3.4 | BR66: 40.6 | BS66: 0 | BU66: 63 | BV66: Jordan Love | BW66: GNB | BX66: 24 | BY66: QB | BZ66: 4 | CA66: 0 | CB66: 14 | CC66: 21 | CD66: 195 | CE66: 0 | CF66: 0 | CG66: 1 | CH66: 1 | CI66: 0.05 | CJ66: 3 | CK66: 0.15 | CL66: 16 | CM66: 0.8
E67: 62 | F67: Nick Mullens | G67: MIN | H67: 27 | I67: QB | J67: 4 | K67: 0 | M67: 21 | N67: 25 | O67: 84 | P67: 224 | Q67: 1 | R67: 4 | S67: 1 | T67: 4 | U67: 11 | V67: 37 | W67: 9 | X67: 8 | Y67: 10.7 | Z67: 56 | AA67: 100.7 | AB67: 56.1 | AC67: 0 | AD67: 0 | AE67: 0 | AF67: 8.96 | AG67: 7.96 | AK67: 62 | AL67: Caleb Huntley | AM67: ATL | AN67: 24 | AO67: RB | AP67: 12 | AQ67: 0 | AR67: 76 | AS67: 366 | AT67: 1 | AU67: 18 | AV67: 30 | AW67: 4.8 | AX67: 30.5 | AY67: 1 | BA67: 63 | BB67: Richie James | BC67: NYG | BD67: 27 | BE67: WR | BF67: 17 | BG67: 4 | BH67: 70 | BI67: 57 | BJ67: 0.814 | BK67: 569 | BL67: 10 | BM67: 4 | BN67: 29 | BO67: 33 | BP67: 8.1 | BQ67: 3.4 | BR67: 33.5 | BS67: 3 | BU67: 64 | BV67: Trey Lance | BW67: SFO | BX67: 22 | BY67: QB | BZ67: 2 | CA67: 2 | CB67: 15 | CC67: 31 | CD67: 194 | CE67: 0 | CF67: 1 | CG67: 0 | CH67: 3 | CI67: 0.1 | CJ67: 10 | CK67: 0.333 | CL67: 19 | CM67: 0.633
E68: 63 | F68: Jordan Love | G68: GNB | H68: 24 | I68: QB | J68: 4 | K68: 0 | M68: 14 | N68: 21 | O68: 66.7 | P68: 195 | Q68: 1 | R68: 4.8 | S68: 0 | T68: 0 | U68: 9 | V68: 63 | W68: 9.3 | X68: 10.2 | Y68: 13.9 | Z68: 48.8 | AA68: 112.2 | AB68: 82 | AC68: 0 | AD68: 0 | AE68: 0 | AF68: 9.29 | AG68: 10.24 | AK68: 63 | AL68: Joe Burrow | AM68: CIN | AN68: 26 | AO68: QB | AP68: 16 | AQ68: 16 | AR68: 75 | AS68: 257 | AT68: 5 | AU68: 28 | AV68: 23 | AW68: 3.4 | AX68: 16.1 | AY68: 6 | BA68: 64 | BB68: Alvin Kamara | BC68: NOR | BD68: 27 | BE68: RB | BF68: 15 | BG68: 13 | BH68: 77 | BI68: 57 | BJ68: 0.74 | BK68: 490 | BL68: 8.6 | BM68: 2 | BN68: 17 | BO68: 54 | BP68: 6.4 | BQ68: 3.8 | BR68: 32.7 | BS68: 4 | BU68: 65 | BV68: Trevor Siemian | BW68: CHI | BX68: 31 | BY68: QB | BZ68: 2 | CA68: 1 | CB68: 15 | CC68: 26 | CD68: 184 | CE68: 0 | CF68: 1 | CG68: 0 | CH68: 0 | CI68: 0 | CJ68: 5 | CK68: 0.2 | CL68: 15 | CM68: 0.6
E69: 64 | F69: Trey Lance | G69: SFO | H69: 22 | I69: QB | J69: 2 | K69: 2 | L69: 2000-01-01 | M69: 15 | N69: 31 | O69: 48.4 | P69: 194 | Q69: 0 | R69: 0 | S69: 1 | T69: 3.2 | U69: 6 | V69: 44 | W69: 6.3 | X69: 4.8 | Y69: 12.9 | Z69: 97 | AA69: 55 | AB69: 34.9 | AC69: 2 | AD69: 9 | AE69: 6.1 | AF69: 5.61 | AG69: 4.24 | AK69: 64 | AL69: Alexander Mattison | AM69: MIN | AN69: 24 | AO69: RB | AP69: 17 | AQ69: 0 | AR69: 74 | AS69: 283 | AT69: 5 | AU69: 21 | AV69: 15 | AW69: 3.8 | AX69: 16.6 | AY69: 0 | BA69: 65 | BB69: Dalton Schultz | BC69: DAL | BD69: 26 | BE69: TE | BF69: 15 | BG69: 15 | BH69: 89 | BI69: 57 | BJ69: 0.64 | BK69: 577 | BL69: 10.1 | BM69: 5 | BN69: 27 | BO69: 30 | BP69: 6.5 | BQ69: 3.8 | BR69: 38.5 | BS69: 1 | BU69: 66 | BV69: Sam Howell | BW69: WAS | BX69: 22 | BY69: QB | BZ69: 1 | CA69: 1 | CB69: 11 | CC69: 19 | CD69: 169 | CE69: 1 | CF69: 1 | CG69: 0 | CH69: 2 | CI69: 0.111 | CJ69: 3 | CK69: 0.167 | CL69: 13 | CM69: 0.722
E70: 65 | F70: Trevor Siemian | G70: CHI | H70: 31 | I70: QB | J70: 2 | K70: 1 | L70: 0-1-0 | M70: 15 | N70: 26 | O70: 57.7 | P70: 184 | Q70: 1 | R70: 3.8 | S70: 1 | T70: 3.8 | U70: 7 | V70: 33 | W70: 7.1 | X70: 6.1 | Y70: 12.3 | Z70: 92 | AA70: 76.4 | AB70: 26.5 | AC70: 2 | AD70: 14 | AE70: 7.1 | AF70: 6.07 | AG70: 5.18 | AK70: 65 | AL70: Jerick McKinnon | AM70: KAN | AN70: 30 | AO70: RB | AP70: 17 | AQ70: 0 | AR70: 72 | AS70: 291 | AT70: 1 | AU70: 12 | AV70: 30 | AW70: 4 | AX70: 17.1 | AY70: 1 | BA70: 66 | BB70: Jerick McKinnon | BC70: KAN | BD70: 30 | BE70: RB | BF70: 17 | BG70: 0 | BH70: 71 | BI70: 56 | BJ70: 0.789 | BK70: 512 | BL70: 9.1 | BM70: 9 | BN70: 28 | BO70: 56 | BP70: 7.2 | BQ70: 3.3 | BR70: 30.1 | BS70: 1 | BU70: 67 | BV70: Davis Webb | BW70: NYG | BX70: 27 | BY70: QB | BZ70: 1 | CA70: 1 | CB70: 23 | CC70: 40 | CD70: 168 | CE70: 2 | CF70: 2 | CG70: 0 | CH70: 0 | CI70: 0 | CJ70: 7 | CK70: 0.184 | CL70: 23 | CM70: 0.605
E71: 66 | F71: Sam Howell | G71: WAS | H71: 22 | I71: QB | J71: 1 | K71: 1 | L71: 1-0-0 | M71: 11 | N71: 19 | O71: 57.9 | P71: 169 | Q71: 1 | R71: 5.3 | S71: 1 | T71: 5.3 | U71: 6 | V71: 52 | W71: 8.9 | X71: 7.6 | Y71: 15.4 | Z71: 169 | AA71: 83 | AB71: 46.4 | AC71: 3 | AD71: 11 | AE71: 13.6 | AF71: 7.18 | AG71: 6.05 | AK71: 66 | AL71: Clyde Edwards-Helaire | AM71: KAN | AN71: 23 | AO71: RB | AP71: 10 | AQ71: 6 | AR71: 71 | AS71: 302 | AT71: 3 | AU71: 15 | AV71: 52 | AW71: 4.3 | AX71: 30.2 | AY71: 0 | BA71: 67 | BB71: Deebo Samuel | BC71: SFO | BD71: 26 | BE71: WR | BF71: 13 | BG71: 12 | BH71: 94 | BI71: 56 | BJ71: 0.596 | BK71: 632 | BL71: 11.3 | BM71: 2 | BN71: 25 | BO71: 57 | BP71: 6.7 | BQ71: 4.3 | BR71: 48.6 | BS71: 3 | BU71: 68 | BV71: Bryce Perkins | BW71: LAR | BX71: 26 | BY71: QB | BZ71: 5 | CA71: 1 | CB71: 19 | CC71: 34 | CD71: 161 | CE71: 5 | CF71: 0 | CG71: 1 | CH71: 1 | CI71: 0.03 | CJ71: 4 | CK71: 0.121 | CL71: 21 | CM71: 0.636
E72: 67 | F72: Davis Webb | G72: NYG | H72: 27 | I72: QB | J72: 1 | K72: 1 | L72: 0-1-0 | M72: 23 | N72: 40 | O72: 57.5 | P72: 168 | Q72: 1 | R72: 2.5 | S72: 0 | T72: 0 | U72: 11 | V72: 25 | W72: 4.2 | X72: 4.7 | Y72: 7.3 | Z72: 168 | AA72: 75.8 | AB72: 73.5 | AC72: 0 | AD72: 0 | AE72: 0 | AF72: 4.2 | AG72: 4.7 | AK72: 67 | AL72: Darrell Henderson | AM72: LAR | AN72: 25 | AO72: RB | AP72: 10 | AQ72: 7 | AR72: 70 | AS72: 283 | AT72: 3 | AU72: 14 | AV72: 23 | AW72: 4 | AX72: 28.3 | AY72: 0 | BA72: 68 | BB72: Dallas Goedert | BC72: PHI | BD72: 27 | BE72: TE | BF72: 12 | BG72: 12 | BH72: 69 | BI72: 55 | BJ72: 0.797 | BK72: 702 | BL72: 12.8 | BM72: 3 | BN72: 40 | BO72: 31 | BP72: 10.2 | BQ72: 4.6 | BR72: 58.5 | BS72: 1 | BU72: 69 | BV72: Nathan Peterman | BW72: CHI | BX72: 28 | BY72: QB | BZ72: 3 | CA72: 1 | CB72: 14 | CC72: 25 | CD72: 139 | CE72: 0 | CF72: 0 | CG72: 1 | CH72: 2 | CI72: 0.083 | CJ72: 5 | CK72: 0.208 | CL72: 17 | CM72: 0.708
E73: 68 | F73: Bryce Perkins | G73: LAR | H73: 26 | I73: QB | J73: 5 | K73: 1 | L73: 0-1-0 | M73: 19 | N73: 34 | O73: 55.9 | P73: 161 | Q73: 1 | R73: 2.9 | S73: 2 | T73: 5.9 | U73: 10 | V73: 20 | W73: 4.7 | X73: 2.7 | Y73: 8.5 | Z73: 32.2 | AA73: 53.7 | AB73: 27.2 | AC73: 6 | AD73: 50 | AE73: 15 | AF73: 2.78 | AG73: 1.03 | AK73: 68 | AL73: Joshua Kelley | AM73: LAC | AN73: 25 | AO73: RB | AP73: 13 | AQ73: 1 | AR73: 69 | AS73: 287 | AT73: 2 | AU73: 16 | AV73: 22 | AW73: 4.2 | AX73: 22.1 | AY73: 0 | BA73: 69 | BB73: Josh Jacobs | BC73: LVR | BD73: 24 | BE73: RB | BF73: 17 | BG73: 17 | BH73: 64 | BI73: 53 | BJ73: 0.828 | BK73: 400 | BL73: 7.5 | BM73: 0 | BN73: 16 | BO73: 43 | BP73: 6.3 | BQ73: 3.1 | BR73: 23.5 | BS73: 3 | BU73: 70 | BV73: Jeff Driskel | BW73: HOU | BX73: 29 | BY73: QB | BZ73: 7 | CA73: 2 | CB73: 14 | CC73: 20 | CD73: 108 | CE73: 3 | CF73: 1 | CG73: 0 | CH73: 1 | CI73: 0.053 | CJ73: 0 | CK73: 0 | CL73: 15 | CM73: 0.789
E74: 69 | F74: Nathan Peterman | G74: CHI | H74: 28 | I74: QB | J74: 3 | K74: 1 | L74: 0-1-0 | M74: 14 | N74: 25 | O74: 56 | P74: 139 | Q74: 1 | R74: 4 | S74: 1 | T74: 4 | U74: 9 | V74: 28 | W74: 5.6 | X74: 4.6 | Y74: 9.9 | Z74: 46.3 | AA74: 68.6 | AB74: 39.9 | AC74: 1 | AD74: 6 | AE74: 3.8 | AF74: 5.12 | AG74: 4.15 | AK74: 69 | AL74: Chase Edmonds | AM74: 2TM | AN74: 26 | AO74: RB | AP74: 13 | AQ74: 3 | AR74: 68 | AS74: 245 | AT74: 2 | AU74: 8 | AV74: 28 | AW74: 3.6 | AX74: 18.8 | AY74: 0 | BA74: 70 | BB74: Robert Tonyan | BC74: GNB | BD74: 28 | BE74: TE | BF74: 17 | BG74: 3 | BH74: 67 | BI74: 53 | BJ74: 0.791 | BK74: 470 | BL74: 8.9 | BM74: 2 | BN74: 20 | BO74: 24 | BP74: 7 | BQ74: 3.1 | BR74: 27.6 | BS74: 0 | BU74: 71 | BV74: Chris Streveler | BW74: NYJ | BX74: 27 | BY74: QB | BZ74: 2 | CA74: 1 | CB74: 10 | CC74: 15 | CD74: 90 | CE74: 0 | CF74: 0 | CG74: 0 | CH74: 1 | CI74: 0.067 | CJ74: 2 | CK74: 0.133 | CL74: 10 | CM74: 0.667
E75: 70 | F75: Jeff Driskel | G75: HOU | H75: 29 | I75: QB | J75: 7 | K75: 2 | L75: 0-1-0 | M75: 14 | N75: 20 | O75: 70 | P75: 108 | Q75: 1 | R75: 5 | S75: 0 | T75: 0 | U75: 5 | V75: 28 | W75: 5.4 | X75: 6.4 | Y75: 7.7 | Z75: 15.4 | AA75: 99.6 | AB75: 19.6 | AC75: 2 | AD75: 13 | AE75: 9.1 | AF75: 4.32 | AG75: 5.23 | AK75: 70 | AL75: Deon Jackson | AM75: IND | AN75: 23 | AO75: RB | AP75: 16 | AQ75: 2 | AR75: 68 | AS75: 236 | AT75: 1 | AU75: 13 | AV75: 17 | AW75: 3.5 | AX75: 14.8 | AY75: 1 | BA75: 71 | BB75: Robert Woods | BC75: TEN | BD75: 30 | BE75: WR | BF75: 17 | BG75: 15 | BH75: 91 | BI75: 53 | BJ75: 0.582 | BK75: 527 | BL75: 9.9 | BM75: 2 | BN75: 31 | BO75: 41 | BP75: 5.8 | BQ75: 3.1 | BR75: 31 | BS75: 1 | BU75: 72 | BV75: Jacob Eason | BW75: CAR | BX75: 25 | BY75: QB | BZ75: 1 | CA75: 0 | CB75: 3 | CC75: 5 | CD75: 59 | CE75: 0 | CF75: 0 | CG75: 0 | CH75: 0 | CI75: 0 | CJ75: 1 | CK75: 0.2 | CL75: 4 | CM75: 0.8
E76: 71 | F76: Chris Streveler | G76: NYJ | H76: 27 | I76: QB | J76: 2 | K76: 1 | M76: 10 | N76: 15 | O76: 66.7 | P76: 90 | Q76: 0 | R76: 0 | S76: 0 | T76: 0 | U76: 5 | V76: 30 | W76: 6 | X76: 6 | Y76: 9 | Z76: 45 | AA76: 82.6 | AB76: 72.3 | AC76: 0 | AD76: 0 | AE76: 0 | AF76: 6 | AG76: 6 | AK76: 71 | AL76: Geno Smith | AM76: SEA | AN76: 32 | AO76: QB | AP76: 17 | AQ76: 17 | AR76: 68 | AS76: 366 | AT76: 1 | AU76: 24 | AV76: 25 | AW76: 5.4 | AX76: 21.5 | AY76: 8 | BA76: 72 | BB76: Greg Dortch | BC76: ARI | BD76: 24 | BE76: WR | BF76: 16 | BG76: 4 | BH76: 64 | BI76: 52 | BJ76: 0.813 | BK76: 467 | BL76: 9 | BM76: 2 | BN76: 19 | BO76: 47 | BP76: 7.3 | BQ76: 3.3 | BR76: 29.2 | BS76: 1 | BU76: 73 | BV76: Tyrod Taylor | BW76: NYG | BX76: 33 | BY76: QB | BZ76: 3 | CA76: 0 | CB76: 6 | CC76: 8 | CD76: 58 | CE76: 0 | CF76: 0 | CG76: 0 | CH76: 1 | CI76: 0.125 | CJ76: 0 | CK76: 0 | CL76: 7 | CM76: 0.875
E77: 72 | F77: Jacob Eason | G77: CAR | H77: 25 | I77: QB | J77: 1 | K77: 0 | M77: 3 | N77: 5 | O77: 60 | P77: 59 | Q77: 0 | R77: 0 | S77: 1 | T77: 20 | U77: 2 | V77: 49 | W77: 11.8 | X77: 2.8 | Y77: 19.7 | Z77: 59 | AA77: 61.7 | AB77: 0.8 | AC77: 0 | AD77: 0 | AE77: 0 | AF77: 11.8 | AG77: 2.8 | AK77: 72 | AL77: Kyler Murray | AM77: ARI | AN77: 25 | AO77: QB | AP77: 11 | AQ77: 11 | AR77: 67 | AS77: 418 | AT77: 3 | AU77: 23 | AV77: 42 | AW77: 6.2 | AX77: 38 | AY77: 8 | BA77: 73 | BB77: Hayden Hurst | BC77: CIN | BD77: 29 | BE77: TE | BF77: 13 | BG77: 13 | BH77: 68 | BI77: 52 | BJ77: 0.765 | BK77: 414 | BL77: 8 | BM77: 2 | BN77: 26 | BO77: 29 | BP77: 6.1 | BQ77: 4 | BR77: 31.8 | BS77: 0 | BU77: 74 | BV77: Chase Daniel | BW77: LAC | BX77: 36 | BY77: QB | BZ77: 4 | CA77: 0 | CB77: 8 | CC77: 12 | CD77: 52 | CE77: 0 | CF77: 0 | CG77: 0 | CH77: 1 | CI77: 0.083 | CJ77: 3 | CK77: 0.25 | CL77: 9 | CM77: 0.75
E78: 73 | F78: Tyrod Taylor | G78: NYG | H78: 33 | I78: QB | J78: 3 | K78: 0 | M78: 6 | N78: 8 | O78: 75 | P78: 58 | Q78: 1 | R78: 12.5 | S78: 1 | T78: 12.5 | U78: 3 | V78: 19 | W78: 7.3 | X78: 4.1 | Y78: 9.7 | Z78: 19.3 | AA78: 94.8 | AB78: 10.7 | AC78: 3 | AD78: 18 | AE78: 27.3 | AF78: 3.64 | AG78: 1.36 | AK78: 73 | AL78: Mark Ingram | AM78: NOR | AN78: 33 | AO78: RB | AP78: 10 | AQ78: 3 | AR78: 62 | AS78: 233 | AT78: 1 | AU78: 12 | AV78: 14 | AW78: 3.8 | AX78: 23.3 | AY78: 2 | BA78: 74 | BB78: George Pickens | BC78: PIT | BD78: 21 | BE78: WR | BF78: 17 | BG78: 12 | BH78: 84 | BI78: 52 | BJ78: 0.619 | BK78: 801 | BL78: 15.4 | BM78: 4 | BN78: 38 | BO78: 42 | BP78: 9.5 | BQ78: 3.1 | BR78: 47.1 | BS78: 0 | BU78: 75 | BV78: Brian Hoyer | BW78: NWE | BX78: 37 | BY78: QB | BZ78: 1 | CA78: 1 | CB78: 5 | CC78: 6 | CD78: 37 | CE78: 0 | CF78: 0 | CG78: 0 | CH78: 0 | CI78: 0 | CJ78: 1 | CK78: 0.167 | CL78: 5 | CM78: 0.833
E79: 74 | F79: Chase Daniel | G79: LAC | H79: 36 | I79: QB | J79: 4 | K79: 0 | M79: 8 | N79: 12 | O79: 66.7 | P79: 52 | Q79: 1 | R79: 8.3 | S79: 0 | T79: 0 | U79: 4 | V79: 13 | W79: 4.3 | X79: 6 | Y79: 6.5 | Z79: 13 | AA79: 103.5 | AB79: 57.9 | AC79: 1 | AD79: 1 | AE79: 7.7 | AF79: 3.92 | AG79: 5.46 | AK79: 74 | AL79: Trevor Lawrence | AM79: JAX | AN79: 23 | AO79: QB | AP79: 17 | AQ79: 17 | AR79: 62 | AS79: 291 | AT79: 5 | AU79: 27 | AV79: 24 | AW79: 4.7 | AX79: 17.1 | AY79: 12 | BA79: 75 | BB79: Russell Gage | BC79: TAM | BD79: 26 | BE79: WR | BF79: 13 | BG79: 4 | BH79: 70 | BI79: 51 | BJ79: 0.729 | BK79: 426 | BL79: 8.4 | BM79: 5 | BN79: 31 | BO79: 23 | BP79: 6.1 | BQ79: 3.9 | BR79: 32.8 | BS79: 1 | BU79: 76 | BV79: C.J. Beathard | BW79: JAX | BX79: 29 | BY79: QB | BZ79: 4 | CA79: 0 | CB79: 7 | CC79: 11 | CD79: 35 | CE79: 0 | CF79: 0 | CG79: 0 | CH79: 1 | CI79: 0.091 | CJ79: 2 | CK79: 0.182 | CL79: 8 | CM79: 0.727
E80: 75 | F80: Brian Hoyer | G80: NWE | H80: 37 | I80: QB | J80: 1 | K80: 1 | L80: 0-1-0 | M80: 5 | N80: 6 | O80: 83.3 | P80: 37 | Q80: 0 | R80: 0 | S80: 0 | T80: 0 | U80: 2 | V80: 27 | W80: 6.2 | X80: 6.2 | Y80: 7.4 | Z80: 37 | AA80: 92.4 | AB80: 26.7 | AC80: 1 | AD80: 8 | AE80: 14.3 | AF80: 4.14 | AG80: 4.14 | AK80: 75 | AL80: Patrick Mahomes | AM80: KAN | AN80: 27 | AO80: QB | AP80: 17 | AQ80: 17 | AR80: 61 | AS80: 358 | AT80: 4 | AU80: 25 | AV80: 20 | AW80: 5.9 | AX80: 21.1 | AY80: 5 | BA80: 76 | BB80: Noah Fant | BC80: SEA | BD80: 25 | BE80: TE | BF80: 17 | BG80: 16 | BH80: 63 | BI80: 50 | BJ80: 0.794 | BK80: 486 | BL80: 9.7 | BM80: 4 | BN80: 24 | BO80: 51 | BP80: 7.7 | BQ80: 2.9 | BR80: 28.6 | BS80: 0 | BU80: 77 | BV80: Justin Jefferson | BW80: MIN | BX80: 23 | BY80: WR | BZ80: 17 | CA80: 17 | CB80: 2 | CC80: 2 | CD80: 34 | CE80: 0 | CF80: 0 | CG80: 0 | CH80: 0 | CI80: 0 | CJ80: 0 | CK80: 0 | CL80: 2 | CM80: 1
E81: 76 | F81: C.J. Beathard | G81: JAX | H81: 29 | I81: QB | J81: 4 | K81: 0 | M81: 7 | N81: 11 | O81: 63.6 | P81: 35 | Q81: 0 | R81: 0 | S81: 1 | T81: 9.1 | U81: 2 | V81: 11 | W81: 3.2 | X81: -0.9 | Y81: 5 | Z81: 8.8 | AA81: 30.5 | AB81: 21.4 | AC81: 1 | AD81: 5 | AE81: 8.3 | AF81: 2.5 | AG81: -1.25 | AK81: 76 | AL81: Rashaad Penny | AM81: SEA | AN81: 26 | AO81: RB | AP81: 5 | AQ81: 5 | AR81: 57 | AS81: 346 | AT81: 2 | AU81: 15 | AV81: 41 | AW81: 6.1 | AX81: 69.2 | AY81: 1 | BA81: 77 | BB81: Cole Kmet | BC81: CHI | BD81: 23 | BE81: TE | BF81: 17 | BG81: 17 | BH81: 69 | BI81: 50 | BJ81: 0.725 | BK81: 544 | BL81: 10.9 | BM81: 7 | BN81: 27 | BO81: 50 | BP81: 7.9 | BQ81: 2.9 | BR81: 32 | BS81: 1 | BU81: 78 | BV81: Christian McCaffrey | BW81: 2TM | BX81: 26 | BY81: RB | BZ81: 17 | CA81: 16 | CB81: 1 | CC81: 1 | CD81: 34 | CE81: 0 | CF81: 0 | CG81: 0 | CH81: 0 | CI81: 0 | CJ81: 0 | CK81: 0 | CL81: 1 | CM81: 1
E82: 77 | F82: Justin Jefferson | G82: MIN | H82: 23 | I82: WR | J82: 17 | K82: 17 | M82: 2 | N82: 2 | O82: 100 | P82: 34 | Q82: 0 | R82: 0 | S82: 0 | T82: 0 | U82: 2 | V82: 23 | W82: 17 | X82: 17 | Y82: 17 | Z82: 2 | AA82: 118.7 | AB82: 94.8 | AC82: 0 | AD82: 0 | AE82: 0 | AF82: 17 | AG82: 17 | AK82: 77 | AL82: Kenny Pickett | AM82: PIT | AN82: 24 | AO82: QB | AP82: 13 | AQ82: 12 | AR82: 55 | AS82: 237 | AT82: 3 | AU82: 23 | AV82: 23 | AW82: 4.3 | AX82: 18.2 | AY82: 4 | BA82: 78 | BB82: Rachaad White | BC82: TAM | BD82: 23 | BE82: RB | BF82: 17 | BG82: 8 | BH82: 58 | BI82: 50 | BJ82: 0.862 | BK82: 290 | BL82: 5.8 | BM82: 2 | BN82: 13 | BO82: 20 | BP82: 5 | BQ82: 2.9 | BR82: 17.1 | BS82: 3 | BU82: 79 | BV82: Tim Boyle | BW82: CHI | BX82: 28 | BY82: QB | BZ82: 1 | CA82: 0 | CB82: 2 | CC82: 8 | CD82: 33 | CE82: 0 | CF82: 0 | CG82: 0 | CH82: 0 | CI82: 0 | CJ82: 3 | CK82: 0.375 | CL82: 5 | CM82: 0.625
E83: 78 | F83: Christian McCaffrey | G83: 2TM | H83: 26 | I83: RB | J83: 17 | K83: 16 | M83: 1 | N83: 1 | O83: 100 | P83: 34 | Q83: 1 | R83: 100 | S83: 0 | T83: 0 | U83: 1 | V83: 34 | W83: 34 | X83: 54 | Y83: 34 | Z83: 2 | AA83: 158.3 | AB83: 100 | AC83: 0 | AD83: 0 | AE83: 0 | AF83: 34 | AG83: 54 | AK83: 78 | AL83: Russell Wilson | AM83: DEN | AN83: 34 | AO83: QB | AP83: 15 | AQ83: 15 | AR83: 55 | AS83: 277 | AT83: 3 | AU83: 21 | AV83: 19 | AW83: 5 | AX83: 18.5 | AY83: 6 | BA83: 79 | BB83: Gabriel Davis | BC83: BUF | BD83: 23 | BE83: WR | BF83: 15 | BG83: 15 | BH83: 93 | BI83: 48 | BJ83: 0.516 | BK83: 836 | BL83: 17.4 | BM83: 7 | BN83: 35 | BO83: 98 | BP83: 9 | BQ83: 3.2 | BR83: 55.7 | BS83: 1 | BU83: 80 | BV83: Blaine Gabbert | BW83: TAM | BX83: 33 | BY83: QB | BZ83: 1 | CA83: 0 | CB83: 6 | CC83: 8 | CD83: 29 | CE83: 0 | CF83: 0 | CG83: 0 | CH83: 1 | CI83: 0.125 | CJ83: 0 | CK83: 0 | CL83: 8 | CM83: 1
E84: 79 | F84: Tim Boyle | G84: CHI | H84: 28 | I84: QB | J84: 1 | K84: 0 | M84: 2 | N84: 8 | O84: 25 | P84: 33 | Q84: 0 | R84: 0 | S84: 2 | T84: 25 | U84: 2 | V84: 17 | W84: 4.1 | X84: -7.1 | Y84: 16.5 | Z84: 33 | AA84: 4.7 | AB84: 0.5 | AC84: 0 | AD84: 0 | AE84: 0 | AF84: 4.13 | AG84: -7.13 | AK84: 79 | AL84: Matt Breida | AM84: NYG | AN84: 27 | AO84: RB | AP84: 17 | AQ84: 1 | AR84: 54 | AS84: 220 | AT84: 1 | AU84: 13 | AV84: 18 | AW84: 4.1 | AX84: 12.9 | AY84: 0 | BA84: 80 | BB84: Dawson Knox | BC84: BUF | BD84: 26 | BE84: TE | BF84: 15 | BG84: 15 | BH84: 65 | BI84: 48 | BJ84: 0.738 | BK84: 517 | BL84: 10.8 | BM84: 6 | BN84: 25 | BO84: 45 | BP84: 8 | BQ84: 3.2 | BR84: 34.5 | BS84: 0 | BU84: 81 | BV84: Tyler Boyd | BW84: CIN | BX84: 28 | BY84: WR | BZ84: 16 | CA84: 14 | CB84: 1 | CC84: 1 | CD84: 23 | CE84: 0 | CF84: 0 | CG84: 0 | CH84: 0 | CI84: 0 | CJ84: 0 | CK84: 0 | CL84: 1 | CM84: 1
E85: 80 | F85: Blaine Gabbert | G85: TAM | H85: 33 | I85: QB | J85: 1 | K85: 0 | M85: 6 | N85: 8 | O85: 75 | P85: 29 | Q85: 1 | R85: 12.5 | S85: 0 | T85: 0 | U85: 2 | V85: 13 | W85: 3.6 | X85: 6.1 | Y85: 4.8 | Z85: 29 | AA85: 119.3 | AB85: 57.9 | AC85: 0 | AD85: 0 | AE85: 0 | AF85: 3.63 | AG85: 6.13 | AK85: 80 | AL85: Justin Herbert | AM85: LAC | AN85: 24 | AO85: QB | AP85: 17 | AQ85: 17 | AR85: 54 | AS85: 147 | AT85: 0 | AU85: 17 | AV85: 23 | AW85: 2.7 | AX85: 8.6 | AY85: 8 | BA85: 81 | BB85: Chris Moore | BC85: HOU | BD85: 29 | BE85: WR | BF85: 16 | BG85: 7 | BH85: 74 | BI85: 48 | BJ85: 0.649 | BK85: 548 | BL85: 11.4 | BM85: 2 | BN85: 24 | BO85: 52 | BP85: 7.4 | BQ85: 3 | BR85: 34.3 | BS85: 0 | BU85: 82 | BV85: Kyle Trask | BW85: TAM | BX85: 24 | BY85: QB | BZ85: 1 | CA85: 0 | CB85: 3 | CC85: 9 | CD85: 23 | CE85: 0 | CF85: 1 | CG85: 0 | CH85: 0 | CI85: 0 | CJ85: 2 | CK85: 0.25 | CL85: 5 | CM85: 0.625
E86: 81 | F86: Tyler Boyd | G86: CIN | H86: 28 | I86: WR | J86: 16 | K86: 14 | M86: 1 | N86: 1 | O86: 100 | P86: 23 | Q86: 0 | R86: 0 | S86: 0 | T86: 0 | U86: 1 | V86: 23 | W86: 23 | X86: 23 | Y86: 23 | Z86: 1.4 | AA86: 118.7 | AB86: 13.2 | AC86: 1 | AD86: 12 | AE86: 50 | AF86: 5.5 | AG86: 5.5 | AK86: 81 | AL86: Boston Scott | AM86: PHI | AN86: 27 | AO86: RB | AP86: 15 | AQ86: 2 | AR86: 54 | AS86: 217 | AT86: 3 | AU86: 12 | AV86: 21 | AW86: 4 | AX86: 14.5 | AY86: 0 | BA86: 82 | BB86: Demarcus Robinson | BC86: BAL | BD86: 28 | BE86: WR | BF86: 17 | BG86: 5 | BH86: 75 | BI86: 48 | BJ86: 0.64 | BK86: 458 | BL86: 9.5 | BM86: 2 | BN86: 23 | BO86: 31 | BP86: 6.1 | BQ86: 2.8 | BR86: 26.9 | BS86: 2 | BU86: 83 | BV86: Brandon Allen | BW86: CIN | BX86: 30 | BY86: QB | BZ86: 1 | CA86: 0 | CB86: 3 | CC86: 3 | CD86: 22 | CE86: 0 | CF86: 0 | CG86: 0 | CH86: 0 | CI86: 0 | CJ86: 0 | CK86: 0 | CL86: 3 | CM86: 1
E87: 82 | F87: Kyle Trask | G87: TAM | H87: 24 | I87: QB | J87: 1 | K87: 0 | M87: 3 | N87: 9 | O87: 33.3 | P87: 23 | Q87: 0 | R87: 0 | S87: 0 | T87: 0 | U87: 1 | V87: 9 | W87: 2.6 | X87: 2.6 | Y87: 7.7 | Z87: 23 | AA87: 42.4 | AB87: 1.6 | AC87: 0 | AD87: 0 | AE87: 0 | AF87: 2.56 | AG87: 2.56 | AK87: 82 | AL87: Kenneth Gainwell | AM87: PHI | AN87: 23 | AO87: RB | AP87: 17 | AQ87: 0 | AR87: 53 | AS87: 240 | AT87: 4 | AU87: 17 | AV87: 13 | AW87: 4.5 | AX87: 14.1 | AY87: 0 | BA87: 83 | BB87: D'Andre Swift | BC87: DET | BD87: 23 | BE87: RB | BF87: 14 | BG87: 8 | BH87: 70 | BI87: 48 | BJ87: 0.686 | BK87: 389 | BL87: 8.1 | BM87: 3 | BN87: 17 | BO87: 25 | BP87: 5.6 | BQ87: 3.4 | BR87: 27.8 | BS87: 1 | BU87: 84 | BV87: Riley Dixon | BW87: LAR | BX87: 29 | BY87: P | BZ87: 17 | CA87: 0 | CB87: 2 | CC87: 2 | CD87: 18 | CE87: 0 | CF87: 0 | CG87: 0 | CH87: 0 | CI87: 0 | CJ87: 0 | CK87: 0 | CL87: 2 | CM87: 1
E88: 83 | F88: Brandon Allen | G88: CIN | H88: 30 | I88: QB | J88: 1 | K88: 0 | M88: 3 | N88: 3 | O88: 100 | P88: 22 | Q88: 0 | R88: 0 | S88: 0 | T88: 0 | U88: 1 | V88: 13 | W88: 7.3 | X88: 7.3 | Y88: 7.3 | Z88: 22 | AA88: 97.2 | AB88: 44.4 | AC88: 1 | AD88: 0 | AE88: 25 | AF88: 5.5 | AG88: 5.5 | AK88: 83 | AL88: Jacoby Brissett | AM88: CLE | AN88: 30 | AO88: QB | AP88: 16 | AQ88: 11 | AR88: 49 | AS88: 243 | AT88: 2 | AU88: 28 | AV88: 22 | AW88: 5 | AX88: 15.2 | AY88: 6 | BA88: 84 | BB88: Zach Ertz | BC88: ARI | BD88: 32 | BE88: TE | BF88: 10 | BG88: 10 | BH88: 69 | BI88: 47 | BJ88: 0.681 | BK88: 406 | BL88: 8.6 | BM88: 4 | BN88: 24 | BO88: 32 | BP88: 5.9 | BQ88: 4.7 | BR88: 40.6 | BS88: 0 | BU88: 85 | BV88: Braden Mann | BW88: NYJ | BX88: 25 | BY88: P | BZ88: 17 | CA88: 0 | CB88: 1 | CC88: 2 | CD88: 17 | CE88: 0 | CF88: 0 | CG88: 0 | CH88: 0 | CI88: 0 | CJ88: 1 | CK88: 0.5 | CL88: 1 | CM88: 0.5
E89: 84 | F89: Riley Dixon | G89: LAR | H89: 29 | I89: P | J89: 17 | K89: 0 | M89: 2 | N89: 2 | O89: 100 | P89: 18 | Q89: 0 | R89: 0 | S89: 0 | T89: 0 | U89: 2 | V89: 12 | W89: 9 | X89: 9 | Y89: 9 | Z89: 1.1 | AA89: 104.2 | AC89: 0 | AD89: 0 | AE89: 0 | AF89: 9 | AG89: 9 | AK89: 84 | AL89: Justice Hill | AM89: BAL | AN89: 25 | AO89: RB | AP89: 15 | AQ89: 0 | AR89: 49 | AS89: 262 | AT89: 0 | AU89: 15 | AV89: 34 | AW89: 5.3 | AX89: 17.5 | AY89: 2 | BA89: 85 | BB89: Kalif Raymond | BC89: DET | BD89: 28 | BE89: WR | BF89: 17 | BG89: 7 | BH89: 64 | BI89: 47 | BJ89: 0.734 | BK89: 616 | BL89: 13.1 | BM89: 0 | BN89: 24 | BO89: 56 | BP89: 9.6 | BQ89: 2.8 | BR89: 36.2 | BS89: 3 | BU89: 86 | BV89: Ryan Wright | BW89: MIN | BX89: 22 | BY89: P | BZ89: 17 | CA89: 0 | CB89: 1 | CC89: 2 | CD89: 13 | CE89: 0 | CF89: 0 | CG89: 0 | CH89: 0 | CI89: 0 | CJ89: 0 | CK89: 0 | CL89: 1 | CM89: 0.5
E90: 85 | F90: Braden Mann | G90: NYJ | H90: 25 | I90: P | J90: 17 | K90: 0 | M90: 1 | N90: 2 | O90: 50 | P90: 17 | Q90: 0 | R90: 0 | S90: 0 | T90: 0 | U90: 1 | V90: 17 | W90: 8.5 | X90: 8.5 | Y90: 17 | Z90: 1 | AA90: 79.2 | AB90: 0 | AC90: 0 | AD90: 0 | AE90: 0 | AF90: 8.5 | AG90: 8.5 | AK90: 85 | AL90: Mac Jones | AM90: NWE | AN90: 24 | AO90: QB | AP90: 14 | AQ90: 14 | AR90: 47 | AS90: 102 | AT90: 1 | AU90: 12 | AV90: 15 | AW90: 2.2 | AX90: 7.3 | AY90: 5 | BA90: 86 | BB90: DeAndre Carter | BC90: LAC | BD90: 29 | BE90: WR | BF90: 17 | BG90: 7 | BH90: 65 | BI90: 46 | BJ90: 0.708 | BK90: 538 | BL90: 11.7 | BM90: 3 | BN90: 29 | BO90: 35 | BP90: 8.3 | BQ90: 2.7 | BR90: 31.6 | BS90: 3 | BU90: 87 | BV90: Josh Johnson | BW90: SFO | BX90: 36 | BY90: QB | BZ90: 2 | CA90: 0 | CB90: 1 | CC90: 2 | CD90: 10 | CE90: 1 | CF90: 0 | CG90: 0 | CH90: 0 | CI90: 0 | CJ90: 0 | CK90: 0 | CL90: 1 | CM90: 0.5
E91: 86 | F91: Ryan Wright | G91: MIN | H91: 22 | I91: P | J91: 17 | K91: 0 | M91: 1 | N91: 2 | O91: 50 | P91: 13 | Q91: 0 | R91: 0 | S91: 0 | T91: 0 | U91: 1 | V91: 13 | W91: 6.5 | X91: 6.5 | Y91: 13 | Z91: 0.8 | AA91: 70.8 | AC91: 0 | AD91: 0 | AE91: 0 | AF91: 6.5 | AG91: 6.5 | AK91: 86 | AL91: Javonte Williams | AM91: DEN | AN91: 22 | AO91: RB | AP91: 4 | AQ91: 4 | AR91: 47 | AS91: 204 | AT91: 0 | AU91: 9 | AV91: 17 | AW91: 4.3 | AX91: 51 | AY91: 1 | BA91: 87 | BB91: Chase Claypool | BC91: 2TM | BD91: 24 | BE91: WR | BF91: 15 | BG91: 11 | BH91: 79 | BI91: 46 | BJ91: 0.582 | BK91: 451 | BL91: 9.8 | BM91: 1 | BN91: 24 | BO91: 31 | BP91: 5.7 | BQ91: 3.1 | BR91: 30.1 | BS91: 1 | BU91: 88 | BV91: Case Keenum | BW91: BUF | BX91: 34 | BY91: QB | BZ91: 2 | CA91: 0 | CB91: 2 | CC91: 7 | CD91: 8 | CE91: 0 | CF91: 0 | CG91: 0 | CH91: 1 | CI91: 0.143 | CJ91: 2 | CK91: 0.286 | CL91: 3 | CM91: 0.429
E92: 87 | F92: Josh Johnson | G92: SFO | H92: 36 | I92: QB | J92: 2 | K92: 0 | M92: 1 | N92: 2 | O92: 50 | P92: 10 | Q92: 0 | R92: 0 | S92: 0 | T92: 0 | U92: 1 | V92: 10 | W92: 5 | X92: 5 | Y92: 10 | Z92: 5 | AA92: 64.6 | AB92: 20.4 | AC92: 0 | AD92: 0 | AE92: 0 | AF92: 5 | AG92: 5 | AK92: 87 | AL92: Jamycal Hasty | AM92: JAX | AN92: 26 | AO92: RB | AP92: 17 | AQ92: 0 | AR92: 46 | AS92: 194 | AT92: 2 | AU92: 7 | AV92: 61 | AW92: 4.2 | AX92: 11.4 | AY92: 0 | BA92: 88 | BB92: James Conner | BC92: ARI | BD92: 27 | BE92: RB | BF92: 13 | BG92: 13 | BH92: 58 | BI92: 46 | BJ92: 0.793 | BK92: 300 | BL92: 6.5 | BM92: 1 | BN92: 13 | BO92: 22 | BP92: 5.2 | BQ92: 3.5 | BR92: 23.1 | BS92: 3 | BU92: 89 | BV92: Jack Fox | BW92: DET | BX92: 26 | BY92: P | BZ92: 17 | CA92: 0 | CB92: 1 | CC92: 1 | CD92: 6 | CE92: 0 | CF92: 0 | CG92: 0 | CH92: 0 | CI92: 0 | CJ92: 0 | CK92: 0 | CL92: 1 | CM92: 1
E93: 88 | F93: Case Keenum | G93: BUF | H93: 34 | I93: QB | J93: 2 | K93: 0 | M93: 2 | N93: 7 | O93: 28.6 | P93: 8 | Q93: 0 | R93: 0 | S93: 0 | T93: 0 | U93: 0 | V93: 5 | W93: 1.1 | X93: 1.1 | Y93: 4 | Z93: 4 | AA93: 39.6 | AB93: 4.3 | AC93: 0 | AD93: 0 | AE93: 0 | AF93: 1.14 | AG93: 1.14 | AK93: 88 | AL93: Elijah Mitchell | AM93: SFO | AN93: 24 | AO93: RB | AP93: 5 | AQ93: 1 | AR93: 45 | AS93: 279 | AT93: 2 | AU93: 15 | AV93: 37 | AW93: 6.2 | AX93: 55.8 | AY93: 0 | BA93: 89 | BB93: Antonio Gibson | BC93: WAS | BD93: 24 | BE93: RB | BF93: 15 | BG93: 6 | BH93: 58 | BI93: 46 | BJ93: 0.793 | BK93: 353 | BL93: 7.7 | BM93: 2 | BN93: 18 | BO93: 26 | BP93: 6.1 | BQ93: 3.1 | BR93: 23.5 | BS93: 1 | BU93: 90 | BV93: Najee Harris | BW93: PIT | BX93: 24 | BY93: RB | BZ93: 17 | CA93: 17 | CB93: 1 | CC93: 1 | CD93: 4 | CE93: 0 | CF93: 0 | CG93: 0 | CH93: 0 | CI93: 0 | CJ93: 0 | CK93: 0 | CL93: 1 | CM93: 1
E94: 89 | F94: Jack Fox | G94: DET | H94: 26 | I94: P | J94: 17 | K94: 0 | M94: 1 | N94: 1 | O94: 100 | P94: 6 | Q94: 0 | R94: 0 | S94: 0 | T94: 0 | U94: 1 | V94: 6 | W94: 6 | X94: 6 | Y94: 6 | Z94: 0.4 | AA94: 91.7 | AC94: 0 | AD94: 0 | AE94: 0 | AF94: 6 | AG94: 6 | AK94: 89 | AL94: Dak Prescott | AM94: DAL | AN94: 29 | AO94: QB | AP94: 12 | AQ94: 12 | AR94: 45 | AS94: 182 | AT94: 1 | AU94: 19 | AV94: 25 | AW94: 4 | AX94: 15.2 | AY94: 4 | BA94: Rk | BB94: Player | BC94: Tm | BD94: Age | BE94: Pos | BF94: G | BG94: GS | BH94: Tgt | BI94: Rec | BJ94: Ctch% | BK94: Yds | BL94: Y/R | BM94: TD | BN94: 1D | BO94: Lng | BP94: Y/Tgt | BQ94: R/G | BR94: Y/G | BS94: Fmb | BU94: 91 | BV94: Derrick Henry | BW94: TEN | BX94: 28 | BY94: RB | BZ94: 16 | CA94: 16 | CB94: 2 | CC94: 2 | CD94: 4 | CE94: 0 | CF94: 0 | CG94: 0 | CH94: 0 | CI94: 0 | CJ94: 0 | CK94: 0 | CL94: 2 | CM94: 1
E95: Rk | F95: Player | G95: Tm | H95: Age | I95: Pos | J95: G | K95: GS | L95: QBrec | M95: Cmp | N95: Att | O95: Cmp% | P95: Yds | Q95: TD | R95: TD% | S95: Int | T95: Int% | U95: 1D | V95: Lng | W95: Y/A | X95: AY/A | Y95: Y/C | Z95: Y/G | AA95: Rate | AB95: QBR | AC95: Sk | AD95: Yds | AE95: Sk% | AF95: NY/A | AG95: ANY/A | AH95: 4QC | AI95: GWD | AK95: Rk | AL95: Player | AM95: Tm | AN95: Age | AO95: Pos | AP95: G | AQ95: GS | AR95: Att | AS95: Yds | AT95: TD | AU95: 1D | AV95: Lng | AW95: Y/A | AX95: Y/G | AY95: Fmb | BA95: 90 | BB95: Marvin Jones | BC95: JAX | BD95: 32 | BE95: WR | BF95: 16 | BG95: 10 | BH95: 81 | BI95: 46 | BJ95: 0.568 | BK95: 529 | BL95: 11.5 | BM95: 3 | BN95: 29 | BO95: 37 | BP95: 6.5 | BQ95: 2.9 | BR95: 33.1 | BS95: 0 | BU95: 92 | BV95: Mack Hollins | BW95: LVR | BX95: 29 | BY95: WR | BZ95: 17 | CA95: 16 | CB95: 1 | CC95: 1 | CD95: 4 | CE95: 0 | CF95: 0 | CG95: 0 | CH95: 0 | CI95: 0 | CJ95: 0 | CK95: 0 | CL95: 1 | CM95: 1
E96: 90 | F96: Najee Harris | G96: PIT | H96: 24 | I96: RB | J96: 17 | K96: 17 | M96: 1 | N96: 1 | O96: 100 | P96: 4 | Q96: 0 | R96: 0 | S96: 0 | T96: 0 | U96: 0 | V96: 4 | W96: 4 | X96: 4 | Y96: 4 | Z96: 0.2 | AA96: 83.3 | AB96: 10 | AC96: 0 | AD96: 0 | AE96: 0 | AF96: 4 | AG96: 4 | AK96: 90 | AL96: Tyler Huntley | AM96: BAL | AN96: 24 | AO96: QB | AP96: 6 | AQ96: 4 | AR96: 43 | AS96: 137 | AT96: 1 | AU96: 12 | AV96: 14 | AW96: 3.2 | AX96: 22.8 | AY96: 3 | BA96: 91 | BB96: Darius Slayton | BC96: NYG | BD96: 25 | BE96: WR | BF96: 16 | BG96: 11 | BH96: 71 | BI96: 46 | BJ96: 0.648 | BK96: 724 | BL96: 15.7 | BM96: 2 | BN96: 30 | BO96: 55 | BP96: 10.2 | BQ96: 2.9 | BR96: 45.3 | BS96: 2 | BU96: 93 | BV96: Andy Lee | BW96: ARI | BX96: 40 | BY96: P | BZ96: 17 | CA96: 0 | CB96: 1 | CC96: 1 | CD96: 4 | CE96: 0 | CF96: 0 | CG96: 0 | CH96: 0 | CI96: 0 | CJ96: 0 | CK96: 0 | CL96: 1 | CM96: 1
E97: 91 | F97: Derrick Henry | G97: TEN | H97: 28 | I97: RB | J97: 16 | K97: 16 | M97: 2 | N97: 2 | O97: 100 | P97: 4 | Q97: 1 | R97: 50 | S97: 0 | T97: 0 | U97: 1 | V97: 3 | W97: 2 | X97: 12 | Y97: 2 | Z97: 0.3 | AA97: 118.7 | AB97: 43.2 | AC97: 0 | AD97: 0 | AE97: 0 | AF97: 2 | AG97: 12 | AK97: 91 | AL97: Jordan Mason | AM97: SFO | AN97: 23 | AO97: RB | AP97: 16 | AQ97: 0 | AR97: 43 | AS97: 258 | AT97: 1 | AU97: 10 | AV97: 55 | AW97: 6 | AX97: 16.1 | AY97: 0 | BA97: 92 | BB97: Noah Brown | BC97: DAL | BD97: 26 | BE97: WR | BF97: 16 | BG97: 13 | BH97: 74 | BI97: 43 | BJ97: 0.581 | BK97: 555 | BL97: 12.9 | BM97: 3 | BN97: 25 | BO97: 51 | BP97: 7.5 | BQ97: 2.7 | BR97: 34.7 | BS97: 1 | BU97: 94 | BV97: Braxton Berrios | BW97: NYJ | BX97: 27 | BY97: WR | BZ97: 17 | CA97: 2 | CB97: 1 | CC97: 1 | CD97: 2 | CE97: 0 | CF97: 0 | CG97: 0 | CH97: 0 | CI97: 0 | CJ97: 0 | CK97: 0 | CL97: 1 | CM97: 1
E98: 92 | F98: Mack Hollins | G98: LVR | H98: 29 | I98: WR | J98: 17 | K98: 16 | M98: 1 | N98: 1 | O98: 100 | P98: 4 | Q98: 0 | R98: 0 | S98: 0 | T98: 0 | U98: 0 | V98: 4 | W98: 4 | X98: 4 | Y98: 4 | Z98: 0.2 | AA98: 83.3 | AB98: 22.1 | AC98: 0 | AD98: 0 | AE98: 0 | AF98: 4 | AG98: 4 | AK98: 92 | AL98: Justin Jackson | AM98: DET | AN98: 26 | AO98: RB | AP98: 16 | AQ98: 0 | AR98: 42 | AS98: 170 | AT98: 1 | AU98: 8 | AV98: 27 | AW98: 4 | AX98: 10.6 | AY98: 0 | BA98: 93 | BB98: Romeo Doubs | BC98: GNB | BD98: 22 | BE98: WR | BF98: 13 | BG98: 7 | BH98: 67 | BI98: 42 | BJ98: 0.627 | BK98: 425 | BL98: 10.1 | BM98: 3 | BN98: 20 | BO98: 26 | BP98: 6.3 | BQ98: 3.2 | BR98: 32.7 | BS98: 2 | BU98: 95 | BV98: Chase Claypool | BW98: 2TM | BX98: 24 | BY98: WR | BZ98: 15 | CA98: 11 | CB98: 1 | CC98: 1 | CD98: 1 | CE98: 0 | CF98: 0 | CG98: 0 | CH98: 0 | CI98: 0 | CJ98: 0 | CK98: 0 | CL98: 1 | CM98: 1
E99: 93 | F99: Andy Lee | G99: ARI | H99: 40 | I99: P | J99: 17 | K99: 0 | M99: 1 | N99: 1 | O99: 100 | P99: 4 | Q99: 0 | R99: 0 | S99: 0 | T99: 0 | U99: 1 | V99: 4 | W99: 4 | X99: 4 | Y99: 4 | Z99: 0.2 | AA99: 83.3 | AC99: 0 | AD99: 0 | AE99: 0 | AF99: 4 | AG99: 4 | AK99: 93 | AL99: Dare Ogunbowale | AM99: HOU | AN99: 28 | AO99: RB | AP99: 17 | AQ99: 4 | AR99: 42 | AS99: 123 | AT99: 1 | AU99: 10 | AV99: 11 | AW99: 2.9 | AX99: 7.2 | AY99: 0 | BA99: 94 | BB99: Juwan Johnson | BC99: NOR | BD99: 26 | BE99: TE | BF99: 16 | BG99: 12 | BH99: 65 | BI99: 42 | BJ99: 0.646 | BK99: 508 | BL99: 12.1 | BM99: 7 | BN99: 25 | BO99: 41 | BP99: 7.8 | BQ99: 2.6 | BR99: 31.8 | BS99: 0 | BU99: 96 | BV99: Rex Burkhead | BW99: HOU | BX99: 32 | BY99: RB | BZ99: 16 | CA99: 0 | CB99: 0 | CC99: 1 | CD99: 0 | CE99: 0 | CF99: 0 | CG99: 0 | CH99: 0 | CI99: 0 | CJ99: 1 | CK99: 1 | CL99: 0 | CM99: 0
E100: 94 | F100: Braxton Berrios | G100: NYJ | H100: 27 | I100: WR | J100: 17 | K100: 2 | M100: 1 | N100: 1 | O100: 100 | P100: 2 | Q100: 1 | R100: 100 | S100: 0 | T100: 0 | U100: 1 | V100: 2 | W100: 2 | X100: 22 | Y100: 2 | Z100: 0.1 | AA100: 118.7 | AB100: 99.5 | AC100: 0 | AD100: 0 | AE100: 0 | AF100: 2 | AG100: 22 | AK100: 94 | AL100: Deebo Samuel | AM100: SFO | AN100: 26 | AO100: WR | AP100: 13 | AQ100: 12 | AR100: 42 | AS100: 232 | AT100: 3 | AU100: 8 | AV100: 51 | AW100: 5.5 | AX100: 17.8 | AY100: 3 | BA100: 95 | BB100: Isaiah McKenzie | BC100: BUF | BD100: 27 | BE100: WR | BF100: 15 | BG100: 8 | BH100: 65 | BI100: 42 | BJ100: 0.646 | BK100: 423 | BL100: 10.1 | BM100: 4 | BN100: 27 | BO100: 30 | BP100: 6.5 | BQ100: 2.8 | BR100: 28.2 | BS100: 0 | BU100: 97 | BV100: Amari Cooper | BW100: CLE | BX100: 28 | BY100: WR | BZ100: 17 | CA100: 17 | CB100: 0 | CC100: 1 | CD100: 0 | CE100: 0 | CF100: 0 | CG100: 0 | CH100: 0 | CI100: 0 | CJ100: 1 | CK100: 1 | CL100: 0 | CM100: 0
E101: 95 | F101: Chase Claypool | G101: 2TM | H101: 24 | I101: WR | J101: 15 | K101: 11 | M101: 1 | N101: 1 | O101: 100 | P101: 1 | Q101: 1 | R101: 100 | S101: 0 | T101: 0 | U101: 1 | V101: 1 | W101: 1 | X101: 21 | Y101: 1 | Z101: 0.1 | AA101: 118.7 | AB101: 100 | AC101: 0 | AD101: 0 | AE101: 0 | AF101: 1 | AG101: 21 | AK101: 95 | AL101: Royce Freeman | AM101: HOU | AN101: 26 | AO101: RB | AP101: 4 | AQ101: 1 | AR101: 41 | AS101: 117 | AT101: 0 | AU101: 7 | AV101: 11 | AW101: 2.9 | AX101: 29.3 | AY101: 1 | BA101: 96 | BB101: Cade Otton | BC101: TAM | BD101: 23 | BE101: TE | BF101: 16 | BG101: 11 | BH101: 65 | BI101: 42 | BJ101: 0.646 | BK101: 391 | BL101: 9.3 | BM101: 2 | BN101: 19 | BO101: 35 | BP101: 6 | BQ101: 2.6 | BR101: 24.4 | BS101: 0 | BU101: 98 | BV101: DeeJay Dallas | BW101: SEA | BX101: 24 | BY101: RB | BZ101: 15 | CA101: 0 | CB101: 0 | CC101: 1 | CD101: 0 | CE101: 0 | CF101: 0 | CG101: 0 | CH101: 0 | CI101: 0 | CJ101: 1 | CK101: 1 | CL101: 0 | CM101: 0
E102: 96 | F102: Rex Burkhead | G102: HOU | H102: 32 | I102: RB | J102: 16 | K102: 0 | M102: 0 | N102: 1 | O102: 0 | P102: 0 | Q102: 0 | R102: 0 | S102: 0 | T102: 0 | U102: 0 | V102: 0 | W102: 0 | X102: 0 | Z102: 0 | AA102: 39.6 | AB102: 2.9 | AC102: 0 | AD102: 0 | AE102: 0 | AF102: 0 | AG102: 0 | AK102: 96 | AL102: Malik Davis | AM102: DAL | AN102: 24 | AO102: RB | AP102: 12 | AQ102: 0 | AR102: 38 | AS102: 161 | AT102: 1 | AU102: 6 | AV102: 23 | AW102: 4.2 | AX102: 13.4 | AY102: 0 | BA102: 97 | BB102: Marquez Valdes-Scantling | BC102: KAN | BD102: 28 | BE102: WR | BF102: 17 | BG102: 11 | BH102: 81 | BI102: 42 | BJ102: 0.519 | BK102: 687 | BL102: 16.4 | BM102: 2 | BN102: 32 | BO102: 57 | BP102: 8.5 | BQ102: 2.5 | BR102: 40.4 | BS102: 0 | BU102: 99 | BV102: Phillip Dorsett | BW102: HOU | BX102: 29 | BY102: WR | BZ102: 15 | CA102: 4 | CB102: 0 | CC102: 1 | CD102: 0 | CE102: 0 | CF102: 1 | CG102: 0 | CH102: 0 | CI102: 0 | CJ102: 0 | CK102: 0 | CL102: 0 | CM102: 0
E103: 97 | F103: Amari Cooper | G103: CLE | H103: 28 | I103: WR | J103: 17 | K103: 17 | M103: 0 | N103: 1 | O103: 0 | P103: 0 | Q103: 0 | R103: 0 | S103: 1 | T103: 100 | U103: 0 | V103: 0 | W103: 0 | X103: -45 | Z103: 0 | AA103: 0 | AB103: 0 | AC103: 0 | AD103: 0 | AE103: 0 | AF103: 0 | AG103: -45 | AK103: 97 | AL103: Curtis Samuel | AM103: WAS | AN103: 26 | AO103: WR | AP103: 17 | AQ103: 12 | AR103: 38 | AS103: 187 | AT103: 1 | AU103: 11 | AV103: 21 | AW103: 4.9 | AX103: 11 | AY103: 1 | BA103: 98 | BB103: Michael Carter | BC103: NYJ | BD103: 23 | BE103: RB | BF103: 16 | BG103: 10 | BH103: 54 | BI103: 41 | BJ103: 0.759 | BK103: 288 | BL103: 7 | BM103: 0 | BN103: 12 | BO103: 37 | BP103: 5.3 | BQ103: 2.6 | BR103: 18 | BS103: 2 | BU103: 100 | BV103: Leonard Fournette | BW103: TAM | BX103: 27 | BY103: RB | BZ103: 16 | CA103: 9 | CB103: 0 | CC103: 1 | CD103: 0 | CE103: 0 | CF103: 0 | CG103: 0 | CH103: 0 | CI103: 0 | CJ103: 0 | CK103: 0 | CL103: 0 | CM103: 0
E104: 98 | F104: DeeJay Dallas | G104: SEA | H104: 24 | I104: RB | J104: 15 | K104: 0 | M104: 0 | N104: 1 | O104: 0 | P104: 0 | Q104: 0 | R104: 0 | S104: 1 | T104: 100 | U104: 0 | V104: 0 | W104: 0 | X104: -45 | Z104: 0 | AA104: 0 | AB104: 0 | AC104: 0 | AD104: 0 | AE104: 0 | AF104: 0 | AG104: -45 | AK104: 98 | AL104: Jonathan Williams | AM104: WAS | AN104: 28 | AO104: RB | AP104: 13 | AQ104: 2 | AR104: 37 | AS104: 152 | AT104: 0 | AU104: 6 | AV104: 23 | AW104: 4.1 | AX104: 11.7 | AY104: 0 | BA104: 99 | BB104: Najee Harris | BC104: PIT | BD104: 24 | BE104: RB | BF104: 17 | BG104: 17 | BH104: 53 | BI104: 41 | BJ104: 0.774 | BK104: 229 | BL104: 5.6 | BM104: 3 | BN104: 16 | BO104: 19 | BP104: 4.3 | BQ104: 2.4 | BR104: 13.5 | BS104: 3 | BU104: 101 | BV104: Chad Henne | BW104: KAN | BX104: 37 | BY104: QB | BZ104: 3 | CA104: 0 | CB104: 0 | CC104: 2 | CD104: 0 | CE104: 1 | CF104: 0 | CG104: 0 | CH104: 1 | CI104: 0.5 | CJ104: 0 | CK104: 0 | CL104: 0 | CM104: 0
E105: 99 | F105: Phillip Dorsett | G105: HOU | H105: 29 | I105: WR | J105: 15 | K105: 4 | M105: 0 | N105: 1 | O105: 0 | P105: 0 | Q105: 0 | R105: 0 | S105: 0 | T105: 0 | U105: 0 | V105: 0 | W105: 0 | X105: 0 | Z105: 0 | AA105: 39.6 | AB105: 2.5 | AC105: 0 | AD105: 0 | AE105: 0 | AF105: 0 | AG105: 0 | AK105: 99 | AL105: Sony Michel | AM105: LAC | AN105: 27 | AO105: RB | AP105: 10 | AQ105: 0 | AR105: 36 | AS105: 106 | AT105: 0 | AU105: 8 | AV105: 12 | AW105: 2.9 | AX105: 10.6 | AY105: 0 | BA105: 100 | BB105: Hunter Henry | BC105: NWE | BD105: 28 | BE105: TE | BF105: 17 | BG105: 14 | BH105: 59 | BI105: 41 | BJ105: 0.695 | BK105: 509 | BL105: 12.4 | BM105: 2 | BN105: 23 | BO105: 39 | BP105: 8.6 | BQ105: 2.4 | BR105: 29.9 | BS105: 0 | BU105: 102 | BV105: Christian Kirk | BW105: JAX | BX105: 26 | BY105: WR | BZ105: 17 | CA105: 17 | CB105: 0 | CC105: 1 | CD105: 0 | CE105: 0 | CF105: 0 | CG105: 0 | CH105: 0 | CI105: 0 | CJ105: 1 | CK105: 1 | CL105: 0 | CM105: 0
E106: 100 | F106: Leonard Fournette | G106: TAM | H106: 27 | I106: RB | J106: 16 | K106: 9 | M106: 0 | N106: 1 | O106: 0 | P106: 0 | Q106: 0 | R106: 0 | S106: 1 | T106: 100 | U106: 0 | V106: 0 | W106: 0 | X106: -45 | Z106: 0 | AA106: 0 | AB106: 0 | AC106: 0 | AD106: 0 | AE106: 0 | AF106: 0 | AG106: -45 | AK106: 100 | AL106: Deshaun Watson | AM106: CLE | AN106: 27 | AO106: QB | AP106: 6 | AQ106: 6 | AR106: 36 | AS106: 175 | AT106: 1 | AU106: 10 | AV106: 21 | AW106: 4.9 | AX106: 29.2 | AY106: 1 | BA106: 101 | BB106: Austin Hooper | BC106: TEN | BD106: 28 | BE106: TE | BF106: 17 | BG106: 2 | BH106: 60 | BI106: 41 | BJ106: 0.683 | BK106: 444 | BL106: 10.8 | BM106: 2 | BN106: 28 | BO106: 24 | BP106: 7.4 | BQ106: 2.4 | BR106: 26.1 | BS106: 0 | BU106: 103 | BV106: Cooper Kupp | BW106: LAR | BX106: 29 | BY106: WR | BZ106: 9 | CA106: 9 | CB106: 0 | CC106: 1 | CD106: 0 | CE106: 0 | CF106: 0 | CG106: 0 | CH106: 0 | CI106: 0 | CJ106: 1 | CK106: 1 | CL106: 0 | CM106: 0
E107: 101 | F107: Chad Henne | G107: KAN | H107: 37 | I107: QB | J107: 3 | K107: 0 | M107: 0 | N107: 2 | O107: 0 | P107: 0 | Q107: 0 | R107: 0 | S107: 0 | T107: 0 | U107: 0 | V107: 0 | W107: 0 | X107: 0 | Z107: 0 | AA107: 39.6 | AB107: 3.5 | AC107: 0 | AD107: 0 | AE107: 0 | AF107: 0 | AG107: 0 | AK107: 101 | AL107: DeeJay Dallas | AM107: SEA | AN107: 24 | AO107: RB | AP107: 15 | AQ107: 0 | AR107: 35 | AS107: 186 | AT107: 0 | AU107: 9 | AV107: 27 | AW107: 5.3 | AX107: 12.4 | AY107: 1 | BA107: 102 | BB107: Rondale Moore | BC107: ARI | BD107: 22 | BE107: WR | BF107: 8 | BG107: 8 | BH107: 56 | BI107: 41 | BJ107: 0.732 | BK107: 414 | BL107: 10.1 | BM107: 1 | BN107: 16 | BO107: 38 | BP107: 7.4 | BQ107: 5.1 | BR107: 51.8 | BS107: 0 | BU107: 104 | BV107: James Proche | BW107: BAL | BX107: 26 | BY107: WR | BZ107: 15 | CA107: 0 | CB107: 0 | CC107: 1 | CD107: 0 | CE107: 0 | CF107: 0 | CG107: 0 | CH107: 0 | CI107: 0 | CJ107: 0 | CK107: 0 | CL107: 1 | CM107: 1
E108: 102 | F108: Christian Kirk | G108: JAX | H108: 26 | I108: WR | J108: 17 | K108: 17 | M108: 0 | N108: 1 | O108: 0 | P108: 0 | Q108: 0 | R108: 0 | S108: 0 | T108: 0 | U108: 0 | V108: 0 | W108: 0 | X108: 0 | Z108: 0 | AA108: 39.6 | AB108: 9.9 | AC108: 0 | AD108: 0 | AE108: 0 | AF108: 0 | AG108: 0 | AK108: 102 | AL108: Kyren Williams | AM108: LAR | AN108: 22 | AO108: RB | AP108: 10 | AQ108: 0 | AR108: 35 | AS108: 139 | AT108: 0 | AU108: 6 | AV108: 17 | AW108: 4 | AX108: 13.9 | AY108: 0 | BA108: 103 | BB108: Alec Pierce | BC108: IND | BD108: 22 | BE108: WR | BF108: 16 | BG108: 12 | BH108: 78 | BI108: 41 | BJ108: 0.526 | BK108: 593 | BL108: 14.5 | BM108: 2 | BN108: 28 | BO108: 47 | BP108: 7.6 | BQ108: 2.6 | BR108: 37.1 | BS108: 1 | BU108: 105 | BV108: Tommy Townsend | BW108: KAN | BX108: 26 | BY108: P | BZ108: 17 | CA108: 0 | CB108: 0 | CC108: 1 | CD108: 0 | CE108: 0 | CF108: 0 | CG108: 0 | CH108: 0 | CI108: 0 | CJ108: 1 | CK108: 1 | CL108: 0 | CM108: 0
E109: 103 | F109: Cooper Kupp | G109: LAR | H109: 29 | I109: WR | J109: 9 | K109: 9 | M109: 0 | N109: 1 | O109: 0 | P109: 0 | Q109: 0 | R109: 0 | S109: 0 | T109: 0 | U109: 0 | V109: 0 | W109: 0 | X109: 0 | Z109: 0 | AA109: 39.6 | AB109: 3 | AC109: 0 | AD109: 0 | AE109: 0 | AF109: 0 | AG109: 0 | AK109: 103 | AL109: Tyrion Davis-Price | AM109: SFO | AN109: 22 | AO109: RB | AP109: 6 | AQ109: 0 | AR109: 34 | AS109: 99 | AT109: 0 | AU109: 5 | AV109: 20 | AW109: 2.9 | AX109: 16.5 | AY109: 0 | BA109: 104 | BB109: Christian Watson | BC109: GNB | BD109: 23 | BE109: WR | BF109: 14 | BG109: 11 | BH109: 66 | BI109: 41 | BJ109: 0.621 | BK109: 611 | BL109: 14.9 | BM109: 7 | BN109: 28 | BO109: 63 | BP109: 9.3 | BQ109: 2.9 | BR109: 43.6 | BS109: 0 | BU109: 106 | BV109: Garrett Wilson | BW109: NYJ | BX109: 22 | BY109: WR | BZ109: 17 | CA109: 12 | CB109: 0 | CC109: 1 | CD109: 0 | CE109: 0 | CF109: 1 | CG109: 0 | CH109: 0 | CI109: 0 | CJ109: 0 | CK109: 0 | CL109: 0 | CM109: 0
E110: 104 | F110: James Proche | G110: BAL | H110: 26 | I110: WR | J110: 15 | K110: 0 | M110: 0 | N110: 1 | O110: 0 | P110: 0 | Q110: 0 | R110: 0 | S110: 1 | T110: 100 | U110: 0 | V110: 0 | W110: 0 | X110: -45 | Z110: 0 | AA110: 0 | AB110: 0 | AC110: 0 | AD110: 0 | AE110: 0 | AF110: 0 | AG110: -45 | AK110: 104 | AL110: Aaron Rodgers | AM110: GNB | AN110: 39 | AO110: QB | AP110: 17 | AQ110: 17 | AR110: 34 | AS110: 94 | AT110: 1 | AU110: 9 | AV110: 18 | AW110: 2.8 | AX110: 5.5 | AY110: 8 | BA110: 105 | BB110: Darnell Mooney | BC110: CHI | BD110: 25 | BE110: WR | BF110: 12 | BG110: 12 | BH110: 61 | BI110: 40 | BJ110: 0.656 | BK110: 493 | BL110: 12.3 | BM110: 2 | BN110: 20 | BO110: 56 | BP110: 8.1 | BQ110: 3.3 | BR110: 41.1 | BS110: 0
E111: 105 | F111: Tommy Townsend | G111: KAN | H111: 26 | I111: P | J111: 17 | K111: 0 | M111: 0 | N111: 1 | O111: 0 | P111: 0 | Q111: 0 | R111: 0 | S111: 0 | T111: 0 | U111: 0 | V111: 0 | W111: 0 | X111: 0 | Z111: 0 | AA111: 39.6 | AC111: 0 | AD111: 0 | AE111: 0 | AF111: 0 | AG111: 0 | AK111: 105 | AL111: Ryan Tannehill | AM111: TEN | AN111: 34 | AO111: QB | AP111: 12 | AQ111: 12 | AR111: 34 | AS111: 98 | AT111: 2 | AU111: 12 | AV111: 17 | AW111: 2.9 | AX111: 8.2 | AY111: 3 | BA111: 106 | BB111: Olamide Zaccheaus | BC111: ATL | BD111: 25 | BE111: WR | BF111: 17 | BG111: 13 | BH111: 61 | BI111: 40 | BJ111: 0.656 | BK111: 533 | BL111: 13.3 | BM111: 3 | BN111: 25 | BO111: 45 | BP111: 8.7 | BQ111: 2.4 | BR111: 31.4 | BS111: 1
E112: 106 | F112: Garrett Wilson | G112: NYJ | H112: 22 | I112: WR | J112: 17 | K112: 12 | M112: 0 | N112: 1 | O112: 0 | P112: 0 | Q112: 0 | R112: 0 | S112: 0 | T112: 0 | U112: 0 | V112: 0 | W112: 0 | X112: 0 | Z112: 0 | AA112: 39.6 | AB112: 0.8 | AC112: 0 | AD112: 0 | AE112: 0 | AF112: 0 | AG112: 0 | AK112: 106 | AL112: Davis Mills | AM112: HOU | AN112: 24 | AO112: QB | AP112: 15 | AQ112: 15 | AR112: 32 | AS112: 108 | AT112: 2 | AU112: 8 | AV112: 17 | AW112: 3.4 | AX112: 7.2 | AY112: 8 | BA112: 107 | BB112: Dalvin Cook | BC112: MIN | BD112: 27 | BE112: RB | BF112: 17 | BG112: 17 | BH112: 56 | BI112: 39 | BJ112: 0.696 | BK112: 295 | BL112: 7.6 | BM112: 2 | BN112: 16 | BO112: 64 | BP112: 5.3 | BQ112: 2.3 | BR112: 17.4 | BS112: 4
AK113: 107 | AL113: Gary Brightwell | AM113: NYG | AN113: 23 | AO113: RB | AP113: 17 | AQ113: 0 | AR113: 31 | AS113: 141 | AT113: 1 | AU113: 9 | AV113: 25 | AW113: 4.5 | AX113: 8.3 | AY113: 0 | BA113: 108 | BB113: Michael Gallup | BC113: DAL | BD113: 26 | BE113: WR | BF113: 14 | BG113: 11 | BH113: 74 | BI113: 39 | BJ113: 0.527 | BK113: 424 | BL113: 10.9 | BM113: 4 | BN113: 25 | BO113: 27 | BP113: 5.7 | BQ113: 2.8 | BR113: 30.3 | BS113: 0
AK114: 108 | AL114: Kirk Cousins | AM114: MIN | AN114: 34 | AO114: QB | AP114: 17 | AQ114: 17 | AR114: 31 | AS114: 97 | AT114: 2 | AU114: 11 | AV114: 19 | AW114: 3.1 | AX114: 5.7 | AY114: 7 | BA114: 109 | BB114: Tony Pollard | BC114: DAL | BD114: 25 | BE114: RB | BF114: 16 | BG114: 4 | BH114: 55 | BI114: 39 | BJ114: 0.709 | BK114: 371 | BL114: 9.5 | BM114: 3 | BN114: 18 | BO114: 68 | BP114: 6.7 | BQ114: 2.4 | BR114: 23.2 | BS114: 0
AK115: 109 | AL115: Baker Mayfield | AM115: 2TM | AN115: 27 | AP115: 12 | AQ115: 10 | AR115: 31 | AS115: 89 | AT115: 1 | AU115: 7 | AV115: 17 | AW115: 2.9 | AX115: 7.4 | AY115: 9 | BA115: 110 | BB115: Ben Skowronek | BC115: LAR | BD115: 25 | BE115: WR | BF115: 14 | BG115: 11 | BH115: 61 | BI115: 39 | BJ115: 0.639 | BK115: 376 | BL115: 9.6 | BM115: 0 | BN115: 16 | BO115: 32 | BP115: 6.2 | BQ115: 2.8 | BR115: 26.9 | BS115: 0
AK116: 110 | AL116: Andy Dalton | AM116: NOR | AN116: 35 | AO116: QB | AP116: 14 | AQ116: 14 | AR116: 30 | AS116: 54 | AT116: 0 | AU116: 6 | AV116: 14 | AW116: 1.8 | AX116: 3.9 | AY116: 5 | BA116: 111 | BB116: Logan Thomas | BC116: WAS | BD116: 31 | BE116: TE | BF116: 14 | BG116: 13 | BH116: 61 | BI116: 39 | BJ116: 0.639 | BK116: 323 | BL116: 8.3 | BM116: 1 | BN116: 15 | BO116: 27 | BP116: 5.3 | BQ116: 2.8 | BR116: 23.1 | BS116: 0
AK117: 111 | AL117: Ty Johnson | AM117: NYJ | AN117: 25 | AO117: RB | AP117: 17 | AQ117: 1 | AR117: 30 | AS117: 160 | AT117: 1 | AU117: 5 | AV117: 32 | AW117: 5.3 | AX117: 9.4 | AY117: 0 | BA117: 112 | BB117: Samaje Perine | BC117: CIN | BD117: 27 | BE117: RB | BF117: 16 | BG117: 2 | BH117: 51 | BI117: 38 | BJ117: 0.745 | BK117: 287 | BL117: 7.6 | BM117: 4 | BN117: 11 | BO117: 32 | BP117: 5.6 | BQ117: 2.4 | BR117: 17.9 | BS117: 0
AK118: 112 | AL118: Tom Brady | AM118: TAM | AN118: 45 | AO118: QB | AP118: 17 | AQ118: 17 | AR118: 29 | AS118: -1 | AT118: 1 | AU118: 5 | AV118: 2 | AW118: 0 | AX118: -0.1 | AY118: 5 | BA118: 113 | BB118: Josh Reynolds | BC118: DET | BD118: 27 | BE118: WR | BF118: 14 | BG118: 11 | BH118: 59 | BI118: 38 | BJ118: 0.644 | BK118: 479 | BL118: 12.6 | BM118: 3 | BN118: 25 | BO118: 31 | BP118: 8.1 | BQ118: 2.7 | BR118: 34.2 | BS118: 0
AK119: 113 | AL119: Jared Goff | AM119: DET | AN119: 28 | AO119: QB | AP119: 17 | AQ119: 17 | AR119: 29 | AS119: 73 | AT119: 0 | AU119: 5 | AV119: 14 | AW119: 2.5 | AX119: 4.3 | AY119: 7 | BA119: 114 | BB119: Devin Singletary | BC119: BUF | BD119: 25 | BE119: RB | BF119: 16 | BG119: 16 | BH119: 52 | BI119: 38 | BJ119: 0.731 | BK119: 280 | BL119: 7.4 | BM119: 1 | BN119: 15 | BO119: 22 | BP119: 5.4 | BQ119: 2.4 | BR119: 17.5 | BS119: 3
AK120: 114 | AL120: Taylor Heinicke | AM120: WAS | AN120: 29 | AO120: QB | AP120: 9 | AQ120: 9 | AR120: 28 | AS120: 96 | AT120: 1 | AU120: 6 | AV120: 15 | AW120: 3.4 | AX120: 10.7 | AY120: 7 | BA120: 115 | BB120: Jordan Akins | BC120: HOU | BD120: 30 | BE120: TE | BF120: 15 | BG120: 3 | BH120: 54 | BI120: 37 | BJ120: 0.685 | BK120: 495 | BL120: 13.4 | BM120: 5 | BN120: 23 | BO120: 46 | BP120: 9.2 | BQ120: 2.5 | BR120: 33 | BS120: 1
AK121: 115 | AL121: Zach Wilson | AM121: NYJ | AN121: 23 | AO121: QB | AP121: 9 | AQ121: 9 | AR121: 28 | AS121: 102 | AT121: 1 | AU121: 7 | AV121: 18 | AW121: 3.6 | AX121: 11.3 | AY121: 1 | BA121: 116 | BB121: Rex Burkhead | BC121: HOU | BD121: 32 | BE121: RB | BF121: 16 | BG121: 0 | BH121: 51 | BI121: 37 | BJ121: 0.725 | BK121: 204 | BL121: 5.5 | BM121: 1 | BN121: 8 | BO121: 17 | BP121: 4 | BQ121: 2.3 | BR121: 12.8 | BS121: 0
AK122: 116 | AL122: Keaontay Ingram | AM122: ARI | AN122: 23 | AO122: RB | AP122: 12 | AQ122: 0 | AR122: 27 | AS122: 60 | AT122: 1 | AU122: 4 | AV122: 13 | AW122: 2.2 | AX122: 5 | AY122: 0 | BA122: 117 | BB122: Nico Collins | BC122: HOU | BD122: 23 | BE122: WR | BF122: 10 | BG122: 7 | BH122: 66 | BI122: 37 | BJ122: 0.561 | BK122: 481 | BL122: 13 | BM122: 2 | BN122: 21 | BO122: 58 | BP122: 7.3 | BQ122: 3.7 | BR122: 48.1 | BS122: 0
AK123: 117 | AL123: Matt Ryan | AM123: IND | AN123: 37 | AO123: QB | AP123: 12 | AQ123: 12 | AR123: 27 | AS123: 70 | AT123: 1 | AU123: 9 | AV123: 39 | AW123: 2.6 | AX123: 5.8 | AY123: 15 | BA123: 118 | BB123: Devin Duvernay | BC123: BAL | BD123: 25 | BE123: WR | BF123: 14 | BG123: 13 | BH123: 49 | BI123: 37 | BJ123: 0.755 | BK123: 407 | BL123: 11 | BM123: 3 | BN123: 19 | BO123: 31 | BP123: 8.3 | BQ123: 2.6 | BR123: 29.1 | BS123: 1
AK124: 118 | AL124: Malik Willis | AM124: TEN | AN124: 23 | AO124: QB | AP124: 8 | AQ124: 3 | AR124: 27 | AS124: 123 | AT124: 1 | AU124: 8 | AV124: 17 | AW124: 4.6 | AX124: 15.4 | AY124: 3 | BA124: 119 | BB124: Isaiah Hodgins | BC124: 2TM | BD124: 24 | BE124: WR | BF124: 10 | BG124: 5 | BH124: 48 | BI124: 37 | BJ124: 0.771 | BK124: 392 | BL124: 10.6 | BM124: 4 | BN124: 24 | BO124: 29 | BP124: 8.2 | BQ124: 3.7 | BR124: 39.2 | BS124: 1
AK125: 119 | AL125: Rex Burkhead | AM125: HOU | AN125: 32 | AO125: RB | AP125: 16 | AQ125: 0 | AR125: 26 | AS125: 80 | AT125: 0 | AU125: 4 | AV125: 9 | AW125: 3.1 | AX125: 5 | AY125: 0 | BA125: Rk | BB125: Player | BC125: Tm | BD125: Age | BE125: Pos | BF125: G | BG125: GS | BH125: Tgt | BI125: Rec | BJ125: Ctch% | BK125: Yds | BL125: Y/R | BM125: TD | BN125: 1D | BO125: Lng | BP125: Y/Tgt | BQ125: R/G | BR125: Y/G | BS125: Fmb
AK126: Rk | AL126: Player | AM126: Tm | AN126: Age | AO126: Pos | AP126: G | AQ126: GS | AR126: Att | AS126: Yds | AT126: TD | AU126: 1D | AV126: Lng | AW126: Y/A | AX126: Y/G | AY126: Fmb | BA126: 120 | BB126: Elijah Moore | BC126: NYJ | BD126: 22 | BE126: WR | BF126: 16 | BG126: 9 | BH126: 65 | BI126: 37 | BJ126: 0.569 | BK126: 446 | BL126: 12.1 | BM126: 1 | BN126: 22 | BO126: 42 | BP126: 6.9 | BQ126: 2.3 | BR126: 27.9 | BS126: 1
AK127: 120 | AL127: Sam Darnold | AM127: CAR | AN127: 25 | AO127: QB | AP127: 6 | AQ127: 6 | AR127: 26 | AS127: 106 | AT127: 2 | AU127: 10 | AV127: 26 | AW127: 4.1 | AX127: 17.7 | AY127: 6 | BA127: 121 | BB127: Isaiah Likely | BC127: BAL | BD127: 22 | BE127: TE | BF127: 16 | BG127: 2 | BH127: 60 | BI127: 36 | BJ127: 0.6 | BK127: 373 | BL127: 10.4 | BM127: 3 | BN127: 18 | BO127: 34 | BP127: 6.2 | BQ127: 2.3 | BR127: 23.3 | BS127: 0
AK128: 121 | AL128: Hassan Haskins | AM128: TEN | AN128: 23 | AO128: RB | AP128: 15 | AQ128: 1 | AR128: 25 | AS128: 93 | AT128: 0 | AU128: 5 | AV128: 12 | AW128: 3.7 | AX128: 6.2 | AY128: 0 | BA128: 122 | BB128: Hunter Renfrow | BC128: LVR | BD128: 27 | BE128: WR | BF128: 10 | BG128: 1 | BH128: 50 | BI128: 36 | BJ128: 0.72 | BK128: 330 | BL128: 9.2 | BM128: 2 | BN128: 18 | BO128: 27 | BP128: 6.6 | BQ128: 3.6 | BR128: 33 | BS128: 3
AK129: 122 | AL129: Mike Boone | AM129: DEN | AN129: 27 | AO129: RB | AP129: 9 | AQ129: 0 | AR129: 24 | AS129: 102 | AT129: 0 | AU129: 6 | AV129: 18 | AW129: 4.3 | AX129: 11.3 | AY129: 0 | BA129: 123 | BB129: Kendrick Bourne | BC129: NWE | BD129: 27 | BE129: WR | BF129: 16 | BG129: 2 | BH129: 48 | BI129: 35 | BJ129: 0.729 | BK129: 434 | BL129: 12.4 | BM129: 1 | BN129: 22 | BO129: 41 | BP129: 9 | BQ129: 2.2 | BR129: 27.1 | BS129: 2
AK130: 123 | AL130: Derek Carr | AM130: LVR | AN130: 31 | AO130: QB | AP130: 15 | AQ130: 15 | AR130: 24 | AS130: 102 | AT130: 0 | AU130: 10 | AV130: 20 | AW130: 4.3 | AX130: 6.8 | AY130: 4 | BA130: 124 | BB130: Jahan Dotson | BC130: WAS | BD130: 22 | BE130: WR | BF130: 12 | BG130: 10 | BH130: 61 | BI130: 35 | BJ130: 0.574 | BK130: 523 | BL130: 14.9 | BM130: 7 | BN130: 26 | BO130: 61 | BP130: 8.6 | BQ130: 2.9 | BR130: 43.6 | BS130: 0
AK131: 124 | AL131: Trestan Ebner | AM131: CHI | AN131: 23 | AO131: RB | AP131: 17 | AQ131: 0 | AR131: 24 | AS131: 54 | AT131: 0 | AU131: 2 | AV131: 11 | AW131: 2.3 | AX131: 3.2 | AY131: 2 | BA131: 125 | BB131: Travis Etienne | BC131: JAX | BD131: 23 | BE131: RB | BF131: 17 | BG131: 12 | BH131: 45 | BI131: 35 | BJ131: 0.778 | BK131: 316 | BL131: 9 | BM131: 0 | BN131: 16 | BO131: 30 | BP131: 7 | BQ131: 2.1 | BR131: 18.6 | BS131: 5
AK132: 125 | AL132: Nyheim Hines | AM132: 2TM | AN132: 26 | AO132: RB | AP132: 16 | AQ132: 5 | AR132: 24 | AS132: 33 | AT132: 1 | AU132: 2 | AV132: 9 | AW132: 1.4 | AX132: 2.1 | AY132: 2 | BA132: 126 | BB132: Kareem Hunt | BC132: CLE | BD132: 27 | BE132: RB | BF132: 17 | BG132: 0 | BH132: 44 | BI132: 35 | BJ132: 0.795 | BK132: 210 | BL132: 6 | BM132: 1 | BN132: 11 | BO132: 24 | BP132: 4.8 | BQ132: 2.1 | BR132: 12.4 | BS132: 1
AK133: 126 | AL133: Raheem Blackshear | AM133: CAR | AN133: 23 | AO133: RB | AP133: 13 | AQ133: 1 | AR133: 23 | AS133: 77 | AT133: 3 | AU133: 7 | AV133: 16 | AW133: 3.3 | AX133: 5.9 | AY133: 1 | BA133: 127 | BB133: Jauan Jennings | BC133: SFO | BD133: 25 | BE133: WR | BF133: 16 | BG133: 4 | BH133: 56 | BI133: 35 | BJ133: 0.625 | BK133: 416 | BL133: 11.9 | BM133: 1 | BN133: 23 | BO133: 44 | BP133: 7.4 | BQ133: 2.2 | BR133: 26 | BS133: 1
AK134: 127 | AL134: Jimmy Garoppolo | AM134: SFO | AN134: 31 | AO134: QB | AP134: 11 | AQ134: 10 | AR134: 23 | AS134: 33 | AT134: 2 | AU134: 12 | AV134: 6 | AW134: 1.4 | AX134: 3 | AY134: 3 | BA134: 128 | BB134: Randall Cobb | BC134: GNB | BD134: 32 | BE134: WR | BF134: 13 | BG134: 3 | BH134: 50 | BI134: 34 | BJ134: 0.68 | BK134: 417 | BL134: 12.3 | BM134: 1 | BN134: 19 | BO134: 40 | BP134: 8.3 | BQ134: 2.6 | BR134: 32.1 | BS134: 1
AK135: 128 | AL135: Craig Reynolds | AM135: DET | AN135: 26 | AO135: RB | AP135: 9 | AQ135: 0 | AR135: 23 | AS135: 102 | AT135: 0 | AU135: 4 | AV135: 21 | AW135: 4.4 | AX135: 11.3 | AY135: 0 | BA135: 129 | BB135: Will Dissly | BC135: SEA | BD135: 26 | BE135: TE | BF135: 15 | BG135: 15 | BH135: 38 | BI135: 34 | BJ135: 0.895 | BK135: 349 | BL135: 10.3 | BM135: 3 | BN135: 20 | BO135: 38 | BP135: 9.2 | BQ135: 2.3 | BR135: 23.3 | BS135: 0
AK136: 129 | AL136: Tua Tagovailoa | AM136: MIA | AN136: 24 | AO136: QB | AP136: 13 | AQ136: 13 | AR136: 23 | AS136: 70 | AT136: 0 | AU136: 4 | AV136: 18 | AW136: 3 | AX136: 5.4 | AY136: 6 | BA136: 130 | BB136: David Montgomery | BC136: CHI | BD136: 25 | BE136: RB | BF136: 16 | BG136: 16 | BH136: 40 | BI136: 34 | BJ136: 0.85 | BK136: 316 | BL136: 9.3 | BM136: 1 | BN136: 10 | BO136: 32 | BP136: 7.9 | BQ136: 2.1 | BR136: 19.8 | BS136: 2
AK137: 130 | AL137: Dontrell Hilliard | AM137: TEN | AN137: 27 | AO137: RB | AP137: 12 | AQ137: 1 | AR137: 22 | AS137: 145 | AT137: 0 | AU137: 4 | AV137: 30 | AW137: 6.6 | AX137: 12.1 | AY137: 0 | BA137: 131 | BB137: Treylon Burks | BC137: TEN | BD137: 22 | BE137: WR | BF137: 11 | BG137: 6 | BH137: 54 | BI137: 33 | BJ137: 0.611 | BK137: 444 | BL137: 13.5 | BM137: 1 | BN137: 19 | BO137: 51 | BP137: 8.2 | BQ137: 3 | BR137: 40.4 | BS137: 0
AK138: 131 | AL138: J.D. McKissic | AM138: WAS | AN138: 29 | AO138: RB | AP138: 8 | AQ138: 0 | AR138: 22 | AS138: 95 | AT138: 0 | AU138: 5 | AV138: 33 | AW138: 4.3 | AX138: 11.9 | AY138: 0 | BA138: 132 | BB138: Greg Dulcich | BC138: DEN | BD138: 22 | BE138: TE | BF138: 10 | BG138: 6 | BH138: 55 | BI138: 33 | BJ138: 0.6 | BK138: 411 | BL138: 12.5 | BM138: 2 | BN138: 18 | BO138: 39 | BP138: 7.5 | BQ138: 3.3 | BR138: 41.1 | BS138: 0
AK139: 132 | AL139: Brock Purdy | AM139: SFO | AN139: 23 | AO139: QB | AP139: 9 | AQ139: 5 | AR139: 22 | AS139: 13 | AT139: 1 | AU139: 5 | AV139: 13 | AW139: 0.6 | AX139: 1.4 | AY139: 0 | BA139: 133 | BB139: Derrick Henry | BC139: TEN | BD139: 28 | BE139: RB | BF139: 16 | BG139: 16 | BH139: 41 | BI139: 33 | BJ139: 0.805 | BK139: 398 | BL139: 12.1 | BM139: 0 | BN139: 11 | BO139: 69 | BP139: 9.7 | BQ139: 2.1 | BR139: 24.9 | BS139: 6
AK140: 133 | AL140: Carson Wentz | AM140: WAS | AN140: 30 | AO140: QB | AP140: 8 | AQ140: 7 | AR140: 22 | AS140: 86 | AT140: 1 | AU140: 4 | AV140: 18 | AW140: 3.9 | AX140: 10.8 | AY140: 6 | BA140: 134 | BB140: Foster Moreau | BC140: LVR | BD140: 25 | BE140: TE | BF140: 15 | BG140: 14 | BH140: 54 | BI140: 33 | BJ140: 0.611 | BK140: 420 | BL140: 12.7 | BM140: 2 | BN140: 24 | BO140: 33 | BP140: 7.8 | BQ140: 2.2 | BR140: 28 | BS140: 1
AK141: 134 | AL141: Avery Williams | AM141: ATL | AN141: 24 | AO141: RB | AP141: 17 | AQ141: 3 | AR141: 22 | AS141: 109 | AT141: 1 | AU141: 6 | AV141: 21 | AW141: 5 | AX141: 6.4 | AY141: 1 | BA141: 135 | BB141: Allen Robinson | BC141: LAR | BD141: 29 | BE141: WR | BF141: 10 | BG141: 10 | BH141: 52 | BI141: 33 | BJ141: 0.635 | BK141: 339 | BL141: 10.3 | BM141: 3 | BN141: 23 | BO141: 29 | BP141: 6.5 | BQ141: 3.3 | BR141: 33.9 | BS141: 0
AK142: 135 | AL142: Darrel Williams | AM142: ARI | AN142: 27 | AO142: RB | AP142: 6 | AQ142: 0 | AR142: 21 | AS142: 102 | AT142: 1 | AU142: 8 | AV142: 30 | AW142: 4.9 | AX142: 17 | AY142: 0 | BA142: 136 | BB142: Quez Watkins | BC142: PHI | BD142: 24 | BE142: WR | BF142: 17 | BG142: 8 | BH142: 51 | BI142: 33 | BJ142: 0.647 | BK142: 354 | BL142: 10.7 | BM142: 3 | BN142: 13 | BO142: 53 | BP142: 6.9 | BQ142: 1.9 | BR142: 20.8 | BS142: 1
AK143: 136 | AL143: Jeff Driskel | AM143: HOU | AN143: 29 | AO143: QB | AP143: 7 | AQ143: 2 | AR143: 20 | AS143: 75 | AT143: 0 | AU143: 4 | AV143: 10 | AW143: 3.8 | AX143: 10.7 | AY143: 0 | BA143: 137 | BB143: Corey Davis | BC143: NYJ | BD143: 27 | BE143: WR | BF143: 13 | BG143: 10 | BH143: 64 | BI143: 32 | BJ143: 0.5 | BK143: 536 | BL143: 16.8 | BM143: 2 | BN143: 28 | BO143: 66 | BP143: 8.4 | BQ143: 2.5 | BR143: 41.2 | BS143: 0
AK144: 137 | AL144: Benny Snell Jr. | AM144: PIT | AN144: 24 | AO144: RB | AP144: 17 | AQ144: 0 | AR144: 20 | AS144: 90 | AT144: 1 | AU144: 6 | AV144: 16 | AW144: 4.5 | AX144: 5.3 | AY144: 0 | BA144: 138 | BB144: Mike Gesicki | BC144: MIA | BD144: 27 | BE144: TE | BF144: 17 | BG144: 1 | BH144: 52 | BI144: 32 | BJ144: 0.615 | BK144: 362 | BL144: 11.3 | BM144: 5 | BN144: 19 | BO144: 32 | BP144: 7 | BQ144: 1.9 | BR144: 21.3 | BS144: 0
AK145: 138 | AL145: Travis Homer | AM145: SEA | AN145: 24 | AO145: RB | AP145: 10 | AQ145: 1 | AR145: 19 | AS145: 74 | AT145: 0 | AU145: 4 | AV145: 16 | AW145: 3.9 | AX145: 7.4 | AY145: 1 | BA145: 139 | BB145: Chigoziem Okonkwo | BC145: TEN | BD145: 23 | BE145: TE | BF145: 17 | BG145: 8 | BH145: 46 | BI145: 32 | BJ145: 0.696 | BK145: 450 | BL145: 14.1 | BM145: 3 | BN145: 22 | BO145: 48 | BP145: 9.8 | BQ145: 1.9 | BR145: 26.5 | BS145: 0
AK146: 139 | AL146: Bryce Perkins | AM146: LAR | AN146: 26 | AO146: QB | AP146: 5 | AQ146: 1 | AR146: 19 | AS146: 90 | AT146: 0 | AU146: 6 | AV146: 23 | AW146: 4.7 | AX146: 18 | AY146: 0 | BA146: 140 | BB146: Nelson Agholor | BC146: NWE | BD146: 29 | BE146: WR | BF146: 16 | BG146: 7 | BH146: 53 | BI146: 31 | BJ146: 0.585 | BK146: 362 | BL146: 11.7 | BM146: 2 | BN146: 12 | BO146: 44 | BP146: 6.8 | BQ146: 1.9 | BR146: 22.6 | BS146: 2
AK147: 140 | AL147: Mitchell Trubisky | AM147: PIT | AN147: 28 | AO147: QB | AP147: 7 | AQ147: 5 | AR147: 19 | AS147: 38 | AT147: 2 | AU147: 7 | AV147: 9 | AW147: 2 | AX147: 5.4 | AY147: 0 | BA147: 141 | BB147: Harrison Bryant | BC147: CLE | BD147: 24 | BE147: TE | BF147: 17 | BG147: 9 | BH147: 42 | BI147: 31 | BJ147: 0.738 | BK147: 239 | BL147: 7.7 | BM147: 1 | BN147: 12 | BO147: 30 | BP147: 5.7 | BQ147: 1.8 | BR147: 14.1 | BS147: 0
AK148: 141 | AL148: Malcolm Brown | AM148: LAR | AN148: 29 | AO148: RB | AP148: 11 | AQ148: 0 | AR148: 18 | AS148: 81 | AT148: 1 | AU148: 3 | AV148: 23 | AW148: 4.5 | AX148: 7.4 | AY148: 0 | BA148: 142 | BB148: Kylen Granson | BC148: IND | BD148: 24 | BE148: TE | BF148: 13 | BG148: 4 | BH148: 40 | BI148: 31 | BJ148: 0.775 | BK148: 302 | BL148: 9.7 | BM148: 0 | BN148: 17 | BO148: 32 | BP148: 7.6 | BQ148: 2.4 | BR148: 23.2 | BS148: 1
AK149: 142 | AL149: Kevin Harris | AM149: NWE | AN149: 22 | AO149: RB | AP149: 5 | AQ149: 1 | AR149: 18 | AS149: 52 | AT149: 1 | AU149: 3 | AV149: 14 | AW149: 2.9 | AX149: 10.4 | AY149: 0 | BA149: 143 | BB149: Raheem Mostert | BC149: MIA | BD149: 30 | BE149: RB | BF149: 16 | BG149: 14 | BH149: 42 | BI149: 31 | BJ149: 0.738 | BK149: 202 | BL149: 6.5 | BM149: 2 | BN149: 11 | BO149: 25 | BP149: 4.8 | BQ149: 1.9 | BR149: 12.6 | BS149: 1
AK150: 143 | AL150: Isaiah Spiller | AM150: LAC | AN150: 21 | AO150: RB | AP150: 6 | AQ150: 0 | AR150: 18 | AS150: 41 | AT150: 0 | AU150: 2 | AV150: 11 | AW150: 2.3 | AX150: 6.8 | AY150: 0 | BA150: 144 | BB150: DeVante Parker | BC150: NWE | BD150: 29 | BE150: WR | BF150: 13 | BG150: 11 | BH150: 47 | BI150: 31 | BJ150: 0.66 | BK150: 539 | BL150: 17.4 | BM150: 3 | BN150: 25 | BO150: 43 | BP150: 11.5 | BQ150: 2.4 | BR150: 41.5 | BS150: 0
AK151: 144 | AL151: Brandon Bolden | AM151: LVR | AN151: 32 | AO151: RB | AP151: 16 | AQ151: 0 | AR151: 17 | AS151: 66 | AT151: 0 | AU151: 3 | AV151: 12 | AW151: 3.9 | AX151: 4.1 | AY151: 0 | BA151: 145 | BB151: Daniel Bellinger | BC151: NYG | BD151: 22 | BE151: TE | BF151: 12 | BG151: 11 | BH151: 35 | BI151: 30 | BJ151: 0.857 | BK151: 268 | BL151: 8.9 | BM151: 2 | BN151: 14 | BO151: 24 | BP151: 7.7 | BQ151: 2.5 | BR151: 22.3 | BS151: 1
AK152: 145 | AL152: Sam Ehlinger | AM152: IND | AN152: 24 | AO152: QB | AP152: 4 | AQ152: 3 | AR152: 17 | AS152: 87 | AT152: 0 | AU152: 5 | AV152: 19 | AW152: 5.1 | AX152: 21.8 | AY152: 2 | BA152: 146 | BB152: DJ Chark | BC152: DET | BD152: 26 | BE152: WR | BF152: 11 | BG152: 10 | BH152: 52 | BI152: 30 | BJ152: 0.577 | BK152: 502 | BL152: 16.7 | BM152: 3 | BN152: 24 | BO152: 51 | BP152: 9.7 | BQ152: 2.7 | BR152: 45.6 | BS152: 0
AK153: 146 | AL153: Ronald Jones II | AM153: KAN | AN153: 25 | AO153: RB | AP153: 6 | AQ153: 0 | AR153: 17 | AS153: 70 | AT153: 1 | AU153: 4 | AV153: 13 | AW153: 4.1 | AX153: 11.7 | AY153: 0 | BA153: 147 | BB153: Nyheim Hines | BC153: 2TM | BD153: 26 | BE153: RB | BF153: 16 | BG153: 5 | BH153: 37 | BI153: 30 | BJ153: 0.811 | BK153: 241 | BL153: 8 | BM153: 1 | BN153: 11 | BO153: 22 | BP153: 6.5 | BQ153: 1.9 | BR153: 15.1 | BS153: 2
AK154: 147 | AL154: Jaret Patterson | AM154: WAS | AN154: 23 | AO154: RB | AP154: 3 | AQ154: 0 | AR154: 17 | AS154: 78 | AT154: 0 | AU154: 3 | AV154: 14 | AW154: 4.6 | AX154: 26 | AY154: 0 | BA154: 148 | BB154: Deon Jackson | BC154: IND | BD154: 23 | BE154: RB | BF154: 16 | BG154: 2 | BH154: 34 | BI154: 30 | BJ154: 0.882 | BK154: 209 | BL154: 7 | BM154: 1 | BN154: 10 | BO154: 27 | BP154: 6.1 | BQ154: 1.9 | BR154: 13.1 | BS154: 1
AK155: 148 | AL155: Brandon Powell | AM155: LAR | AN155: 27 | AO155: WR | AP155: 17 | AQ155: 6 | AR155: 17 | AS155: 80 | AT155: 0 | AU155: 6 | AV155: 20 | AW155: 4.7 | AX155: 4.7 | AY155: 1 | BA155: 149 | BB155: Dameon Pierce | BC155: HOU | BD155: 22 | BE155: RB | BF155: 13 | BG155: 13 | BH155: 39 | BI155: 30 | BJ155: 0.769 | BK155: 165 | BL155: 5.5 | BM155: 1 | BN155: 7 | BO155: 16 | BP155: 4.2 | BQ155: 2.3 | BR155: 12.7 | BS155: 4
AK156: 149 | AL156: Ke'Shawn Vaughn | AM156: TAM | AN156: 25 | AO156: RB | AP156: 15 | AQ156: 0 | AR156: 17 | AS156: 53 | AT156: 0 | AU156: 3 | AV156: 12 | AW156: 3.1 | AX156: 3.5 | AY156: 0 | BA156: Rk | BB156: Player | BC156: Tm | BD156: Age | BE156: Pos | BF156: G | BG156: GS | BH156: Tgt | BI156: Rec | BJ156: Ctch% | BK156: Yds | BL156: Y/R | BM156: TD | BN156: 1D | BO156: Lng | BP156: Y/Tgt | BQ156: R/G | BR156: Y/G | BS156: Fmb
AK157: Rk | AL157: Player | AM157: Tm | AN157: Age | AO157: Pos | AP157: G | AQ157: GS | AR157: Att | AS157: Yds | AT157: TD | AU157: 1D | AV157: Lng | AW157: Y/A | AX157: Y/G | AY157: Fmb | BA157: 150 | BB157: Trent Sherfield | BC157: MIA | BD157: 26 | BE157: WR | BF157: 17 | BG157: 4 | BH157: 51 | BI157: 30 | BJ157: 0.588 | BK157: 417 | BL157: 13.9 | BM157: 2 | BN157: 18 | BO157: 75 | BP157: 8.2 | BQ157: 1.8 | BR157: 24.5 | BS157: 0
AK158: 150 | AL158: Zamir White | AM158: LVR | AN158: 23 | AO158: RB | AP158: 14 | AQ158: 0 | AR158: 17 | AS158: 70 | AT158: 0 | AU158: 4 | AV158: 22 | AW158: 4.1 | AX158: 5 | AY158: 0 | BA158: 151 | BB158: Trey McBride | BC158: ARI | BD158: 23 | BE158: TE | BF158: 16 | BG158: 13 | BH158: 39 | BI158: 29 | BJ158: 0.744 | BK158: 265 | BL158: 9.1 | BM158: 1 | BN158: 12 | BO158: 29 | BP158: 6.8 | BQ158: 1.8 | BR158: 16.6 | BS158: 1
AK159: 151 | AL159: Trey Lance | AM159: SFO | AN159: 22 | AO159: QB | AP159: 2 | AQ159: 2 | AR159: 16 | AS159: 67 | AT159: 0 | AU159: 7 | AV159: 13 | AW159: 4.2 | AX159: 33.5 | AY159: 1 | BA159: 152 | BB159: AJ Dillon | BC159: GNB | BD159: 24 | BE159: RB | BF159: 17 | BG159: 3 | BH159: 43 | BI159: 28 | BJ159: 0.651 | BK159: 206 | BL159: 7.4 | BM159: 0 | BN159: 9 | BO159: 17 | BP159: 4.8 | BQ159: 1.6 | BR159: 12.1 | BS159: 1
AK160: 152 | AL160: Marlon Mack | AM160: 2TM | AN160: 26 | AP160: 8 | AQ160: 0 | AR160: 16 | AS160: 84 | AT160: 1 | AU160: 4 | AV160: 17 | AW160: 5.3 | AX160: 10.5 | AY160: 0 | BA160: 153 | BB160: Noah Gray | BC160: KAN | BD160: 23 | BE160: TE | BF160: 17 | BG160: 8 | BH160: 34 | BI160: 28 | BJ160: 0.824 | BK160: 299 | BL160: 10.7 | BM160: 1 | BN160: 14 | BO160: 27 | BP160: 8.8 | BQ160: 1.6 | BR160: 17.6 | BS160: 0
AK161: 153 | AL161: Desmond Ridder | AM161: ATL | AN161: 23 | AO161: QB | AP161: 4 | AQ161: 4 | AR161: 16 | AS161: 64 | AT161: 0 | AU161: 4 | AV161: 18 | AW161: 4 | AX161: 16 | AY161: 3 | BA161: 154 | BB161: Terrace Marshall Jr. | BC161: CAR | BD161: 22 | BE161: WR | BF161: 14 | BG161: 9 | BH161: 47 | BI161: 28 | BJ161: 0.596 | BK161: 490 | BL161: 17.5 | BM161: 1 | BN161: 24 | BO161: 43 | BP161: 10.4 | BQ161: 2 | BR161: 35 | BS161: 2
AK162: 154 | AL162: Corey Clement | AM162: ARI | AN162: 28 | AO162: RB | AP162: 9 | AQ162: 1 | AR162: 15 | AS162: 55 | AT162: 1 | AU162: 6 | AV162: 12 | AW162: 3.7 | AX162: 6.1 | AY162: 0 | BA162: 155 | BB162: Kyle Pitts | BC162: ATL | BD162: 22 | BE162: TE | BF162: 10 | BG162: 10 | BH162: 59 | BI162: 28 | BJ162: 0.475 | BK162: 356 | BL162: 12.7 | BM162: 2 | BN162: 20 | BO162: 33 | BP162: 6 | BQ162: 2.8 | BR162: 35.6 | BS162: 0
AK163: 155 | AL163: Phillip Lindsay | AM163: IND | AN163: 28 | AO163: RB | AP163: 3 | AQ163: 0 | AR163: 15 | AS163: 49 | AT163: 0 | AU163: 1 | AV163: 15 | AW163: 3.3 | AX163: 16.3 | AY163: 0 | BA163: 156 | BB163: Rashid Shaheed | BC163: NOR | BD163: 24 | BE163: WR | BF163: 12 | BG163: 6 | BH163: 34 | BI163: 28 | BJ163: 0.824 | BK163: 488 | BL163: 17.4 | BM163: 2 | BN163: 18 | BO163: 68 | BP163: 14.4 | BQ163: 2.3 | BR163: 40.7 | BS163: 1
AK164: 156 | AL164: Trace McSorley | AM164: ARI | AN164: 27 | AO164: QB | AP164: 6 | AQ164: 1 | AR164: 15 | AS164: 61 | AT164: 0 | AU164: 3 | AV164: 14 | AW164: 4.1 | AX164: 10.2 | AY164: 2 | BA164: 157 | BB164: Jonathan Taylor | BC164: IND | BD164: 23 | BE164: RB | BF164: 11 | BG164: 11 | BH164: 40 | BI164: 28 | BJ164: 0.7 | BK164: 143 | BL164: 5.1 | BM164: 0 | BN164: 4 | BO164: 19 | BP164: 3.6 | BQ164: 2.5 | BR164: 13 | BS164: 3
AK165: 157 | AL165: Darrynton Evans | AM165: CHI | AN165: 24 | AO165: RB | AP165: 6 | AQ165: 0 | AR165: 14 | AS165: 64 | AT165: 0 | AU165: 3 | AV165: 21 | AW165: 4.6 | AX165: 10.7 | AY165: 0 | BA165: 158 | BB165: Darren Waller | BC165: LVR | BD165: 30 | BE165: TE | BF165: 9 | BG165: 6 | BH165: 43 | BI165: 28 | BJ165: 0.651 | BK165: 388 | BL165: 13.9 | BM165: 3 | BN165: 18 | BO165: 34 | BP165: 9 | BQ165: 3.1 | BR165: 43.1 | BS165: 0
AK166: 158 | AL166: Colt McCoy | AM166: ARI | AN166: 36 | AO166: QB | AP166: 4 | AQ166: 3 | AR166: 14 | AS166: 36 | AT166: 0 | AU166: 5 | AV166: 9 | AW166: 2.6 | AX166: 9 | AY166: 2 | BA166: 159 | BB166: Jaylen Warren | BC166: PIT | BD166: 24 | BE166: RB | BF166: 16 | BG166: 0 | BH166: 33 | BI166: 28 | BJ166: 0.848 | BK166: 214 | BL166: 7.6 | BM166: 0 | BN166: 14 | BO166: 26 | BP166: 6.5 | BQ166: 1.8 | BR166: 13.4 | BS166: 1
AK167: 159 | AL167: Jarrett Stidham | AM167: LVR | AN167: 26 | AO167: QB | AP167: 5 | AQ167: 2 | AR167: 14 | AS167: 84 | AT167: 0 | AU167: 7 | AV167: 11 | AW167: 6 | AX167: 16.8 | AY167: 3 | BA167: 160 | BB167: Nick Chubb | BC167: CLE | BD167: 27 | BE167: RB | BF167: 17 | BG167: 17 | BH167: 37 | BI167: 27 | BJ167: 0.73 | BK167: 239 | BL167: 8.9 | BM167: 1 | BN167: 12 | BO167: 26 | BP167: 6.5 | BQ167: 1.6 | BR167: 14.1 | BS167: 1
AK168: 160 | AL168: Skylar Thompson | AM168: MIA | AN168: 25 | AO168: QB | AP168: 7 | AQ168: 2 | AR168: 14 | AS168: 21 | AT168: 0 | AU168: 1 | AV168: 9 | AW168: 1.5 | AX168: 3 | AY168: 2 | BA168: 161 | BB168: Marquise Goodwin | BC168: SEA | BD168: 32 | BE168: WR | BF168: 13 | BG168: 2 | BH168: 42 | BI168: 27 | BJ168: 0.643 | BK168: 387 | BL168: 14.3 | BM168: 4 | BN168: 18 | BO168: 38 | BP168: 9.2 | BQ168: 2.1 | BR168: 29.8 | BS168: 0
AK169: 161 | AL169: Larry Rountree | AM169: LAC | AN169: 23 | AO169: RB | AP169: 4 | AQ169: 0 | AR169: 13 | AS169: 19 | AT169: 0 | AU169: 0 | AV169: 5 | AW169: 1.5 | AX169: 4.8 | AY169: 0 | BA169: 162 | BB169: J.D. McKissic | BC169: WAS | BD169: 29 | BE169: RB | BF169: 8 | BG169: 0 | BH169: 40 | BI169: 27 | BJ169: 0.675 | BK169: 173 | BL169: 6.4 | BM169: 0 | BN169: 7 | BO169: 14 | BP169: 4.3 | BQ169: 3.4 | BR169: 21.6 | BS169: 0
AK170: 162 | AL170: Steven Sims | AM170: PIT | AN170: 25 | AO170: WR | AP170: 12 | AQ170: 2 | AR170: 13 | AS170: 70 | AT170: 0 | AU170: 5 | AV170: 22 | AW170: 5.4 | AX170: 5.8 | AY170: 3 | BA170: 163 | BB170: Latavius Murray | BC170: 2TM | BD170: 32 | BE170: RB | BF170: 13 | BG170: 7 | BH170: 35 | BI170: 27 | BJ170: 0.771 | BK170: 132 | BL170: 4.9 | BM170: 0 | BN170: 4 | BO170: 15 | BP170: 3.8 | BQ170: 2.1 | BR170: 10.2 | BS170: 1
AK171: 163 | AL171: Matthew Stafford | AM171: LAR | AN171: 34 | AO171: QB | AP171: 9 | AQ171: 9 | AR171: 13 | AS171: 9 | AT171: 1 | AU171: 3 | AV171: 4 | AW171: 0.7 | AX171: 1 | AY171: 5 | BA171: 164 | BB171: Laviska Shenault Jr. | BC171: CAR | BD171: 24 | BE171: WR | BF171: 13 | BG171: 4 | BH171: 32 | BI171: 27 | BJ171: 0.844 | BK171: 272 | BL171: 10.1 | BM171: 1 | BN171: 10 | BO171: 67 | BP171: 8.5 | BQ171: 2.1 | BR171: 20.9 | BS171: 0
AK172: 164 | AL172: Jordan Wilkins | AM172: IND | AN172: 28 | AO172: RB | AP172: 4 | AQ172: 0 | AR172: 13 | AS172: 58 | AT172: 0 | AU172: 2 | AV172: 9 | AW172: 4.5 | AX172: 14.5 | AY172: 0 | BA172: 165 | BB172: Jonnu Smith | BC172: NWE | BD172: 27 | BE172: TE | BF172: 14 | BG172: 8 | BH172: 38 | BI172: 27 | BJ172: 0.711 | BK172: 245 | BL172: 9.1 | BM172: 0 | BN172: 9 | BO172: 53 | BP172: 6.4 | BQ172: 1.9 | BR172: 17.5 | BS172: 1
AK173: 165 | AL173: Jamal Agnew | AM173: JAX | AN173: 27 | AO173: WR | AP173: 15 | AQ173: 0 | AR173: 12 | AS173: 86 | AT173: 0 | AU173: 6 | AV173: 30 | AW173: 7.2 | AX173: 5.7 | AY173: 0 | BA173: 166 | BB173: Kenneth Walker III | BC173: SEA | BD173: 22 | BE173: RB | BF173: 15 | BG173: 11 | BH173: 35 | BI173: 27 | BJ173: 0.771 | BK173: 165 | BL173: 6.1 | BM173: 0 | BN173: 6 | BO173: 33 | BP173: 4.7 | BQ173: 1.8 | BR173: 11 | BS173: 0
AK174: 166 | AL174: Salvon Ahmed | AM174: MIA | AN174: 24 | AO174: RB | AP174: 12 | AQ174: 0 | AR174: 12 | AS174: 64 | AT174: 1 | AU174: 4 | AV174: 11 | AW174: 5.3 | AX174: 5.3 | AY174: 0 | BA174: 167 | BB174: Ameer Abdullah | BC174: LVR | BD174: 29 | BE174: RB | BF174: 17 | BG174: 0 | BH174: 32 | BI174: 25 | BJ174: 0.781 | BK174: 211 | BL174: 8.4 | BM174: 1 | BN174: 8 | BO174: 23 | BP174: 6.6 | BQ174: 1.5 | BR174: 12.4 | BS174: 0
AK175: 167 | AL175: Tevin Coleman | AM175: SFO | AN175: 29 | AO175: RB | AP175: 5 | AQ175: 0 | AR175: 12 | AS175: 26 | AT175: 1 | AU175: 2 | AV175: 14 | AW175: 2.2 | AX175: 5.2 | AY175: 0 | BA175: 168 | BB175: Eno Benjamin | BC175: 3TM | BD175: 23 | BF175: 15 | BG175: 3 | BH175: 34 | BI175: 25 | BJ175: 0.735 | BK175: 193 | BL175: 7.7 | BM175: 0 | BN175: 10 | BO175: 22 | BP175: 5.7 | BQ175: 1.7 | BR175: 12.9 | BS175: 0
AK176: 168 | AL176: Snoop Conner | AM176: JAX | AN176: 22 | AO176: RB | AP176: 8 | AQ176: 0 | AR176: 12 | AS176: 42 | AT176: 1 | AU176: 2 | AV176: 8 | AW176: 3.5 | AX176: 5.3 | AY176: 0 | BA176: 169 | BB176: Melvin Gordon | BC176: DEN | BD176: 29 | BE176: RB | BF176: 10 | BG176: 6 | BH176: 32 | BI176: 25 | BJ176: 0.781 | BK176: 223 | BL176: 8.9 | BM176: 0 | BN176: 11 | BO176: 24 | BP176: 7 | BQ176: 2.5 | BR176: 22.3 | BS176: 5
AK177: 169 | AL177: Devin Duvernay | AM177: BAL | AN177: 25 | AO177: WR | AP177: 14 | AQ177: 13 | AR177: 12 | AS177: 84 | AT177: 1 | AU177: 7 | AV177: 18 | AW177: 7 | AX177: 6 | AY177: 1 | BA177: 170 | BB177: Mecole Hardman | BC177: KAN | BD177: 24 | BE177: WR | BF177: 8 | BG177: 5 | BH177: 34 | BI177: 25 | BJ177: 0.735 | BK177: 297 | BL177: 11.9 | BM177: 4 | BN177: 14 | BO177: 36 | BP177: 8.7 | BQ177: 3.1 | BR177: 37.1 | BS177: 1
AK178: 170 | AL178: David Johnson | AM178: NOR | AN178: 31 | AO178: RB | AP178: 5 | AQ178: 0 | AR178: 12 | AS178: 24 | AT178: 0 | AU178: 0 | AV178: 5 | AW178: 2 | AX178: 4.8 | AY178: 1 | BA178: 171 | BB178: Jarvis Landry | BC178: NOR | BD178: 30 | BE178: WR | BF178: 9 | BG178: 3 | BH178: 39 | BI178: 25 | BJ178: 0.641 | BK178: 272 | BL178: 10.9 | BM178: 1 | BN178: 12 | BO178: 40 | BP178: 7 | BQ178: 2.8 | BR178: 30.2 | BS178: 1
AK179: 171 | AL179: Dwayne Washington | AM179: NOR | AN179: 28 | AO179: RB | AP179: 12 | AQ179: 0 | AR179: 11 | AS179: 38 | AT179: 0 | AU179: 2 | AV179: 8 | AW179: 3.5 | AX179: 3.2 | AY179: 0 | BA179: 172 | BB179: Colby Parkinson | BC179: SEA | BD179: 23 | BE179: TE | BF179: 17 | BG179: 2 | BH179: 34 | BI179: 25 | BJ179: 0.735 | BK179: 322 | BL179: 12.9 | BM179: 2 | BN179: 14 | BO179: 39 | BP179: 9.5 | BQ179: 1.5 | BR179: 18.9 | BS179: 0
AK180: 172 | AL180: Myles Gaskin | AM180: MIA | AN180: 25 | AO180: RB | AP180: 4 | AQ180: 0 | AR180: 10 | AS180: 26 | AT180: 0 | AU180: 2 | AV180: 10 | AW180: 2.6 | AX180: 6.5 | AY180: 0 | BA180: 173 | BB180: Irv Smith Jr. | BC180: MIN | BD180: 24 | BE180: TE | BF180: 8 | BG180: 1 | BH180: 36 | BI180: 25 | BJ180: 0.694 | BK180: 182 | BL180: 7.3 | BM180: 2 | BN180: 9 | BO180: 17 | BP180: 5.1 | BQ180: 3.1 | BR180: 22.8 | BS180: 1
AK181: 173 | AL181: Tony Jones | AM181: 2TM | AN181: 25 | AO181: RB | AP181: 6 | AQ181: 0 | AR181: 10 | AS181: 24 | AT181: 0 | AU181: 3 | AV181: 7 | AW181: 2.4 | AX181: 4 | AY181: 0 | BA181: 174 | BB181: Nick Westbrook-Ikhine | BC181: TEN | BD181: 25 | BE181: WR | BF181: 17 | BG181: 13 | BH181: 50 | BI181: 25 | BJ181: 0.5 | BK181: 397 | BL181: 15.9 | BM181: 3 | BN181: 18 | BO181: 63 | BP181: 7.9 | BQ181: 1.5 | BR181: 23.4 | BS181: 0
AK182: 174 | AL182: CeeDee Lamb | AM182: DAL | AN182: 23 | AO182: WR | AP182: 17 | AQ182: 17 | AR182: 10 | AS182: 47 | AT182: 0 | AU182: 3 | AV182: 14 | AW182: 4.7 | AX182: 2.8 | AY182: 0 | BA182: 175 | BB182: Jelani Woods | BC182: IND | BD182: 24 | BE182: TE | BF182: 15 | BG182: 2 | BH182: 40 | BI182: 25 | BJ182: 0.625 | BK182: 312 | BL182: 12.5 | BM182: 3 | BN182: 16 | BO182: 36 | BP182: 7.8 | BQ182: 1.7 | BR182: 20.8 | BS182: 1
AK183: 175 | AL183: D.J. Moore | AM183: CAR | AN183: 25 | AO183: WR | AP183: 17 | AQ183: 17 | AR183: 10 | AS183: 53 | AT183: 0 | AU183: 3 | AV183: 11 | AW183: 5.3 | AX183: 3.1 | AY183: 0 | BA183: 176 | BB183: David Bell | BC183: CLE | BD183: 22 | BE183: WR | BF183: 16 | BG183: 3 | BH183: 35 | BI183: 24 | BJ183: 0.686 | BK183: 214 | BL183: 8.9 | BM183: 0 | BN183: 7 | BO183: 20 | BP183: 6.1 | BQ183: 1.5 | BR183: 13.4 | BS183: 0
AK184: 176 | AL184: Pierre Strong | AM184: NWE | AN184: 24 | AO184: RB | AP184: 15 | AQ184: 0 | AR184: 10 | AS184: 100 | AT184: 1 | AU184: 5 | AV184: 44 | AW184: 10 | AX184: 6.7 | AY184: 0 | BA184: 177 | BB184: A.J. Green | BC184: ARI | BD184: 34 | BE184: WR | BF184: 15 | BG184: 10 | BH184: 47 | BI184: 24 | BJ184: 0.511 | BK184: 236 | BL184: 9.8 | BM184: 2 | BN184: 11 | BO184: 77 | BP184: 5 | BQ184: 1.6 | BR184: 15.7 | BS184: 0
AK185: 177 | AL185: J.J. Taylor | AM185: NWE | AN185: 24 | AO185: RB | AP185: 1 | AQ185: 0 | AR185: 10 | AS185: 9 | AT185: 0 | AU185: 0 | AV185: 5 | AW185: 0.9 | AX185: 9 | AY185: 0 | BA185: 178 | BB185: Kendall Hinton | BC185: DEN | BD185: 25 | BE185: WR | BF185: 12 | BG185: 5 | BH185: 33 | BI185: 24 | BJ185: 0.727 | BK185: 311 | BL185: 13 | BM185: 0 | BN185: 14 | BO185: 35 | BP185: 9.4 | BQ185: 2 | BR185: 25.9 | BS185: 0
AK186: 178 | AL186: Patrick Taylor | AM186: GNB | AN186: 24 | AO186: RB | AP186: 14 | AQ186: 0 | AR186: 10 | AS186: 31 | AT186: 0 | AU186: 2 | AV186: 6 | AW186: 3.1 | AX186: 2.2 | AY186: 0 | BA186: 179 | BB186: Van Jefferson | BC186: LAR | BD186: 26 | BE186: WR | BF186: 11 | BG186: 9 | BH186: 44 | BI186: 24 | BJ186: 0.545 | BK186: 369 | BL186: 15.4 | BM186: 3 | BN186: 20 | BO186: 39 | BP186: 8.4 | BQ186: 2.2 | BR186: 33.5 | BS186: 0
AK187: 179 | AL187: Bailey Zappe | AM187: NWE | AN187: 23 | AO187: QB | AP187: 4 | AQ187: 2 | AR187: 10 | AS187: 0 | AT187: 0 | AU187: 0 | AV187: 5 | AW187: 0 | AX187: 0 | AY187: 4 | BA187: Rk | BB187: Player | BC187: Tm | BD187: Age | BE187: Pos | BF187: G | BG187: GS | BH187: Tgt | BI187: Rec | BJ187: Ctch% | BK187: Yds | BL187: Y/R | BM187: TD | BN187: 1D | BO187: Lng | BP187: Y/Tgt | BQ187: R/G | BR187: Y/G | BS187: Fmb
AK188: Rk | AL188: Player | AM188: Tm | AN188: Age | AO188: Pos | AP188: G | AQ188: GS | AR188: Att | AS188: Yds | AT188: TD | AU188: 1D | AV188: Lng | AW188: Y/A | AX188: Y/G | AY188: Fmb | BA188: 180 | BB188: Julio Jones | BC188: TAM | BD188: 33 | BE188: WR | BF188: 10 | BG188: 5 | BH188: 43 | BI188: 24 | BJ188: 0.558 | BK188: 299 | BL188: 12.5 | BM188: 2 | BN188: 13 | BO188: 48 | BP188: 7 | BQ188: 2.4 | BR188: 29.9 | BS188: 0
AK189: 180 | AL189: Tutu Atwell | AM189: LAR | AN189: 23 | AO189: WR | AP189: 13 | AQ189: 4 | AR189: 9 | AS189: 34 | AT189: 1 | AU189: 2 | AV189: 11 | AW189: 3.8 | AX189: 2.6 | AY189: 0 | BA189: 181 | BB189: Brandon Powell | BC189: LAR | BD189: 27 | BE189: WR | BF189: 17 | BG189: 6 | BH189: 32 | BI189: 24 | BJ189: 0.75 | BK189: 156 | BL189: 6.5 | BM189: 0 | BN189: 7 | BO189: 16 | BP189: 4.9 | BQ189: 1.4 | BR189: 9.2 | BS189: 1
AK190: 181 | AL190: Braxton Berrios | AM190: NYJ | AN190: 27 | AO190: WR | AP190: 17 | AQ190: 2 | AR190: 9 | AS190: 91 | AT190: 2 | AU190: 5 | AV190: 25 | AW190: 10.1 | AX190: 5.4 | AY190: 1 | BA190: 182 | BB190: Jamal Agnew | BC190: JAX | BD190: 27 | BE190: WR | BF190: 15 | BG190: 0 | BH190: 30 | BI190: 23 | BJ190: 0.767 | BK190: 187 | BL190: 8.1 | BM190: 3 | BN190: 9 | BO190: 24 | BP190: 6.2 | BQ190: 1.5 | BR190: 12.5 | BS190: 0
AK191: 182 | AL191: Spencer Brown | AM191: CAR | AN191: 24 | AO191: RB | AP191: 2 | AQ191: 0 | AR191: 9 | AS191: 43 | AT191: 0 | AU191: 1 | AV191: 7 | AW191: 4.8 | AX191: 21.5 | AY191: 0 | BA191: 183 | BB191: Kenneth Gainwell | BC191: PHI | BD191: 23 | BE191: RB | BF191: 17 | BG191: 0 | BH191: 29 | BI191: 23 | BJ191: 0.793 | BK191: 169 | BL191: 7.3 | BM191: 0 | BN191: 7 | BO191: 20 | BP191: 5.8 | BQ191: 1.4 | BR191: 9.9 | BS191: 0
AK192: 183 | AL192: Julius Chestnut | AM192: TEN | AN192: 22 | AO192: RB | AP192: 6 | AQ192: 0 | AR192: 9 | AS192: 12 | AT192: 0 | AU192: 1 | AV192: 5 | AW192: 1.3 | AX192: 2 | AY192: 0 | BA192: 184 | BB192: Scott Miller | BC192: TAM | BD192: 25 | BE192: WR | BF192: 15 | BG192: 1 | BH192: 40 | BI192: 23 | BJ192: 0.575 | BK192: 185 | BL192: 8 | BM192: 0 | BN192: 8 | BO192: 23 | BP192: 4.6 | BQ192: 1.5 | BR192: 12.3 | BS192: 0
AK193: 184 | AL193: Chase Claypool | AM193: 2TM | AN193: 24 | AO193: WR | AP193: 15 | AQ193: 11 | AR193: 9 | AS193: 59 | AT193: 0 | AU193: 3 | AV193: 15 | AW193: 6.6 | AX193: 3.9 | AY193: 1 | BA193: 185 | BB193: Wan'Dale Robinson | BC193: NYG | BD193: 21 | BE193: WR | BF193: 6 | BG193: 3 | BH193: 31 | BI193: 23 | BJ193: 0.742 | BK193: 227 | BL193: 9.9 | BM193: 1 | BN193: 13 | BO193: 19 | BP193: 7.3 | BQ193: 3.8 | BR193: 37.8 | BS193: 0
AK194: 185 | AL194: Velus Jones Jr. | AM194: CHI | AN194: 25 | AO194: WR | AP194: 12 | AQ194: 2 | AR194: 9 | AS194: 103 | AT194: 1 | AU194: 5 | AV194: 42 | AW194: 11.4 | AX194: 8.6 | AY194: 3 | BA194: 186 | BB194: Skyy Moore | BC194: KAN | BD194: 22 | BE194: WR | BF194: 16 | BG194: 3 | BH194: 33 | BI194: 22 | BJ194: 0.667 | BK194: 250 | BL194: 11.4 | BM194: 0 | BN194: 13 | BO194: 30 | BP194: 7.6 | BQ194: 1.4 | BR194: 15.6 | BS194: 3
AK195: 186 | AL195: Cooper Kupp | AM195: LAR | AN195: 29 | AO195: WR | AP195: 9 | AQ195: 9 | AR195: 9 | AS195: 52 | AT195: 1 | AU195: 4 | AV195: 20 | AW195: 5.8 | AX195: 5.8 | AY195: 2 | BA195: 187 | BB195: Shi Smith | BC195: CAR | BD195: 24 | BE195: WR | BF195: 17 | BG195: 6 | BH195: 41 | BI195: 22 | BJ195: 0.537 | BK195: 296 | BL195: 13.5 | BM195: 2 | BN195: 14 | BO195: 38 | BP195: 7.2 | BQ195: 1.3 | BR195: 17.4 | BS195: 4
AK196: 187 | AL196: Isaiah McKenzie | AM196: BUF | AN196: 27 | AO196: WR | AP196: 15 | AQ196: 8 | AR196: 9 | AS196: 55 | AT196: 1 | AU196: 3 | AV196: 18 | AW196: 6.1 | AX196: 3.7 | AY196: 0 | BA196: 188 | BB196: Tyquan Thornton | BC196: NWE | BD196: 22 | BE196: WR | BF196: 13 | BG196: 9 | BH196: 45 | BI196: 22 | BJ196: 0.489 | BK196: 247 | BL196: 11.2 | BM196: 2 | BN196: 13 | BO196: 29 | BP196: 5.5 | BQ196: 1.7 | BR196: 19 | BS196: 0
AK197: 188 | AL197: Kene Nwangwu | AM197: MIN | AN197: 24 | AO197: RB | AP197: 17 | AQ197: 0 | AR197: 9 | AS197: 14 | AT197: 0 | AU197: 1 | AV197: 8 | AW197: 1.6 | AX197: 0.8 | AY197: 0 | BA197: 189 | BB197: Jeff Wilson | BC197: 2TM | BD197: 27 | BE197: RB | BF197: 16 | BG197: 7 | BH197: 37 | BI197: 22 | BJ197: 0.595 | BK197: 185 | BL197: 8.4 | BM197: 1 | BN197: 7 | BO197: 16 | BP197: 5 | BQ197: 1.4 | BR197: 11.6 | BS197: 3
AK198: 189 | AL198: Ronnie Rivers | AM198: LAR | AN198: 23 | AO198: RB | AP198: 8 | AQ198: 1 | AR198: 9 | AS198: 21 | AT198: 0 | AU198: 1 | AV198: 5 | AW198: 2.3 | AX198: 2.6 | AY198: 0 | BA198: 190 | BB198: James Cook | BC198: BUF | BD198: 23 | BE198: RB | BF198: 16 | BG198: 0 | BH198: 32 | BI198: 21 | BJ198: 0.656 | BK198: 180 | BL198: 8.6 | BM198: 1 | BN198: 5 | BO198: 41 | BP198: 5.6 | BQ198: 1.3 | BR198: 11.3 | BS198: 1
AK199: 190 | AL199: Cooper Rush | AM199: DAL | AN199: 29 | AO199: QB | AP199: 9 | AQ199: 5 | AR199: 9 | AS199: 6 | AT199: 0 | AU199: 1 | AV199: 6 | AW199: 0.7 | AX199: 0.7 | AY199: 2 | BA199: 191 | BB199: Dontrell Hilliard | BC199: TEN | BD199: 27 | BE199: RB | BF199: 12 | BG199: 1 | BH199: 26 | BI199: 21 | BJ199: 0.808 | BK199: 177 | BL199: 8.4 | BM199: 4 | BN199: 8 | BO199: 31 | BP199: 6.8 | BQ199: 1.8 | BR199: 14.8 | BS199: 0
AK200: 191 | AL200: Laviska Shenault Jr. | AM200: CAR | AN200: 24 | AO200: WR | AP200: 13 | AQ200: 4 | AR200: 9 | AS200: 65 | AT200: 1 | AU200: 1 | AV200: 41 | AW200: 7.2 | AX200: 5 | AY200: 0 | BA200: 192 | BB200: Cordarrelle Patterson | BC200: ATL | BD200: 31 | BE200: RB | BF200: 13 | BG200: 11 | BH200: 31 | BI200: 21 | BJ200: 0.677 | BK200: 122 | BL200: 5.8 | BM200: 0 | BN200: 6 | BO200: 16 | BP200: 3.9 | BQ200: 1.6 | BR200: 9.4 | BS200: 1
... 326 more rows
